Workbook

Sheet - Cover -
A2: Development
A3: Appraisal Tool
B8: Version 4.05 | D8: 2016-04-01
F9: The Homes and Communities Agency(HCA) makes no warranties, representations or undertakings about any of the content contained in this Model
F10: (including, without limitation, any as to the quality, accuracy, completeness or fitness for any particular purpose of such content).
F11: The HCA will not be liable for any loss arising out of or in connection with the use of this Model in negligence, tort, by statute or otherwise.
B12: when starting a scheme apprasial always download current version from www.gov.uk/government/collections/development-appraisal-tool
B13: Any problems working with this tool should be reported to DatEnquiries@hca.gsi.gov.uk
A20: Colour Key Code
A21: Title of input fields
A22: Missing Input | C22: <<<<<<<< *** These Orange cells "POP UP" to highlight INPUT NECESSARY TO AVOID INCOMPLETE RESULTS ***
A23: Optional Input | C23: <<<<<<<< *** ALL optional keying is into white cells ***
A24: Warnings and Errors

Sheet Input 0 -Setup
A1: =+'Input 1 -Site'!A1 -> Surplus/Deficit after allowing for present value of deferred land payments | I1: =+'Input 1 -Site'!F1 -> 4,342,139
B2: IF IN DOUBT LEAVE THIS SHEET 'AS IS' AND CONTINUE TO SITE SHEET
A3: =+"HCA "&'- Cover -'!$A$2&'- Cover -'!$A$3 -> HCA DevelopmentAppraisal Tool
A6: Tool Setup of Sheets to display
B9: The only function of this sheet is to display or hide particular sheets to match user requirements: if you wish to view all formulas then select 'Advanced user'
B13: Simplified data entry is normally faster; if required it is possible to enter additional detail at a later stage
B14: PRESS for level of detail to display>>>>> | E14: or Press >>> | H14: << view more outputs and calcs
C15: Minimal input & output sheets | G15: Workings & cashflow also visible | K15: including sensitive testing

Sheet Input 1 -Site
A1: =IF(A10="Affordable Valuation","Valuation of present value of Affordable Housing at "&DAY(SchemeStart)&"/"&MONTH(SchemeStart)&"/"&YEAR(SchemeStart),"")&IF(LEFT(A10,18)="RESIDUAL VALUATION","Residual Land valuation","")&IF(AND(A10="FULL VIABILITY ASSESSMENT",L27="Site Payment is to be 'upfront'"),"Surplus (Deficit) from Input land valuation at "&DAY(SchemeStart)&"/"&MONTH(SchemeStart)&"/"&YEAR(SchemeStart),"")&IF(AND(A10="FULL VIABILITY ASSESSMENT",L27="A Deferred payment schedule of proposed stage payments is to be input"),"Surplus/Deficit after allowing for present value of deferred land payments","") -> Surplus/Deficit after allowing for present value of deferred land payments | F1: =IF(A10="AFFORDABLE VALUATION",'C2 Value'!H356,IF(Warnings!B1="No obviously missing data",IF('Input 2 -Res BATCH'!$G$6="New data not yet transferred","New data not yet transferred",FIXED('Output - Full'!$F$224,0)),"Incomplete or invalid entry , see warning sheet")) -> 4,342,139 | N1: Surplus/(Deficit)
A3: =+"HCA "&'- Cover -'!$A$2&" "&'- Cover -'!$A$3 -> HCA Development Appraisal Tool
A4: INPUT SHEET 1 - SITE DETAILS
A8: Basic Site Details
A10: FULL VIABILITY ASSESSMENT
A11: Site Address | B11: Cranbrook self build scheme 170 plots
A12: OS X coordinate
A13: OS Y coordinate
A14: Site Reference
A15: File Source
A16: Scheme Description
A17: Date of appraisal | B17: 2020-01-01
A18: Gross Site Area (hectares) | B18: 4.857
A19: Net Residential Site Area (hectares) | B19: 4.857
A20: Author & Organisation | B20: PGD, Three Dragons
A21: Local Planning Authority | B21: East Devon
A22: Land Purchase Price | B22: 0
A23: Land Purchase date | B23: 2020-01-01
A24: Most recent valuation of the site £ | B24: 0 | H24: =IF(Input_Land_value<0,"Negative land values will generate unrealistic credit interest, but negative land values are inherently unrealistic","") -> 
A25: Basis of valuation
A26: Date of valuation
A27: Any note on valuation | L27: A Deferred payment schedule of proposed stage payments is to be input
A28: Developer of sale units
A29: Developer of affordable units | K29: Date | L29: Stage Payment (£) | M29: Month No.
A30: Manager of affordable units | J30: 1 | M30: =IF(ISBLANK(K30),0,ROUND((K30-$B$17)/30.5,0)) -> 0
A31: Registered Provider (where applicable) | J31: 2 | M31: =IF(ISBLANK(K31),0,ROUND((K31-$B$17)/30.5,0)) -> 0
A32: Note on applicant (eg sub partner status) | J32: 3 | M32: 0
A33: Area | J33: 4 | M33: 0
J34: 5 | M34: 0
J35: 6 | M35: 0
J36: 7 | M36: 0
J37: 8 | M37: 0
J38: 9 | M38: 0
J39: 10 | M39: 0
J40: 11 | M40: 0
J41: 12 | M41: 0
L42: =SUM(L30:L41) -> 0
B105: A2Dominion London Limited | G105: LA List | J105: Region
B106: A2Dominion South
B107: Ability Housing Association | G107: Adur | J107: South East
B108: Accent Corporate Services Limited | G108: Allerdale | J108: North West
B109: Accent Nene Limited | G109: Alnwick | J109: North East
B110: Accord Housing Association Limited | G110: Amber Valley | J110: East Midlands
B111: Adactus Housing Association Limited | G111: Arun | J111: South East
B112: Advance Housing and Support Limited | G112: Ashfield | J112: East Midlands
B113: Affinity Sutton Group Limited | G113: Ashford | J113: South East
B114: Agudas Israel Housing Association Limited | G114: Aylesbury Vale | J114: South East
B115: Aldwyck Housing Association Limited | G115: Babergh | J115: Eastern
B116: Alpha (R.S.L.) Limited | G116: Barking and Dagenham | J116: London
B117: Amicus Group Limited | G117: Barnet | J117: London
B118: Aquinas Street Housing Co-operative Limited | G118: Barnsley | J118: Yorkshire & the Humber
B119: Arawak Walton Housing Association Limited | G119: Barrow-in-Furness | J119: North West
B120: Arena Housing Group Limited | G120: Basildon | J120: Eastern
B121: Arneway Housing Co-operative Limited | G121: Basingstoke and Deane | J121: South East
B122: Ashford Borough Council | G122: Bassetlaw | J122: East Midlands
B123: Ash-Shahada Housing Association Limited | G123: Bath and North East Somerset | J123: South West
B124: Ask Investments | G124: Bedford | J124: Eastern
B125: Aspire Housing Limited | G125: Berwick-upon-Tweed | J125: North East
B126: Aster Group Limited | G126: Bexley | J126: London
B127: Badger Building (E.Anglia) Ltd | G127: Birmingham | J127: West Midlands
B128: Barnsley MBC | G128: Blaby | J128: East Midlands
B129: Barratt Developments plc | G129: Blackburn with Darwen | J129: North West
B130: Bedfordshire Pilgrims Housing Association Limited | G130: Blackpool | J130: North West
B131: Bellway Plc | G131: Blyth Valley | J131: North East
B132: Berkeley Homes Plc | G132: Bolsover | J132: East Midlands
B133: Bexley Churches Housing Association Limited | G133: Bolton | J133: North West
B134: BGR Developments Ltd | G134: Boston | J134: East Midlands
B135: Birmingham CC | G135: Bournemouth | J135: South West
B136: Blackpool Council | G136: Bracknell Forest | J136: South East
B137: Blandford Forum Almshouse Charity | G137: Bradford | J137: Yorkshire & the Humber
B138: Bloor Holding Limited | G138: Braintree | J138: Eastern
B139: Bolton Council | G139: Breckland | J139: Eastern
B140: Bomarsund Housing Co-operative Limited | G140: Brent | J140: London
B141: Bournemouth BC | G141: Brentwood | J141: Eastern
B142: Bovis Homes Group plc | G142: Bridgnorth | J142: West Midlands
B143: Brent Housing Partnership | G143: Brighton and Hove | J143: South East
B144: Brighter Horizons | G144: Bristol UA | J144: South West
B145: Brighton Buildings Housing Co-operative Limited | G145: Broadland | J145: Eastern
B146: Bristol City Council | G146: Bromley | J146: London
B147: Broadgate Homes | G147: Bromsgrove | J147: West Midlands
B148: Bromford Carinthia Housing Association Limited | G148: Broxbourne | J148: Eastern
B149: Broomleigh Housing Association Limited | G149: Broxtowe | J149: East Midlands
B150: Broxtowe Borough Council | G150: Burnley | J150: North West
B151: Cambridge City Council | G151: Bury | J151: North West
B152: Carr-Gomm | G152: Calderdale | J152: Yorkshire & the Humber
B153: Carrick Housing | G153: Cambridge | J153: Eastern
B154: Catalyst Housing Group Limited | G154: Camden | J154: London
B155: CDS Housing Association Limited | G155: Cannock Chase | J155: West Midlands
B156: Cecil M Yuill Ltd | G156: Canterbury | J156: South East
B157: Centrepoint | G157: Caradon | J157: South West
B158: Chelmer Housing Partnership Limited | G158: Carlisle | J158: North West
B159: Chesterfield Borough Council | G159: Carrick | J159: South West
B160: Chestnut Homes Ltd | G160: Castle Morpeth | J160: North East
B161: Chevin Housing Association Limited | G161: Castle Point | J161: Eastern
B162: Christian Alliance Housing | G162: Central Bedfordshire (post 2000 - no target rents computed) | J162: Eastern
B163: Circle Anglia Limited | G163: Charnwood | J163: East Midlands
B164: Coast and Country Housing Limited | G164: Chelmsford | J164: Eastern
B165: Contour Homes Limited | G165: Cheltenham | J165: South West
B166: Corby Borough Council | G166: Cherwell | J166: South East
B167: Cornwall Rural Housing Association Limited | G167: Cheshire East(post 2000 - no target rents computed) | J167: North West
B168: Countryside Land Securities (Springhead) Ltd | G168: Cheshire West and Chester(post 2000 - no target rents computed) | J168: North West
B169: Countryside Properties (Northern) Ltd | G169: Chester | J169: North West
B170: Crest Nicholson Operations Ltd | G170: Chesterfield | J170: East Midlands
B171: Crewe 'Two Ways' YMCA | G171: Chester-le-Street | J171: North East
B172: Croudace Homes Limited | G172: Chichester | J172: South East
B173: Croydon Council | G173: Chiltern | J173: South East
B174: Cuckfield Cottage Homes Trust | G174: Chorley | J174: North West
B175: Darlington BC | G175: Christchurch | J175: South West
B176: Derby CC | G176: City Of London | J176: London
B177: Derby Homes ALMO | G177: Colchester | J177: Eastern
B178: Devon & Cornwall Housing Association Limited | G178: Congleton | J178: North West
B179: Downland Housing Association Limited | G179: Copeland | J179: North West
B180: Dunelm Homes Ltd | G180: Corby | J180: East Midlands
B181: Dunelm Property Services Ltd (Esh Holdings Ltd) | G181: Cornwall UA (post 2000:no target rents) | J181: South West
B182: Durham County Council | G182: Cotswold | J182: South West
B183: Durkan Estates Ltd (Logic Homes) | G183: County Durham(post 2000:no target rents) | J183: North East
B184: East Devon DC | G184: Coventry | J184: West Midlands
B185: East Midlands Housing Association Limited | G185: Craven | J185: Yorkshire & the Humber
B186: East Riding of Yorkshire | G186: Crawley | J186: South East
B187: East Thames Group Limited | G187: Crewe and Nantwich | J187: North West
B188: Eastbourne BC | G188: Croydon | J188: London
B189: Edward Henry House Co-operative Limited | G189: Dacorum | J189: Eastern
B190: Elgar Housing Association Limited | G190: Darlington | J190: North East
B191: Empowering People Inspiring Communities Limited | G191: Dartford | J191: South East
B192: Endeavour Housing Association Limited | G192: Daventry | J192: East Midlands
B193: English Cities Fund | G193: Derby | J193: East Midlands
B194: English Rural Housing Association Limited | G194: Derbyshire Dales | J194: East Midlands
B195: Erimus Housing Limited | G195: Derwentside | J195: North East
B196: Estuary Housing Association Limited | G196: Doncaster | J196: Yorkshire & the Humber
B197: Evesham and Pershore Housing Association Limited | G197: Dover | J197: South East
B198: Exeter City Council | G198: Dudley | J198: West Midlands
B199: Exeter Municipal Charities | G199: Durham | J199: North East
B200: Explore Living | G200: Ealing | J200: London
B201: Fairview New Homes Ltd | G201: Easington | J201: North East
B202: Falcon Rural Housing Limited | G202: East Cambridgeshire | J202: Eastern
B203: Family Housing Association (York) Limited | G203: East Devon | J203: South West
B204: Family Mosaic Housing | G204: East Dorset | J204: South West
B205: First Base LTD | G205: East Hampshire | J205: South East
B206: First Choice Homes Oldham Limited | G206: East Hertfordshire | J206: Eastern
B207: Flagship Housing Group Limited | G207: East Lindsey | J207: East Midlands
B208: Galliford Try PLC | G208: East Northamptonshire | J208: East Midlands
B209: Gallions Housing Association Limited | G209: East Riding | J209: Yorkshire & the Humber
B210: Gateshead Council | G210: East Staffordshire | J210: West Midlands
B211: Gateshead Housing Company | G211: Eastbourne | J211: South East
B212: Gateway Plaza Ltd | G212: Eastleigh | J212: South East
B213: Gentoo Group Limited | G213: Eden | J213: North West
B214: Gladedale North West Ltd | G214: Ellesmere Port and Neston | J214: North West
B215: Greater Hornby Housing Association Limited | G215: Elmbridge | J215: South East
B216: GreenSquare Group | G216: Enfield | J216: London
B217: Greenwich Council | G217: Epping Forest | J217: Eastern
B218: Hackney Housing Co-operative Limited | G218: Epsom and Ewell | J218: South East
B219: Halifax Developents Properties Ltd | G219: Erewash | J219: East Midlands
B220: Hanover Housing Association | G220: Exeter | J220: South West
B221: Harrison Housing | G221: Fareham | J221: South East
B222: Hartlepool BC | G222: Fenland | J222: Eastern
B223: Hastoe Housing Association Limited | G223: Forest Heath | J223: Eastern
B224: Helena Partnerships Limited | G224: Forest of Dean | J224: South West
B225: Hexagon Housing Association Limited | G225: Fylde | J225: North West
B226: Highgrove Homes SW Ltd | G226: Gateshead | J226: North East
B227: Hightown Praetorian and Churches Housing Associati | G227: Gedling | J227: East Midlands
B228: Hillingdon LB | G228: Gloucester | J228: South West
B229: Holy Island of Lindisfarne Community Development Trust | G229: Gosport | J229: South East
B230: Home Group Limited | G230: Gravesham | J230: South East
B231: Homes for Northumberland Limited | G231: Great Yarmouth | J231: Eastern
B232: Horgan Homes and Developments Ltd | G232: Greenwich | J232: London
B233: Hornsey Housing Trust Limited | G233: Guildford | J233: South East
B234: Hounslow Homes | G234: Hackney | J234: London
B235: Housing 21 | G235: Halton | J235: North West
B236: Housing For Women | G236: Hambleton | J236: Yorkshire & the Humber
B237: Housing Hartlepool Limited | G237: Hammersmith and Fulham | J237: London
B238: Hyde Housing Association Limited | G238: Harborough | J238: East Midlands
B239: Inquilab Housing Association Limited | G239: Haringey | J239: London
B240: Inspace Homes | G240: Harlow | J240: Eastern
B241: Irwell Valley Housing Association Limited | G241: Harrogate | J241: Yorkshire & the Humber
B242: ISIS Waterside Regeneration (General Partner) Limited | G242: Harrow | J242: London
B243: Islington and Shoreditch Housing Association Ltd | G243: Hart | J243: South East
B244: Islington Council | G244: Hartlepool UA | J244: North East
B245: Isos Housing Limited | G245: Hastings | J245: South East
B246: Jephson Homes Housing Association Limited | G246: Havant | J246: South East
B247: Jones Homes (Northern) Ltd | G247: Havering | J247: London
B248: Jones Homes (Southern) Limited | G248: Herefordshire UA | J248: West Midlands
B249: JS Bloor (Northampton) Limited | G249: Hertsmere | J249: Eastern
B250: JS Bloor (Sudbury) Ltd | G250: High Peak | J250: East Midlands
B251: JS Bloor (Swindon) Ltd | G251: Hillingdon | J251: London
B252: JS Bloor (Tamworth) Limited | G252: Hinckley and Bosworth | J252: East Midlands
B253: JS Bloor (Tewksbury) Limited | G253: Horsham | J253: South East
B254: Keepmoat Plc | G254: Hounslow | J254: London
B255: Kier Homes Limited | G255: Huntingdonshire | J255: Eastern
B256: Kirklees Community Association | G256: Hyndburn | J256: North West
B257: Kirklees Council | G257: Ipswich | J257: Eastern
B258: Knightstone Housing Association Limited | G258: Isle of Wight | J258: South East
B259: Knowsley Housing Trust | G259: Isles of Scilly (no target rents) | J259: South West
B260: L B Ealing | G260: Islington | J260: London
B261: L B Southwark | G261: Kennet | J261: South West
B262: Lagan Homes Ltd | G262: Kensington and Chelsea | J262: London
B263: Larkfleet Homes | G263: Kerrier | J263: South West
B264: LB Hackney | G264: Kettering | J264: East Midlands
B265: LB Tower Hamlets | G265: King's Lynn and West Norfolk | J265: Eastern
B266: Leeds City Council | G266: Kingston upon Hull UA | J266: Yorkshire & the Humber
B267: Leicester City Council | G267: Kingston upon Thames | J267: London
... 202 more rows

Sheet Input 2 -Res BATCH
A1: =+'Input 1 -Site'!A1 -> Surplus/Deficit after allowing for present value of deferred land payments | H1: =+'Input 1 -Site'!F1 -> 4,342,139
B3: =IF(SUM(AB8:AB236)>0,"Warning some units are large, will increase build costs","") -> Warning some units are large, will increase build costs | F3: Once input below is complete PRESS BUTTON >>>>
A4: INPUT 2 - BATCH INPUT | F4: =IF(NOT(ISBLANK(G6)),"May be run multiple times for revised versions CLEARS PREVIOUS DATA","") -> May be run multiple times for revised versions CLEARS PREVIOUS DATA
B5: Enter check 'batch' total no of residential units here | D5: >>>>> | E5: 170 | K5: AH & RENTAL VALUATION BASED ON CAPITAL VALUES for RESIDUAL VALUATION | X5: Unusally large cutoffs | AA5: Col | AB5: =IF(D7="m2",2,3) -> 2
B6: =IF(E6<>0,"The number of units remaining to be entered is","") ->  | E6: =+'Input 2 -Res BATCH'!E5-'Input 2 -Res BATCH'!C237 -> 0 | F6: May copy/paste but NOT CUT | G6: Transfer COMPLETED Ok | X6: m2 | Y6: ft sq
A7: Total Rent | B7: Free text Description | C7: No. of units | D7: m2 | E7: Property type | F7: Tenure/phase | G7: Sales Valuation £ | H7: Weekly Rent Chargeable | I7: =IF(AND(C8>0,G7=0,H7=0),1,0) -> 0 | J7: Annual Costs % | L7: Management % | M7: Void & Bad Debt% | N7: R&M inc sink Fund% | O7: Net Yield % | P7: Initial tranche sold % | Q7: Rent % unsold equity | R7: Affordable % Market | S7: Total Revenue | T7: Total Area | U7: Total weekly rent | V7: Type & Tenure | W7: 1 Bed Flat Low rise | X7: 47 | Y7: =+X7*10.76 -> 505.72 | Z7: Tenure List | AB7: Large units
A8: =IF(ISERROR(FIND("Shared",F8)),52.14*C8*H8,+C8*G8*$Q$9) -> 0 | B8: 3 bed detached CSB | C8: 100 | D8: 105 | E8: 3 Bed House | F8: Open Market Build phase 1 | G8: 327663 | I8: =IF(AND(C8>0,G8=0,H8=0),1,0) -> 0 | J8: Social Rented | S8: =+$G8*$C8 -> 32766300 | T8: =+$D8*$C8 -> 10500 | U8: =+$C8*$H8 -> 0 | V8: =+$E8&$F8 -> 3 Bed HouseOpen Market Build phase 1 | W8: 2 Bed Flat Low rise | X8: 69 | Y8: =+X8*10.76 -> 742.44 | Z8: Open Market Build phase 1 | AB8: =IF(ISERROR(VLOOKUP(E8,$W$7:$Y$17,2,FALSE)),0,IF(VLOOKUP(E8,$W$7:$Y$17,$AB$5,FALSE)<D8,1,0)) -> 1
A9: =IF(ISERROR(FIND("Shared",F9)),52.14*C9*H9,+C9*G9*$Q$9) -> 0 | B9: 4 bed detached CSB | C9: 70 | D9: 125 | E9: 4 Bed + House | F9: Open Market Build phase 1 | G9: 390075 | I9: 0 | J9: Shared Ownership | L9: 0 | M9: 0 | P9: 1 | Q9: 0.0275 | S9: 27305250 | T9: 8750 | U9: 0 | V9: 4 Bed + HouseOpen Market Build phase 1 | W9: 3 Bed Flat Low rise | X9: 84 | Y9: 903.84 | Z9: Shared Ownership phase 1 | AB9: =IF(ISERROR(VLOOKUP(E9,$W$7:$Y$17,2,FALSE)),0,IF(VLOOKUP(E9,$W$7:$Y$17,$AB$5,FALSE)<D9,1,0)) -> 1
A10: 0 | I10: 0 | J10: Affordable Rent | R10: 0.8 | S10: 0 | T10: 0 | U10: 0 | W10: 4 Bed + Flat Low rise | X10: 106 | Y10: 1140.56 | Z10: Affordable Rent phase 1 | AB10: 0
A11: 0 | I11: 0 | J11: Private Rent | S11: 0 | T11: 0 | U11: 0 | W11: 2 Bed House | X11: 77 | Y11: 828.52 | Z11: Private Rent Build phase 1 | AB11: 0
A12: 0 | I12: 0 | L12: =IF(SUM(L8:O11)=0,0,1)+IF(ISERROR(FIND("Rent",CONCATENATE(F8,F9,F10,F11,F12,F13,F14,F15,F16,F17,F18,F19,F20,F21,F22,F23,F224,F225,F226,F227,F228,F229,F230,F231,F232,F233,F234,F235,F236))),1,0) -> 1 | S12: 0 | T12: 0 | U12: 0 | W12: 3 Bed House | X12: 90 | Y12: 968.4 | Z12: Open Market Build phase 2 | AB12: 0
A13: 0 | I13: 0 | J13: Costs £ per home pa | L13: M'gmt | M13: Void/debt | N13: R & M | S13: 0 | T13: 0 | U13: 0 | W13: 4 Bed + House | X13: 121 | Y13: 1301.96 | Z13: Shared Ownership phase 2 | AB13: 0
A14: 0 | I14: 0 | J14: Social Rented | L14: =IF(SUMIF($F$8:$F$236,$J14,$C$8:$C$236)=0,0,+L8*SUMIF($F$8:$F$236,$J14,$A$8:$A$236)/SUMIF($F$8:$F$236,$J14,$C$8:$C$236)) -> 0 | M14: =IF(SUMIF($F$8:$F$236,$J14,$C$8:$C$236)=0,0,+M8*SUMIF($F$8:$F$236,$J14,$A$8:$A$236)/SUMIF($F$8:$F$236,$J14,$C$8:$C$236)) -> 0 | N14: 0 | S14: 0 | T14: 0 | U14: 0 | W14: 1 Bed Flat High rise | X14: 47 | Y14: 505.72 | Z14: Affordable Rent phase 2 | AB14: 0
A15: 0 | I15: 0 | J15: Shared Ownership phase 1 | L15: =IF(SUMIF($F$8:$F$236,$J15,$C$8:$C$236)=0,0,L9*SUMIF($F$8:$F$236,$J15,$A$8:$A$236)/SUMIF($F$8:$F$236,$J15,$C$8:$C$236)) -> 0 | M15: =+(1-P9)*IF(SUMIF($F$8:$F$236,$J15,$C$8:$C$236)=0,0,M9*SUMIF($F$8:$F$236,$J15,$A$8:$A$236)/SUMIF($F$8:$F$236,$J15,$C$8:$C$236)) -> 0 | S15: 0 | T15: 0 | U15: 0 | W15: 2 Bed Flat High rise | X15: 69 | Y15: 742.44 | Z15: Private Rent Build phase 2 | AB15: 0
A16: 0 | I16: 0 | J16: Affordable Rent phase 1 | L16: =IF(SUMIF($F$8:$F$236,$J16,$C$8:$C$236)=0,0,L10*SUMIF($F$8:$F$236,$J16,$A$8:$A$236)/SUMIF($F$8:$F$236,$J16,$C$8:$C$236)) -> 0 | M16: =IF(SUMIF($F$8:$F$236,$J16,$C$8:$C$236)=0,0,M10*SUMIF($F$8:$F$236,$J16,$A$8:$A$236)/SUMIF($F$8:$F$236,$J16,$C$8:$C$236)) -> 0 | N16: 0 | S16: 0 | T16: 0 | U16: 0 | W16: 3 Bed Flat High rise | X16: 84 | Y16: 903.84 | Z16: Open Market Build phase 3 | AB16: 0
A17: 0 | I17: 0 | S17: 0 | T17: 0 | U17: 0 | W17: 4 Bed + Flat High rise | X17: 106 | Y17: 1140.56 | Z17: Shared Ownership phase 3 | AB17: 0
A18: 0 | I18: 0 | J18: Private Rent phase 1 | L18: =IF(SUMIF($F$8:$F$236,$J18,$C$8:$C$236)=0,0,L12*SUMIF($F$8:$F$236,$J18,$A$8:$A$236)/SUMIF($F$8:$F$236,$J18,$C$8:$C$236)) -> 0 | M18: =IF(SUMIF($F$8:$F$236,$J18,$C$8:$C$236)=0,0,M12*SUMIF($F$8:$F$236,$J18,$A$8:$A$236)/SUMIF($F$8:$F$236,$J18,$C$8:$C$236)) -> 0 | N18: 0 | S18: 0 | T18: 0 | U18: 0 | Z18: Affordable Rent phase 3 | AB18: 0
A19: 0 | I19: 0 | S19: 0 | T19: 0 | U19: 0 | Z19: Private Rent Build phase 3 | AB19: 0
A20: 0 | B20: <Enter description here> | I20: 0 | S20: 0 | T20: 0 | U20: 0 | Z20: Open Market Build phase 4 | AB20: 0
A21: 0 | B21: <Enter description here> | I21: 0 | S21: 0 | T21: 0 | U21: 0 | Z21: Shared Ownership phase 4 | AB21: 0
A22: 0 | B22: <Enter description here> | I22: 0 | S22: 0 | T22: 0 | U22: 0 | Z22: Affordable Rent phase 4 | AB22: 0
A23: 0 | B23: <Enter description here> | I23: 0 | S23: 0 | T23: 0 | U23: 0 | Z23: Private Rent Build phase 4 | AB23: 0
A24: 0 | B24: <Enter description here> | I24: 0 | S24: 0 | T24: 0 | U24: 0 | Z24: Open Market Build phase 5 | AB24: 0
A25: 0 | B25: <Enter description here> | I25: 0 | S25: 0 | T25: 0 | U25: 0 | Z25: Shared Ownership phase 5 | AB25: 0
A26: 0 | B26: <Enter description here> | I26: 0 | S26: 0 | T26: 0 | U26: 0 | Z26: Affordable Rent phase 5 | AB26: 0
A27: 0 | B27: <Enter description here> | I27: 0 | S27: 0 | T27: 0 | U27: 0 | Z27: Private Rent Build phase 5 | AB27: 0
A28: 0 | B28: <Enter description here> | I28: 0 | S28: 0 | T28: 0 | U28: 0 | Z28: Social Rented | AB28: 0
A29: 0 | B29: <Enter description here> | I29: 0 | S29: 0 | T29: 0 | U29: 0 | AB29: 0
A30: 0 | B30: <Enter description here> | I30: 0 | S30: 0 | T30: 0 | U30: 0 | AB30: 0
A31: 0 | B31: <Enter description here> | I31: 0 | S31: 0 | T31: 0 | U31: 0 | AB31: 0
A32: 0 | B32: <Enter description here> | I32: 0 | S32: 0 | T32: 0 | U32: 0 | AB32: 0
A33: 0 | B33: <Enter description here> | I33: 0 | S33: 0 | T33: 0 | U33: 0 | AB33: 0
A34: 0 | B34: <Enter description here> | I34: 0 | S34: 0 | T34: 0 | U34: 0 | AB34: 0
A35: 0 | B35: <Enter description here> | I35: 0 | S35: 0 | T35: 0 | U35: 0 | AB35: 0
A36: 0 | B36: <Enter description here> | I36: 0 | S36: 0 | T36: 0 | U36: 0 | AB36: 0
A37: 0 | B37: <Enter description here> | I37: 0 | S37: 0 | T37: 0 | U37: 0 | AB37: 0
A38: 0 | B38: <Enter description here> | I38: 0 | S38: 0 | T38: 0 | U38: 0 | AB38: 0
A39: 0 | B39: <Enter description here> | I39: 0 | S39: 0 | T39: 0 | U39: 0 | AB39: 0
A40: 0 | B40: <Enter description here> | I40: 0 | S40: 0 | T40: 0 | U40: 0 | AB40: 0
A41: 0 | B41: <Enter description here> | I41: 0 | S41: 0 | T41: 0 | U41: 0 | AB41: 0
A42: 0 | B42: <Enter description here> | I42: 0 | S42: 0 | T42: 0 | U42: 0 | AB42: 0
A43: 0 | B43: <Enter description here> | I43: 0 | S43: 0 | T43: 0 | U43: 0 | AB43: 0
A44: 0 | B44: <Enter description here> | I44: 0 | S44: 0 | T44: 0 | U44: 0 | AB44: 0
A45: 0 | B45: <Enter description here> | I45: 0 | S45: 0 | T45: 0 | U45: 0 | AB45: 0
A46: 0 | B46: <Enter description here> | I46: 0 | S46: 0 | T46: 0 | U46: 0 | AB46: 0
A47: 0 | B47: <Enter description here> | I47: 0 | S47: 0 | T47: 0 | U47: 0 | AB47: 0
A48: 0 | B48: <Enter description here> | I48: 0 | S48: 0 | T48: 0 | U48: 0 | AB48: 0
A49: 0 | B49: <Enter description here> | I49: 0 | S49: 0 | T49: 0 | U49: 0 | AB49: 0
A50: 0 | B50: <Enter description here> | I50: 0 | S50: 0 | T50: 0 | U50: 0 | AB50: 0
A51: 0 | B51: <Enter description here> | I51: 0 | S51: 0 | T51: 0 | U51: 0 | AB51: 0
A52: 0 | B52: <Enter description here> | I52: 0 | S52: 0 | T52: 0 | U52: 0 | AB52: 0
A53: 0 | B53: <Enter description here> | I53: 0 | S53: 0 | T53: 0 | U53: 0 | AB53: 0
A54: 0 | B54: <Enter description here> | I54: 0 | S54: 0 | T54: 0 | U54: 0 | AB54: 0
A55: 0 | B55: <Enter description here> | I55: 0 | S55: 0 | T55: 0 | U55: 0 | AB55: 0
A56: 0 | B56: <Enter description here> | I56: 0 | S56: 0 | T56: 0 | U56: 0 | AB56: 0
A57: 0 | B57: <Enter description here> | I57: 0 | S57: 0 | T57: 0 | U57: 0 | AB57: 0
A58: 0 | B58: <Enter description here> | I58: 0 | S58: 0 | T58: 0 | U58: 0 | AB58: 0
A59: 0 | B59: <Enter description here> | I59: 0 | S59: 0 | T59: 0 | U59: 0 | AB59: 0
A60: 0 | B60: <Enter description here> | I60: 0 | S60: 0 | T60: 0 | U60: 0 | AB60: 0
A61: 0 | B61: <Enter description here> | I61: 0 | S61: 0 | T61: 0 | U61: 0 | AB61: 0
A62: 0 | B62: <Enter description here> | I62: 0 | S62: 0 | T62: 0 | U62: 0 | AB62: 0
A63: 0 | B63: <Enter description here> | I63: 0 | S63: 0 | T63: 0 | U63: 0 | AB63: 0
A64: 0 | B64: <Enter description here> | I64: 0 | S64: 0 | T64: 0 | U64: 0 | AB64: 0
A65: 0 | B65: <Enter description here> | I65: 0 | S65: 0 | T65: 0 | U65: 0 | AB65: 0
A66: 0 | B66: <Enter description here> | I66: 0 | S66: 0 | T66: 0 | U66: 0 | AB66: 0
A67: 0 | B67: <Enter description here> | I67: 0 | S67: 0 | T67: 0 | U67: 0 | AB67: 0
A68: 0 | B68: <Enter description here> | I68: 0 | S68: 0 | T68: 0 | U68: 0 | AB68: 0
A69: 0 | B69: <Enter description here> | I69: 0 | S69: 0 | T69: 0 | U69: 0 | AB69: 0
A70: 0 | B70: <Enter description here> | I70: 0 | S70: 0 | T70: 0 | U70: 0 | AB70: 0
A71: 0 | B71: <Enter description here> | I71: 0 | S71: 0 | T71: 0 | U71: 0 | AB71: 0
A72: 0 | B72: <Enter description here> | I72: =IF(AND(C72>0,G72=0,H72=0),1,0) -> 0 | S72: =+$G72*$C72 -> 0 | T72: =+$D72*$C72 -> 0 | U72: =+$C72*$H72 -> 0 | V72: =+$E72&$F72 ->  | AB72: 0
A73: =IF(ISERROR(FIND("Shared",F73)),52.14*C73*H73,+C73*G73*$Q$9) -> 0 | B73: <Enter description here> | I73: 0 | S73: 0 | T73: 0 | U73: 0 | AB73: =IF(ISERROR(VLOOKUP(E73,$W$7:$Y$17,2,FALSE)),0,IF(VLOOKUP(E73,$W$7:$Y$17,$AB$5,FALSE)<D73,1,0)) -> 0
A74: 0 | B74: <Enter description here> | I74: 0 | S74: 0 | T74: 0 | U74: 0 | AB74: 0
A75: 0 | B75: <Enter description here> | I75: 0 | S75: 0 | T75: 0 | U75: 0 | AB75: 0
A76: 0 | B76: <Enter description here> | I76: 0 | S76: 0 | T76: 0 | U76: 0 | AB76: 0
A77: 0 | B77: <Enter description here> | I77: 0 | S77: 0 | T77: 0 | U77: 0 | AB77: 0
A78: 0 | B78: <Enter description here> | I78: 0 | S78: 0 | T78: 0 | U78: 0 | AB78: 0
A79: 0 | B79: <Enter description here> | I79: 0 | S79: 0 | T79: 0 | U79: 0 | AB79: 0
A80: 0 | B80: <Enter description here> | I80: 0 | S80: 0 | T80: 0 | U80: 0 | AB80: 0
A81: 0 | B81: <Enter description here> | I81: 0 | S81: 0 | T81: 0 | U81: 0 | AB81: 0
A82: 0 | B82: <Enter description here> | I82: 0 | S82: 0 | T82: 0 | U82: 0 | AB82: 0
A83: 0 | B83: <Enter description here> | I83: 0 | S83: 0 | T83: 0 | U83: 0 | AB83: 0
A84: 0 | B84: <Enter description here> | I84: 0 | S84: 0 | T84: 0 | U84: 0 | AB84: 0
A85: 0 | B85: <Enter description here> | I85: 0 | S85: 0 | T85: 0 | U85: 0 | AB85: 0
A86: 0 | B86: <Enter description here> | I86: 0 | S86: 0 | T86: 0 | U86: 0 | AB86: 0
A87: 0 | B87: <Enter description here> | I87: 0 | S87: 0 | T87: 0 | U87: 0 | AB87: 0
A88: 0 | B88: <Enter description here> | I88: 0 | S88: 0 | T88: 0 | U88: 0 | AB88: 0
A89: 0 | B89: <Enter description here> | I89: 0 | S89: 0 | T89: 0 | U89: 0 | AB89: 0
A90: 0 | B90: <Enter description here> | I90: 0 | S90: 0 | T90: 0 | U90: 0 | AB90: 0
A91: 0 | B91: <Enter description here> | I91: 0 | S91: 0 | T91: 0 | U91: 0 | AB91: 0
A92: 0 | B92: <Enter description here> | I92: 0 | S92: 0 | T92: 0 | U92: 0 | AB92: 0
A93: 0 | B93: <Enter description here> | I93: 0 | S93: 0 | T93: 0 | U93: 0 | AB93: 0
A94: 0 | B94: <Enter description here> | I94: 0 | S94: 0 | T94: 0 | U94: 0 | AB94: 0
A95: 0 | B95: <Enter description here> | I95: 0 | S95: 0 | T95: 0 | U95: 0 | AB95: 0
A96: 0 | B96: <Enter description here> | I96: 0 | S96: 0 | T96: 0 | U96: 0 | AB96: 0
A97: 0 | B97: <Enter description here> | I97: 0 | S97: 0 | T97: 0 | U97: 0 | AB97: 0
A98: 0 | B98: <Enter description here> | I98: 0 | S98: 0 | T98: 0 | U98: 0 | AB98: 0
A99: 0 | B99: <Enter description here> | I99: 0 | S99: 0 | T99: 0 | U99: 0 | AB99: 0
A100: 0 | B100: <Enter description here> | I100: 0 | S100: 0 | T100: 0 | U100: 0 | AB100: 0
A101: 0 | B101: <Enter description here> | I101: 0 | S101: 0 | T101: 0 | U101: 0 | AB101: 0
A102: 0 | B102: <Enter description here> | I102: 0 | S102: 0 | T102: 0 | U102: 0 | AB102: 0
A103: 0 | B103: <Enter description here> | I103: 0 | S103: 0 | T103: 0 | U103: 0 | AB103: 0
A104: 0 | B104: <Enter description here> | I104: 0 | S104: 0 | T104: 0 | U104: 0 | AB104: 0
A105: 0 | B105: <Enter description here> | I105: 0 | S105: 0 | T105: 0 | U105: 0 | AB105: 0
A106: 0 | B106: <Enter description here> | I106: 0 | S106: 0 | T106: 0 | U106: 0 | AB106: 0
A107: 0 | B107: <Enter description here> | I107: 0 | S107: 0 | T107: 0 | U107: 0 | AB107: 0
A108: 0 | B108: <Enter description here> | I108: 0 | S108: 0 | T108: 0 | U108: 0 | AB108: 0
A109: 0 | B109: <Enter description here> | I109: 0 | S109: 0 | T109: 0 | U109: 0 | AB109: 0
A110: 0 | B110: <Enter description here> | I110: 0 | S110: 0 | T110: 0 | U110: 0 | AB110: 0
A111: 0 | B111: <Enter description here> | I111: 0 | S111: 0 | T111: 0 | U111: 0 | AB111: 0
A112: 0 | B112: <Enter description here> | I112: 0 | S112: 0 | T112: 0 | U112: 0 | AB112: 0
A113: 0 | B113: <Enter description here> | I113: 0 | S113: 0 | T113: 0 | U113: 0 | AB113: 0
A114: 0 | B114: <Enter description here> | I114: 0 | S114: 0 | T114: 0 | U114: 0 | AB114: 0
A115: 0 | B115: <Enter description here> | I115: 0 | S115: 0 | T115: 0 | U115: 0 | AB115: 0
A116: 0 | B116: <Enter description here> | I116: 0 | S116: 0 | T116: 0 | U116: 0 | AB116: 0
A117: 0 | B117: <Enter description here> | I117: 0 | S117: 0 | T117: 0 | U117: 0 | AB117: 0
A118: 0 | B118: <Enter description here> | I118: 0 | S118: 0 | T118: 0 | U118: 0 | AB118: 0
A119: 0 | B119: <Enter description here> | I119: 0 | S119: 0 | T119: 0 | U119: 0 | AB119: 0
A120: 0 | B120: <Enter description here> | I120: 0 | S120: 0 | T120: 0 | U120: 0 | AB120: 0
A121: 0 | B121: <Enter description here> | I121: 0 | S121: 0 | T121: 0 | U121: 0 | AB121: 0
A122: 0 | B122: <Enter description here> | I122: 0 | S122: 0 | T122: 0 | U122: 0 | AB122: 0
A123: 0 | B123: <Enter description here> | I123: 0 | S123: 0 | T123: 0 | U123: 0 | AB123: 0
A124: 0 | B124: <Enter description here> | I124: 0 | S124: 0 | T124: 0 | U124: 0 | AB124: 0
A125: 0 | B125: <Enter description here> | I125: 0 | S125: 0 | T125: 0 | U125: 0 | AB125: 0
A126: 0 | B126: <Enter description here> | I126: 0 | S126: 0 | T126: 0 | U126: 0 | AB126: 0
A127: 0 | B127: <Enter description here> | I127: 0 | S127: 0 | T127: 0 | U127: 0 | AB127: 0
A128: 0 | B128: <Enter description here> | I128: 0 | S128: 0 | T128: 0 | U128: 0 | AB128: 0
A129: 0 | B129: <Enter description here> | I129: 0 | S129: 0 | T129: 0 | U129: 0 | AB129: 0
A130: 0 | B130: <Enter description here> | I130: 0 | S130: 0 | T130: 0 | U130: 0 | AB130: 0
A131: 0 | B131: <Enter description here> | I131: 0 | S131: 0 | T131: 0 | U131: 0 | AB131: 0
A132: 0 | B132: <Enter description here> | I132: 0 | S132: 0 | T132: 0 | U132: 0 | AB132: 0
A133: 0 | B133: <Enter description here> | I133: 0 | S133: 0 | T133: 0 | U133: 0 | AB133: 0
A134: 0 | B134: <Enter description here> | I134: 0 | S134: 0 | T134: 0 | U134: 0 | AB134: 0
A135: 0 | B135: <Enter description here> | I135: 0 | S135: 0 | T135: 0 | U135: 0 | AB135: 0
A136: 0 | B136: <Enter description here> | I136: =IF(AND(C136>0,G136=0,H136=0),1,0) -> 0 | S136: =+$G136*$C136 -> 0 | T136: =+$D136*$C136 -> 0 | U136: =+$C136*$H136 -> 0 | V136: =+$E136&$F136 ->  | AB136: 0
A137: =IF(ISERROR(FIND("Shared",F137)),52.14*C137*H137,+C137*G137*$Q$9) -> 0 | B137: <Enter description here> | I137: 0 | S137: 0 | T137: 0 | U137: 0 | AB137: =IF(ISERROR(VLOOKUP(E137,$W$7:$Y$17,2,FALSE)),0,IF(VLOOKUP(E137,$W$7:$Y$17,$AB$5,FALSE)<D137,1,0)) -> 0
A138: 0 | B138: <Enter description here> | I138: 0 | S138: 0 | T138: 0 | U138: 0 | AB138: 0
A139: 0 | B139: <Enter description here> | I139: 0 | S139: 0 | T139: 0 | U139: 0 | AB139: 0
A140: 0 | B140: <Enter description here> | I140: 0 | S140: 0 | T140: 0 | U140: 0 | AB140: 0
A141: 0 | B141: <Enter description here> | I141: 0 | S141: 0 | T141: 0 | U141: 0 | AB141: 0
A142: 0 | B142: <Enter description here> | I142: 0 | S142: 0 | T142: 0 | U142: 0 | AB142: 0
A143: 0 | B143: <Enter description here> | I143: 0 | S143: 0 | T143: 0 | U143: 0 | AB143: 0
A144: 0 | B144: <Enter description here> | I144: 0 | S144: 0 | T144: 0 | U144: 0 | AB144: 0
A145: 0 | B145: <Enter description here> | I145: 0 | S145: 0 | T145: 0 | U145: 0 | AB145: 0
A146: 0 | B146: <Enter description here> | I146: 0 | S146: 0 | T146: 0 | U146: 0 | AB146: 0
A147: 0 | B147: <Enter description here> | I147: 0 | S147: 0 | T147: 0 | U147: 0 | AB147: 0
A148: 0 | B148: <Enter description here> | I148: 0 | S148: 0 | T148: 0 | U148: 0 | AB148: 0
A149: 0 | B149: <Enter description here> | I149: 0 | S149: 0 | T149: 0 | U149: 0 | AB149: 0
A150: 0 | B150: <Enter description here> | I150: 0 | S150: 0 | T150: 0 | U150: 0 | AB150: 0
A151: 0 | B151: <Enter description here> | I151: 0 | S151: 0 | T151: 0 | U151: 0 | AB151: 0
A152: 0 | B152: <Enter description here> | I152: 0 | S152: 0 | T152: 0 | U152: 0 | AB152: 0
A153: 0 | B153: <Enter description here> | I153: 0 | S153: 0 | T153: 0 | U153: 0 | AB153: 0
A154: 0 | B154: <Enter description here> | I154: 0 | S154: 0 | T154: 0 | U154: 0 | AB154: 0
A155: 0 | B155: <Enter description here> | I155: 0 | S155: 0 | T155: 0 | U155: 0 | AB155: 0
A156: 0 | B156: <Enter description here> | I156: 0 | S156: 0 | T156: 0 | U156: 0 | AB156: 0
A157: 0 | B157: <Enter description here> | I157: 0 | S157: 0 | T157: 0 | U157: 0 | AB157: 0
A158: 0 | B158: <Enter description here> | I158: 0 | S158: 0 | T158: 0 | U158: 0 | AB158: 0
A159: 0 | B159: <Enter description here> | I159: 0 | S159: 0 | T159: 0 | U159: 0 | AB159: 0
A160: 0 | B160: <Enter description here> | I160: 0 | S160: 0 | T160: 0 | U160: 0 | AB160: 0
A161: 0 | B161: <Enter description here> | I161: 0 | S161: 0 | T161: 0 | U161: 0 | AB161: 0
A162: 0 | B162: <Enter description here> | I162: 0 | S162: 0 | T162: 0 | U162: 0 | AB162: 0
A163: 0 | B163: <Enter description here> | I163: 0 | S163: 0 | T163: 0 | U163: 0 | AB163: 0
A164: 0 | B164: <Enter description here> | I164: 0 | S164: 0 | T164: 0 | U164: 0 | AB164: 0
A165: 0 | B165: <Enter description here> | I165: 0 | S165: 0 | T165: 0 | U165: 0 | AB165: 0
A166: 0 | B166: <Enter description here> | I166: 0 | S166: 0 | T166: 0 | U166: 0 | AB166: 0
A167: 0 | B167: <Enter description here> | I167: 0 | S167: 0 | T167: 0 | U167: 0 | AB167: 0
A168: 0 | B168: <Enter description here> | I168: 0 | S168: 0 | T168: 0 | U168: 0 | AB168: 0
A169: 0 | B169: <Enter description here> | I169: 0 | S169: 0 | T169: 0 | U169: 0 | AB169: 0
A170: 0 | B170: <Enter description here> | I170: 0 | S170: 0 | T170: 0 | U170: 0 | AB170: 0
A171: 0 | B171: <Enter description here> | I171: 0 | S171: 0 | T171: 0 | U171: 0 | AB171: 0
A172: 0 | B172: <Enter description here> | I172: 0 | S172: 0 | T172: 0 | U172: 0 | AB172: 0
A173: 0 | B173: <Enter description here> | I173: 0 | S173: 0 | T173: 0 | U173: 0 | AB173: 0
A174: 0 | B174: <Enter description here> | I174: 0 | S174: 0 | T174: 0 | U174: 0 | AB174: 0
A175: 0 | B175: <Enter description here> | I175: 0 | S175: 0 | T175: 0 | U175: 0 | AB175: 0
A176: 0 | B176: <Enter description here> | I176: 0 | S176: 0 | T176: 0 | U176: 0 | AB176: 0
A177: 0 | B177: <Enter description here> | I177: 0 | S177: 0 | T177: 0 | U177: 0 | AB177: 0
A178: 0 | B178: <Enter description here> | I178: 0 | S178: 0 | T178: 0 | U178: 0 | AB178: 0
A179: 0 | B179: <Enter description here> | I179: 0 | S179: 0 | T179: 0 | U179: 0 | AB179: 0
A180: 0 | B180: <Enter description here> | I180: 0 | S180: 0 | T180: 0 | U180: 0 | AB180: 0
A181: 0 | B181: <Enter description here> | I181: 0 | S181: 0 | T181: 0 | U181: 0 | AB181: 0
A182: 0 | B182: <Enter description here> | I182: 0 | S182: 0 | T182: 0 | U182: 0 | AB182: 0
A183: 0 | B183: <Enter description here> | I183: 0 | S183: 0 | T183: 0 | U183: 0 | AB183: 0
A184: 0 | B184: <Enter description here> | I184: 0 | S184: 0 | T184: 0 | U184: 0 | AB184: 0
A185: 0 | B185: <Enter description here> | I185: 0 | S185: 0 | T185: 0 | U185: 0 | AB185: 0
A186: 0 | B186: <Enter description here> | I186: 0 | S186: 0 | T186: 0 | U186: 0 | AB186: 0
A187: 0 | B187: <Enter description here> | I187: 0 | S187: 0 | T187: 0 | U187: 0 | AB187: 0
A188: 0 | B188: <Enter description here> | I188: 0 | S188: 0 | T188: 0 | U188: 0 | AB188: 0
A189: 0 | B189: <Enter description here> | I189: 0 | S189: 0 | T189: 0 | U189: 0 | AB189: 0
A190: 0 | B190: <Enter description here> | I190: 0 | S190: 0 | T190: 0 | U190: 0 | AB190: 0
A191: 0 | B191: <Enter description here> | I191: 0 | S191: 0 | T191: 0 | U191: 0 | AB191: 0
A192: 0 | B192: <Enter description here> | I192: 0 | S192: 0 | T192: 0 | U192: 0 | AB192: 0
A193: 0 | B193: <Enter description here> | I193: 0 | S193: 0 | T193: 0 | U193: 0 | AB193: 0
A194: 0 | B194: <Enter description here> | I194: 0 | S194: 0 | T194: 0 | U194: 0 | AB194: 0
A195: 0 | B195: <Enter description here> | I195: 0 | S195: 0 | T195: 0 | U195: 0 | AB195: 0
A196: 0 | B196: <Enter description here> | I196: 0 | S196: 0 | T196: 0 | U196: 0 | AB196: 0
A197: 0 | B197: <Enter description here> | I197: 0 | S197: 0 | T197: 0 | U197: 0 | AB197: 0
A198: 0 | B198: <Enter description here> | I198: 0 | S198: 0 | T198: 0 | U198: 0 | AB198: 0
A199: 0 | B199: <Enter description here> | I199: 0 | S199: 0 | T199: 0 | U199: 0 | AB199: 0
A200: 0 | B200: <Enter description here> | I200: =IF(AND(C200>0,G200=0,H200=0),1,0) -> 0 | S200: =+$G200*$C200 -> 0 | T200: =+$D200*$C200 -> 0 | U200: =+$C200*$H200 -> 0 | V200: =+$E200&$F200 ->  | AB200: 0
A201: =IF(ISERROR(FIND("Shared",F201)),52.14*C201*H201,+C201*G201*$Q$9) -> 0 | B201: <Enter description here> | I201: 0 | S201: 0 | T201: 0 | U201: 0 | AB201: =IF(ISERROR(VLOOKUP(E201,$W$7:$Y$17,2,FALSE)),0,IF(VLOOKUP(E201,$W$7:$Y$17,$AB$5,FALSE)<D201,1,0)) -> 0
... 127 more rows

Sheet Summary 1 -Res Mix
A1: =+'Input 1 -Site'!A1 -> Surplus/Deficit after allowing for present value of deferred land payments | F1: =+'Input 1 -Site'!F1 -> 4,342,139
C2: =IF(AND('C1 Mix'!B208=0,'C1 Mix'!B207>0),"Warning:No affordable unit numbers entered",0) -> Warning:No affordable unit numbers entered
A3: =+"HCA "&'- Cover -'!$A$2&'- Cover -'!$A$3 -> HCA DevelopmentAppraisal Tool | L3: Total Units input/transferred | O3: =+O191+O182+O173+O164+O155+O146+O137+O128+O119+O110+O101+O92+O83+O74+O65+O56+O47+O38+O29+O20+O11 -> 170
A4: SUMMARY SHEET 1 - RESIDENTIAL MIX ASSUMPTIONS
B6: There is an option to input your full list of property types ('GLA toolkit style') and have the tool summarise and populate (sheet Input 0 -Setup)
B7: the unit numbers, sizes, values and rent. See the setup sheet, (note if persons and habitable room data required then must be entered here).
A8: Social Rented | B8: Phase 1
A10: Property Type Description | B10: 1 Bed Flat Low rise | C10: 2 Bed Flat Low rise | D10: 3 Bed Flat Low rise | E10: 4 Bed + Flat Low rise | F10: 1 Bed Flat High rise | G10: 2 Bed Flat High rise | H10: 3 Bed Flat High rise | I10: 4 Bed + Flat High rise | J10: 2 Bed House | K10: 3 Bed House | L10: 4 Bed + House | O10: Total
A11: Total Number of Units | B11: 0 | C11: 0 | D11: 0 | E11: 0 | F11: 0 | G11: 0 | H11: 0 | I11: 0 | J11: 0 | K11: 0 | L11: 0 | M11: 0 | N11: 0 | O11: =SUM(B11:N11) -> 0
A12: Unit Size (sq m) - NIA | B12: 0 | C12: 0 | D12: 0 | E12: 0 | F12: 0 | G12: 0 | H12: 0 | I12: 0 | J12: 0 | K12: 0 | L12: 0 | M12: 0 | N12: 0
A13: Habitable Rooms per Unit | B13: 0 | C13: 0 | D13: 0 | E13: 0 | F13: 0 | G13: 0 | H13: 0 | I13: 0 | J13: 0 | K13: 0 | L13: 0 | M13: 0 | N13: 0
A14: Persons per Unit
A15: Total size for units | B15: =+B11*B12 -> 0 | C15: 0 | D15: 0 | E15: 0 | F15: 0 | G15: 0 | H15: 0 | I15: 0 | J15: 0 | K15: 0 | L15: 0 | M15: 0 | N15: 0 | O15: =SUM(B15:N15) -> 0
A17: Shared Ownership phase 1 | B17: Phase 1
A19: =+A$10 -> Property Type Description | B19: =+B$10 -> 1 Bed Flat Low rise | C19: =+C10 -> 2 Bed Flat Low rise | D19: 3 Bed Flat Low rise | E19: 4 Bed + Flat Low rise | F19: 1 Bed Flat High rise | G19: 2 Bed Flat High rise | H19: 3 Bed Flat High rise | I19: 4 Bed + Flat High rise | J19: 2 Bed House | K19: 3 Bed House | L19: 4 Bed + House | M19: 0 | N19: 0 | O19: Total
A20: =+A$11 -> Total Number of Units | B20: 0 | C20: 0 | D20: 0 | E20: 0 | F20: 0 | G20: 0 | H20: 0 | I20: 0 | J20: 0 | K20: 0 | L20: 0 | M20: 0 | N20: 0 | O20: =SUM(B20:N20) -> 0
A21: =+A$12 -> Unit Size (sq m) - NIA | B21: 0 | C21: 0 | D21: 0 | E21: 0 | F21: 0 | G21: 0 | H21: 0 | I21: 0 | J21: 0 | K21: 0 | L21: 0 | M21: 0 | N21: 0
A22: =+A$13 -> Habitable Rooms per Unit
A23: =+A$14 -> Persons per Unit
A24: =+A$15 -> Total size for units | B24: =+B20*B21 -> 0 | C24: 0 | D24: 0 | E24: 0 | F24: 0 | G24: 0 | H24: 0 | I24: 0 | J24: 0 | K24: 0 | L24: 0 | M24: 0 | N24: 0 | O24: =SUM(B24:N24) -> 0
A26: Shared Ownership phase 2 | B26: Phase 2
A28: =+A$10 -> Property Type Description | B28: =+B$10 -> 1 Bed Flat Low rise | C28: =+C19 -> 2 Bed Flat Low rise | D28: 3 Bed Flat Low rise | E28: 4 Bed + Flat Low rise | F28: 1 Bed Flat High rise | G28: 2 Bed Flat High rise | H28: 3 Bed Flat High rise | I28: 4 Bed + Flat High rise | J28: 2 Bed House | K28: 3 Bed House | L28: 4 Bed + House | M28: 0 | N28: 0 | O28: Total
A29: =+A$11 -> Total Number of Units | B29: 0 | C29: 0 | D29: 0 | E29: 0 | F29: 0 | G29: 0 | H29: 0 | I29: 0 | J29: 0 | K29: 0 | L29: 0 | M29: 0 | N29: 0 | O29: =SUM(B29:N29) -> 0
A30: =+A$12 -> Unit Size (sq m) - NIA | B30: 0 | C30: 0 | D30: 0 | E30: 0 | F30: 0 | G30: 0 | H30: 0 | I30: 0 | J30: 0 | K30: 0 | L30: 0 | M30: 0 | N30: 0
A31: =+A$13 -> Habitable Rooms per Unit
A32: =+A$14 -> Persons per Unit
A33: =+A$15 -> Total size for units | B33: =+B29*B30 -> 0 | C33: 0 | D33: 0 | E33: 0 | F33: 0 | G33: 0 | H33: 0 | I33: 0 | J33: 0 | K33: 0 | L33: 0 | M33: 0 | N33: 0 | O33: =SUM(B33:N33) -> 0
A35: Shared Ownership phase 3 | B35: Phase 3
A37: =+A$10 -> Property Type Description | B37: =+B$10 -> 1 Bed Flat Low rise | C37: =+C28 -> 2 Bed Flat Low rise | D37: 3 Bed Flat Low rise | E37: 4 Bed + Flat Low rise | F37: 1 Bed Flat High rise | G37: 2 Bed Flat High rise | H37: 3 Bed Flat High rise | I37: 4 Bed + Flat High rise | J37: 2 Bed House | K37: 3 Bed House | L37: 4 Bed + House | M37: 0 | N37: 0 | O37: Total
A38: =+A$11 -> Total Number of Units | B38: 0 | C38: 0 | D38: 0 | E38: 0 | F38: 0 | G38: 0 | H38: 0 | I38: 0 | J38: 0 | K38: 0 | L38: 0 | M38: 0 | N38: 0 | O38: =SUM(B38:N38) -> 0
A39: =+A$12 -> Unit Size (sq m) - NIA | B39: 0 | C39: 0 | D39: 0 | E39: 0 | F39: 0 | G39: 0 | H39: 0 | I39: 0 | J39: 0 | K39: 0 | L39: 0 | M39: 0 | N39: 0
A40: =+A$13 -> Habitable Rooms per Unit
A41: =+A$14 -> Persons per Unit
A42: =+A$15 -> Total size for units | B42: =+B38*B39 -> 0 | C42: 0 | D42: 0 | E42: 0 | F42: 0 | G42: 0 | H42: 0 | I42: 0 | J42: 0 | K42: 0 | L42: 0 | M42: 0 | N42: 0 | O42: =SUM(B42:N42) -> 0
A44: Shared Ownership phase 4 | B44: Phase 4
A46: =+A$10 -> Property Type Description | B46: =+B$10 -> 1 Bed Flat Low rise | C46: =+C37 -> 2 Bed Flat Low rise | D46: 3 Bed Flat Low rise | E46: 4 Bed + Flat Low rise | F46: 1 Bed Flat High rise | G46: 2 Bed Flat High rise | H46: 3 Bed Flat High rise | I46: 4 Bed + Flat High rise | J46: 2 Bed House | K46: 3 Bed House | L46: 4 Bed + House | M46: 0 | N46: 0 | O46: Total
A47: =+A$11 -> Total Number of Units | B47: 0 | C47: 0 | D47: 0 | E47: 0 | F47: 0 | G47: 0 | H47: 0 | I47: 0 | J47: 0 | K47: 0 | L47: 0 | M47: 0 | N47: 0 | O47: =SUM(B47:N47) -> 0
A48: =+A$12 -> Unit Size (sq m) - NIA | B48: 0 | C48: 0 | D48: 0 | E48: 0 | F48: 0 | G48: 0 | H48: 0 | I48: 0 | J48: 0 | K48: 0 | L48: 0 | M48: 0 | N48: 0
A49: =+A$13 -> Habitable Rooms per Unit
A50: =+A$14 -> Persons per Unit
A51: =+A$15 -> Total size for units | B51: =+B47*B48 -> 0 | C51: 0 | D51: 0 | E51: 0 | F51: 0 | G51: 0 | H51: 0 | I51: 0 | J51: 0 | K51: 0 | L51: 0 | M51: 0 | N51: 0 | O51: =SUM(B51:N51) -> 0
A53: Shared Ownership phase 5 | B53: Phase 5
A55: =+A$10 -> Property Type Description | B55: =+B$10 -> 1 Bed Flat Low rise | C55: =+C46 -> 2 Bed Flat Low rise | D55: 3 Bed Flat Low rise | E55: 4 Bed + Flat Low rise | F55: 1 Bed Flat High rise | G55: 2 Bed Flat High rise | H55: 3 Bed Flat High rise | I55: 4 Bed + Flat High rise | J55: 2 Bed House | K55: 3 Bed House | L55: 4 Bed + House | M55: 0 | N55: 0 | O55: Total
A56: =+A$11 -> Total Number of Units | B56: 0 | C56: 0 | D56: 0 | E56: 0 | F56: 0 | G56: 0 | H56: 0 | I56: 0 | J56: 0 | K56: 0 | L56: 0 | M56: 0 | N56: 0 | O56: =SUM(B56:N56) -> 0
A57: =+A$12 -> Unit Size (sq m) - NIA | B57: 0 | C57: 0 | D57: 0 | E57: 0 | F57: 0 | G57: 0 | H57: 0 | I57: 0 | J57: 0 | K57: 0 | L57: 0 | M57: 0 | N57: 0
A58: =+A$13 -> Habitable Rooms per Unit
A59: =+A$14 -> Persons per Unit
A60: =+A$15 -> Total size for units | B60: =+B56*B57 -> 0 | C60: 0 | D60: 0 | E60: 0 | F60: 0 | G60: 0 | H60: 0 | I60: 0 | J60: 0 | K60: 0 | L60: 0 | M60: 0 | N60: 0 | O60: =SUM(B60:N60) -> 0
A62: Affordable Rent phase 1 | B62: Phase 1
A64: =+A$10 -> Property Type Description | B64: =+B$10 -> 1 Bed Flat Low rise | C64: =+C28 -> 2 Bed Flat Low rise | D64: 3 Bed Flat Low rise | E64: 4 Bed + Flat Low rise | F64: 1 Bed Flat High rise | G64: 2 Bed Flat High rise | H64: 3 Bed Flat High rise | I64: 4 Bed + Flat High rise | J64: 2 Bed House | K64: 3 Bed House | L64: 4 Bed + House | M64: 0 | N64: 0 | O64: Total
A65: =+A$11 -> Total Number of Units | B65: 0 | C65: 0 | D65: 0 | E65: 0 | F65: 0 | G65: 0 | H65: 0 | I65: 0 | J65: 0 | K65: 0 | L65: 0 | M65: 0 | N65: 0 | O65: =SUM(B65:N65) -> 0
A66: =+A$12 -> Unit Size (sq m) - NIA | B66: 0 | C66: 0 | D66: 0 | E66: 0 | F66: 0 | G66: 0 | H66: 0 | I66: 0 | J66: 0 | K66: 0 | L66: 0 | M66: 0 | N66: 0
A67: =+A$13 -> Habitable Rooms per Unit
A68: =+A$14 -> Persons per Unit
A69: =+A$15 -> Total size for units | B69: =+B65*B66 -> 0 | C69: 0 | D69: 0 | E69: 0 | F69: 0 | G69: 0 | H69: 0 | I69: 0 | J69: 0 | K69: 0 | L69: 0 | M69: 0 | N69: 0 | O69: =SUM(B69:N69) -> 0
A71: Affordable Rent phase 2 | B71: Phase 2
A73: =+A$10 -> Property Type Description | B73: =+B$10 -> 1 Bed Flat Low rise | C73: =+C64 -> 2 Bed Flat Low rise | D73: 3 Bed Flat Low rise | E73: 4 Bed + Flat Low rise | F73: 1 Bed Flat High rise | G73: 2 Bed Flat High rise | H73: 3 Bed Flat High rise | I73: 4 Bed + Flat High rise | J73: 2 Bed House | K73: 3 Bed House | L73: 4 Bed + House | M73: 0 | N73: 0 | O73: Total
A74: =+A$11 -> Total Number of Units | B74: 0 | C74: 0 | D74: 0 | E74: 0 | F74: 0 | G74: 0 | H74: 0 | I74: 0 | J74: 0 | K74: 0 | L74: 0 | M74: 0 | N74: 0 | O74: =SUM(B74:N74) -> 0
A75: =+A$12 -> Unit Size (sq m) - NIA | B75: 0 | C75: 0 | D75: 0 | E75: 0 | F75: 0 | G75: 0 | H75: 0 | I75: 0 | J75: 0 | K75: 0 | L75: 0 | M75: 0 | N75: 0
A76: =+A$13 -> Habitable Rooms per Unit
A77: =+A$14 -> Persons per Unit
A78: =+A$15 -> Total size for units | B78: =+B74*B75 -> 0 | C78: 0 | D78: 0 | E78: 0 | F78: 0 | G78: 0 | H78: 0 | I78: 0 | J78: 0 | K78: 0 | L78: 0 | M78: 0 | N78: 0 | O78: =SUM(B78:N78) -> 0
A80: Affordable Rent phase 3 | B80: Phase 3
A82: =+A$10 -> Property Type Description | B82: =+B$10 -> 1 Bed Flat Low rise | C82: =+C73 -> 2 Bed Flat Low rise | D82: 3 Bed Flat Low rise | E82: 4 Bed + Flat Low rise | F82: 1 Bed Flat High rise | G82: 2 Bed Flat High rise | H82: 3 Bed Flat High rise | I82: 4 Bed + Flat High rise | J82: 2 Bed House | K82: 3 Bed House | L82: 4 Bed + House | M82: 0 | N82: 0 | O82: Total
A83: =+A$11 -> Total Number of Units | B83: 0 | C83: 0 | D83: 0 | E83: 0 | F83: 0 | G83: 0 | H83: 0 | I83: 0 | J83: 0 | K83: 0 | L83: 0 | M83: 0 | N83: 0 | O83: =SUM(B83:N83) -> 0
A84: =+A$12 -> Unit Size (sq m) - NIA | B84: 0 | C84: 0 | D84: 0 | E84: 0 | F84: 0 | G84: 0 | H84: 0 | I84: 0 | J84: 0 | K84: 0 | L84: 0 | M84: 0 | N84: 0
A85: =+A$13 -> Habitable Rooms per Unit
A86: =+A$14 -> Persons per Unit
A87: =+A$15 -> Total size for units | B87: =+B83*B84 -> 0 | C87: 0 | D87: 0 | E87: 0 | F87: 0 | G87: 0 | H87: 0 | I87: 0 | J87: 0 | K87: 0 | L87: 0 | M87: 0 | N87: 0 | O87: =SUM(B87:N87) -> 0
A89: Affordable Rent phase 4 | B89: Phase 4
A91: =+A$10 -> Property Type Description | B91: =+B$10 -> 1 Bed Flat Low rise | C91: =+C82 -> 2 Bed Flat Low rise | D91: 3 Bed Flat Low rise | E91: 4 Bed + Flat Low rise | F91: 1 Bed Flat High rise | G91: 2 Bed Flat High rise | H91: 3 Bed Flat High rise | I91: 4 Bed + Flat High rise | J91: 2 Bed House | K91: 3 Bed House | L91: 4 Bed + House | M91: 0 | N91: 0 | O91: Total
A92: =+A$11 -> Total Number of Units | B92: 0 | C92: 0 | D92: 0 | E92: 0 | F92: 0 | G92: 0 | H92: 0 | I92: 0 | J92: 0 | K92: 0 | L92: 0 | M92: 0 | N92: 0 | O92: =SUM(B92:N92) -> 0
A93: =+A$12 -> Unit Size (sq m) - NIA | B93: 0 | C93: 0 | D93: 0 | E93: 0 | F93: 0 | G93: 0 | H93: 0 | I93: 0 | J93: 0 | K93: 0 | L93: 0 | M93: 0 | N93: 0
A94: =+A$13 -> Habitable Rooms per Unit
A95: =+A$14 -> Persons per Unit
A96: =+A$15 -> Total size for units | B96: =+B92*B93 -> 0 | C96: 0 | D96: 0 | E96: 0 | F96: 0 | G96: 0 | H96: 0 | I96: 0 | J96: 0 | K96: 0 | L96: 0 | M96: 0 | N96: 0 | O96: =SUM(B96:N96) -> 0
A98: Affordable Rent phase 5 | B98: Phase 5
A100: =+A$10 -> Property Type Description | B100: =+B$10 -> 1 Bed Flat Low rise | C100: =+C91 -> 2 Bed Flat Low rise | D100: 3 Bed Flat Low rise | E100: 4 Bed + Flat Low rise | F100: 1 Bed Flat High rise | G100: 2 Bed Flat High rise | H100: 3 Bed Flat High rise | I100: 4 Bed + Flat High rise | J100: 2 Bed House | K100: 3 Bed House | L100: 4 Bed + House | M100: 0 | N100: 0 | O100: Total
A101: =+A$11 -> Total Number of Units | B101: 0 | C101: 0 | D101: 0 | E101: 0 | F101: 0 | G101: 0 | H101: 0 | I101: 0 | J101: 0 | K101: 0 | L101: 0 | M101: 0 | N101: 0 | O101: =SUM(B101:N101) -> 0
A102: =+A$12 -> Unit Size (sq m) - NIA | B102: 0 | C102: 0 | D102: 0 | E102: 0 | F102: 0 | G102: 0 | H102: 0 | I102: 0 | J102: 0 | K102: 0 | L102: 0 | M102: 0 | N102: 0
A103: =+A$13 -> Habitable Rooms per Unit
A104: =+A$14 -> Persons per Unit
A105: =+A$15 -> Total size for units | B105: =+B101*B102 -> 0 | C105: 0 | D105: 0 | E105: 0 | F105: 0 | G105: 0 | H105: 0 | I105: 0 | J105: 0 | K105: 0 | L105: 0 | M105: 0 | N105: 0 | O105: =SUM(B105:N105) -> 0
A107: Open Market Phase 1: | B107: Phase 1
A109: =+A$10 -> Property Type Description | B109: =+B$10 -> 1 Bed Flat Low rise | C109: =+C73 -> 2 Bed Flat Low rise | D109: 3 Bed Flat Low rise | E109: 4 Bed + Flat Low rise | F109: 1 Bed Flat High rise | G109: 2 Bed Flat High rise | H109: 3 Bed Flat High rise | I109: 4 Bed + Flat High rise | J109: 2 Bed House | K109: 3 Bed House | L109: 4 Bed + House | M109: 0 | N109: 0
A110: =+A$11 -> Total Number of Units | B110: 0 | C110: 0 | D110: 0 | E110: 0 | F110: 0 | G110: 0 | H110: 0 | I110: 0 | J110: 0 | K110: 100 | L110: 70 | M110: 0 | N110: 0 | O110: =SUM(B110:N110) -> 170
A111: =+A$12 -> Unit Size (sq m) - NIA | B111: 0 | C111: 0 | D111: 0 | E111: 0 | F111: 0 | G111: 0 | H111: 0 | I111: 0 | J111: 0 | K111: 105 | L111: 125 | M111: 0 | N111: 0
A112: =+A$13 -> Habitable Rooms per Unit
A113: =+A$14 -> Persons per Unit
A114: =+A$15 -> Total size for units | B114: =+B110*B111 -> 0 | C114: 0 | D114: 0 | E114: 0 | F114: 0 | G114: 0 | H114: 0 | I114: 0 | J114: 0 | K114: 10500 | L114: 8750 | M114: 0 | N114: 0 | O114: =SUM(B114:N114) -> 19250
A116: Open Market Phase 2: | B116: Phase 2
A118: =+A$10 -> Property Type Description | B118: =+B$10 -> 1 Bed Flat Low rise | C118: =+C109 -> 2 Bed Flat Low rise | D118: 3 Bed Flat Low rise | E118: 4 Bed + Flat Low rise | F118: 1 Bed Flat High rise | G118: 2 Bed Flat High rise | H118: 3 Bed Flat High rise | I118: 4 Bed + Flat High rise | J118: 2 Bed House | K118: 3 Bed House | L118: 4 Bed + House | M118: 0 | N118: 0
A119: =+A$11 -> Total Number of Units | B119: 0 | C119: 0 | D119: 0 | E119: 0 | F119: 0 | G119: 0 | H119: 0 | I119: 0 | J119: 0 | K119: 0 | L119: 0 | M119: 0 | N119: 0 | O119: =SUM(B119:N119) -> 0
A120: =+A$12 -> Unit Size (sq m) - NIA | B120: 0 | C120: 0 | D120: 0 | E120: 0 | F120: 0 | G120: 0 | H120: 0 | I120: 0 | J120: 0 | K120: 0 | L120: 0 | M120: 0 | N120: 0
A121: =+A$13 -> Habitable Rooms per Unit
A122: =+A$14 -> Persons per Unit
A123: =+A$15 -> Total size for units | B123: =+B119*B120 -> 0 | C123: 0 | D123: 0 | E123: 0 | F123: 0 | G123: 0 | H123: 0 | I123: 0 | J123: 0 | K123: 0 | L123: 0 | M123: 0 | N123: 0 | O123: =SUM(B123:N123) -> 0
A125: Open Market Phase 3: | B125: Phase 3
A127: =+A$10 -> Property Type Description | B127: =+B$10 -> 1 Bed Flat Low rise | C127: =+C118 -> 2 Bed Flat Low rise | D127: 3 Bed Flat Low rise | E127: 4 Bed + Flat Low rise | F127: 1 Bed Flat High rise | G127: 2 Bed Flat High rise | H127: 3 Bed Flat High rise | I127: 4 Bed + Flat High rise | J127: 2 Bed House | K127: 3 Bed House | L127: 4 Bed + House | M127: 0 | N127: 0
A128: =+A$11 -> Total Number of Units | B128: 0 | C128: 0 | D128: 0 | E128: 0 | F128: 0 | G128: 0 | H128: 0 | I128: 0 | J128: 0 | K128: 0 | L128: 0 | M128: 0 | N128: 0 | O128: =SUM(B128:N128) -> 0
A129: =+A$12 -> Unit Size (sq m) - NIA | B129: 0 | C129: 0 | D129: 0 | E129: 0 | F129: 0 | G129: 0 | H129: 0 | I129: 0 | J129: 0 | K129: 0 | L129: 0 | M129: 0 | N129: 0
A130: =+A$13 -> Habitable Rooms per Unit
A131: =+A$14 -> Persons per Unit
A132: =+A$15 -> Total size for units | B132: =+B128*B129 -> 0 | C132: 0 | D132: 0 | E132: 0 | F132: 0 | G132: 0 | H132: 0 | I132: 0 | J132: 0 | K132: 0 | L132: 0 | M132: 0 | N132: 0 | O132: =SUM(B132:N132) -> 0
A134: Open Market Phase 4: | B134: Phase 4
A136: =+A$10 -> Property Type Description | B136: =+B$10 -> 1 Bed Flat Low rise | C136: =+C127 -> 2 Bed Flat Low rise | D136: 3 Bed Flat Low rise | E136: 4 Bed + Flat Low rise | F136: 1 Bed Flat High rise | G136: 2 Bed Flat High rise | H136: 3 Bed Flat High rise | I136: 4 Bed + Flat High rise | J136: 2 Bed House | K136: 3 Bed House | L136: 4 Bed + House | M136: 0 | N136: 0
A137: =+A$11 -> Total Number of Units | B137: 0 | C137: 0 | D137: 0 | E137: 0 | F137: 0 | G137: 0 | H137: 0 | I137: 0 | J137: 0 | K137: 0 | L137: 0 | M137: 0 | N137: 0 | O137: =SUM(B137:N137) -> 0
A138: =+A$12 -> Unit Size (sq m) - NIA | B138: 0 | C138: 0 | D138: 0 | E138: 0 | F138: 0 | G138: 0 | H138: 0 | I138: 0 | J138: 0 | K138: 0 | L138: 0 | M138: 0 | N138: 0
A139: =+A$13 -> Habitable Rooms per Unit
A140: =+A$14 -> Persons per Unit
A141: =+A$15 -> Total size for units | B141: =+B137*B138 -> 0 | C141: 0 | D141: 0 | E141: 0 | F141: 0 | G141: 0 | H141: 0 | I141: 0 | J141: 0 | K141: 0 | L141: 0 | M141: 0 | N141: 0 | O141: =SUM(B141:N141) -> 0
A143: Open Market Phase 5: | B143: Phase 5
A145: =+A$10 -> Property Type Description | B145: =+B$10 -> 1 Bed Flat Low rise | C145: =+C136 -> 2 Bed Flat Low rise | D145: 3 Bed Flat Low rise | E145: 4 Bed + Flat Low rise | F145: 1 Bed Flat High rise | G145: 2 Bed Flat High rise | H145: 3 Bed Flat High rise | I145: 4 Bed + Flat High rise | J145: 2 Bed House | K145: 3 Bed House | L145: 4 Bed + House | M145: 0 | N145: 0
A146: =+A$11 -> Total Number of Units | B146: 0 | C146: 0 | D146: 0 | E146: 0 | F146: 0 | G146: 0 | H146: 0 | I146: 0 | J146: 0 | K146: 0 | L146: 0 | M146: 0 | N146: 0 | O146: =SUM(B146:N146) -> 0
A147: =+A$12 -> Unit Size (sq m) - NIA | B147: 0 | C147: 0 | D147: 0 | E147: 0 | F147: 0 | G147: 0 | H147: 0 | I147: 0 | J147: 0 | K147: 0 | L147: 0 | M147: 0 | N147: 0
A148: =+A$13 -> Habitable Rooms per Unit
A149: =+A$14 -> Persons per Unit
A150: =+A$15 -> Total size for units | B150: =+B146*B147 -> 0 | C150: 0 | D150: 0 | E150: 0 | F150: 0 | G150: 0 | H150: 0 | I150: 0 | J150: 0 | K150: 0 | L150: 0 | M150: 0 | N150: 0 | O150: =SUM(B150:N150) -> 0
A152: Private Rental 1 | B152: Phase 1
A154: =+A$10 -> Property Type Description | B154: =+B$10 -> 1 Bed Flat Low rise | C154: =+C145 -> 2 Bed Flat Low rise | D154: 3 Bed Flat Low rise | E154: 4 Bed + Flat Low rise | F154: 1 Bed Flat High rise | G154: 2 Bed Flat High rise | H154: 3 Bed Flat High rise | I154: 4 Bed + Flat High rise | J154: 2 Bed House | K154: 3 Bed House | L154: 4 Bed + House | M154: 0 | N154: 0
A155: =+A$11 -> Total Number of Units | B155: 0 | C155: 0 | D155: 0 | E155: 0 | F155: 0 | G155: 0 | H155: 0 | I155: 0 | J155: 0 | K155: 0 | L155: 0 | M155: 0 | N155: 0 | O155: =SUM(B155:N155) -> 0
A156: =+A$12 -> Unit Size (sq m) - NIA | B156: 0 | C156: 0 | D156: 0 | E156: 0 | F156: 0 | G156: 0 | H156: 0 | I156: 0 | J156: 0 | K156: 0 | L156: 0 | M156: 0 | N156: 0
A157: =+A$13 -> Habitable Rooms per Unit
A158: =+A$14 -> Persons per Unit
A159: =+A$15 -> Total size for units | B159: =+B155*B156 -> 0 | C159: 0 | D159: 0 | E159: 0 | F159: 0 | G159: 0 | H159: 0 | I159: 0 | J159: 0 | K159: 0 | L159: 0 | M159: 0 | N159: 0 | O159: =SUM(B159:N159) -> 0
A161: Private Rental 2 | B161: Phase 2
A163: =+A$10 -> Property Type Description | B163: =+B$10 -> 1 Bed Flat Low rise | C163: =+C154 -> 2 Bed Flat Low rise | D163: 3 Bed Flat Low rise | E163: 4 Bed + Flat Low rise | F163: 1 Bed Flat High rise | G163: 2 Bed Flat High rise | H163: 3 Bed Flat High rise | I163: 4 Bed + Flat High rise | J163: 2 Bed House | K163: 3 Bed House | L163: 4 Bed + House | M163: 0 | N163: 0
A164: =+A$11 -> Total Number of Units | B164: 0 | C164: 0 | D164: 0 | E164: 0 | F164: 0 | G164: 0 | H164: 0 | I164: 0 | J164: 0 | K164: 0 | L164: 0 | M164: 0 | N164: 0 | O164: =SUM(B164:N164) -> 0
A165: =+A$12 -> Unit Size (sq m) - NIA | B165: 0 | C165: 0 | D165: 0 | E165: 0 | F165: 0 | G165: 0 | H165: 0 | I165: 0 | J165: 0 | K165: 0 | L165: 0 | M165: 0 | N165: 0
A166: =+A$13 -> Habitable Rooms per Unit
A167: =+A$14 -> Persons per Unit
A168: =+A$15 -> Total size for units | B168: =+B164*B165 -> 0 | C168: 0 | D168: 0 | E168: 0 | F168: 0 | G168: 0 | H168: 0 | I168: 0 | J168: 0 | K168: 0 | L168: 0 | M168: 0 | N168: 0 | O168: =SUM(B168:N168) -> 0
A170: Private Rental 3 | B170: Phase 3
A172: =+A$10 -> Property Type Description | B172: =+B$10 -> 1 Bed Flat Low rise | C172: =+C163 -> 2 Bed Flat Low rise | D172: 3 Bed Flat Low rise | E172: 4 Bed + Flat Low rise | F172: 1 Bed Flat High rise | G172: 2 Bed Flat High rise | H172: 3 Bed Flat High rise | I172: 4 Bed + Flat High rise | J172: 2 Bed House | K172: 3 Bed House | L172: 4 Bed + House | M172: 0 | N172: 0
A173: =+A$11 -> Total Number of Units | B173: 0 | C173: 0 | D173: 0 | E173: 0 | F173: 0 | G173: 0 | H173: 0 | I173: 0 | J173: 0 | K173: 0 | L173: 0 | M173: 0 | N173: 0 | O173: =SUM(B173:N173) -> 0
A174: =+A$12 -> Unit Size (sq m) - NIA | B174: 0 | C174: 0 | D174: 0 | E174: 0 | F174: 0 | G174: 0 | H174: 0 | I174: 0 | J174: 0 | K174: 0 | L174: 0 | M174: 0 | N174: 0
A175: =+A$13 -> Habitable Rooms per Unit
A176: =+A$14 -> Persons per Unit
A177: =+A$15 -> Total size for units | B177: =+B173*B174 -> 0 | C177: 0 | D177: 0 | E177: 0 | F177: 0 | G177: 0 | H177: 0 | I177: 0 | J177: 0 | K177: 0 | L177: 0 | M177: 0 | N177: 0 | O177: =SUM(B177:N177) -> 0
A179: Private Rental 4 | B179: Phase 4
A181: =+A$10 -> Property Type Description | B181: =+B$10 -> 1 Bed Flat Low rise | C181: =+C172 -> 2 Bed Flat Low rise | D181: 3 Bed Flat Low rise | E181: 4 Bed + Flat Low rise | F181: 1 Bed Flat High rise | G181: 2 Bed Flat High rise | H181: 3 Bed Flat High rise | I181: 4 Bed + Flat High rise | J181: 2 Bed House | K181: 3 Bed House | L181: 4 Bed + House | M181: 0 | N181: 0
A182: =+A$11 -> Total Number of Units | B182: 0 | C182: 0 | D182: 0 | E182: 0 | F182: 0 | G182: 0 | H182: 0 | I182: 0 | J182: 0 | K182: 0 | L182: 0 | M182: 0 | N182: 0 | O182: =SUM(B182:N182) -> 0
A183: =+A$12 -> Unit Size (sq m) - NIA | B183: 0 | C183: 0 | D183: 0 | E183: 0 | F183: 0 | G183: 0 | H183: 0 | I183: 0 | J183: 0 | K183: 0 | L183: 0 | M183: 0 | N183: 0
A184: =+A$13 -> Habitable Rooms per Unit
A185: =+A$14 -> Persons per Unit
A186: =+A$15 -> Total size for units | B186: =+B182*B183 -> 0 | C186: 0 | D186: 0 | E186: 0 | F186: 0 | G186: 0 | H186: 0 | I186: 0 | J186: 0 | K186: 0 | L186: 0 | M186: 0 | N186: 0 | O186: =SUM(B186:N186) -> 0
A188: Private Rental 5 | B188: Phase 5
A190: =+A$10 -> Property Type Description | B190: =+B$10 -> 1 Bed Flat Low rise | C190: =+C181 -> 2 Bed Flat Low rise | D190: 3 Bed Flat Low rise | E190: 4 Bed + Flat Low rise | F190: 1 Bed Flat High rise | G190: 2 Bed Flat High rise | H190: 3 Bed Flat High rise | I190: 4 Bed + Flat High rise | J190: 2 Bed House | K190: 3 Bed House | L190: 4 Bed + House | M190: 0 | N190: 0
A191: =+A$11 -> Total Number of Units | B191: 0 | C191: 0 | D191: 0 | E191: 0 | F191: 0 | G191: 0 | H191: 0 | I191: 0 | J191: 0 | K191: 0 | L191: 0 | M191: 0 | N191: 0 | O191: =SUM(B191:N191) -> 0
A192: =+A$12 -> Unit Size (sq m) - NIA | B192: 0 | C192: 0 | D192: 0 | E192: 0 | F192: 0 | G192: 0 | H192: 0 | I192: 0 | J192: 0 | K192: 0 | L192: 0 | M192: 0 | N192: 0
A193: =+A$13 -> Habitable Rooms per Unit
A194: =+A$14 -> Persons per Unit
A195: =+A$15 -> Total size for units | B195: =+B191*B192 -> 0 | C195: 0 | D195: 0 | E195: 0 | F195: 0 | G195: 0 | H195: 0 | I195: 0 | J195: 0 | K195: 0 | L195: 0 | M195: 0 | N195: 0 | O195: =SUM(B195:N195) -> 0
C197: See input cells for definitions
A198: for Parking spaces
A199: see Input 5 Res Costs cell C151 | L199: Total Units input | O199: =+O3 -> 170

Sheet Summary 2 -Res Values
A1: =+'Input 1 -Site'!A1 -> Surplus/Deficit after allowing for present value of deferred land payments | D1: =+'Input 1 -Site'!F1 -> 4,342,139
A3: =+"HCA "&'- Cover -'!$A$2&'- Cover -'!$A$3 -> HCA DevelopmentAppraisal Tool
A4: SUMMARY SHEET 2 - RESIDENTIAL VALUE ASSUMPTIONS
A6: RESIDENTIAL VALUE ASSUMPTIONS
C7: CV or Net Rent valuation ? | D7: =+'Input 2 -Res BATCH'!K5 -> AH & RENTAL VALUATION BASED ON CAPITAL VALUES for RESIDUAL VALUATION
C8: Net Rent Valuation Basis | D8: Full term yield based on current rents
C9: Annual Cost inflation | D9: 0.025 | E9: =IF($D$8="30 year with inflation per inputs below","per annum. (Management plus R&M inflation).",0) -> 0 | F9: =IF($D$8="30 year with inflation per inputs below"," Primarily labour rate dependant. Same for all tenures",0) -> 0
A11: ='Summary 1 -Res Mix'!A8 -> Social Rented
A13: Percentage of target rent that the RP will charge tenants | C13: 1 | D13: Default should be 100%
A15: Type of Unit | B15: Rent per Unit per Week (£) | C15: Computed Target Rent per Unit per Week (£) | D15: Gross £ rent per annum pu | E15: Memo - Number of units | F15: Based on Halifax '99 valuation of | G15: Assumed Capital Value (£ estimate)
A16: ='Summary 1 -Res Mix'!B$10 -> 1 Bed Flat Low rise | B16: 0 | C16: =IF(ISTEXT(LA),IF(E16>0,MIN($B$615,$B$626),),0) -> 0 | D16: =IF(ISTEXT($C16),"",$B16*52) -> 0 | E16: =+'Summary 1 -Res Mix'!$B$11 -> 0 | F16: =IF(E16=0,0,+VLOOKUP('Input 1 -Site'!$B$21,#REF!,MATCH(B596,#REF!,0),FALSE)) -> 0 | G16: 0
A17: ='Summary 1 -Res Mix'!C$10 -> 2 Bed Flat Low rise | B17: 0 | C17: =IF(ISTEXT(LA),IF(E17>0,MIN($B$616,$B$627),),0) -> 0 | D17: =IF(ISTEXT($C17),"",$B17*52) -> 0 | E17: =+'Summary 1 -Res Mix'!$C$11 -> 0 | F17: =IF(E17=0,0,+VLOOKUP('Input 1 -Site'!$B$21,#REF!,MATCH(C596,#REF!,0),FALSE)) -> 0 | G17: 0
A18: ='Summary 1 -Res Mix'!D$10 -> 3 Bed Flat Low rise | B18: 0 | C18: =IF(ISTEXT(LA),IF(E18>0,MIN($B$617,$B$628),),0) -> 0 | D18: 0 | E18: =+'Summary 1 -Res Mix'!$D$11 -> 0 | F18: =IF(E18=0,0,+VLOOKUP('Input 1 -Site'!$B$21,#REF!,MATCH(D596,#REF!,0),FALSE)) -> 0 | G18: 0
A19: ='Summary 1 -Res Mix'!E$10 -> 4 Bed + Flat Low rise | B19: 0 | C19: =IF(ISTEXT(LA),IF(E19>0,MIN($B$618,$B$629),),0) -> 0 | D19: 0 | E19: =+'Summary 1 -Res Mix'!$E$11 -> 0 | F19: =IF(E19=0,0,+VLOOKUP('Input 1 -Site'!$B$21,#REF!,MATCH(E596,#REF!,0),FALSE)) -> 0 | G19: 0
A20: ='Summary 1 -Res Mix'!F$10 -> 1 Bed Flat High rise | B20: 0 | C20: =IF(ISTEXT(LA),IF(E20>0,MIN($B$615,$B$626),),0) -> 0 | D20: 0 | E20: =+'Summary 1 -Res Mix'!$F$11 -> 0 | F20: =IF(E20=0,0,+VLOOKUP('Input 1 -Site'!$B$21,#REF!,MATCH(B596,#REF!,0),FALSE)) -> 0 | G20: 0
A21: ='Summary 1 -Res Mix'!G$10 -> 2 Bed Flat High rise | B21: 0 | C21: =IF(ISTEXT(LA),IF(E21>0,MIN($B$616,$B$627),),0) -> 0 | D21: 0 | E21: =+'Summary 1 -Res Mix'!$G$11 -> 0 | F21: =IF(E21=0,0,+VLOOKUP('Input 1 -Site'!$B$21,#REF!,MATCH(C596,#REF!,0),FALSE)) -> 0 | G21: 0
A22: ='Summary 1 -Res Mix'!H$10 -> 3 Bed Flat High rise | B22: 0 | C22: =IF(ISTEXT(LA),IF(E22>0,MIN($B$617,$B$628),),0) -> 0 | D22: 0 | E22: =+'Summary 1 -Res Mix'!$H$11 -> 0 | F22: =IF(E22=0,0,+VLOOKUP('Input 1 -Site'!$B$21,#REF!,MATCH(D596,#REF!,0),FALSE)) -> 0 | G22: 0
A23: ='Summary 1 -Res Mix'!I$10 -> 4 Bed + Flat High rise | B23: 0 | C23: =IF(ISTEXT(LA),IF(E23>0,MIN($B$618,$B$629),),0) -> 0 | D23: 0 | E23: =+'Summary 1 -Res Mix'!$I$11 -> 0 | F23: =IF(E23=0,0,+VLOOKUP('Input 1 -Site'!$B$21,#REF!,MATCH(E596,#REF!,0),FALSE)) -> 0 | G23: 0
A24: ='Summary 1 -Res Mix'!J$10 -> 2 Bed House | B24: 0 | C24: =IF(ISTEXT(LA),IF(E24>0,MIN($B$619,$B630),),0) -> 0 | D24: 0 | E24: =+'Summary 1 -Res Mix'!$J$11 -> 0 | F24: =IF(E24=0,0,+VLOOKUP('Input 1 -Site'!$B$21,#REF!,MATCH(F596,#REF!,0),FALSE)) -> 0 | G24: 0
A25: ='Summary 1 -Res Mix'!K$10 -> 3 Bed House | B25: 0 | C25: =IF(ISTEXT(LA),IF(E25>0,MIN($B$620,$B631),),0) -> 0 | D25: 0 | E25: =+'Summary 1 -Res Mix'!$K$11 -> 0 | F25: =IF(E25=0,0,+VLOOKUP('Input 1 -Site'!$B$21,#REF!,MATCH(G596,#REF!,0),FALSE)) -> 0 | G25: 0
A26: ='Summary 1 -Res Mix'!L$10 -> 4 Bed + House | B26: 0 | C26: =IF(ISTEXT(LA),IF(E26>0,MIN($B$621,$B632),),0) -> 0 | D26: 0 | E26: =+'Summary 1 -Res Mix'!$L$11 -> 0 | F26: =IF(E26=0,0,+VLOOKUP('Input 1 -Site'!$B$21,#REF!,MATCH(H596,#REF!,0),FALSE)) -> 0 | G26: 0
A27: ='Summary 1 -Res Mix'!M$10 -> 0 | B27: 0 | C27: =IF(ISTEXT(LA),IF(E27>0,MIN($B$622,$B633),),0) -> 0 | D27: 0 | E27: =+'Summary 1 -Res Mix'!$M$11 -> 0 | F27: =IF(E27=0,0,+VLOOKUP('Input 1 -Site'!$B$21,#REF!,MATCH(I596,#REF!,0),FALSE)) -> 0 | G27: 0
A28: ='Summary 1 -Res Mix'!N$10 -> 0 | B28: 0 | C28: =IF(ISTEXT(LA),IF(E28>0,MIN($B$623,$B634),),0) -> 0 | D28: 0 | E28: =+'Summary 1 -Res Mix'!$N$11 -> 0 | F28: =IF(E28=0,0,+VLOOKUP('Input 1 -Site'!$B$21,#REF!,MATCH(J596,#REF!,0),FALSE)) -> 0 | G28: 0
E29: =SUM(E16:E28) -> 0 | F29: £ per unit per annum
A30: Management Costs (% of rent) | C30: per annum | D30: Rental Inflation | E30: 0.04 | F30: =+B30*((D$16*E$16)+(D$17*E$17)+(D$18*E$18)+(D$19*E$19)+(D$20*E$20)+(D$21*E$21)+(D$22*E$22)+(D$23*E$23)+(D$24*E$24)+(D$25*E$25)+(D$26*E$26)+(D$27*E$27)+(D$28*E$28))/SUM(E$16:E$28) -> 
A32: Voids / bad debts (% of rent) | C32: per annum
A34: Repairs Fund (% of rent) | C34: per annum | D34: Total Annual Cost | E34: =+B30+B32+B34 -> 0 | F34: =+B34*((D$16*E$16)+(D$17*E$17)+(D$18*E$18)+(D$19*E$19)+(D$20*E$20)+(D$21*E$21)+(D$22*E$22)+(D$23*E$23)+(D$24*E$24)+(D$25*E$25)+(D$26*E$26)+(D$27*E$27)+(D$28*E$28))/SUM(E$16:E$28) ->  | G34: per unit
A36: Rent Yield Capitalisation (%) | C36: per annum
C37: Yield is conventionally based on the current rental value: prevailing rates takes account of rental and costs inflation
A40: =+'Summary 1 -Res Mix'!A17 -> Shared Ownership phase 1
B41: This computation takes the rent, deducts costs, and capitalises the net income stream. An estimated adjustment is made for staircase assumptions (if any)
A42: Type of Unit | B42: 100% Share valuation | C42: Total Capital Value (£ psm, NIA) | D42: Gross Rent after costs (£ per Unit pa) | E42: Total Costs (£ per Unit pa) | F42: Total Net Rent after costs (£ per Unit pa) | G42: ="Capital value of net rental stream (£ per Unit) on "&$D$8&" basis" -> Capital value of net rental stream (£ per Unit) on Full term yield based on current rents basis | H42: Initial tranche plus est. staircasing value per unit | I42: Memo - Number of units | J42: Total capital value inc. staircasing (if any) | K42: Total sqm of units
A43: ='Summary 1 -Res Mix'!B$10 -> 1 Bed Flat Low rise | B43: 0 | C43: =IF(K43=0,0,+J43/K43) -> 0 | D43: =+((B43*B59*(1-$B71))) -> 0 | E43: =+(B43*(1-B57)*B59*B63)+(B43*B59*B61) -> 0 | F43: =+D43-E43 -> 0 | G43: =IF($D$8="Full term yield based on current rents",IF(B$65=0,0,+F43/B$65),+'C2 Value'!$L$65*F43) -> 0 | H43: =+B43*$B$71 -> 0 | I43: =+'Summary 1 -Res Mix'!B$20 -> 0 | J43: =I43*(G43+H43) -> 0 | K43: =+'Summary 1 -Res Mix'!B$24 -> 0
A44: ='Summary 1 -Res Mix'!C$10 -> 2 Bed Flat Low rise | B44: 0 | C44: 0 | D44: =+((B44*B$59*(1-$B$71))) -> 0 | E44: =+(B44*(1-B$57)*B$59*B$63)+(B44*B$59*B$61) -> 0 | F44: =+D44-E44 -> 0 | G44: =IF($D$8="Full term yield based on current rents",IF(B$65=0,0,+F44/B$65),+'C2 Value'!$L$65*F44) -> 0 | H44: 0 | I44: =+'Summary 1 -Res Mix'!C$20 -> 0 | J44: =I44*(G44+H44) -> 0 | K44: =+'Summary 1 -Res Mix'!C$24 -> 0
A45: ='Summary 1 -Res Mix'!D$10 -> 3 Bed Flat Low rise | B45: 0 | C45: 0 | D45: 0 | E45: 0 | F45: 0 | G45: =IF($D$8="Full term yield based on current rents",IF(B$65=0,0,+F45/B$65),+'C2 Value'!$L$65*F45) -> 0 | H45: 0 | I45: =+'Summary 1 -Res Mix'!D$20 -> 0 | J45: 0 | K45: =+'Summary 1 -Res Mix'!D$24 -> 0
A46: ='Summary 1 -Res Mix'!E$10 -> 4 Bed + Flat Low rise | B46: 0 | C46: 0 | D46: 0 | E46: 0 | F46: 0 | G46: =IF($D$8="Full term yield based on current rents",IF(B$65=0,0,+F46/B$65),+'C2 Value'!$L$65*F46) -> 0 | H46: 0 | I46: =+'Summary 1 -Res Mix'!E$20 -> 0 | J46: 0 | K46: =+'Summary 1 -Res Mix'!E$24 -> 0
A47: ='Summary 1 -Res Mix'!F$10 -> 1 Bed Flat High rise | B47: 0 | C47: 0 | D47: 0 | E47: 0 | F47: 0 | G47: =IF($D$8="Full term yield based on current rents",IF(B$65=0,0,+F47/B$65),+'C2 Value'!$L$65*F47) -> 0 | H47: 0 | I47: =+'Summary 1 -Res Mix'!F$20 -> 0 | J47: 0 | K47: =+'Summary 1 -Res Mix'!F$24 -> 0
A48: ='Summary 1 -Res Mix'!G$10 -> 2 Bed Flat High rise | B48: 0 | C48: 0 | D48: 0 | E48: 0 | F48: 0 | G48: =IF($D$8="Full term yield based on current rents",IF(B$65=0,0,+F48/B$65),+'C2 Value'!$L$65*F48) -> 0 | H48: 0 | I48: =+'Summary 1 -Res Mix'!G$20 -> 0 | J48: 0 | K48: =+'Summary 1 -Res Mix'!G$24 -> 0
A49: ='Summary 1 -Res Mix'!H$10 -> 3 Bed Flat High rise | B49: 0 | C49: 0 | D49: 0 | E49: 0 | F49: 0 | G49: =IF($D$8="Full term yield based on current rents",IF(B$65=0,0,+F49/B$65),+'C2 Value'!$L$65*F49) -> 0 | H49: 0 | I49: =+'Summary 1 -Res Mix'!H$20 -> 0 | J49: 0 | K49: =+'Summary 1 -Res Mix'!H$24 -> 0
A50: ='Summary 1 -Res Mix'!I$10 -> 4 Bed + Flat High rise | B50: 0 | C50: 0 | D50: 0 | E50: 0 | F50: 0 | G50: =IF($D$8="Full term yield based on current rents",IF(B$65=0,0,+F50/B$65),+'C2 Value'!$L$65*F50) -> 0 | H50: 0 | I50: =+'Summary 1 -Res Mix'!I$20 -> 0 | J50: 0 | K50: =+'Summary 1 -Res Mix'!I$24 -> 0
A51: ='Summary 1 -Res Mix'!J$10 -> 2 Bed House | B51: 0 | C51: 0 | D51: 0 | E51: 0 | F51: 0 | G51: =IF($D$8="Full term yield based on current rents",IF(B$65=0,0,+F51/B$65),+'C2 Value'!$L$65*F51) -> 0 | H51: 0 | I51: =+'Summary 1 -Res Mix'!J$20 -> 0 | J51: 0 | K51: =+'Summary 1 -Res Mix'!J$24 -> 0
A52: ='Summary 1 -Res Mix'!K$10 -> 3 Bed House | B52: 0 | C52: 0 | D52: 0 | E52: 0 | F52: 0 | G52: =IF($D$8="Full term yield based on current rents",IF(B$65=0,0,+F52/B$65),+'C2 Value'!$L$65*F52) -> 0 | H52: 0 | I52: =+'Summary 1 -Res Mix'!K$20 -> 0 | J52: 0 | K52: =+'Summary 1 -Res Mix'!K$24 -> 0
A53: ='Summary 1 -Res Mix'!L$10 -> 4 Bed + House | B53: 0 | C53: 0 | D53: 0 | E53: 0 | F53: 0 | G53: =IF($D$8="Full term yield based on current rents",IF(B$65=0,0,+F53/B$65),+'C2 Value'!$L$65*F53) -> 0 | H53: 0 | I53: =+'Summary 1 -Res Mix'!L$20 -> 0 | J53: 0 | K53: =+'Summary 1 -Res Mix'!L$24 -> 0
A54: ='Summary 1 -Res Mix'!M$10 -> 0 | B54: 0 | C54: 0 | D54: 0 | E54: 0 | F54: 0 | G54: =IF($D$8="Full term yield based on current rents",IF(B$65=0,0,+F54/B$65),+'C2 Value'!$L$65*F54) -> 0 | H54: 0 | I54: =+'Summary 1 -Res Mix'!M$20 -> 0 | J54: 0 | K54: =+'Summary 1 -Res Mix'!M$24 -> 0
A55: ='Summary 1 -Res Mix'!N$10 -> 0 | B55: 0 | C55: 0 | D55: 0 | E55: 0 | F55: 0 | G55: =IF($D$8="Full term yield based on current rents",IF(B$65=0,0,+F55/B$65),+'C2 Value'!$L$65*F55) -> 0 | H55: 0 | I55: =+'Summary 1 -Res Mix'!N$20 -> 0 | J55: 0 | K55: =+'Summary 1 -Res Mix'!N$24 -> 0
H56: =SUM(J43:J55) -> 0
A57: Owner Occupier share (%) | B57: 1 | D57: Rental Inflation | E57: =+D9 -> 0.025
A59: Unsold Equity Rent pa (%) | B59: 0.0275 | C59: per annum
A61: Management Costs (% of rent) | B61: 0 | C61: per annum
A63: Voids / bad debts (% of rent) | B63: 0 | C63: per annum | D63: Total Annual Cost | E63: =+B61+B63 -> 0
A65: Rent Yield Capitalisation (%) | C65: per annum
A67: Est. staircasing % of full value (if any) | C67: =+B57+B67 -> 1 | D67: Forecast total % sold
A68: Average year of staircase
A69: Estimated long term house inflation % | C69: =B69-Interest_Rate -> -0.06 | D69: implied real value growth (above rate of interest) | E69: =IF(C69<0,"house price inflation is set to make later staircasing less valuable than intial tranche!",) -> house price inflation is set to make later staircasing less valuable than intial tranche!
A70: Staircasing equivalent to initial tranche of | B70: =B67/(1-C69)^B68 -> 0 | C70: This inflates the present value of staircasing by the amount of 'real' houseprice inflation anticipated over the period
A71: Initial tranche plus staircasing estimate | B71: =+B70+B57 -> 1 | C71: Adding future estimated capital staircasing gain (if any) to initial tranche
A74: =+'Summary 1 -Res Mix'!A26 -> Shared Ownership phase 2
B75: This computation takes the rent, deducts costs, and capitalises the net income stream. An estimated adjustment is made for staircase assumptions (if any)
A76: Type of Unit | B76: 100% Share valuation | C76: Total Capital Value (£ psm, NIA) | D76: Gross Rent after costs (£ per Unit pa) | E76: Total Costs (£ per Unit pa) | F76: Total Net Rent after costs (£ per Unit pa) | G76: ="Capital value of net rental stream (£ per Unit) on "&$D$8&" basis" -> Capital value of net rental stream (£ per Unit) on Full term yield based on current rents basis | H76: Initial tranche plus est. staircasing value per unit | I76: Memo - Number of units | J76: Total capital value inc. staircasing (if any) | K76: Total sqm of units
A77: ='Summary 1 -Res Mix'!B$10 -> 1 Bed Flat Low rise | B77: 0 | C77: =IF(K77=0,0,+J77/K77) -> 0 | D77: =+((B77*B93*(1-$B105))) -> 0 | E77: =+(B77*(1-B91)*B93*B97)+(B77*B93*B95) -> 0 | F77: =+D77-E77 -> 0 | G77: =IF($D$8="Full term yield based on current rents",IF(B$99=0,0,+F77/B$99),+'C2 Value'!$L$95*F77) -> 0 | H77: =+B77*$B$105 -> 0 | I77: =+'Summary 1 -Res Mix'!B$29 -> 0 | J77: =I77*(G77+H77) -> 0 | K77: =+'Summary 1 -Res Mix'!B$33 -> 0
A78: ='Summary 1 -Res Mix'!C$10 -> 2 Bed Flat Low rise | B78: 0 | C78: 0 | D78: =+((B78*B$93*(1-$B$105))) -> 0 | E78: =+(B78*(1-B$91)*B$93*B$97)+(B78*B$93*B$95) -> 0 | F78: =+D78-E78 -> 0 | G78: =IF($D$8="Full term yield based on current rents",IF(B$99=0,0,+F78/B$99),+'C2 Value'!$L$95*F78) -> 0 | H78: 0 | I78: =+'Summary 1 -Res Mix'!C$29 -> 0 | J78: =I78*(G78+H78) -> 0 | K78: =+'Summary 1 -Res Mix'!C$33 -> 0
A79: ='Summary 1 -Res Mix'!D$10 -> 3 Bed Flat Low rise | B79: 0 | C79: 0 | D79: 0 | E79: 0 | F79: 0 | G79: =IF($D$8="Full term yield based on current rents",IF(B$99=0,0,+F79/B$99),+'C2 Value'!$L$95*F79) -> 0 | H79: 0 | I79: =+'Summary 1 -Res Mix'!D$29 -> 0 | J79: 0 | K79: =+'Summary 1 -Res Mix'!D$33 -> 0
A80: ='Summary 1 -Res Mix'!E$10 -> 4 Bed + Flat Low rise | B80: 0 | C80: 0 | D80: 0 | E80: 0 | F80: 0 | G80: =IF($D$8="Full term yield based on current rents",IF(B$99=0,0,+F80/B$99),+'C2 Value'!$L$95*F80) -> 0 | H80: 0 | I80: =+'Summary 1 -Res Mix'!E$29 -> 0 | J80: 0 | K80: =+'Summary 1 -Res Mix'!E$33 -> 0
A81: ='Summary 1 -Res Mix'!F$10 -> 1 Bed Flat High rise | B81: 0 | C81: 0 | D81: 0 | E81: 0 | F81: 0 | G81: =IF($D$8="Full term yield based on current rents",IF(B$99=0,0,+F81/B$99),+'C2 Value'!$L$95*F81) -> 0 | H81: 0 | I81: =+'Summary 1 -Res Mix'!F$29 -> 0 | J81: 0 | K81: =+'Summary 1 -Res Mix'!F$33 -> 0
A82: ='Summary 1 -Res Mix'!G$10 -> 2 Bed Flat High rise | B82: 0 | C82: 0 | D82: 0 | E82: 0 | F82: 0 | G82: =IF($D$8="Full term yield based on current rents",IF(B$99=0,0,+F82/B$99),+'C2 Value'!$L$95*F82) -> 0 | H82: 0 | I82: =+'Summary 1 -Res Mix'!G$29 -> 0 | J82: 0 | K82: =+'Summary 1 -Res Mix'!G$33 -> 0
A83: ='Summary 1 -Res Mix'!H$10 -> 3 Bed Flat High rise | B83: 0 | C83: 0 | D83: 0 | E83: 0 | F83: 0 | G83: =IF($D$8="Full term yield based on current rents",IF(B$99=0,0,+F83/B$99),+'C2 Value'!$L$95*F83) -> 0 | H83: 0 | I83: =+'Summary 1 -Res Mix'!H$29 -> 0 | J83: 0 | K83: =+'Summary 1 -Res Mix'!H$33 -> 0
A84: ='Summary 1 -Res Mix'!I$10 -> 4 Bed + Flat High rise | B84: 0 | C84: 0 | D84: 0 | E84: 0 | F84: 0 | G84: =IF($D$8="Full term yield based on current rents",IF(B$99=0,0,+F84/B$99),+'C2 Value'!$L$95*F84) -> 0 | H84: 0 | I84: =+'Summary 1 -Res Mix'!I$29 -> 0 | J84: 0 | K84: =+'Summary 1 -Res Mix'!I$33 -> 0
A85: ='Summary 1 -Res Mix'!J$10 -> 2 Bed House | B85: 0 | C85: 0 | D85: 0 | E85: 0 | F85: 0 | G85: =IF($D$8="Full term yield based on current rents",IF(B$99=0,0,+F85/B$99),+'C2 Value'!$L$95*F85) -> 0 | H85: 0 | I85: =+'Summary 1 -Res Mix'!J$29 -> 0 | J85: 0 | K85: =+'Summary 1 -Res Mix'!J$33 -> 0
A86: ='Summary 1 -Res Mix'!K$10 -> 3 Bed House | B86: 0 | C86: 0 | D86: 0 | E86: 0 | F86: 0 | G86: =IF($D$8="Full term yield based on current rents",IF(B$99=0,0,+F86/B$99),+'C2 Value'!$L$95*F86) -> 0 | H86: 0 | I86: =+'Summary 1 -Res Mix'!K$29 -> 0 | J86: 0 | K86: =+'Summary 1 -Res Mix'!K$33 -> 0
A87: ='Summary 1 -Res Mix'!L$10 -> 4 Bed + House | B87: 0 | C87: 0 | D87: 0 | E87: 0 | F87: 0 | G87: =IF($D$8="Full term yield based on current rents",IF(B$99=0,0,+F87/B$99),+'C2 Value'!$L$95*F87) -> 0 | H87: 0 | I87: =+'Summary 1 -Res Mix'!L$29 -> 0 | J87: 0 | K87: =+'Summary 1 -Res Mix'!L$33 -> 0
A88: ='Summary 1 -Res Mix'!M$10 -> 0 | B88: 0 | C88: 0 | D88: 0 | E88: 0 | F88: 0 | G88: =IF($D$8="Full term yield based on current rents",IF(B$99=0,0,+F88/B$99),+'C2 Value'!$L$95*F88) -> 0 | H88: 0 | I88: =+'Summary 1 -Res Mix'!M$29 -> 0 | J88: 0 | K88: =+'Summary 1 -Res Mix'!M$33 -> 0
A89: ='Summary 1 -Res Mix'!N$10 -> 0 | B89: 0 | C89: 0 | D89: 0 | E89: 0 | F89: 0 | G89: =IF($D$8="Full term yield based on current rents",IF(B$99=0,0,+F89/B$99),+'C2 Value'!$L$95*F89) -> 0 | H89: 0 | I89: =+'Summary 1 -Res Mix'!N$29 -> 0 | J89: 0 | K89: =+'Summary 1 -Res Mix'!N$33 -> 0
H90: =SUM(J77:J89) -> 0 | I90: =SUM(K77:K89) -> 0
A91: Owner Occupier share (%) | B91: 1 | D91: Rental Inflation | E91: 0.04
A93: Unsold Equity Rent pa (%) | B93: 0.0275 | C93: per annum
A95: Management Costs (% of rent) | B95: 0 | C95: per annum
A97: Voids / bad debts (% of rent) | B97: 0 | C97: per annum | D97: Total Annual Cost | E97: =+B95+B97 -> 0
A99: Rent Yield Capitalisation (%) | C99: per annum
A101: Est. staircasing % of full value (if any) | B101: =+B67 -> 0 | C101: =+B91+B101 -> 1 | D101: Forecast total % sold
A102: Average year of staircase | B102: =+B68 -> 0
A103: Estimated long term house inflation % | B103: =+B69 -> 0 | C103: =B103-Interest_Rate -> -0.06 | D103: implied real value growth (above rate of interest) | E103: =IF(C103<0,"house price inflation is set to make later staircasing less valuable than intial tranche!",) -> house price inflation is set to make later staircasing less valuable than intial tranche!
A104: Staircasing equivalent to initial tranche of | B104: =B101/(1-C103)^B102 -> 0 | C104: This inflates the present value of staircasing by the amount of 'real' houseprice inflation anticipated over the period
A105: Initial tranche plus staircasing estimate | B105: =+B104+B91 -> 1 | C105: Adding future estimated capital staircasing gain (if any) to initial tranche
A108: =+'Summary 1 -Res Mix'!A35 -> Shared Ownership phase 3
B109: This computation takes the rent, deducts costs, and capitalises the net income stream. An estimated adjustment is made for staircase assumptions (if any)
A110: Type of Unit | B110: 100% Share valuation | C110: Total Capital Value (£ psm, NIA) | D110: Gross Rent after costs (£ per Unit pa) | E110: Total Costs (£ per Unit pa) | F110: Total Net Rent after costs (£ per Unit pa) | G110: ="Capital value of net rental stream (£ per Unit) on "&$D$8&" basis" -> Capital value of net rental stream (£ per Unit) on Full term yield based on current rents basis | H110: Initial tranche plus est. staircasing value per unit | I110: Memo - Number of units | J110: Total capital value inc. staircasing (if any) | K110: Total sqm of units
A111: ='Summary 1 -Res Mix'!B$10 -> 1 Bed Flat Low rise | B111: 0 | C111: =IF(K111=0,0,+J111/K111) -> 0 | D111: =+((B111*B$127*(1-$B$139))) -> 0 | E111: =+(B111*(1-B$125)*B$127*B$131)+(B111*B$127*B$129) -> 0 | F111: =+D111-E111 -> 0 | G111: =IF($D$8="Full term yield based on current rents",IF(B$99=0,0,+F111/B$99),+'C2 Value'!$L$126*F111) -> 0 | H111: =+B111*$B$105 -> 0 | I111: =+'Summary 1 -Res Mix'!B$38 -> 0 | J111: =I111*(G111+H111) -> 0 | K111: =+'Summary 1 -Res Mix'!B$42 -> 0
A112: ='Summary 1 -Res Mix'!C$10 -> 2 Bed Flat Low rise | B112: 0 | C112: 0 | D112: =+((B112*B$127*(1-$B$139))) -> 0 | E112: =+(B112*(1-B$125)*B$127*B$131)+(B112*B$127*B$129) -> 0 | F112: =+D112-E112 -> 0 | G112: =IF($D$8="Full term yield based on current rents",IF(B$99=0,0,+F112/B$99),+'C2 Value'!$L$126*F112) -> 0 | H112: 0 | I112: =+'Summary 1 -Res Mix'!C$38 -> 0 | J112: =I112*(G112+H112) -> 0 | K112: =+'Summary 1 -Res Mix'!C$42 -> 0
A113: ='Summary 1 -Res Mix'!D$10 -> 3 Bed Flat Low rise | B113: 0 | C113: 0 | D113: 0 | E113: 0 | F113: 0 | G113: =IF($D$8="Full term yield based on current rents",IF(B$99=0,0,+F113/B$99),+'C2 Value'!$L$126*F113) -> 0 | H113: 0 | I113: =+'Summary 1 -Res Mix'!D$38 -> 0 | J113: 0 | K113: =+'Summary 1 -Res Mix'!D$42 -> 0
A114: ='Summary 1 -Res Mix'!E$10 -> 4 Bed + Flat Low rise | B114: 0 | C114: 0 | D114: 0 | E114: 0 | F114: 0 | G114: =IF($D$8="Full term yield based on current rents",IF(B$99=0,0,+F114/B$99),+'C2 Value'!$L$126*F114) -> 0 | H114: 0 | I114: =+'Summary 1 -Res Mix'!E$38 -> 0 | J114: 0 | K114: =+'Summary 1 -Res Mix'!E$42 -> 0
A115: ='Summary 1 -Res Mix'!F$10 -> 1 Bed Flat High rise | B115: 0 | C115: 0 | D115: 0 | E115: 0 | F115: 0 | G115: =IF($D$8="Full term yield based on current rents",IF(B$99=0,0,+F115/B$99),+'C2 Value'!$L$126*F115) -> 0 | H115: 0 | I115: =+'Summary 1 -Res Mix'!F$38 -> 0 | J115: 0 | K115: =+'Summary 1 -Res Mix'!F$42 -> 0
A116: ='Summary 1 -Res Mix'!G$10 -> 2 Bed Flat High rise | B116: 0 | C116: 0 | D116: 0 | E116: 0 | F116: 0 | G116: =IF($D$8="Full term yield based on current rents",IF(B$99=0,0,+F116/B$99),+'C2 Value'!$L$126*F116) -> 0 | H116: 0 | I116: =+'Summary 1 -Res Mix'!G$38 -> 0 | J116: 0 | K116: =+'Summary 1 -Res Mix'!G$42 -> 0
A117: ='Summary 1 -Res Mix'!H$10 -> 3 Bed Flat High rise | B117: 0 | C117: 0 | D117: 0 | E117: 0 | F117: 0 | G117: =IF($D$8="Full term yield based on current rents",IF(B$99=0,0,+F117/B$99),+'C2 Value'!$L$126*F117) -> 0 | H117: 0 | I117: =+'Summary 1 -Res Mix'!H$38 -> 0 | J117: 0 | K117: =+'Summary 1 -Res Mix'!H$42 -> 0
A118: ='Summary 1 -Res Mix'!I$10 -> 4 Bed + Flat High rise | B118: 0 | C118: 0 | D118: 0 | E118: 0 | F118: 0 | G118: =IF($D$8="Full term yield based on current rents",IF(B$99=0,0,+F118/B$99),+'C2 Value'!$L$126*F118) -> 0 | H118: 0 | I118: =+'Summary 1 -Res Mix'!I$38 -> 0 | J118: 0 | K118: =+'Summary 1 -Res Mix'!I$42 -> 0
A119: ='Summary 1 -Res Mix'!J$10 -> 2 Bed House | B119: 0 | C119: 0 | D119: 0 | E119: 0 | F119: 0 | G119: =IF($D$8="Full term yield based on current rents",IF(B$99=0,0,+F119/B$99),+'C2 Value'!$L$126*F119) -> 0 | H119: 0 | I119: =+'Summary 1 -Res Mix'!J$38 -> 0 | J119: 0 | K119: =+'Summary 1 -Res Mix'!J$42 -> 0
A120: ='Summary 1 -Res Mix'!K$10 -> 3 Bed House | B120: 0 | C120: 0 | D120: 0 | E120: 0 | F120: 0 | G120: =IF($D$8="Full term yield based on current rents",IF(B$99=0,0,+F120/B$99),+'C2 Value'!$L$126*F120) -> 0 | H120: 0 | I120: =+'Summary 1 -Res Mix'!K$38 -> 0 | J120: 0 | K120: =+'Summary 1 -Res Mix'!K$42 -> 0
A121: ='Summary 1 -Res Mix'!L$10 -> 4 Bed + House | B121: 0 | C121: 0 | D121: 0 | E121: 0 | F121: 0 | G121: =IF($D$8="Full term yield based on current rents",IF(B$99=0,0,+F121/B$99),+'C2 Value'!$L$126*F121) -> 0 | H121: 0 | I121: =+'Summary 1 -Res Mix'!L$38 -> 0 | J121: 0 | K121: =+'Summary 1 -Res Mix'!L$42 -> 0
A122: ='Summary 1 -Res Mix'!M$10 -> 0 | B122: 0 | C122: 0 | D122: 0 | E122: 0 | F122: 0 | G122: =IF($D$8="Full term yield based on current rents",IF(B$99=0,0,+F122/B$99),+'C2 Value'!$L$126*F122) -> 0 | H122: 0 | I122: =+'Summary 1 -Res Mix'!M$38 -> 0 | J122: 0 | K122: =+'Summary 1 -Res Mix'!M$42 -> 0
A123: ='Summary 1 -Res Mix'!N$10 -> 0 | B123: 0 | C123: 0 | D123: 0 | E123: 0 | F123: 0 | G123: =IF($D$8="Full term yield based on current rents",IF(B$99=0,0,+F123/B$99),+'C2 Value'!$L$126*F123) -> 0 | H123: 0 | I123: =+'Summary 1 -Res Mix'!N$38 -> 0 | J123: 0 | K123: =+'Summary 1 -Res Mix'!N$42 -> 0
H124: =SUM(J111:J123) -> 0 | I124: =SUM(K111:K123) -> 0
A125: Owner Occupier share (%) | B125: 1 | D125: Rental Inflation | E125: 0.04
A127: Unsold Equity Rent pa (%) | B127: 0.0275 | C127: per annum
A129: Management Costs (% of rent) | B129: 0 | C129: per annum
A131: Voids / bad debts (% of rent) | B131: 0 | C131: per annum | D131: Total Annual Cost | E131: =+B129+B131 -> 0
A133: Rent Yield Capitalisation (%) | C133: per annum
A135: Est. staircasing % of full value (if any) | B135: =+B101 -> 0 | C135: =+B125+B135 -> 1 | D135: Forecast total % sold
A136: Average year of staircase | B136: =+B102 -> 0
A137: Estimated long term house inflation % | B137: =+B103 -> 0 | C137: =B137-Interest_Rate -> -0.06 | D137: implied real value growth (above rate of interest) | E137: =IF(C137<0,"house price inflation is set to make later staircasing less valuable than intial tranche!",) -> house price inflation is set to make later staircasing less valuable than intial tranche!
A138: Staircasing equivalent to initial tranche of | B138: =B135/(1-C137)^B136 -> 0 | C138: This inflates the present value of staircasing by the amount of 'real' houseprice inflation anticipated over the period
A139: Initial tranche plus staircasing estimate | B139: =+B138+B125 -> 1 | C139: Adding future estimated capital staircasing gain (if any) to initial tranche
A142: =+'Summary 1 -Res Mix'!A44 -> Shared Ownership phase 4
B143: This computation takes the rent, deducts costs, and capitalises the net income stream. An estimated adjustment is made for staircase assumptions (if any)
A144: Type of Unit | B144: 100% Share valuation | C144: Total Capital Value (£ psm, NIA) | D144: Gross Rent after costs (£ per Unit pa) | E144: Total Costs (£ per Unit pa) | F144: Total Net Rent after costs (£ per Unit pa) | G144: ="Capital value of net rental stream (£ per Unit) on "&$D$8&" basis" -> Capital value of net rental stream (£ per Unit) on Full term yield based on current rents basis | H144: Initial tranche plus est. staircasing value per unit | I144: Memo - Number of units | J144: Total capital value inc. staircasing (if any) | K144: Total sqm of units
A145: ='Summary 1 -Res Mix'!B$10 -> 1 Bed Flat Low rise | B145: 0 | C145: =IF(K145=0,0,+J145/K145) -> 0 | D145: =+((B145*B$161*(1-$B$173))) -> 0 | E145: =+(B145*(1-B$159)*B$161*B$165)+(B145*B$161*B$163) -> 0 | F145: =+D145-E145 -> 0 | G145: =IF($D$8="Full term yield based on current rents",IF(B$99=0,0,+F145/B$99),+'C2 Value'!$L$147*F145) -> 0 | H145: =+B145*$B$105 -> 0 | I145: =+'Summary 1 -Res Mix'!B$47 -> 0 | J145: =I145*(G145+H145) -> 0 | K145: =+'Summary 1 -Res Mix'!B$51 -> 0
A146: ='Summary 1 -Res Mix'!C$10 -> 2 Bed Flat Low rise | B146: 0 | C146: 0 | D146: =+((B146*B$161*(1-$B$173))) -> 0 | E146: =+(B146*(1-B$159)*B$161*B$165)+(B146*B$161*B$163) -> 0 | F146: =+D146-E146 -> 0 | G146: =IF($D$8="Full term yield based on current rents",IF(B$99=0,0,+F146/B$99),+'C2 Value'!$L$147*F146) -> 0 | H146: 0 | I146: =+'Summary 1 -Res Mix'!C$47 -> 0 | J146: =I146*(G146+H146) -> 0 | K146: =+'Summary 1 -Res Mix'!C$51 -> 0
A147: ='Summary 1 -Res Mix'!D$10 -> 3 Bed Flat Low rise | B147: 0 | C147: 0 | D147: 0 | E147: 0 | F147: 0 | G147: =IF($D$8="Full term yield based on current rents",IF(B$99=0,0,+F147/B$99),+'C2 Value'!$L$147*F147) -> 0 | H147: 0 | I147: =+'Summary 1 -Res Mix'!D$47 -> 0 | J147: 0 | K147: =+'Summary 1 -Res Mix'!D$51 -> 0
A148: ='Summary 1 -Res Mix'!E$10 -> 4 Bed + Flat Low rise | B148: 0 | C148: 0 | D148: 0 | E148: 0 | F148: 0 | G148: =IF($D$8="Full term yield based on current rents",IF(B$99=0,0,+F148/B$99),+'C2 Value'!$L$147*F148) -> 0 | H148: 0 | I148: =+'Summary 1 -Res Mix'!E$47 -> 0 | J148: 0 | K148: =+'Summary 1 -Res Mix'!E$51 -> 0
A149: ='Summary 1 -Res Mix'!F$10 -> 1 Bed Flat High rise | B149: 0 | C149: 0 | D149: 0 | E149: 0 | F149: 0 | G149: =IF($D$8="Full term yield based on current rents",IF(B$99=0,0,+F149/B$99),+'C2 Value'!$L$147*F149) -> 0 | H149: 0 | I149: =+'Summary 1 -Res Mix'!F$47 -> 0 | J149: 0 | K149: =+'Summary 1 -Res Mix'!F$51 -> 0
A150: ='Summary 1 -Res Mix'!G$10 -> 2 Bed Flat High rise | B150: 0 | C150: 0 | D150: 0 | E150: 0 | F150: 0 | G150: =IF($D$8="Full term yield based on current rents",IF(B$99=0,0,+F150/B$99),+'C2 Value'!$L$147*F150) -> 0 | H150: 0 | I150: =+'Summary 1 -Res Mix'!G$47 -> 0 | J150: 0 | K150: =+'Summary 1 -Res Mix'!G$51 -> 0
A151: ='Summary 1 -Res Mix'!H$10 -> 3 Bed Flat High rise | B151: 0 | C151: 0 | D151: 0 | E151: 0 | F151: 0 | G151: =IF($D$8="Full term yield based on current rents",IF(B$99=0,0,+F151/B$99),+'C2 Value'!$L$147*F151) -> 0 | H151: 0 | I151: =+'Summary 1 -Res Mix'!H$47 -> 0 | J151: 0 | K151: =+'Summary 1 -Res Mix'!H$51 -> 0
A152: ='Summary 1 -Res Mix'!I$10 -> 4 Bed + Flat High rise | B152: 0 | C152: 0 | D152: 0 | E152: 0 | F152: 0 | G152: =IF($D$8="Full term yield based on current rents",IF(B$99=0,0,+F152/B$99),+'C2 Value'!$L$147*F152) -> 0 | H152: 0 | I152: =+'Summary 1 -Res Mix'!I$47 -> 0 | J152: 0 | K152: =+'Summary 1 -Res Mix'!I$51 -> 0
A153: ='Summary 1 -Res Mix'!J$10 -> 2 Bed House | B153: 0 | C153: 0 | D153: 0 | E153: 0 | F153: 0 | G153: =IF($D$8="Full term yield based on current rents",IF(B$99=0,0,+F153/B$99),+'C2 Value'!$L$147*F153) -> 0 | H153: 0 | I153: =+'Summary 1 -Res Mix'!J$47 -> 0 | J153: 0 | K153: =+'Summary 1 -Res Mix'!J$51 -> 0
A154: ='Summary 1 -Res Mix'!K$10 -> 3 Bed House | B154: 0 | C154: 0 | D154: 0 | E154: 0 | F154: 0 | G154: =IF($D$8="Full term yield based on current rents",IF(B$99=0,0,+F154/B$99),+'C2 Value'!$L$147*F154) -> 0 | H154: 0 | I154: =+'Summary 1 -Res Mix'!K$47 -> 0 | J154: 0 | K154: =+'Summary 1 -Res Mix'!K$51 -> 0
A155: ='Summary 1 -Res Mix'!L$10 -> 4 Bed + House | B155: 0 | C155: 0 | D155: 0 | E155: 0 | F155: 0 | G155: =IF($D$8="Full term yield based on current rents",IF(B$99=0,0,+F155/B$99),+'C2 Value'!$L$147*F155) -> 0 | H155: 0 | I155: =+'Summary 1 -Res Mix'!L$47 -> 0 | J155: 0 | K155: =+'Summary 1 -Res Mix'!L$51 -> 0
A156: ='Summary 1 -Res Mix'!M$10 -> 0 | B156: 0 | C156: 0 | D156: 0 | E156: 0 | F156: 0 | G156: =IF($D$8="Full term yield based on current rents",IF(B$99=0,0,+F156/B$99),+'C2 Value'!$L$147*F156) -> 0 | H156: 0 | I156: =+'Summary 1 -Res Mix'!M$47 -> 0 | J156: 0 | K156: =+'Summary 1 -Res Mix'!M$51 -> 0
A157: ='Summary 1 -Res Mix'!N$10 -> 0 | B157: 0 | C157: 0 | D157: 0 | E157: 0 | F157: 0 | G157: =IF($D$8="Full term yield based on current rents",IF(B$99=0,0,+F157/B$99),+'C2 Value'!$L$147*F157) -> 0 | H157: 0 | I157: =+'Summary 1 -Res Mix'!N$47 -> 0 | J157: 0 | K157: =+'Summary 1 -Res Mix'!N$51 -> 0
H158: =SUM(J145:J157) -> 0 | I158: =SUM(K145:K157) -> 0
A159: Owner Occupier share (%) | B159: 1 | D159: Rental Inflation | E159: 0.04
A161: Unsold Equity Rent pa (%) | B161: 0.0275 | C161: per annum
A163: Management Costs (% of rent) | B163: 0 | C163: per annum
A165: Voids / bad debts (% of rent) | B165: 0 | C165: per annum | D165: Total Annual Cost | E165: =+B163+B165 -> 0
A167: Rent Yield Capitalisation (%) | C167: per annum
A169: Est. staircasing % of full value (if any) | B169: =+B135 -> 0 | C169: =+B159+B169 -> 1 | D169: Forecast total % sold
A170: Average year of staircase | B170: =+B136 -> 0
A171: Estimated long term house inflation % | B171: =+B137 -> 0 | C171: =B171-Interest_Rate -> -0.06 | D171: implied real value growth (above rate of interest) | E171: =IF(C171<0,"house price inflation is set to make later staircasing less valuable than intial tranche!",) -> house price inflation is set to make later staircasing less valuable than intial tranche!
A172: Staircasing equivalent to initial tranche of | B172: =B169/(1-C171)^B170 -> 0 | C172: This inflates the present value of staircasing by the amount of 'real' houseprice inflation anticipated over the period
A173: Initial tranche plus staircasing estimate | B173: =+B172+B159 -> 1 | C173: Adding future estimated capital staircasing gain (if any) to initial tranche
A176: =+'Summary 1 -Res Mix'!A53 -> Shared Ownership phase 5
B177: This computation takes the rent, deducts costs, and capitalises the net income stream. An estimated adjustment is made for staircase assumptions (if any)
A178: Type of Unit | B178: 100% Share valuation | C178: Total Capital Value (£ psm, NIA) | D178: Gross Rent after costs (£ per Unit pa) | E178: Total Costs (£ per Unit pa) | F178: Total Net Rent after costs (£ per Unit pa) | G178: ="Capital value of net rental stream (£ per Unit) on "&$D$8&" basis" -> Capital value of net rental stream (£ per Unit) on Full term yield based on current rents basis | H178: Initial tranche plus est. staircasing value per unit | I178: Memo - Number of units | J178: Total capital value inc. staircasing (if any) | K178: Total sqm of units
A179: ='Summary 1 -Res Mix'!B$10 -> 1 Bed Flat Low rise | B179: 0 | C179: =IF(K179=0,0,+J179/K179) -> 0 | D179: =+((B179*B$195*(1-$B$207))) -> 0 | E179: =+(B179*(1-B$193)*B$195*B$199)+(B179*B$195*B$197) -> 0 | F179: =+D179-E179 -> 0 | G179: =IF($D$8="Full term yield based on current rents",IF(B$99=0,0,+F179/B$99),+'C2 Value'!$L$223*F179) -> 0 | H179: =+B179*$B$105 -> 0 | I179: =+'Summary 1 -Res Mix'!B$56 -> 0 | J179: =I179*(G179+H179) -> 0 | K179: =+'Summary 1 -Res Mix'!B$60 -> 0
A180: ='Summary 1 -Res Mix'!C$10 -> 2 Bed Flat Low rise | B180: 0 | C180: 0 | D180: =+((B180*B$195*(1-$B$207))) -> 0 | E180: =+(B180*(1-B$193)*B$195*B$199)+(B180*B$195*B$197) -> 0 | F180: =+D180-E180 -> 0 | G180: =IF($D$8="Full term yield based on current rents",IF(B$99=0,0,+F180/B$99),+'C2 Value'!$L$223*F180) -> 0 | H180: 0 | I180: =+'Summary 1 -Res Mix'!C$56 -> 0 | J180: =I180*(G180+H180) -> 0 | K180: =+'Summary 1 -Res Mix'!C$60 -> 0
A181: ='Summary 1 -Res Mix'!D$10 -> 3 Bed Flat Low rise | B181: 0 | C181: 0 | D181: 0 | E181: 0 | F181: 0 | G181: =IF($D$8="Full term yield based on current rents",IF(B$99=0,0,+F181/B$99),+'C2 Value'!$L$223*F181) -> 0 | H181: 0 | I181: =+'Summary 1 -Res Mix'!D$56 -> 0 | J181: 0 | K181: =+'Summary 1 -Res Mix'!D$60 -> 0
A182: ='Summary 1 -Res Mix'!E$10 -> 4 Bed + Flat Low rise | B182: 0 | C182: 0 | D182: 0 | E182: 0 | F182: 0 | G182: =IF($D$8="Full term yield based on current rents",IF(B$99=0,0,+F182/B$99),+'C2 Value'!$L$223*F182) -> 0 | H182: 0 | I182: =+'Summary 1 -Res Mix'!E$56 -> 0 | J182: 0 | K182: =+'Summary 1 -Res Mix'!E$60 -> 0
A183: ='Summary 1 -Res Mix'!F$10 -> 1 Bed Flat High rise | B183: 0 | C183: 0 | D183: 0 | E183: 0 | F183: 0 | G183: =IF($D$8="Full term yield based on current rents",IF(B$99=0,0,+F183/B$99),+'C2 Value'!$L$223*F183) -> 0 | H183: 0 | I183: =+'Summary 1 -Res Mix'!F$56 -> 0 | J183: 0 | K183: =+'Summary 1 -Res Mix'!F$60 -> 0
A184: ='Summary 1 -Res Mix'!G$10 -> 2 Bed Flat High rise | B184: 0 | C184: 0 | D184: 0 | E184: 0 | F184: 0 | G184: =IF($D$8="Full term yield based on current rents",IF(B$99=0,0,+F184/B$99),+'C2 Value'!$L$223*F184) -> 0 | H184: 0 | I184: =+'Summary 1 -Res Mix'!G$56 -> 0 | J184: 0 | K184: =+'Summary 1 -Res Mix'!G$60 -> 0
A185: ='Summary 1 -Res Mix'!H$10 -> 3 Bed Flat High rise | B185: 0 | C185: 0 | D185: 0 | E185: 0 | F185: 0 | G185: =IF($D$8="Full term yield based on current rents",IF(B$99=0,0,+F185/B$99),+'C2 Value'!$L$223*F185) -> 0 | H185: 0 | I185: =+'Summary 1 -Res Mix'!H$56 -> 0 | J185: 0 | K185: =+'Summary 1 -Res Mix'!H$60 -> 0
A186: ='Summary 1 -Res Mix'!I$10 -> 4 Bed + Flat High rise | B186: 0 | C186: 0 | D186: 0 | E186: 0 | F186: 0 | G186: =IF($D$8="Full term yield based on current rents",IF(B$99=0,0,+F186/B$99),+'C2 Value'!$L$223*F186) -> 0 | H186: 0 | I186: =+'Summary 1 -Res Mix'!I$56 -> 0 | J186: 0 | K186: =+'Summary 1 -Res Mix'!I$60 -> 0
A187: ='Summary 1 -Res Mix'!J$10 -> 2 Bed House | B187: 0 | C187: 0 | D187: 0 | E187: 0 | F187: 0 | G187: =IF($D$8="Full term yield based on current rents",IF(B$99=0,0,+F187/B$99),+'C2 Value'!$L$223*F187) -> 0 | H187: 0 | I187: =+'Summary 1 -Res Mix'!J$56 -> 0 | J187: 0 | K187: =+'Summary 1 -Res Mix'!J$60 -> 0
A188: ='Summary 1 -Res Mix'!K$10 -> 3 Bed House | B188: 0 | C188: 0 | D188: 0 | E188: 0 | F188: 0 | G188: =IF($D$8="Full term yield based on current rents",IF(B$99=0,0,+F188/B$99),+'C2 Value'!$L$223*F188) -> 0 | H188: 0 | I188: =+'Summary 1 -Res Mix'!K$56 -> 0 | J188: 0 | K188: =+'Summary 1 -Res Mix'!K$60 -> 0
A189: ='Summary 1 -Res Mix'!L$10 -> 4 Bed + House | B189: 0 | C189: 0 | D189: 0 | E189: 0 | F189: 0 | G189: =IF($D$8="Full term yield based on current rents",IF(B$99=0,0,+F189/B$99),+'C2 Value'!$L$223*F189) -> 0 | H189: 0 | I189: =+'Summary 1 -Res Mix'!L$56 -> 0 | J189: 0 | K189: =+'Summary 1 -Res Mix'!L$60 -> 0
A190: ='Summary 1 -Res Mix'!M$10 -> 0 | B190: 0 | C190: 0 | D190: 0 | E190: 0 | F190: 0 | G190: =IF($D$8="Full term yield based on current rents",IF(B$99=0,0,+F190/B$99),+'C2 Value'!$L$223*F190) -> 0 | H190: 0 | I190: =+'Summary 1 -Res Mix'!M$56 -> 0 | J190: 0 | K190: =+'Summary 1 -Res Mix'!M$60 -> 0
A191: ='Summary 1 -Res Mix'!N$10 -> 0 | B191: 0 | C191: 0 | D191: 0 | E191: 0 | F191: 0 | G191: =IF($D$8="Full term yield based on current rents",IF(B$99=0,0,+F191/B$99),+'C2 Value'!$L$223*F191) -> 0 | H191: 0 | I191: =+'Summary 1 -Res Mix'!N$56 -> 0 | J191: 0 | K191: =+'Summary 1 -Res Mix'!N$60 -> 0
H192: =SUM(J179:J191) -> 0 | I192: =SUM(K179:K191) -> 0
A193: Owner Occupier share (%) | B193: 1 | D193: Rental Inflation | E193: 0.04
A195: Unsold Equity Rent pa (%) | B195: 0.0275 | C195: per annum
A197: Management Costs (% of rent) | B197: 0 | C197: per annum
A199: Voids / bad debts (% of rent) | B199: 0 | C199: per annum | D199: Total Annual Cost | E199: =+B197+B199 -> 0
A201: Rent Yield Capitalisation (%) | C201: per annum
A203: Est. staircasing % of full value (if any) | B203: =+B169 -> 0 | C203: =+B193+B203 -> 1 | D203: Forecast total % sold
A204: Average year of staircase | B204: =+B170 -> 0
A205: Estimated long term house inflation % | B205: =+B171 -> 0 | C205: =B205-Interest_Rate -> -0.06 | D205: implied real value growth (above rate of interest) | E205: =IF(C205<0,"house price inflation is set to make later staircasing less valuable than intial tranche!",) -> house price inflation is set to make later staircasing less valuable than intial tranche!
A206: Staircasing equivalent to initial tranche of | B206: =B203/(1-C205)^B204 -> 0 | C206: This inflates the present value of staircasing by the amount of 'real' houseprice inflation anticipated over the period
A207: Initial tranche plus staircasing estimate | B207: =+B206+B193 -> 1 | C207: Adding future estimated capital staircasing gain (if any) to initial tranche
A209: ='Summary 1 -Res Mix'!A62 -> Affordable Rent phase 1
A210: Percentage of market rent | B210: 0.8
A211: Type of Unit | B211: 100% MARKET Rent per Unit per Week (£) | C211: Chargeable Rent per Unit per Week (£) | D211: Total Annual Rent (£ per Unit) | E211: Memo - Number of units | F211: ="Capital value of net rental stream on "&$D$8&" basis" -> Capital value of net rental stream on Full term yield based on current rents basis | G211: Assumed Capital Value (£ estimate)
A212: ='Summary 1 -Res Mix'!B$10 -> 1 Bed Flat Low rise | B212: 0 | C212: =B212*Percentage_of_market_rent -> 0 | D212: =IF(C212=0,"",C212*52) ->  | E212: =+'Summary 1 -Res Mix'!B65 -> 0 | F212: =IF($D$8="30 year with inflation per inputs below",'C2 Value'!I198,'C2 Value'!H198) -> 0 | G212: 0
A213: ='Summary 1 -Res Mix'!C$10 -> 2 Bed Flat Low rise | B213: 0 | C213: 0 | E213: =+'Summary 1 -Res Mix'!C65 -> 0 | F213: =IF($D$8="30 year with inflation per inputs below",'C2 Value'!I199,'C2 Value'!H199) -> 0 | G213: 0
A214: ='Summary 1 -Res Mix'!D$10 -> 3 Bed Flat Low rise | B214: 0 | C214: 0 | E214: =+'Summary 1 -Res Mix'!D65 -> 0 | F214: =IF($D$8="30 year with inflation per inputs below",'C2 Value'!I200,'C2 Value'!H200) -> 0 | G214: 0
A215: ='Summary 1 -Res Mix'!E$10 -> 4 Bed + Flat Low rise | B215: 0 | C215: 0 | E215: =+'Summary 1 -Res Mix'!E65 -> 0 | F215: =IF($D$8="30 year with inflation per inputs below",'C2 Value'!I201,'C2 Value'!H201) -> 0 | G215: 0
A216: ='Summary 1 -Res Mix'!F$10 -> 1 Bed Flat High rise | B216: 0 | C216: 0 | E216: =+'Summary 1 -Res Mix'!F65 -> 0 | F216: =IF($D$8="30 year with inflation per inputs below",'C2 Value'!I202,'C2 Value'!H202) -> 0 | G216: 0
A217: ='Summary 1 -Res Mix'!G$10 -> 2 Bed Flat High rise | B217: 0 | C217: 0 | E217: =+'Summary 1 -Res Mix'!G$65 -> 0 | F217: =IF($D$8="30 year with inflation per inputs below",'C2 Value'!I203,'C2 Value'!H203) -> 0 | G217: 0
A218: ='Summary 1 -Res Mix'!H$10 -> 3 Bed Flat High rise | B218: 0 | C218: 0 | E218: =+'Summary 1 -Res Mix'!H$65 -> 0 | F218: =IF($D$8="30 year with inflation per inputs below",'C2 Value'!I204,'C2 Value'!H204) -> 0 | G218: 0
A219: ='Summary 1 -Res Mix'!I$10 -> 4 Bed + Flat High rise | B219: 0 | C219: 0 | E219: =+'Summary 1 -Res Mix'!I$65 -> 0 | F219: =IF($D$8="30 year with inflation per inputs below",'C2 Value'!I205,'C2 Value'!H205) -> 0 | G219: 0
A220: ='Summary 1 -Res Mix'!J$10 -> 2 Bed House | B220: 0 | C220: 0 | E220: =+'Summary 1 -Res Mix'!J$65 -> 0 | F220: =IF($D$8="30 year with inflation per inputs below",'C2 Value'!I206,'C2 Value'!H206) -> 0 | G220: 0
A221: ='Summary 1 -Res Mix'!K$10 -> 3 Bed House | B221: 0 | C221: 0 | E221: =+'Summary 1 -Res Mix'!K$65 -> 0 | F221: =IF($D$8="30 year with inflation per inputs below",'C2 Value'!I207,'C2 Value'!H207) -> 0 | G221: 0
A222: ='Summary 1 -Res Mix'!L$10 -> 4 Bed + House | B222: 0 | C222: 0 | E222: =+'Summary 1 -Res Mix'!L$65 -> 0 | F222: =IF($D$8="30 year with inflation per inputs below",'C2 Value'!I208,'C2 Value'!H208) -> 0 | G222: 0
A223: ='Summary 1 -Res Mix'!M$10 -> 0 | B223: 0 | C223: 0 | E223: =+'Summary 1 -Res Mix'!M$65 -> 0 | F223: =IF($D$8="30 year with inflation per inputs below",'C2 Value'!I209,'C2 Value'!H209) -> 0 | G223: 0
A224: ='Summary 1 -Res Mix'!N$10 -> 0 | B224: 0 | C224: 0 | E224: =+'Summary 1 -Res Mix'!N65 -> 0 | F224: =IF($D$8="30 year with inflation per inputs below",'C2 Value'!I210,'C2 Value'!H210) -> 0 | G224: 0
B225: Notice that where affordable rents are higher than Social rentas then the cost percentages should be lower | F225: =SUM(F212:F224) -> 0
A226: Man. Costs (% of AFFORDABLE rent) | C226: per annum | D226: Rental Inflation | E226: =+D9+0.5% -> 0.03
A228: Voids / bad debts (% of AR) | C228: per annum
A230: Repairs Fund (% of AR) | C230: per annum | D230: Total Annual Cost | E230: =+B226+B228+B230 -> 0
A232: Rent Yield Capitalisation (%)
A235: =+'Summary 1 -Res Mix'!A71 -> Affordable Rent phase 2
A236: Percentage of market rent | B236: 0.8
A237: Type of Unit | B237: Chargeable Rent per Unit per Week (£) | C237: Chargeable Rent per Unit per Week (£) | D237: Total Annual Rent (£ per Unit) | E237: Memo - Number of units | F237: ="Capital value of net rental stream on "&$D$8&" basis" -> Capital value of net rental stream on Full term yield based on current rents basis | G237: Assumed Capital Value (£ estimate)
A238: ='Summary 1 -Res Mix'!B$10 -> 1 Bed Flat Low rise | B238: 0 | C238: =B238*Percentage_of_market_rent -> 0 | D238: =IF(C238=0,"",C238*52) ->  | E238: =+'Summary 1 -Res Mix'!B74 -> 0 | F238: =IF($D$8="30 year with inflation per inputs below",'C2 Value'!I230,'C2 Value'!H230) -> 0 | G238: 0
A239: ='Summary 1 -Res Mix'!C$10 -> 2 Bed Flat Low rise | B239: 0 | C239: 0 | E239: =+'Summary 1 -Res Mix'!C74 -> 0 | F239: =IF($D$8="30 year with inflation per inputs below",'C2 Value'!I231,'C2 Value'!H231) -> 0 | G239: 0
A240: ='Summary 1 -Res Mix'!D$10 -> 3 Bed Flat Low rise | B240: 0 | C240: 0 | E240: =+'Summary 1 -Res Mix'!D74 -> 0 | F240: =IF($D$8="30 year with inflation per inputs below",'C2 Value'!I232,'C2 Value'!H232) -> 0 | G240: 0
A241: ='Summary 1 -Res Mix'!E$10 -> 4 Bed + Flat Low rise | B241: 0 | C241: 0 | E241: =+'Summary 1 -Res Mix'!E74 -> 0 | F241: =IF($D$8="30 year with inflation per inputs below",'C2 Value'!I233,'C2 Value'!H233) -> 0 | G241: 0
A242: ='Summary 1 -Res Mix'!F$10 -> 1 Bed Flat High rise | B242: 0 | C242: 0 | E242: =+'Summary 1 -Res Mix'!F74 -> 0 | F242: =IF($D$8="30 year with inflation per inputs below",'C2 Value'!I234,'C2 Value'!H234) -> 0 | G242: 0
A243: ='Summary 1 -Res Mix'!G$10 -> 2 Bed Flat High rise | B243: 0 | C243: 0 | E243: =+'Summary 1 -Res Mix'!G74 -> 0 | F243: =IF($D$8="30 year with inflation per inputs below",'C2 Value'!I235,'C2 Value'!H235) -> 0 | G243: 0
A244: ='Summary 1 -Res Mix'!H$10 -> 3 Bed Flat High rise | B244: 0 | C244: 0 | E244: =+'Summary 1 -Res Mix'!H74 -> 0 | F244: =IF($D$8="30 year with inflation per inputs below",'C2 Value'!I236,'C2 Value'!H236) -> 0 | G244: 0
A245: ='Summary 1 -Res Mix'!I$10 -> 4 Bed + Flat High rise | B245: 0 | C245: 0 | E245: =+'Summary 1 -Res Mix'!I74 -> 0 | F245: =IF($D$8="30 year with inflation per inputs below",'C2 Value'!I237,'C2 Value'!H237) -> 0 | G245: 0
A246: ='Summary 1 -Res Mix'!J$10 -> 2 Bed House | B246: 0 | C246: 0 | E246: =+'Summary 1 -Res Mix'!J74 -> 0 | F246: =IF($D$8="30 year with inflation per inputs below",'C2 Value'!I238,'C2 Value'!H238) -> 0 | G246: 0
A247: ='Summary 1 -Res Mix'!K$10 -> 3 Bed House | B247: 0 | C247: 0 | E247: =+'Summary 1 -Res Mix'!K74 -> 0 | F247: =IF($D$8="30 year with inflation per inputs below",'C2 Value'!I239,'C2 Value'!H239) -> 0 | G247: 0
A248: ='Summary 1 -Res Mix'!L$10 -> 4 Bed + House | B248: 0 | C248: 0 | E248: =+'Summary 1 -Res Mix'!L74 -> 0 | F248: =IF($D$8="30 year with inflation per inputs below",'C2 Value'!I240,'C2 Value'!H240) -> 0 | G248: 0
A249: ='Summary 1 -Res Mix'!M$10 -> 0 | B249: 0 | C249: 0 | E249: =+'Summary 1 -Res Mix'!M74 -> 0 | F249: =IF($D$8="30 year with inflation per inputs below",'C2 Value'!I241,'C2 Value'!H241) -> 0 | G249: 0
... 259 more rows

Sheet Input 3 -Res Phasing
A1: =+'Input 1 -Site'!A1 -> Surplus/Deficit after allowing for present value of deferred land payments | C1: =+'Input 1 -Site'!F1 -> 4,342,139
A3: =+"HCA "&'- Cover -'!$A$2&'- Cover -'!$A$3 -> HCA DevelopmentAppraisal Tool
A4: INPUT SHEET 3 - PHASING
D6: Month number
A7: Date of scheme appraisal | B7: =+'Input 1 -Site'!B17 -> 2020-01-01 | C7: from Site Sheet | D7: 0
A9: Overall Scheme End Month
B10: Date | D10: Month number
A11: Final End Month of Scheme | B11: =MAX(C17:C41,C45,C46:C55,C59:C63,C67:C71,B74,'Input4 -Other Funding'!C14:C18,'Input 5 -Res Costs'!E86:E139,'Input 5 -Res Costs'!E142:E148,'Input 5 -Res Costs'!D152,'Input 5 -Res Costs'!E156:E171,'Input 5 -Res Costs'!E186,'Input 5 -Res Costs'!E200:E202,'Input 6 - Non Res'!B25:B26,'Input 6 - Non Res'!B56:B57,'Input 6 - Non Res'!B86:B87,'Input 6 - Non Res'!B117:B118,'Input 6 - Non Res'!B148:B149,'Input 1 -Site'!K28:K41) -> 2033-03-31 | D11: =+ROUND((B11-B7)/30.5,0) -> 159 | E11: =IF(D11>0,"scheme built and fully let/sold",0) -> scheme built and fully let/sold | F11: =IF(MAX(B17:B74,'Input 5 -Res Costs'!D86:D203)=0,0,IF(MAX(B17:B74,'Input 5 -Res Costs'!D86:D203)>Scheme_End,"There is a date later than scheme end in the input data",)) -> 0
B13: Use any valid Excel Date format (eg DD/MM/YY)
A15: Build Period | B15: Construction Start Date | C15: Construction End Date | D15: Construction Start Month no. | E15: Construction End Month no. | G15: No. of units in tenure
B16: Tenure phases display for date input only after transfer from Input 2 sheet
A17: =+'C0 Cashflow'!A$15&" ph 1" -> Affordable Low rise flats ph 1 | D17: =IF(ISBLANK(B17),,ROUND((B17-$B$7)/30.5,0)) -> 0 | E17: 0 | F17: =IF(AND(NOT(D17>0),B17>0),"Error, 31 day lead in required","") ->  | G17: =SUM('Summary 1 -Res Mix'!B$11:E$11)+SUM('Summary 1 -Res Mix'!B$20:E$20)+SUM('Summary 1 -Res Mix'!B$65:E$65) -> 0
A18: =+'C0 Cashflow'!A$18&" ph 1" -> Affordable High rise flats ph 1 | D18: 0 | E18: 0 | F18: =IF(AND(NOT(D18>0),B18>0),"Error, 31 day lead in required","") ->  | G18: =SUM('Summary 1 -Res Mix'!F$11:I$11)+SUM('Summary 1 -Res Mix'!F$20:I$20)+SUM('Summary 1 -Res Mix'!F$65:I$65) -> 0
A19: =+'C0 Cashflow'!A$21&" ph 1" -> Affordable Houses ph 1 | D19: 0 | E19: 0 | G19: =SUM('Summary 1 -Res Mix'!J$11:N$11)+SUM('Summary 1 -Res Mix'!J$20:N$20)+SUM('Summary 1 -Res Mix'!J$65:N$65) -> 0
A20: =+'C0 Cashflow'!A$15&" ph 2" -> Affordable Low rise flats ph 2 | D20: =IF(ISBLANK(B20),,ROUND((B20-$B$7)/30.5,0)) -> 0 | E20: 0 | G20: =SUM('Summary 1 -Res Mix'!B$29:E$29)+SUM('Summary 1 -Res Mix'!B$74:E$74) -> 0
A21: =+'C0 Cashflow'!A$18&" ph 2" -> Affordable High rise flats ph 2 | D21: 0 | E21: 0 | G21: =SUM('Summary 1 -Res Mix'!F$29:I$29)+SUM('Summary 1 -Res Mix'!F$74:I$74) -> 0
A22: =+'C0 Cashflow'!A$21&" ph 2" -> Affordable Houses ph 2 | D22: 0 | E22: 0 | G22: =SUM('Summary 1 -Res Mix'!J$29:N$29)+SUM('Summary 1 -Res Mix'!J$74:N$74) -> 0
A23: =+'C0 Cashflow'!A$15&" ph 3" -> Affordable Low rise flats ph 3 | D23: =IF(ISBLANK(B23),,ROUND((B23-$B$7)/30.5,0)) -> 0 | E23: =IF(ISBLANK(C23),,ROUND((C23-$B$7)/30.5,0)) -> 0 | G23: =SUM('Summary 1 -Res Mix'!B$38:E$38)+SUM('Summary 1 -Res Mix'!B$83:E$83) -> 0
A24: =+'C0 Cashflow'!A$18&" ph 3" -> Affordable High rise flats ph 3 | D24: 0 | E24: 0 | G24: =SUM('Summary 1 -Res Mix'!F$38:I$38)+SUM('Summary 1 -Res Mix'!F$83:I$83) -> 0
A25: =+'C0 Cashflow'!A$21&" ph 3" -> Affordable Houses ph 3 | D25: 0 | E25: 0 | G25: =SUM('Summary 1 -Res Mix'!J$38:N$38)+SUM('Summary 1 -Res Mix'!J$83:N$83) -> 0
A26: =+'C0 Cashflow'!A$15&" ph 4" -> Affordable Low rise flats ph 4 | D26: 0 | E26: 0 | G26: =SUM('Summary 1 -Res Mix'!B$47:E$47)+SUM('Summary 1 -Res Mix'!B$92:E$92) -> 0
A27: =+'C0 Cashflow'!A$18&" ph 4" -> Affordable High rise flats ph 4 | D27: 0 | E27: 0 | G27: =SUM('Summary 1 -Res Mix'!F$47:I$47)+SUM('Summary 1 -Res Mix'!F$92:I$92) -> 0
A28: =+'C0 Cashflow'!A$21&" ph 4" -> Affordable Houses ph 4 | D28: 0 | E28: 0 | G28: =SUM('Summary 1 -Res Mix'!J$47:N$47)+SUM('Summary 1 -Res Mix'!J$92:N$92) -> 0
A29: =+'C0 Cashflow'!A$15&" ph 5" -> Affordable Low rise flats ph 5 | D29: 0 | E29: 0 | G29: =SUM('Summary 1 -Res Mix'!B$56:E$56)+SUM('Summary 1 -Res Mix'!B$101:E$101) -> 0
A30: =+'C0 Cashflow'!A$18&" ph 5" -> Affordable High rise flats ph 5 | D30: 0 | E30: 0 | G30: =SUM('Summary 1 -Res Mix'!F$56:I$56)+SUM('Summary 1 -Res Mix'!F$101:I$101) -> 0
A31: =+'C0 Cashflow'!A$21&" ph 5" -> Affordable Houses ph 5 | D31: 0 | E31: 0 | G31: =SUM('Summary 1 -Res Mix'!J$56:N$56)+SUM('Summary 1 -Res Mix'!J$101:N$101) -> 0
A32: =+"OM "&RIGHT('Summary 1 -Res Mix'!A$107,2)&'Summary 1 -Res Mix'!B$107 -> OM 1:Phase 1 | B32: 2021-08-01 | C32: 2032-12-30 | D32: 19 | E32: 156 | G32: =+'Summary 1 -Res Mix'!O110 -> 170
A33: =+"OM "&RIGHT('Summary 1 -Res Mix'!A$116,2)&'Summary 1 -Res Mix'!B$116 -> OM 2:Phase 2 | D33: =IF(ISBLANK(B33),,ROUND((B33-$B$7)/30.5,0)) -> 0 | E33: 0 | G33: =+'Summary 1 -Res Mix'!O119 -> 0
A34: =+"OM "&RIGHT('Summary 1 -Res Mix'!A$125,2)&'Summary 1 -Res Mix'!B$125 -> OM 3:Phase 3 | D34: 0 | E34: 0 | G34: =+'Summary 1 -Res Mix'!O128 -> 0
A35: =+"OM "&RIGHT('Summary 1 -Res Mix'!A$134,2)&'Summary 1 -Res Mix'!B$134 -> OM 4:Phase 4 | D35: 0 | E35: 0 | G35: =+'Summary 1 -Res Mix'!O137 -> 0
A36: =+"OM "&RIGHT('Summary 1 -Res Mix'!A$143,2)&'Summary 1 -Res Mix'!B$143 -> OM 5:Phase 5 | D36: 0 | E36: 0 | G36: =+'Summary 1 -Res Mix'!O146 -> 0
A37: ='Summary 1 -Res Mix'!A152&" "&'Summary 1 -Res Mix'!B152 -> Private Rental 1 Phase 1 | D37: 0 | E37: 0 | G37: =+'Summary 1 -Res Mix'!O155 -> 0
A38: ='Summary 1 -Res Mix'!A161&" "&'Summary 1 -Res Mix'!B161 -> Private Rental 2 Phase 2 | D38: 0 | E38: 0 | G38: =+'Summary 1 -Res Mix'!O164 -> 0
A39: ='Summary 1 -Res Mix'!A170&" "&'Summary 1 -Res Mix'!B170 -> Private Rental 3 Phase 3 | D39: =IF(ISBLANK(B39),,ROUND((B39-$B$7)/30.5,0)) -> 0 | E39: =IF(ISBLANK(C39),,ROUND((C39-$B$7)/30.5,0)) -> 0 | G39: =+'Summary 1 -Res Mix'!O173 -> 0
A40: ='Summary 1 -Res Mix'!A179&" "&'Summary 1 -Res Mix'!B179 -> Private Rental 4 Phase 4 | D40: 0 | E40: 0 | G40: =+'Summary 1 -Res Mix'!O182 -> 0
A41: ='Summary 1 -Res Mix'!A188&" "&'Summary 1 -Res Mix'!B188 -> Private Rental 5 Phase 5 | D41: 0 | E41: 0 | G41: =+'Summary 1 -Res Mix'!O191 -> 0
A43: RP Purchase from Developer | B43: Purchase start date | C43: Purchase end date | D43: Start Month | E43: End Month | G43: No. of units in tenure
B44: AH phases display for date input only after transfer from Input 2 sheet
A45: ='Summary 2 -Res Values'!A11 -> Social Rented | D45: =IF(ISBLANK(B45),,ROUND((B45-$B$7)/30.5,0)) -> 0 | E45: =IF(ISBLANK(C45),,ROUND((C45-$B$7)/30.5,0)) -> 0 | G45: =+'Summary 1 -Res Mix'!O$11 -> 0
A46: ='Summary 2 -Res Values'!A40 -> Shared Ownership phase 1 | D46: =IF(ISBLANK(B46),,+ROUND((B46-$B$7)/30.5,0)) -> 0 | E46: 0 | G46: =+'Summary 1 -Res Mix'!O20 -> 0
A47: ='Summary 2 -Res Values'!A74 -> Shared Ownership phase 2 | D47: 0 | E47: 0 | G47: =+'Summary 1 -Res Mix'!O29 -> 0
A48: ='Summary 2 -Res Values'!A108 -> Shared Ownership phase 3 | D48: =IF(ISBLANK(B48),,+ROUND((B48-$B$7)/30.5,0)) -> 0 | E48: =IF(ISBLANK(C48),,+ROUND((C48-$B$7)/30.5,0)) -> 0 | G48: =+'Summary 1 -Res Mix'!O38 -> 0
A49: ='Summary 2 -Res Values'!A142 -> Shared Ownership phase 4 | D49: 0 | E49: 0 | G49: =+'Summary 1 -Res Mix'!O47 -> 0
A50: ='Summary 2 -Res Values'!A176 -> Shared Ownership phase 5 | D50: 0 | E50: 0 | G50: =+'Summary 1 -Res Mix'!O56 -> 0
A51: ='Summary 2 -Res Values'!A209 -> Affordable Rent phase 1 | D51: 0 | E51: 0 | G51: =+'Summary 1 -Res Mix'!O65 -> 0
A52: ='Summary 2 -Res Values'!A235 -> Affordable Rent phase 2 | D52: 0 | E52: 0 | G52: =+'Summary 1 -Res Mix'!O74 -> 0
A53: ='Summary 2 -Res Values'!A261 -> Affordable Rent phase 3 | D53: =IF(ISBLANK(B53),,+ROUND((B53-$B$7)/30.5,0)) -> 0 | E53: =IF(ISBLANK(C53),,+ROUND((C53-$B$7)/30.5,0)) -> 0 | G53: =+'Summary 1 -Res Mix'!O83 -> 0
A54: ='Summary 2 -Res Values'!A287 -> Affordable Rent phase 4 | D54: 0 | E54: 0 | G54: =+'Summary 1 -Res Mix'!O92 -> 0
A55: ='Summary 2 -Res Values'!A313 -> Affordable Rent phase 5 | D55: 0 | E55: 0 | G55: =+'Summary 1 -Res Mix'!O101 -> 0
A57: Open Market Sale | B57: Sale Start Date | C57: Sale End Date | D57: Start Month | E57: End Month | G57: No. of units in tenure | H57: Monthly Sales rate
B58: OM phases display for date input only after transfer from Input 2 sheet
A59: =+"OM Sales"&RIGHT('Summary 1 -Res Mix'!A$107,2)&'Summary 1 -Res Mix'!B$107 -> OM Sales1:Phase 1 | B59: 2022-04-01 | C59: 2033-03-31 | D59: =IF(ISBLANK(B59),,+ROUND((B59-$B$7)/30.5,0)) -> 27 | E59: 159 | F59: =IF(H59>4,"High Sales rate assumed",0) -> 0 | G59: =+'Summary 1 -Res Mix'!O110 -> 170 | H59: =IF(E59=0,0,+G59/(E59-D59+1)) -> 1.278195489
A60: =+"OM Sales"&RIGHT('Summary 1 -Res Mix'!A$116,2)&'Summary 1 -Res Mix'!B$116 -> OM Sales2:Phase 2 | D60: 0 | E60: 0 | F60: =IF(H60>4,"High Sales rate assumed",0) -> 0 | G60: =+'Summary 1 -Res Mix'!O119 -> 0 | H60: =IF(E60=0,0,+G60/(E60-D60+1)) -> 0
A61: =+"OM Sales"&RIGHT('Summary 1 -Res Mix'!A$125,2)&'Summary 1 -Res Mix'!B$125 -> OM Sales3:Phase 3 | D61: 0 | E61: 0 | F61: =IF(H61>4,"High Sales rate assumed",0) -> 0 | G61: ='Summary 1 -Res Mix'!O128 -> 0 | H61: =IF(E61=0,0,+G61/(E61-D61+1)) -> 0
A62: =+"OM Sales"&RIGHT('Summary 1 -Res Mix'!A$134,2)&'Summary 1 -Res Mix'!B$134 -> OM Sales4:Phase 4 | D62: 0 | E62: 0 | F62: =IF(H62>4,"High Sales rate assumed",0) -> 0 | G62: ='Summary 1 -Res Mix'!O137 -> 0 | H62: =IF(E62=0,0,+G62/(E62-D62+1)) -> 0
A63: =+"OM Sales"&RIGHT('Summary 1 -Res Mix'!A$143,2)&'Summary 1 -Res Mix'!B$143 -> OM Sales5:Phase 5 | D63: 0 | E63: 0 | F63: =IF(H63>4,"High Sales rate assumed",0) -> 0 | G63: ='Summary 1 -Res Mix'!O146 -> 0 | H63: =IF(E63=0,0,+G63/(E63-D63+1)) -> 0
A65: Private Rental Units | B65: First Rental Start Date | C65: Final Rental Start Date | D65: Start Month | E65: End Month | G65: No. of units in tenure
B66: PR phases display for date input only after transfer from Input 2 sheet
A67: =+'Summary 1 -Res Mix'!A152&'Summary 1 -Res Mix'!B$152 -> Private Rental 1Phase 1 | D67: =IF(ISBLANK(B67),,+ROUND((B67-$B$7)/30.5,0)) -> 0 | E67: =IF(ISBLANK(C67),,+ROUND((C67-$B$7)/30.5,0)) -> 0 | G67: =+'Summary 1 -Res Mix'!O155 -> 0
A68: =+'Summary 1 -Res Mix'!A161&'Summary 1 -Res Mix'!B$161 -> Private Rental 2Phase 2 | D68: =IF(ISBLANK(B68),,+ROUND((B68-$B$7)/30.5,0)) -> 0 | E68: =IF(ISBLANK(C68),,+ROUND((C68-$B$7)/30.5,0)) -> 0 | G68: =+'Summary 1 -Res Mix'!O164 -> 0
A69: =+'Summary 1 -Res Mix'!A170&'Summary 1 -Res Mix'!B$170 -> Private Rental 3Phase 3 | D69: =IF(ISBLANK(B69),,+ROUND((B69-$B$7)/30.5,0)) -> 0 | E69: =IF(ISBLANK(C69),,+ROUND((C69-$B$7)/30.5,0)) -> 0 | G69: =+'Summary 1 -Res Mix'!O173 -> 0
A70: =+'Summary 1 -Res Mix'!A179&'Summary 1 -Res Mix'!B$179 -> Private Rental 4Phase 4 | D70: 0 | E70: 0 | G70: =+'Summary 1 -Res Mix'!O182 -> 0
A71: =+'Summary 1 -Res Mix'!A188&'Summary 1 -Res Mix'!B$188 -> Private Rental 5Phase 5 | D71: 0 | E71: 0 | G71: =+'Summary 1 -Res Mix'!O191 -> 0
B73: Start Date | C73: Month | G73: =G74 -> 0
A74: First Ground rent payment | C74: =IF(ISBLANK(B74),,+ROUND((B74-$B$7)/30.5,0)) -> 0 | G74: =SUM('Summary 2 -Res Values'!C554:C558) -> 0

Sheet Input4 -Other Funding
A1: =+'Input 1 -Site'!A1 -> Surplus/Deficit after allowing for present value of deferred land payments | C1: =+'Input 1 -Site'!F1 -> 4,342,139
A3: =+"HCA "&'- Cover -'!$A$2&'- Cover -'!$A$3 -> HCA DevelopmentAppraisal Tool
A4: INPUT SHEET 4 - OTHER FUNDING
A5: Note: Social Housing Grant is not an input in DAT. It will be assessed in relation to this nil grant case.
A9: Other sources of funding
B10: Must be between | C10: =+'Input 3 -Res Phasing'!B7 -> 2020-01-01
B11: and | C11: =+Scheme_End -> 2033-03-31
B13: Value (£) | C13: Date of receipt | D13: Month of payment
A14: RP Cross Subsidy (use of own assets) | D14: =IF(ISBLANK(C14),,+ROUND((C14-'Input 3 -Res Phasing'!B$7)/30.5,0)) -> 0 | E14: Implied Present Value of Affordable Housing | G14: =IF(Interest_Rate=0,"interest rate missing",+'C2 Value'!H356+B14/(1+Interest_Rate)^(D14/12)) -> 0
A15: LA s106 commuted in lieu | D15: =IF(ISBLANK(C15),,+ROUND((C15-'Input 3 -Res Phasing'!B$7)/30.5,0)) -> 0
A16: RP Re-cycled SHG | D16: =IF(ISBLANK(C16),,+ROUND((C16-'Input 3 -Res Phasing'!B$7)/30.5,0)) -> 0
A17: Use of AR rent conversion income | D17: =IF(ISBLANK(C17),,+ROUND((C17-'Input 3 -Res Phasing'!B$7)/30.5,0)) -> 0
A18: Other source of AH funding | D18: =IF(ISBLANK(C18),,+ROUND((C18-'Input 3 -Res Phasing'!B$7)/30.5,0)) -> 0

Sheet Input 5 -Res Costs
A1: =+'Input 1 -Site'!A1 -> Surplus/Deficit after allowing for present value of deferred land payments | C1: =+'Input 1 -Site'!F1 -> 4,342,139
A3: =+"HCA "&'- Cover -'!$A$2&'- Cover -'!$A$3 -> HCA DevelopmentAppraisal Tool
A4: INPUT SHEET 5 - RESIDENTIAL COSTS
A6: BUILDING COST, MARKETING COST & SECTION 106 ASSUMPTIONS
C10: Building Cost £ per Sq m GROSS area | D10: Net to Gross Adjustment | F10: Maximum height in floors (flats only) | G10: Memo- Number of units | H10: Avg Cost pu | I10: Average unit size | J10: Gross Area (sq m) | K10: Build Cost to per Sq m
B11: Tenure phases display for Build Cost | C11: Input only after tfr from | D11: Input 2 sheet
A12: ='Summary 1 -Res Mix'!A$8 -> Social Rented | B12: =" Low rise flats" -> Low rise flats | G12: =SUM('Summary 1 -Res Mix'!B$11:E$11) -> 0 | H12: =+I12*K12 -> 0 | I12: =IF(SUM('Summary 1 -Res Mix'!B$11:E$11)=0,0,SUM('Summary 1 -Res Mix'!B$15:E$15)/SUM('Summary 1 -Res Mix'!B$11:E$11)) -> 0 | J12: =+(I12*G12)/(1-D12) -> 0 | K12: =IF($C$10="Building Cost £ per Sq FT GROSS area",C12*10.76,C12) -> 0
A13: ='Summary 1 -Res Mix'!A$8 -> Social Rented | B13: =" High rise flats" -> High rise flats | G13: =SUM('Summary 1 -Res Mix'!F$11:I$11) -> 0 | H13: 0 | I13: =IF(SUM('Summary 1 -Res Mix'!F$11:I$11)=0,0,SUM('Summary 1 -Res Mix'!F$15:I$15)/SUM('Summary 1 -Res Mix'!F$11:I$11)) -> 0 | J13: =+(I13*G13)/(1-D13) -> 0 | K13: =IF($C$10="Building Cost £ per Sq FT GROSS area",C13*10.76,C13) -> 0
A14: ='Summary 1 -Res Mix'!A$8 -> Social Rented | B14: =" Houses" -> Houses | G14: =SUM('Summary 1 -Res Mix'!J$11:N$11) -> 0 | H14: 0 | I14: =IF(SUM('Summary 1 -Res Mix'!J$11:N$11)=0,0,SUM('Summary 1 -Res Mix'!J$15:N$15)/SUM('Summary 1 -Res Mix'!J$11:N$11)) -> 0 | J14: 0 | K14: 0
A15: ='Summary 1 -Res Mix'!A$17 -> Shared Ownership phase 1 | B15: =" Low rise flats" -> Low rise flats | G15: =SUM('Summary 1 -Res Mix'!B$20:E$20) -> 0 | H15: 0 | I15: =IF(SUM('Summary 1 -Res Mix'!B$20:E$20)=0,0,SUM('Summary 1 -Res Mix'!B$24:E$24)/SUM('Summary 1 -Res Mix'!B$20:E$20)) -> 0 | J15: 0 | K15: 0
A16: ='Summary 1 -Res Mix'!A$17 -> Shared Ownership phase 1 | B16: =" High rise flats" -> High rise flats | G16: =SUM('Summary 1 -Res Mix'!F$20:I$20) -> 0 | H16: 0 | I16: =IF(SUM('Summary 1 -Res Mix'!F$20:I$20)=0,0,SUM('Summary 1 -Res Mix'!F$24:I$24)/SUM('Summary 1 -Res Mix'!F$20:I$20)) -> 0 | J16: 0 | K16: 0
A17: ='Summary 1 -Res Mix'!A$17 -> Shared Ownership phase 1 | B17: =" Houses" -> Houses | G17: =SUM('Summary 1 -Res Mix'!J$20:N$20) -> 0 | H17: 0 | I17: =IF(SUM('Summary 1 -Res Mix'!J$20:N$20)=0,0,SUM('Summary 1 -Res Mix'!J$24:N$24)/SUM('Summary 1 -Res Mix'!J$20:N$20)) -> 0 | J17: 0 | K17: 0
A18: ='Summary 1 -Res Mix'!A$26 -> Shared Ownership phase 2 | B18: =" Low rise flats" -> Low rise flats | G18: =SUM('Summary 1 -Res Mix'!B29:E29) -> 0 | H18: 0 | I18: =IF(SUM('Summary 1 -Res Mix'!B$29:E$29)=0,0,SUM('Summary 1 -Res Mix'!B$33:E$33)/SUM('Summary 1 -Res Mix'!B$29:E$29)) -> 0 | J18: 0 | K18: 0
A19: ='Summary 1 -Res Mix'!A$26 -> Shared Ownership phase 2 | B19: =" High rise flats" -> High rise flats | G19: =SUM('Summary 1 -Res Mix'!F29:I29) -> 0 | H19: 0 | I19: =IF(SUM('Summary 1 -Res Mix'!F$29:I$29)=0,0,SUM('Summary 1 -Res Mix'!F$33:I$33)/SUM('Summary 1 -Res Mix'!F$29:I$29)) -> 0 | J19: 0 | K19: 0
A20: ='Summary 1 -Res Mix'!A$26 -> Shared Ownership phase 2 | B20: =" Houses" -> Houses | G20: =SUM('Summary 1 -Res Mix'!J29:N29) -> 0 | H20: 0 | I20: =IF(SUM('Summary 1 -Res Mix'!J$29:N$29)=0,0,SUM('Summary 1 -Res Mix'!J$33:N$33)/SUM('Summary 1 -Res Mix'!J$29:N$29)) -> 0 | J20: 0 | K20: 0
A21: ='Summary 1 -Res Mix'!A$35 -> Shared Ownership phase 3 | B21: =" Low rise flats" -> Low rise flats | G21: =SUM('Summary 1 -Res Mix'!B$38:E$38) -> 0 | H21: =+I21*K21 -> 0 | I21: =IF(SUM('Summary 1 -Res Mix'!B$38:E$38)=0,0,SUM('Summary 1 -Res Mix'!B$42:E$42)/SUM('Summary 1 -Res Mix'!B$38:E$38)) -> 0 | J21: =+(I21*G21)/(1-D21) -> 0 | K21: =IF($C$10="Building Cost £ per Sq FT GROSS area",C21*10.76,C21) -> 0
A22: ='Summary 1 -Res Mix'!A$35 -> Shared Ownership phase 3 | B22: =" High rise flats" -> High rise flats | G22: =SUM('Summary 1 -Res Mix'!F$38:I$38) -> 0 | H22: 0 | I22: =IF(SUM('Summary 1 -Res Mix'!F$38:I$38)=0,0,SUM('Summary 1 -Res Mix'!F$42:I$42)/SUM('Summary 1 -Res Mix'!F$38:I$38)) -> 0 | J22: 0 | K22: 0
A23: ='Summary 1 -Res Mix'!A$35 -> Shared Ownership phase 3 | B23: =" Houses" -> Houses | G23: =SUM('Summary 1 -Res Mix'!J$38:N$38) -> 0 | H23: 0 | I23: =IF(SUM('Summary 1 -Res Mix'!J$38:N$38)=0,0,SUM('Summary 1 -Res Mix'!J$42:N$42)/SUM('Summary 1 -Res Mix'!J$38:N$38)) -> 0 | J23: 0 | K23: 0
A24: ='Summary 1 -Res Mix'!A$44 -> Shared Ownership phase 4 | B24: =" Low rise flats" -> Low rise flats | G24: =SUM('Summary 1 -Res Mix'!B$47:E$47) -> 0 | H24: =+I24*K24 -> 0 | I24: =IF(SUM('Summary 1 -Res Mix'!B$47:E$47)=0,0,SUM('Summary 1 -Res Mix'!B$51:E$51)/SUM('Summary 1 -Res Mix'!B$47:E$47)) -> 0 | J24: =+(I24*G24)/(1-D24) -> 0 | K24: =IF($C$10="Building Cost £ per Sq FT GROSS area",C24*10.76,C24) -> 0
A25: ='Summary 1 -Res Mix'!A$44 -> Shared Ownership phase 4 | B25: =" High rise flats" -> High rise flats | G25: =SUM('Summary 1 -Res Mix'!F$47:I$47) -> 0 | H25: 0 | I25: =IF(SUM('Summary 1 -Res Mix'!F$47:I$47)=0,0,SUM('Summary 1 -Res Mix'!F$51:I$51)/SUM('Summary 1 -Res Mix'!F$47:I$47)) -> 0 | J25: 0 | K25: 0
A26: ='Summary 1 -Res Mix'!A$44 -> Shared Ownership phase 4 | B26: =" Houses" -> Houses | G26: =SUM('Summary 1 -Res Mix'!J$47:N$47) -> 0 | H26: 0 | I26: =IF(SUM('Summary 1 -Res Mix'!J$47:N$47)=0,0,SUM('Summary 1 -Res Mix'!J$51:N$51)/SUM('Summary 1 -Res Mix'!J$47:N$47)) -> 0 | J26: 0 | K26: 0
A27: ='Summary 1 -Res Mix'!A$53 -> Shared Ownership phase 5 | B27: =" Low rise flats" -> Low rise flats | G27: =SUM('Summary 1 -Res Mix'!B$56:E$56) -> 0 | H27: =+I27*K27 -> 0 | I27: =IF(SUM('Summary 1 -Res Mix'!B$56:E$56)=0,0,SUM('Summary 1 -Res Mix'!B$60:E$60)/SUM('Summary 1 -Res Mix'!B$56:E$56)) -> 0 | J27: =+(I27*G27)/(1-D27) -> 0 | K27: =IF($C$10="Building Cost £ per Sq FT GROSS area",C27*10.76,C27) -> 0
A28: ='Summary 1 -Res Mix'!A$53 -> Shared Ownership phase 5 | B28: =" High rise flats" -> High rise flats | G28: =SUM('Summary 1 -Res Mix'!F$56:I$56) -> 0 | H28: 0 | I28: =IF(SUM('Summary 1 -Res Mix'!F$56:I$56)=0,0,SUM('Summary 1 -Res Mix'!F$60:I$60)/SUM('Summary 1 -Res Mix'!F$56:I$56)) -> 0 | J28: 0 | K28: 0
A29: ='Summary 1 -Res Mix'!A$53 -> Shared Ownership phase 5 | B29: =" Houses" -> Houses | G29: =SUM('Summary 1 -Res Mix'!J$56:N$56) -> 0 | H29: 0 | I29: =IF(SUM('Summary 1 -Res Mix'!J$56:N$56)=0,0,SUM('Summary 1 -Res Mix'!J$60:N$60)/SUM('Summary 1 -Res Mix'!J$56:N$56)) -> 0 | J29: 0 | K29: 0
A30: =+'Summary 1 -Res Mix'!A$62 -> Affordable Rent phase 1 | B30: =" Low rise flats" -> Low rise flats | G30: =SUM('Summary 1 -Res Mix'!B$65:E$65) -> 0 | H30: 0 | I30: =IF(SUM('Summary 1 -Res Mix'!B$65:E$65)=0,0,SUM('Summary 1 -Res Mix'!B$69:E$69)/SUM('Summary 1 -Res Mix'!B$65:E$65)) -> 0 | J30: 0 | K30: 0
A31: =+'Summary 1 -Res Mix'!A$62 -> Affordable Rent phase 1 | B31: =" High rise flats" -> High rise flats | G31: =SUM('Summary 1 -Res Mix'!F$65:I$65) -> 0 | H31: 0 | I31: =IF(SUM('Summary 1 -Res Mix'!F$65:I$65)=0,0,SUM('Summary 1 -Res Mix'!F$69:I$69)/SUM('Summary 1 -Res Mix'!F$65:I$65)) -> 0 | J31: 0 | K31: 0
A32: =+'Summary 1 -Res Mix'!A$62 -> Affordable Rent phase 1 | B32: =" Houses" -> Houses | G32: =SUM('Summary 1 -Res Mix'!J$65:N$65) -> 0 | H32: 0 | I32: =IF(SUM('Summary 1 -Res Mix'!J$65:N$65)=0,0,SUM('Summary 1 -Res Mix'!J$69:N$69)/SUM('Summary 1 -Res Mix'!J$65:N$65)) -> 0 | J32: 0 | K32: 0
A33: =+'Summary 1 -Res Mix'!A$71 -> Affordable Rent phase 2 | B33: =" Low rise flats" -> Low rise flats | G33: =SUM('Summary 1 -Res Mix'!B$74:E$74) -> 0 | H33: 0 | I33: =IF(SUM('Summary 1 -Res Mix'!B$74:E$74)=0,0,SUM('Summary 1 -Res Mix'!B$78:E$78)/SUM('Summary 1 -Res Mix'!B$74:E$74)) -> 0 | J33: 0 | K33: 0
A34: =+'Summary 1 -Res Mix'!A$71 -> Affordable Rent phase 2 | B34: =" High rise flats" -> High rise flats | G34: =SUM('Summary 1 -Res Mix'!F$74:I$74) -> 0 | H34: 0 | I34: =IF(SUM('Summary 1 -Res Mix'!F$74:I$74)=0,0,SUM('Summary 1 -Res Mix'!F$78:I$78)/SUM('Summary 1 -Res Mix'!F$74:I$74)) -> 0 | J34: 0 | K34: 0
A35: =+'Summary 1 -Res Mix'!A$71 -> Affordable Rent phase 2 | B35: =" Houses" -> Houses | G35: =SUM('Summary 1 -Res Mix'!J$74:N$74) -> 0 | H35: 0 | I35: =IF(SUM('Summary 1 -Res Mix'!J$74:N$74)=0,0,SUM('Summary 1 -Res Mix'!J$78:N$78)/SUM('Summary 1 -Res Mix'!J$74:N$74)) -> 0 | J35: 0 | K35: 0
A36: =+'Summary 1 -Res Mix'!A$80 -> Affordable Rent phase 3 | B36: =" Low rise flats" -> Low rise flats | G36: =SUM('Summary 1 -Res Mix'!B$83:E$83) -> 0 | H36: =+I36*K36 -> 0 | I36: =IF(SUM('Summary 1 -Res Mix'!B$83:E$83)=0,0,SUM('Summary 1 -Res Mix'!B$87:E$87)/SUM('Summary 1 -Res Mix'!B$83:E$83)) -> 0 | J36: =+(I36*G36)/(1-D36) -> 0 | K36: =IF($C$10="Building Cost £ per Sq FT GROSS area",C36*10.76,C36) -> 0
A37: =+'Summary 1 -Res Mix'!A$80 -> Affordable Rent phase 3 | B37: =" High rise flats" -> High rise flats | G37: =SUM('Summary 1 -Res Mix'!F$83:I$83) -> 0 | H37: 0 | I37: =IF(SUM('Summary 1 -Res Mix'!F$83:I$83)=0,0,SUM('Summary 1 -Res Mix'!F$87:I$87)/SUM('Summary 1 -Res Mix'!F$83:I$83)) -> 0 | J37: 0 | K37: 0
A38: =+'Summary 1 -Res Mix'!A$80 -> Affordable Rent phase 3 | B38: =" Houses" -> Houses | G38: =SUM('Summary 1 -Res Mix'!J$83:N$83) -> 0 | H38: 0 | I38: =IF(SUM('Summary 1 -Res Mix'!J$83:N$83)=0,0,SUM('Summary 1 -Res Mix'!J$87:N$87)/SUM('Summary 1 -Res Mix'!J$83:N$83)) -> 0 | J38: 0 | K38: 0
A39: =+'Summary 1 -Res Mix'!A$89 -> Affordable Rent phase 4 | B39: =" Low rise flats" -> Low rise flats | G39: =SUM('Summary 1 -Res Mix'!B$92:E$92) -> 0 | H39: =+I39*K39 -> 0 | I39: =IF(SUM('Summary 1 -Res Mix'!B$92:E$92)=0,0,SUM('Summary 1 -Res Mix'!B$96:E$96)/SUM('Summary 1 -Res Mix'!B$92:E$92)) -> 0 | J39: =+(I39*G39)/(1-D39) -> 0 | K39: =IF($C$10="Building Cost £ per Sq FT GROSS area",C39*10.76,C39) -> 0
A40: =+'Summary 1 -Res Mix'!A$89 -> Affordable Rent phase 4 | B40: =" High rise flats" -> High rise flats | G40: =SUM('Summary 1 -Res Mix'!F$92:I$92) -> 0 | H40: 0 | I40: =IF(SUM('Summary 1 -Res Mix'!F$92:I$92)=0,0,SUM('Summary 1 -Res Mix'!F$96:I$96)/SUM('Summary 1 -Res Mix'!F$92:I$92)) -> 0 | J40: 0 | K40: 0
A41: =+'Summary 1 -Res Mix'!A$89 -> Affordable Rent phase 4 | B41: =" Houses" -> Houses | G41: =SUM('Summary 1 -Res Mix'!J$92:N$92) -> 0 | H41: 0 | I41: =IF(SUM('Summary 1 -Res Mix'!J$92:N$92)=0,0,SUM('Summary 1 -Res Mix'!J$96:N$96)/SUM('Summary 1 -Res Mix'!J$92:N$92)) -> 0 | J41: 0 | K41: 0
A42: =+'Summary 1 -Res Mix'!A$98 -> Affordable Rent phase 5 | B42: =" Low rise flats" -> Low rise flats | G42: =SUM('Summary 1 -Res Mix'!B$101:E$101) -> 0 | H42: =+I42*K42 -> 0 | I42: =IF(SUM('Summary 1 -Res Mix'!B$101:E$101)=0,0,SUM('Summary 1 -Res Mix'!B$105:E$105)/SUM('Summary 1 -Res Mix'!B$101:E$101)) -> 0 | J42: =+(I42*G42)/(1-D42) -> 0 | K42: =IF($C$10="Building Cost £ per Sq FT GROSS area",C42*10.76,C42) -> 0
A43: =+'Summary 1 -Res Mix'!A$98 -> Affordable Rent phase 5 | B43: =" High rise flats" -> High rise flats | G43: =SUM('Summary 1 -Res Mix'!F$101:I$101) -> 0 | H43: 0 | I43: =IF(SUM('Summary 1 -Res Mix'!F$101:I$101)=0,0,SUM('Summary 1 -Res Mix'!F$105:I$105)/SUM('Summary 1 -Res Mix'!F$101:I$101)) -> 0 | J43: 0 | K43: 0
A44: =+'Summary 1 -Res Mix'!A$98 -> Affordable Rent phase 5 | B44: =" Houses" -> Houses | G44: =SUM('Summary 1 -Res Mix'!J$101:N$101) -> 0 | H44: 0 | I44: =IF(SUM('Summary 1 -Res Mix'!J$101:N$101)=0,0,SUM('Summary 1 -Res Mix'!J$105:N$105)/SUM('Summary 1 -Res Mix'!J$101:N$101)) -> 0 | J44: 0 | K44: 0
K45: 0
A46: ='C1 Mix'!A$112 -> Open Market Phase 1: | B46: =" Low rise flats" -> Low rise flats | G46: =SUM('Summary 1 -Res Mix'!B$110:E$110) -> 0 | H46: =+I46*K46 -> 0 | I46: =IF(SUM('Summary 1 -Res Mix'!B$110:E$110)=0,0,SUM('Summary 1 -Res Mix'!B$114:E$114)/SUM('Summary 1 -Res Mix'!B$110:E$110)) -> 0 | J46: 0 | K46: 0
A47: ='C1 Mix'!A$112 -> Open Market Phase 1: | B47: =" High rise flats" -> High rise flats | G47: =SUM('Summary 1 -Res Mix'!F$110:I$110) -> 0 | H47: 0 | I47: =IF(SUM('Summary 1 -Res Mix'!F$110:I$110)=0,0,SUM('Summary 1 -Res Mix'!F$114:I$114)/SUM('Summary 1 -Res Mix'!F$110:I$110)) -> 0 | J47: 0 | K47: 0
A48: ='C1 Mix'!A$112 -> Open Market Phase 1: | B48: =" Houses" -> Houses | C48: 1632.96 | G48: =SUM('Summary 1 -Res Mix'!J$110:N$110) -> 170 | H48: 184908.7059 | I48: =IF(SUM('Summary 1 -Res Mix'!J$110:N$110)=0,0,SUM('Summary 1 -Res Mix'!J$114:N$114)/SUM('Summary 1 -Res Mix'!J$110:N$110)) -> 113.2352941 | J48: 19250 | K48: 1632.96
A49: ='C1 Mix'!A$121 -> Open Market Phase 2: | B49: =" Low rise flats" -> Low rise flats | G49: =SUM('Summary 1 -Res Mix'!B$119:E$119) -> 0 | H49: 0 | I49: =IF(SUM('Summary 1 -Res Mix'!B$119:E$119)=0,0,SUM('Summary 1 -Res Mix'!B$123:E$123)/SUM('Summary 1 -Res Mix'!B$119:E$119)) -> 0 | J49: 0 | K49: 0
A50: ='C1 Mix'!A$121 -> Open Market Phase 2: | B50: =" High rise flats" -> High rise flats | G50: =SUM('Summary 1 -Res Mix'!F$119:I$119) -> 0 | H50: 0 | I50: =IF(SUM('Summary 1 -Res Mix'!F$119:I$119)=0,0,SUM('Summary 1 -Res Mix'!F$123:I$123)/SUM('Summary 1 -Res Mix'!F$119:I$119)) -> 0 | J50: 0 | K50: 0
A51: ='C1 Mix'!A$121 -> Open Market Phase 2: | B51: =" Houses" -> Houses | G51: =SUM('Summary 1 -Res Mix'!J$119:N$119) -> 0 | H51: 0 | I51: =IF(SUM('Summary 1 -Res Mix'!J$119:N$119)=0,0,SUM('Summary 1 -Res Mix'!J$123:N$123)/SUM('Summary 1 -Res Mix'!J$119:N$119)) -> 0 | J51: 0 | K51: 0
A52: ='C1 Mix'!A$130 -> Open Market Phase 3: | B52: =" Low rise flats" -> Low rise flats | G52: =SUM('Summary 1 -Res Mix'!B$128:E$128) -> 0 | H52: 0 | I52: =IF(SUM('Summary 1 -Res Mix'!B$128:E$128)=0,0,SUM('Summary 1 -Res Mix'!B$132:E$132)/SUM('Summary 1 -Res Mix'!B$128:E$128)) -> 0 | J52: 0 | K52: 0
A53: ='C1 Mix'!A$130 -> Open Market Phase 3: | B53: =" High rise flats" -> High rise flats | G53: =SUM('Summary 1 -Res Mix'!F$128:I$128) -> 0 | H53: 0 | I53: =IF(SUM('Summary 1 -Res Mix'!F$128:I$128)=0,0,SUM('Summary 1 -Res Mix'!F$132:I$132)/SUM('Summary 1 -Res Mix'!F$128:I$128)) -> 0 | J53: 0 | K53: 0
A54: ='C1 Mix'!A$130 -> Open Market Phase 3: | B54: =" Houses" -> Houses | G54: =SUM('Summary 1 -Res Mix'!J$128:N$128) -> 0 | H54: 0 | I54: =IF(SUM('Summary 1 -Res Mix'!J$128:N$128)=0,0,SUM('Summary 1 -Res Mix'!J$132:N$132)/SUM('Summary 1 -Res Mix'!J$128:N$128)) -> 0 | J54: 0 | K54: 0
A55: ='C1 Mix'!A$139 -> Open Market Phase 4: | B55: =" Low rise flats" -> Low rise flats | G55: =SUM('Summary 1 -Res Mix'!B$137:E$137) -> 0 | H55: 0 | I55: =IF(SUM('Summary 1 -Res Mix'!B$137:E$137)=0,0,SUM('Summary 1 -Res Mix'!B$141:E$141)/SUM('Summary 1 -Res Mix'!B$137:E$137)) -> 0 | J55: 0 | K55: 0
A56: ='C1 Mix'!A$139 -> Open Market Phase 4: | B56: =" High rise flats" -> High rise flats | G56: =SUM('Summary 1 -Res Mix'!F$137:I$137) -> 0 | H56: 0 | I56: =IF(SUM('Summary 1 -Res Mix'!F$137:I$137)=0,0,SUM('Summary 1 -Res Mix'!F$141:I$141)/SUM('Summary 1 -Res Mix'!F$137:I$137)) -> 0 | J56: 0 | K56: 0
A57: ='C1 Mix'!A$139 -> Open Market Phase 4: | B57: =" Houses" -> Houses | G57: =SUM('Summary 1 -Res Mix'!J$137:N$137) -> 0 | H57: 0 | I57: =IF(SUM('Summary 1 -Res Mix'!J$137:N$137)=0,0,SUM('Summary 1 -Res Mix'!J$141:N$141)/SUM('Summary 1 -Res Mix'!J$137:N$137)) -> 0 | J57: 0 | K57: 0
A58: ='C1 Mix'!A$148 -> Open Market Phase 5: | B58: =" Low rise flats" -> Low rise flats | G58: =SUM('Summary 1 -Res Mix'!B$146:E$146) -> 0 | H58: 0 | I58: =IF(SUM('Summary 1 -Res Mix'!B$146:E$146)=0,0,SUM('Summary 1 -Res Mix'!B$150:E$150)/SUM('Summary 1 -Res Mix'!B$146:E$146)) -> 0 | J58: 0 | K58: 0
A59: ='C1 Mix'!A$148 -> Open Market Phase 5: | B59: =" High rise flats" -> High rise flats | G59: =SUM('Summary 1 -Res Mix'!F$146:I$146) -> 0 | H59: 0 | I59: =IF(SUM('Summary 1 -Res Mix'!F$146:I$146)=0,0,SUM('Summary 1 -Res Mix'!F$150:I$150)/SUM('Summary 1 -Res Mix'!F$146:I$146)) -> 0 | J59: 0 | K59: 0
A60: ='C1 Mix'!A$148 -> Open Market Phase 5: | B60: =" Houses" -> Houses | G60: =SUM('Summary 1 -Res Mix'!J$146:N$146) -> 0 | H60: 0 | I60: =IF(SUM('Summary 1 -Res Mix'!J$146:N$146)=0,0,SUM('Summary 1 -Res Mix'!J$150:N$150)/SUM('Summary 1 -Res Mix'!J$146:N$146)) -> 0 | J60: 0 | K60: 0
K61: 0
A62: ='Summary 1 -Res Mix'!A$152 -> Private Rental 1 | B62: =" Low rise flats" -> Low rise flats | G62: =SUM('Summary 1 -Res Mix'!B$155:E$155) -> 0 | H62: =+I62*K62 -> 0 | I62: =IF(SUM('Summary 1 -Res Mix'!B$155:E$155)=0,0,SUM('Summary 1 -Res Mix'!B$159:E$159)/SUM('Summary 1 -Res Mix'!B$155:E$155)) -> 0 | J62: 0 | K62: 0
A63: ='Summary 1 -Res Mix'!A$152 -> Private Rental 1 | B63: =" High rise flats" -> High rise flats | G63: =SUM('Summary 1 -Res Mix'!F$155:I$155) -> 0 | H63: 0 | I63: =IF(SUM('Summary 1 -Res Mix'!F$155:I$155)=0,0,SUM('Summary 1 -Res Mix'!F$159:I$159)/SUM('Summary 1 -Res Mix'!F$155:I$155)) -> 0 | J63: 0 | K63: 0
A64: ='Summary 1 -Res Mix'!A$152 -> Private Rental 1 | B64: =" Houses" -> Houses | G64: =SUM('Summary 1 -Res Mix'!J$155:N$155) -> 0 | H64: 0 | I64: =IF(SUM('Summary 1 -Res Mix'!J$155:N$155)=0,0,SUM('Summary 1 -Res Mix'!J$159:N$159)/SUM('Summary 1 -Res Mix'!J$155:N$155)) -> 0 | J64: 0 | K64: 0
A65: ='Summary 1 -Res Mix'!A$161 -> Private Rental 2 | B65: =" Low rise flats" -> Low rise flats | G65: =SUM('Summary 1 -Res Mix'!B$164:E$164) -> 0 | H65: 0 | I65: =IF(SUM('Summary 1 -Res Mix'!B$164:E$164)=0,0,SUM('Summary 1 -Res Mix'!B$168:E$168)/SUM('Summary 1 -Res Mix'!B$164:E$164)) -> 0 | J65: 0 | K65: 0
A66: ='Summary 1 -Res Mix'!A$161 -> Private Rental 2 | B66: =" High rise flats" -> High rise flats | G66: =SUM('Summary 1 -Res Mix'!F$164:I$164) -> 0 | H66: 0 | I66: =IF(SUM('Summary 1 -Res Mix'!F$164:I$164)=0,0,SUM('Summary 1 -Res Mix'!F$168:I$168)/SUM('Summary 1 -Res Mix'!F$164:I$164)) -> 0 | J66: 0 | K66: 0
A67: ='Summary 1 -Res Mix'!A$161 -> Private Rental 2 | B67: =" Houses" -> Houses | G67: =SUM('Summary 1 -Res Mix'!J$164:N$164) -> 0 | H67: 0 | I67: =IF(SUM('Summary 1 -Res Mix'!J$164:N$164)=0,0,SUM('Summary 1 -Res Mix'!J$168:N$168)/SUM('Summary 1 -Res Mix'!J$164:N$164)) -> 0 | J67: 0 | K67: 0
A68: ='Summary 1 -Res Mix'!A$170 -> Private Rental 3 | B68: =" Low rise flats" -> Low rise flats | G68: =SUM('Summary 1 -Res Mix'!B$173:E$173) -> 0 | H68: =+I68*K68 -> 0 | I68: =IF(SUM('Summary 1 -Res Mix'!B$173:E$173)=0,0,SUM('Summary 1 -Res Mix'!B$177:E$177)/SUM('Summary 1 -Res Mix'!B$173:E$173)) -> 0 | J68: =+(I68*G68)/(1-D68) -> 0 | K68: =IF($C$10="Building Cost £ per Sq FT GROSS area",C68*10.76,C68) -> 0
A69: ='Summary 1 -Res Mix'!A$170 -> Private Rental 3 | B69: =" High rise flats" -> High rise flats | G69: =SUM('Summary 1 -Res Mix'!F$173:I$173) -> 0 | H69: 0 | I69: =IF(SUM('Summary 1 -Res Mix'!F$173:I$173)=0,0,SUM('Summary 1 -Res Mix'!F$177:I$177)/SUM('Summary 1 -Res Mix'!F$173:I$173)) -> 0 | J69: 0 | K69: 0
A70: ='Summary 1 -Res Mix'!A$170 -> Private Rental 3 | B70: =" Houses" -> Houses | G70: =SUM('Summary 1 -Res Mix'!J$173:N$173) -> 0 | H70: 0 | I70: =IF(SUM('Summary 1 -Res Mix'!J$173:N$173)=0,0,SUM('Summary 1 -Res Mix'!J$177:N$177)/SUM('Summary 1 -Res Mix'!J$173:N$173)) -> 0 | J70: 0 | K70: 0
A71: ='Summary 1 -Res Mix'!A$179 -> Private Rental 4 | B71: =" Low rise flats" -> Low rise flats | G71: =SUM('Summary 1 -Res Mix'!B$182:E$182) -> 0 | H71: =+I71*K71 -> 0 | I71: =IF(SUM('Summary 1 -Res Mix'!B$182:E$182)=0,0,SUM('Summary 1 -Res Mix'!B$186:E$186)/SUM('Summary 1 -Res Mix'!B$182:E$182)) -> 0 | J71: =+(I71*G71)/(1-D71) -> 0 | K71: =IF($C$10="Building Cost £ per Sq FT GROSS area",C71*10.76,C71) -> 0
A72: ='Summary 1 -Res Mix'!A$179 -> Private Rental 4 | B72: =" High rise flats" -> High rise flats | G72: =SUM('Summary 1 -Res Mix'!F$182:I$182) -> 0 | H72: 0 | I72: =IF(SUM('Summary 1 -Res Mix'!F$182:I$182)=0,0,SUM('Summary 1 -Res Mix'!F$186:I$186)/SUM('Summary 1 -Res Mix'!F$182:I$182)) -> 0 | J72: 0 | K72: 0
A73: ='Summary 1 -Res Mix'!A$179 -> Private Rental 4 | B73: =" Houses" -> Houses | G73: =SUM('Summary 1 -Res Mix'!J$182:N$182) -> 0 | H73: 0 | I73: =IF(SUM('Summary 1 -Res Mix'!J$182:N$182)=0,0,SUM('Summary 1 -Res Mix'!J$186:N$186)/SUM('Summary 1 -Res Mix'!J$182:N$182)) -> 0 | J73: 0 | K73: 0
A74: ='Summary 1 -Res Mix'!A$188 -> Private Rental 5 | B74: =" Low rise flats" -> Low rise flats | G74: =SUM('Summary 1 -Res Mix'!B$191:E$191) -> 0 | H74: =+I74*K74 -> 0 | I74: =IF(SUM('Summary 1 -Res Mix'!B$191:E$191)=0,0,SUM('Summary 1 -Res Mix'!B$195:E$195)/SUM('Summary 1 -Res Mix'!B$191:E$191)) -> 0 | J74: =+(I74*G74)/(1-D74) -> 0 | K74: =IF($C$10="Building Cost £ per Sq FT GROSS area",C74*10.76,C74) -> 0
A75: ='Summary 1 -Res Mix'!A$188 -> Private Rental 5 | B75: =" High rise flats" -> High rise flats | G75: =SUM('Summary 1 -Res Mix'!F$191:I$191) -> 0 | H75: 0 | I75: =IF(SUM('Summary 1 -Res Mix'!F$191:I$191)=0,0,SUM('Summary 1 -Res Mix'!F$195:I$195)/SUM('Summary 1 -Res Mix'!F$191:I$191)) -> 0 | J75: 0 | K75: 0
A76: ='Summary 1 -Res Mix'!A$188 -> Private Rental 5 | B76: =" Houses" -> Houses | G76: =SUM('Summary 1 -Res Mix'!J$191:N$191) -> 0 | H76: 0 | I76: =IF(SUM('Summary 1 -Res Mix'!J$191:N$191)=0,0,SUM('Summary 1 -Res Mix'!J$195:N$195)/SUM('Summary 1 -Res Mix'!J$191:N$191)) -> 0 | J76: 0 | K76: 0
A79: Fees & Contingencies as % of Building Costs | C79: % | F79: £ Total
A80: Design and Professional Fees % (Architects, QS, Project Management) | C80: 0.125 | F80: =-'C3 Build Costs'!H140 -> 3929310
A81: Residential Building Contingencies (% of Building Costs) | F81: =-'C3 Build Costs'!I131 -> 0
A82: * This section excludes Affordable Housing section 106 payments | C82: All dates must be between | D82: =+'Input 3 -Res Phasing'!B7 -> 2020-01-01 | E82: =+D82+7300 -> 2039-12-27
C83: 'Historic' costs incurred earlier may be entered as | D83: =+D82 -> 2020-01-01 | E83: PROVIDED they are not taken into account in the site valuation (& hence double counted)
A84: External Works & Infrastructure Costs (£) | B84: Comment on nature of issue | C84: Cost (£) | D84: Payment Start Date | E84: Payment end date | F84: Month of Payment Start | G84: Month of Payment End | H84: Cost per unit (all tenures)
A85: Phase 1
A86: Garages - 8,886.60/dwg | C86: =170*8886.6 -> 1510722 | D86: 2021-08-01 | E86: 2032-12-30 | F86: =IF(ISBLANK(D86),,+ROUND((D86-'Input 3 -Res Phasing'!$B$7)/30.5,0)) -> 19 | G86: =IF(ISBLANK(E86),,+ROUND((E86-'Input 3 -Res Phasing'!$B$7)/30.5,0)) -> 156 | H86: =IF('C1 Mix'!K$207=0,0,+C86/'C1 Mix'!K$207) -> 8886.6 | I86: =IFERROR(-C86/'C3 Build Costs'!$H$137,0) -> 0.04805939211 | J86: of base build costs
A87: Carbon reduction -1588/dwg | C87: =1588*170 -> 269960 | D87: 2021-08-01 | E87: 2032-12-30 | F87: =IF(ISBLANK(D87),,+ROUND((D87-'Input 3 -Res Phasing'!$B$7)/30.5,0)) -> 19 | G87: =IF(ISBLANK(E87),,+ROUND((E87-'Input 3 -Res Phasing'!$B$7)/30.5,0)) -> 156 | H87: =IF('C1 Mix'!K$207=0,0,+C87/'C1 Mix'!K$207) -> 1588 | I87: =IFERROR(-C87/'C3 Build Costs'!$H$137,0) -> 0.008588021816 | J87: of base build costs
A88: District heat - 5000/dwg | C88: =5000*170 -> 850000 | D88: 2022-04-01 | E88: 2033-03-31 | F88: =IF(ISBLANK(D88),,+ROUND((D88-'Input 3 -Res Phasing'!$B$7)/30.5,0)) -> 27 | G88: =IF(ISBLANK(E88),,+ROUND((E88-'Input 3 -Res Phasing'!$B$7)/30.5,0)) -> 159 | H88: =IF('C1 Mix'!K$207=0,0,+C88/'C1 Mix'!K$207) -> 5000 | I88: =IFERROR(-C88/'C3 Build Costs'!$H$137,0) -> 0.02704037096 | J88: of base build costs
F89: =IF(ISBLANK(D89),,+ROUND((D89-'Input 3 -Res Phasing'!$B$7)/30.5,0)) -> 0 | G89: =IF(ISBLANK(E89),,+ROUND((E89-'Input 3 -Res Phasing'!$B$7)/30.5,0)) -> 0 | H89: =IF('C1 Mix'!K$207=0,0,+C89/'C1 Mix'!K$207) -> 0 | I89: =IFERROR(-C89/'C3 Build Costs'!$H$137,0) -> 0 | J89: of base build costs
F90: =IF(ISBLANK(D90),,+ROUND((D90-'Input 3 -Res Phasing'!$B$7)/30.5,0)) -> 0 | G90: =IF(ISBLANK(E90),,+ROUND((E90-'Input 3 -Res Phasing'!$B$7)/30.5,0)) -> 0 | H90: =IF('C1 Mix'!K$207=0,0,+C90/'C1 Mix'!K$207) -> 0 | I90: =IFERROR(-C90/'C3 Build Costs'!$H$137,0) -> 0 | J90: of base build costs
F91: =IF(ISBLANK(D91),,+ROUND((D91-'Input 3 -Res Phasing'!$B$7)/30.5,0)) -> 0 | G91: =IF(ISBLANK(E91),,+ROUND((E91-'Input 3 -Res Phasing'!$B$7)/30.5,0)) -> 0 | H91: =IF('C1 Mix'!K$207=0,0,+C91/'C1 Mix'!K$207) -> 0 | I91: =IFERROR(-C91/'C3 Build Costs'!$H$137,0) -> 0 | J91: of base build costs
F92: =IF(ISBLANK(D92),,+ROUND((D92-'Input 3 -Res Phasing'!$B$7)/30.5,0)) -> 0 | G92: =IF(ISBLANK(E92),,+ROUND((E92-'Input 3 -Res Phasing'!$B$7)/30.5,0)) -> 0 | H92: =IF('C1 Mix'!K$207=0,0,+C92/'C1 Mix'!K$207) -> 0 | I92: =IFERROR(-C92/'C3 Build Costs'!$H$137,0) -> 0 | J92: of base build costs
F93: =IF(ISBLANK(D93),,+ROUND((D93-'Input 3 -Res Phasing'!$B$7)/30.5,0)) -> 0 | G93: =IF(ISBLANK(E93),,+ROUND((E93-'Input 3 -Res Phasing'!$B$7)/30.5,0)) -> 0 | H93: =IF('C1 Mix'!K$207=0,0,+C93/'C1 Mix'!K$207) -> 0 | I93: =IFERROR(-C93/'C3 Build Costs'!$H$137,0) -> 0 | J93: of base build costs
F94: =IF(ISBLANK(D94),,+ROUND((D94-'Input 3 -Res Phasing'!$B$7)/30.5,0)) -> 0 | G94: =IF(ISBLANK(E94),,+ROUND((E94-'Input 3 -Res Phasing'!$B$7)/30.5,0)) -> 0 | H94: =IF('C1 Mix'!K$207=0,0,+C94/'C1 Mix'!K$207) -> 0 | I94: =IFERROR(-C94/'C3 Build Costs'!$H$137,0) -> 0 | J94: of base build costs
F95: =IF(ISBLANK(D95),,+ROUND((D95-'Input 3 -Res Phasing'!$B$7)/30.5,0)) -> 0 | G95: =IF(ISBLANK(E95),,+ROUND((E95-'Input 3 -Res Phasing'!$B$7)/30.5,0)) -> 0 | H95: =IF('C1 Mix'!K$207=0,0,+C95/'C1 Mix'!K$207) -> 0 | I95: =IFERROR(-C95/'C3 Build Costs'!$H$137,0) -> 0 | J95: of base build costs
A96: Phase 2
A97: Site Preparation/Demolition | F97: =IF(ISBLANK(D97),,+ROUND((D97-'Input 3 -Res Phasing'!$B$7)/30.5,0)) -> 0 | G97: =IF(ISBLANK(E97),,+ROUND((E97-'Input 3 -Res Phasing'!$B$7)/30.5,0)) -> 0 | H97: =IF('C1 Mix'!K$207=0,0,+C97/'C1 Mix'!K$207) -> 0 | I97: =IFERROR(-C97/'C3 Build Costs'!$H$137,0) -> 0 | J97: of base build costs
A98: Roads and Sewers | F98: =IF(ISBLANK(D98),,+ROUND((D98-'Input 3 -Res Phasing'!$B$7)/30.5,0)) -> 0 | G98: =IF(ISBLANK(E98),,+ROUND((E98-'Input 3 -Res Phasing'!$B$7)/30.5,0)) -> 0 | H98: =IF('C1 Mix'!K$207=0,0,+C98/'C1 Mix'!K$207) -> 0 | I98: =IFERROR(-C98/'C3 Build Costs'!$H$137,0) -> 0 | J98: of base build costs
A99: Services (Power, Water, Gas, Telco and IT) | F99: =IF(ISBLANK(D99),,+ROUND((D99-'Input 3 -Res Phasing'!$B$7)/30.5,0)) -> 0 | G99: =IF(ISBLANK(E99),,+ROUND((E99-'Input 3 -Res Phasing'!$B$7)/30.5,0)) -> 0 | H99: =IF('C1 Mix'!K$207=0,0,+C99/'C1 Mix'!K$207) -> 0 | I99: =IFERROR(-C99/'C3 Build Costs'!$H$137,0) -> 0 | J99: of base build costs
A100: Strategic Landscaping | F100: =IF(ISBLANK(D100),,+ROUND((D100-'Input 3 -Res Phasing'!$B$7)/30.5,0)) -> 0 | G100: =IF(ISBLANK(E100),,+ROUND((E100-'Input 3 -Res Phasing'!$B$7)/30.5,0)) -> 0 | H100: =IF('C1 Mix'!K$207=0,0,+C100/'C1 Mix'!K$207) -> 0 | I100: =IFERROR(-C100/'C3 Build Costs'!$H$137,0) -> 0 | J100: of base build costs
A101: Off Site Works | F101: =IF(ISBLANK(D101),,+ROUND((D101-'Input 3 -Res Phasing'!$B$7)/30.5,0)) -> 0 | G101: =IF(ISBLANK(E101),,+ROUND((E101-'Input 3 -Res Phasing'!$B$7)/30.5,0)) -> 0 | H101: =IF('C1 Mix'!K$207=0,0,+C101/'C1 Mix'!K$207) -> 0 | I101: =IFERROR(-C101/'C3 Build Costs'!$H$137,0) -> 0 | J101: of base build costs
A102: Public Open Space | F102: =IF(ISBLANK(D102),,+ROUND((D102-'Input 3 -Res Phasing'!$B$7)/30.5,0)) -> 0 | G102: =IF(ISBLANK(E102),,+ROUND((E102-'Input 3 -Res Phasing'!$B$7)/30.5,0)) -> 0 | H102: =IF('C1 Mix'!K$207=0,0,+C102/'C1 Mix'!K$207) -> 0 | I102: =IFERROR(-C102/'C3 Build Costs'!$H$137,0) -> 0 | J102: of base build costs
A103: Site Specific Sustainability Initiatives | F103: =IF(ISBLANK(D103),,+ROUND((D103-'Input 3 -Res Phasing'!$B$7)/30.5,0)) -> 0 | G103: =IF(ISBLANK(E103),,+ROUND((E103-'Input 3 -Res Phasing'!$B$7)/30.5,0)) -> 0 | H103: =IF('C1 Mix'!K$207=0,0,+C103/'C1 Mix'!K$207) -> 0 | I103: =IFERROR(-C103/'C3 Build Costs'!$H$137,0) -> 0 | J103: of base build costs
A104: Plot specific external works | F104: =IF(ISBLANK(D104),,+ROUND((D104-'Input 3 -Res Phasing'!$B$7)/30.5,0)) -> 0 | G104: =IF(ISBLANK(E104),,+ROUND((E104-'Input 3 -Res Phasing'!$B$7)/30.5,0)) -> 0 | H104: =IF('C1 Mix'!K$207=0,0,+C104/'C1 Mix'!K$207) -> 0 | I104: =IFERROR(-C104/'C3 Build Costs'!$H$137,0) -> 0 | J104: of base build costs
A105: Other 1 | F105: =IF(ISBLANK(D105),,+ROUND((D105-'Input 3 -Res Phasing'!$B$7)/30.5,0)) -> 0 | G105: =IF(ISBLANK(E105),,+ROUND((E105-'Input 3 -Res Phasing'!$B$7)/30.5,0)) -> 0 | H105: =IF('C1 Mix'!K$207=0,0,+C105/'C1 Mix'!K$207) -> 0 | I105: =IFERROR(-C105/'C3 Build Costs'!$H$137,0) -> 0 | J105: of base build costs
A106: Other 2 | F106: =IF(ISBLANK(D106),,+ROUND((D106-'Input 3 -Res Phasing'!$B$7)/30.5,0)) -> 0 | G106: =IF(ISBLANK(E106),,+ROUND((E106-'Input 3 -Res Phasing'!$B$7)/30.5,0)) -> 0 | H106: =IF('C1 Mix'!K$207=0,0,+C106/'C1 Mix'!K$207) -> 0 | I106: =IFERROR(-C106/'C3 Build Costs'!$H$137,0) -> 0 | J106: of base build costs
A107: Phase 3
A108: Site Preparation/Demolition | F108: =IF(ISBLANK(D108),,+ROUND((D108-'Input 3 -Res Phasing'!$B$7)/30.5,0)) -> 0 | G108: =IF(ISBLANK(E108),,+ROUND((E108-'Input 3 -Res Phasing'!$B$7)/30.5,0)) -> 0 | H108: =IF('C1 Mix'!K$207=0,0,+C108/'C1 Mix'!K$207) -> 0 | I108: =IFERROR(-C108/'C3 Build Costs'!$H$137,0) -> 0 | J108: of base build costs
A109: Roads and Sewers | F109: =IF(ISBLANK(D109),,+ROUND((D109-'Input 3 -Res Phasing'!$B$7)/30.5,0)) -> 0 | G109: =IF(ISBLANK(E109),,+ROUND((E109-'Input 3 -Res Phasing'!$B$7)/30.5,0)) -> 0 | H109: =IF('C1 Mix'!K$207=0,0,+C109/'C1 Mix'!K$207) -> 0 | I109: =IFERROR(-C109/'C3 Build Costs'!$H$137,0) -> 0 | J109: of base build costs
A110: Services (Power, Water, Gas, Telco and IT) | F110: =IF(ISBLANK(D110),,+ROUND((D110-'Input 3 -Res Phasing'!$B$7)/30.5,0)) -> 0 | G110: =IF(ISBLANK(E110),,+ROUND((E110-'Input 3 -Res Phasing'!$B$7)/30.5,0)) -> 0 | H110: =IF('C1 Mix'!K$207=0,0,+C110/'C1 Mix'!K$207) -> 0 | I110: =IFERROR(-C110/'C3 Build Costs'!$H$137,0) -> 0 | J110: of base build costs
A111: Strategic Landscaping | F111: =IF(ISBLANK(D111),,+ROUND((D111-'Input 3 -Res Phasing'!$B$7)/30.5,0)) -> 0 | G111: =IF(ISBLANK(E111),,+ROUND((E111-'Input 3 -Res Phasing'!$B$7)/30.5,0)) -> 0 | H111: =IF('C1 Mix'!K$207=0,0,+C111/'C1 Mix'!K$207) -> 0 | I111: =IFERROR(-C111/'C3 Build Costs'!$H$137,0) -> 0 | J111: of base build costs
A112: Off Site Works | F112: =IF(ISBLANK(D112),,+ROUND((D112-'Input 3 -Res Phasing'!$B$7)/30.5,0)) -> 0 | G112: =IF(ISBLANK(E112),,+ROUND((E112-'Input 3 -Res Phasing'!$B$7)/30.5,0)) -> 0 | H112: =IF('C1 Mix'!K$207=0,0,+C112/'C1 Mix'!K$207) -> 0 | I112: =IFERROR(-C112/'C3 Build Costs'!$H$137,0) -> 0 | J112: of base build costs
A113: Public Open Space | F113: =IF(ISBLANK(D113),,+ROUND((D113-'Input 3 -Res Phasing'!$B$7)/30.5,0)) -> 0 | G113: =IF(ISBLANK(E113),,+ROUND((E113-'Input 3 -Res Phasing'!$B$7)/30.5,0)) -> 0 | H113: =IF('C1 Mix'!K$207=0,0,+C113/'C1 Mix'!K$207) -> 0 | I113: =IFERROR(-C113/'C3 Build Costs'!$H$137,0) -> 0 | J113: of base build costs
A114: Site Specific Sustainability Initiatives | F114: =IF(ISBLANK(D114),,+ROUND((D114-'Input 3 -Res Phasing'!$B$7)/30.5,0)) -> 0 | G114: =IF(ISBLANK(E114),,+ROUND((E114-'Input 3 -Res Phasing'!$B$7)/30.5,0)) -> 0 | H114: =IF('C1 Mix'!K$207=0,0,+C114/'C1 Mix'!K$207) -> 0 | I114: =IFERROR(-C114/'C3 Build Costs'!$H$137,0) -> 0 | J114: of base build costs
A115: Plot specific external works | F115: =IF(ISBLANK(D115),,+ROUND((D115-'Input 3 -Res Phasing'!$B$7)/30.5,0)) -> 0 | G115: =IF(ISBLANK(E115),,+ROUND((E115-'Input 3 -Res Phasing'!$B$7)/30.5,0)) -> 0 | H115: =IF('C1 Mix'!K$207=0,0,+C115/'C1 Mix'!K$207) -> 0 | I115: =IFERROR(-C115/'C3 Build Costs'!$H$137,0) -> 0 | J115: of base build costs
A116: Other 1 | F116: =IF(ISBLANK(D116),,+ROUND((D116-'Input 3 -Res Phasing'!$B$7)/30.5,0)) -> 0 | G116: =IF(ISBLANK(E116),,+ROUND((E116-'Input 3 -Res Phasing'!$B$7)/30.5,0)) -> 0 | H116: =IF('C1 Mix'!K$207=0,0,+C116/'C1 Mix'!K$207) -> 0 | I116: =IFERROR(-C116/'C3 Build Costs'!$H$137,0) -> 0 | J116: of base build costs
A117: Other 2 | F117: =IF(ISBLANK(D117),,+ROUND((D117-'Input 3 -Res Phasing'!$B$7)/30.5,0)) -> 0 | G117: =IF(ISBLANK(E117),,+ROUND((E117-'Input 3 -Res Phasing'!$B$7)/30.5,0)) -> 0 | H117: =IF('C1 Mix'!K$207=0,0,+C117/'C1 Mix'!K$207) -> 0 | I117: =IFERROR(-C117/'C3 Build Costs'!$H$137,0) -> 0 | J117: of base build costs
A118: Phase 4
A119: Site Preparation/Demolition | F119: =IF(ISBLANK(D119),,+ROUND((D119-'Input 3 -Res Phasing'!$B$7)/30.5,0)) -> 0 | G119: =IF(ISBLANK(E119),,+ROUND((E119-'Input 3 -Res Phasing'!$B$7)/30.5,0)) -> 0 | H119: =IF('C1 Mix'!K$207=0,0,+C119/'C1 Mix'!K$207) -> 0 | I119: =IFERROR(-C119/'C3 Build Costs'!$H$137,0) -> 0 | J119: of base build costs
A120: Roads and Sewers | F120: =IF(ISBLANK(D120),,+ROUND((D120-'Input 3 -Res Phasing'!$B$7)/30.5,0)) -> 0 | G120: =IF(ISBLANK(E120),,+ROUND((E120-'Input 3 -Res Phasing'!$B$7)/30.5,0)) -> 0 | H120: =IF('C1 Mix'!K$207=0,0,+C120/'C1 Mix'!K$207) -> 0 | I120: =IFERROR(-C120/'C3 Build Costs'!$H$137,0) -> 0 | J120: of base build costs
A121: Services (Power, Water, Gas, Telco and IT) | F121: =IF(ISBLANK(D121),,+ROUND((D121-'Input 3 -Res Phasing'!$B$7)/30.5,0)) -> 0 | G121: =IF(ISBLANK(E121),,+ROUND((E121-'Input 3 -Res Phasing'!$B$7)/30.5,0)) -> 0 | H121: =IF('C1 Mix'!K$207=0,0,+C121/'C1 Mix'!K$207) -> 0 | I121: =IFERROR(-C121/'C3 Build Costs'!$H$137,0) -> 0 | J121: of base build costs
A122: Strategic Landscaping | F122: =IF(ISBLANK(D122),,+ROUND((D122-'Input 3 -Res Phasing'!$B$7)/30.5,0)) -> 0 | G122: =IF(ISBLANK(E122),,+ROUND((E122-'Input 3 -Res Phasing'!$B$7)/30.5,0)) -> 0 | H122: =IF('C1 Mix'!K$207=0,0,+C122/'C1 Mix'!K$207) -> 0 | I122: =IFERROR(-C122/'C3 Build Costs'!$H$137,0) -> 0 | J122: of base build costs
A123: Off Site Works | F123: =IF(ISBLANK(D123),,+ROUND((D123-'Input 3 -Res Phasing'!$B$7)/30.5,0)) -> 0 | G123: =IF(ISBLANK(E123),,+ROUND((E123-'Input 3 -Res Phasing'!$B$7)/30.5,0)) -> 0 | H123: =IF('C1 Mix'!K$207=0,0,+C123/'C1 Mix'!K$207) -> 0 | I123: =IFERROR(-C123/'C3 Build Costs'!$H$137,0) -> 0 | J123: of base build costs
A124: Public Open Space | F124: =IF(ISBLANK(D124),,+ROUND((D124-'Input 3 -Res Phasing'!$B$7)/30.5,0)) -> 0 | G124: =IF(ISBLANK(E124),,+ROUND((E124-'Input 3 -Res Phasing'!$B$7)/30.5,0)) -> 0 | H124: =IF('C1 Mix'!K$207=0,0,+C124/'C1 Mix'!K$207) -> 0 | I124: =IFERROR(-C124/'C3 Build Costs'!$H$137,0) -> 0 | J124: of base build costs
A125: Site Specific Sustainability Initiatives | F125: =IF(ISBLANK(D125),,+ROUND((D125-'Input 3 -Res Phasing'!$B$7)/30.5,0)) -> 0 | G125: =IF(ISBLANK(E125),,+ROUND((E125-'Input 3 -Res Phasing'!$B$7)/30.5,0)) -> 0 | H125: =IF('C1 Mix'!K$207=0,0,+C125/'C1 Mix'!K$207) -> 0 | I125: =IFERROR(-C125/'C3 Build Costs'!$H$137,0) -> 0 | J125: of base build costs
A126: Plot specific external works | F126: =IF(ISBLANK(D126),,+ROUND((D126-'Input 3 -Res Phasing'!$B$7)/30.5,0)) -> 0 | G126: =IF(ISBLANK(E126),,+ROUND((E126-'Input 3 -Res Phasing'!$B$7)/30.5,0)) -> 0 | H126: =IF('C1 Mix'!K$207=0,0,+C126/'C1 Mix'!K$207) -> 0 | I126: =IFERROR(-C126/'C3 Build Costs'!$H$137,0) -> 0 | J126: of base build costs
A127: Other 1 | F127: =IF(ISBLANK(D127),,+ROUND((D127-'Input 3 -Res Phasing'!$B$7)/30.5,0)) -> 0 | G127: =IF(ISBLANK(E127),,+ROUND((E127-'Input 3 -Res Phasing'!$B$7)/30.5,0)) -> 0 | H127: =IF('C1 Mix'!K$207=0,0,+C127/'C1 Mix'!K$207) -> 0 | I127: =IFERROR(-C127/'C3 Build Costs'!$H$137,0) -> 0 | J127: of base build costs
A128: Other 2 | F128: =IF(ISBLANK(D128),,+ROUND((D128-'Input 3 -Res Phasing'!$B$7)/30.5,0)) -> 0 | G128: =IF(ISBLANK(E128),,+ROUND((E128-'Input 3 -Res Phasing'!$B$7)/30.5,0)) -> 0 | H128: =IF('C1 Mix'!K$207=0,0,+C128/'C1 Mix'!K$207) -> 0 | I128: =IFERROR(-C128/'C3 Build Costs'!$H$137,0) -> 0 | J128: of base build costs
A129: Phase 5
A130: Site Preparation/Demolition | F130: =IF(ISBLANK(D130),,+ROUND((D130-'Input 3 -Res Phasing'!$B$7)/30.5,0)) -> 0 | G130: =IF(ISBLANK(E130),,+ROUND((E130-'Input 3 -Res Phasing'!$B$7)/30.5,0)) -> 0 | H130: =IF('C1 Mix'!K$207=0,0,+C130/'C1 Mix'!K$207) -> 0 | I130: =IFERROR(-C130/'C3 Build Costs'!$H$137,0) -> 0 | J130: of base build costs
A131: Roads and Sewers | F131: =IF(ISBLANK(D131),,+ROUND((D131-'Input 3 -Res Phasing'!$B$7)/30.5,0)) -> 0 | G131: =IF(ISBLANK(E131),,+ROUND((E131-'Input 3 -Res Phasing'!$B$7)/30.5,0)) -> 0 | H131: =IF('C1 Mix'!K$207=0,0,+C131/'C1 Mix'!K$207) -> 0 | I131: =IFERROR(-C131/'C3 Build Costs'!$H$137,0) -> 0 | J131: of base build costs
A132: Services (Power, Water, Gas, Telco and IT) | F132: =IF(ISBLANK(D132),,+ROUND((D132-'Input 3 -Res Phasing'!$B$7)/30.5,0)) -> 0 | G132: =IF(ISBLANK(E132),,+ROUND((E132-'Input 3 -Res Phasing'!$B$7)/30.5,0)) -> 0 | H132: =IF('C1 Mix'!K$207=0,0,+C132/'C1 Mix'!K$207) -> 0 | I132: =IFERROR(-C132/'C3 Build Costs'!$H$137,0) -> 0 | J132: of base build costs
A133: Strategic Landscaping | F133: =IF(ISBLANK(D133),,+ROUND((D133-'Input 3 -Res Phasing'!$B$7)/30.5,0)) -> 0 | G133: =IF(ISBLANK(E133),,+ROUND((E133-'Input 3 -Res Phasing'!$B$7)/30.5,0)) -> 0 | H133: =IF('C1 Mix'!K$207=0,0,+C133/'C1 Mix'!K$207) -> 0 | I133: =IFERROR(-C133/'C3 Build Costs'!$H$137,0) -> 0 | J133: of base build costs
A134: Off Site Works | F134: =IF(ISBLANK(D134),,+ROUND((D134-'Input 3 -Res Phasing'!$B$7)/30.5,0)) -> 0 | G134: =IF(ISBLANK(E134),,+ROUND((E134-'Input 3 -Res Phasing'!$B$7)/30.5,0)) -> 0 | H134: =IF('C1 Mix'!K$207=0,0,+C134/'C1 Mix'!K$207) -> 0 | I134: =IFERROR(-C134/'C3 Build Costs'!$H$137,0) -> 0 | J134: of base build costs
A135: Public Open Space | F135: =IF(ISBLANK(D135),,+ROUND((D135-'Input 3 -Res Phasing'!$B$7)/30.5,0)) -> 0 | G135: =IF(ISBLANK(E135),,+ROUND((E135-'Input 3 -Res Phasing'!$B$7)/30.5,0)) -> 0 | H135: =IF('C1 Mix'!K$207=0,0,+C135/'C1 Mix'!K$207) -> 0 | I135: =IFERROR(-C135/'C3 Build Costs'!$H$137,0) -> 0 | J135: of base build costs
A136: Site Specific Sustainability Initiatives | F136: =IF(ISBLANK(D136),,+ROUND((D136-'Input 3 -Res Phasing'!$B$7)/30.5,0)) -> 0 | G136: =IF(ISBLANK(E136),,+ROUND((E136-'Input 3 -Res Phasing'!$B$7)/30.5,0)) -> 0 | H136: =IF('C1 Mix'!K$207=0,0,+C136/'C1 Mix'!K$207) -> 0 | I136: =IFERROR(-C136/'C3 Build Costs'!$H$137,0) -> 0 | J136: of base build costs
A137: Plot specific external works | F137: =IF(ISBLANK(D137),,+ROUND((D137-'Input 3 -Res Phasing'!$B$7)/30.5,0)) -> 0 | G137: =IF(ISBLANK(E137),,+ROUND((E137-'Input 3 -Res Phasing'!$B$7)/30.5,0)) -> 0 | H137: =IF('C1 Mix'!K$207=0,0,+C137/'C1 Mix'!K$207) -> 0 | I137: =IFERROR(-C137/'C3 Build Costs'!$H$137,0) -> 0 | J137: of base build costs
A138: Other 1 | F138: =IF(ISBLANK(D138),,+ROUND((D138-'Input 3 -Res Phasing'!$B$7)/30.5,0)) -> 0 | G138: =IF(ISBLANK(E138),,+ROUND((E138-'Input 3 -Res Phasing'!$B$7)/30.5,0)) -> 0 | H138: =IF('C1 Mix'!K$207=0,0,+C138/'C1 Mix'!K$207) -> 0 | I138: =IFERROR(-C138/'C3 Build Costs'!$H$137,0) -> 0 | J138: of base build costs
A139: Other 2 | F139: =IF(ISBLANK(D139),,+ROUND((D139-'Input 3 -Res Phasing'!$B$7)/30.5,0)) -> 0 | G139: =IF(ISBLANK(E139),,+ROUND((E139-'Input 3 -Res Phasing'!$B$7)/30.5,0)) -> 0 | H139: =IF('C1 Mix'!K$207=0,0,+C139/'C1 Mix'!K$207) -> 0 | I139: =IFERROR(-C139/'C3 Build Costs'!$H$137,0) -> 0 | J139: of base build costs
A141: Site Abnormals (£) | B141: Comment on nature of issue | C141: Cost (£) | D141: Payment Start Date | E141: Payment end date | F141: Month of Payment Start | G141: Month of Payment End | H141: Cost per unit (all tenures)
F142: =IF(ISBLANK(D142),,+ROUND((D142-'Input 3 -Res Phasing'!$B$7)/30.5,0)) -> 0 | G142: =IF(ISBLANK(E142),,+ROUND((E142-'Input 3 -Res Phasing'!$B$7)/30.5,0)) -> 0 | H142: =IF('C1 Mix'!B$206=0,0,+C142/'C1 Mix'!B$206) -> 0
F143: =IF(ISBLANK(D143),,+ROUND((D143-'Input 3 -Res Phasing'!$B$7)/30.5,0)) -> 0 | G143: =IF(ISBLANK(E143),,+ROUND((E143-'Input 3 -Res Phasing'!$B$7)/30.5,0)) -> 0 | H143: =IF('C1 Mix'!B$206=0,0,+C143/'C1 Mix'!B$206) -> 0 | I143: =IF(C143>0,"check remediation tax relief shown on other funding","") -> 
A144: Other | F144: =IF(ISBLANK(D144),,+ROUND((D144-'Input 3 -Res Phasing'!$B$7)/30.5,0)) -> 0 | G144: =IF(ISBLANK(E144),,+ROUND((E144-'Input 3 -Res Phasing'!$B$7)/30.5,0)) -> 0 | H144: =IF('C1 Mix'!B$206=0,0,+C144/'C1 Mix'!B$206) -> 0
A145: Other 2 | F145: =IF(ISBLANK(D145),,+ROUND((D145-'Input 3 -Res Phasing'!$B$7)/30.5,0)) -> 0 | G145: =IF(ISBLANK(E145),,+ROUND((E145-'Input 3 -Res Phasing'!$B$7)/30.5,0)) -> 0 | H145: =IF('C1 Mix'!B$206=0,0,+C145/'C1 Mix'!B$206) -> 0
A146: Other 3 | F146: =IF(ISBLANK(D146),,+ROUND((D146-'Input 3 -Res Phasing'!$B$7)/30.5,0)) -> 0 | G146: =IF(ISBLANK(E146),,+ROUND((E146-'Input 3 -Res Phasing'!$B$7)/30.5,0)) -> 0 | H146: =IF('C1 Mix'!B$206=0,0,+C146/'C1 Mix'!B$206) -> 0
A147: Other 4 | F147: =IF(ISBLANK(D147),,+ROUND((D147-'Input 3 -Res Phasing'!$B$7)/30.5,0)) -> 0 | G147: =IF(ISBLANK(E147),,+ROUND((E147-'Input 3 -Res Phasing'!$B$7)/30.5,0)) -> 0 | H147: =IF('C1 Mix'!B$206=0,0,+C147/'C1 Mix'!B$206) -> 0
A148: Other 5 | F148: =IF(ISBLANK(D148),,+ROUND((D148-'Input 3 -Res Phasing'!$B$7)/30.5,0)) -> 0 | G148: =IF(ISBLANK(E148),,+ROUND((E148-'Input 3 -Res Phasing'!$B$7)/30.5,0)) -> 0 | H148: =IF('C1 Mix'!B$206=0,0,+C148/'C1 Mix'!B$206) -> 0
C151: Building Costs (£ / car parking space) | D151: Payment Date | F151: Month of Payment
A152: Residential Car Parking Building Costs (average cost / car parking space) | F152: =IF(ISBLANK(D152),,+ROUND((D152-'Input 3 -Res Phasing'!$B$7)/30.5,0)) -> 0
A153: Total number of residential car parking spaces | D153: (Open Market and Affordable) | F153: =IF(AND(C152>0,'Summary 2 -Res Values'!C562=0),"Note: Car park sales revenue can be entered using EAT style input sheet ''Summary 2 -Res Values'!C308","") -> 
A155: Statutory Payments (£) | B155: Additional information | C155: Cost (£) | D155: Payment start date | E155: Payment end date | F155: Month of Payment Start | G155: Month of Payment End | H155: Per unit | I155: Per Private Unit | J155: Total Value | K155: Per Net Hectare
A156: S106 Obligations | B156: Item G | F156: =IF(ISBLANK(D156),,+ROUND((D156-'Input 3 -Res Phasing'!$B$7)/30.5,0)) -> 0 | G156: =IF(ISBLANK(E156),,+ROUND((E156-'Input 3 -Res Phasing'!$B$7)/30.5,0)) -> 0 | H156: =IF('C1 Mix'!B$206=0,0,+C156/'C1 Mix'!B$206) -> 0 | I156: =IF('C1 Mix'!B$207=0,"-",+C156/'C1 Mix'!B$207) -> 0 | J156: =+C156 -> 0 | K156: =IF(ISBLANK('Input 1 -Site'!B$19),"",+C156/'Input 1 -Site'!B$19) -> 0
A157: Sport & Recreation | F157: =IF(ISBLANK(D157),,+ROUND((D157-'Input 3 -Res Phasing'!$B$7)/30.5,0)) -> 0 | G157: =IF(ISBLANK(E157),,+ROUND((E157-'Input 3 -Res Phasing'!$B$7)/30.5,0)) -> 0 | H157: =IF('C1 Mix'!B$206=0,0,+C157/'C1 Mix'!B$206) -> 0 | I157: =IF('C1 Mix'!B$207=0,"-",+C157/'C1 Mix'!B$207) -> 0 | J157: =+C157 -> 0 | K157: =IF(ISBLANK('Input 1 -Site'!B$19),"",+C157/'Input 1 -Site'!B$19) -> 0
A158: Social Infrastructure | F158: =IF(ISBLANK(D158),,+ROUND((D158-'Input 3 -Res Phasing'!$B$7)/30.5,0)) -> 0 | G158: =IF(ISBLANK(E158),,+ROUND((E158-'Input 3 -Res Phasing'!$B$7)/30.5,0)) -> 0 | H158: =IF('C1 Mix'!B$206=0,0,+C158/'C1 Mix'!B$206) -> 0 | I158: =IF('C1 Mix'!B$207=0,"-",+C158/'C1 Mix'!B$207) -> 0 | J158: 0 | K158: =IF(ISBLANK('Input 1 -Site'!B$19),"",+C158/'Input 1 -Site'!B$19) -> 0
A159: Public Realm | F159: =IF(ISBLANK(D159),,+ROUND((D159-'Input 3 -Res Phasing'!$B$7)/30.5,0)) -> 0 | G159: =IF(ISBLANK(E159),,+ROUND((E159-'Input 3 -Res Phasing'!$B$7)/30.5,0)) -> 0 | H159: =IF('C1 Mix'!B$206=0,0,+C159/'C1 Mix'!B$206) -> 0 | I159: =IF('C1 Mix'!B$207=0,"-",+C159/'C1 Mix'!B$207) -> 0 | J159: 0 | K159: =IF(ISBLANK('Input 1 -Site'!B$19),"",+C159/'Input 1 -Site'!B$19) -> 0
A160: Affordable Housing | F160: =IF(ISBLANK(D160),,+ROUND((D160-'Input 3 -Res Phasing'!$B$7)/30.5,0)) -> 0 | G160: =IF(ISBLANK(E160),,+ROUND((E160-'Input 3 -Res Phasing'!$B$7)/30.5,0)) -> 0 | H160: =IF('C1 Mix'!B$206=0,0,+C160/'C1 Mix'!B$206) -> 0 | I160: =IF('C1 Mix'!B$207=0,"-",+C160/'C1 Mix'!B$207) -> 0 | J160: 0 | K160: =IF(ISBLANK('Input 1 -Site'!B$19),"",+C160/'Input 1 -Site'!B$19) -> 0
A161: Transport | F161: =IF(ISBLANK(D161),,+ROUND((D161-'Input 3 -Res Phasing'!$B$7)/30.5,0)) -> 0 | G161: =IF(ISBLANK(E161),,+ROUND((E161-'Input 3 -Res Phasing'!$B$7)/30.5,0)) -> 0 | H161: =IF('C1 Mix'!B$206=0,0,+C161/'C1 Mix'!B$206) -> 0 | I161: =IF('C1 Mix'!B$207=0,"-",+C161/'C1 Mix'!B$207) -> 0 | J161: 0 | K161: =IF(ISBLANK('Input 1 -Site'!B$19),"",+C161/'Input 1 -Site'!B$19) -> 0
A162: Highway | F162: =IF(ISBLANK(D162),,+ROUND((D162-'Input 3 -Res Phasing'!$B$7)/30.5,0)) -> 0 | G162: =IF(ISBLANK(E162),,+ROUND((E162-'Input 3 -Res Phasing'!$B$7)/30.5,0)) -> 0 | H162: =IF('C1 Mix'!B$206=0,0,+C162/'C1 Mix'!B$206) -> 0 | I162: =IF('C1 Mix'!B$207=0,"-",+C162/'C1 Mix'!B$207) -> 0 | J162: 0 | K162: =IF(ISBLANK('Input 1 -Site'!B$19),"",+C162/'Input 1 -Site'!B$19) -> 0
A163: Health | F163: =IF(ISBLANK(D163),,+ROUND((D163-'Input 3 -Res Phasing'!$B$7)/30.5,0)) -> 0 | G163: =IF(ISBLANK(E163),,+ROUND((E163-'Input 3 -Res Phasing'!$B$7)/30.5,0)) -> 0 | H163: =IF('C1 Mix'!B$206=0,0,+C163/'C1 Mix'!B$206) -> 0 | I163: =IF('C1 Mix'!B$207=0,"-",+C163/'C1 Mix'!B$207) -> 0 | J163: 0 | K163: =IF(ISBLANK('Input 1 -Site'!B$19),"",+C163/'Input 1 -Site'!B$19) -> 0
A164: Public Art | F164: =IF(ISBLANK(D164),,+ROUND((D164-'Input 3 -Res Phasing'!$B$7)/30.5,0)) -> 0 | G164: =IF(ISBLANK(E164),,+ROUND((E164-'Input 3 -Res Phasing'!$B$7)/30.5,0)) -> 0 | H164: =IF('C1 Mix'!B$206=0,0,+C164/'C1 Mix'!B$206) -> 0 | I164: =IF('C1 Mix'!B$207=0,"-",+C164/'C1 Mix'!B$207) -> 0 | J164: 0 | K164: =IF(ISBLANK('Input 1 -Site'!B$19),"",+C164/'Input 1 -Site'!B$19) -> 0
A165: Flood work | F165: =IF(ISBLANK(D165),,+ROUND((D165-'Input 3 -Res Phasing'!$B$7)/30.5,0)) -> 0 | G165: =IF(ISBLANK(E165),,+ROUND((E165-'Input 3 -Res Phasing'!$B$7)/30.5,0)) -> 0 | H165: =IF('C1 Mix'!B$206=0,0,+C165/'C1 Mix'!B$206) -> 0 | I165: =IF('C1 Mix'!B$207=0,"-",+C165/'C1 Mix'!B$207) -> 0 | J165: 0 | K165: =IF(ISBLANK('Input 1 -Site'!B$19),"",+C165/'Input 1 -Site'!B$19) -> 0
A166: Community Infrastructure Levy | B166: per sq metre | F166: =IF(ISBLANK(D166),,+ROUND((D166-'Input 3 -Res Phasing'!$B$7)/30.5,0)) -> 0 | G166: =IF(ISBLANK(E166),,+ROUND((E166-'Input 3 -Res Phasing'!$B$7)/30.5,0)) -> 0 | I166: =IF('C1 Mix'!B$207=0,"No PRIVATE",J166/'C1 Mix'!B$207) -> 0 | J166: =+C166*'C3 Build Costs'!G99 -> 0 | K166: =IF(ISBLANK('Input 1 -Site'!B$19),"",+C166/'Input 1 -Site'!B$19) -> 0
A167: Other Tariff | B167: per unit | F167: =IF(ISBLANK(D167),,+ROUND((D167-'Input 3 -Res Phasing'!$B$7)/30.5,0)) -> 0 | G167: =IF(ISBLANK(E167),,+ROUND((E167-'Input 3 -Res Phasing'!$B$7)/30.5,0)) -> 0 | I167: =IF('C1 Mix'!B$207=0,"No PRIVATE",IF($B167="per unit",C167,J167/'C1 Mix'!B$207)) -> 0 | J167: =IF(B167="per unit",+C167*'C1 Mix'!B$207,+C167*'C3 Build Costs'!G99) -> 0 | K167: =IF(ISBLANK('Input 1 -Site'!B$19),"",+C167/'Input 1 -Site'!B$19) -> 0
A168: Other 1 | F168: =IF(ISBLANK(D168),,+ROUND((D168-'Input 3 -Res Phasing'!$B$7)/30.5,0)) -> 0 | G168: =IF(ISBLANK(E168),,+ROUND((E168-'Input 3 -Res Phasing'!$B$7)/30.5,0)) -> 0 | H168: =+C168/'C1 Mix'!B$206 -> 0
A169: sale of self build plots | F169: =IF(ISBLANK(D169),,+ROUND((D169-'Input 3 -Res Phasing'!$B$7)/30.5,0)) -> 0 | G169: =IF(ISBLANK(E169),,+ROUND((E169-'Input 3 -Res Phasing'!$B$7)/30.5,0)) -> 0 | H169: =+C169/'C1 Mix'!B$206 -> 0
A170: sale of employment land | F170: =IF(ISBLANK(D170),,+ROUND((D170-'Input 3 -Res Phasing'!$B$7)/30.5,0)) -> 0 | G170: =IF(ISBLANK(E170),,+ROUND((E170-'Input 3 -Res Phasing'!$B$7)/30.5,0)) -> 0 | H170: =+C170/'C1 Mix'!B$206 -> 0
A171: traveller sites | F171: =IF(ISBLANK(D171),,+ROUND((D171-'Input 3 -Res Phasing'!$B$7)/30.5,0)) -> 0 | G171: =IF(ISBLANK(E171),,+ROUND((E171-'Input 3 -Res Phasing'!$B$7)/30.5,0)) -> 0 | H171: =+C171/'C1 Mix'!B$206 -> 0 | I171: =IF('C1 Mix'!B$207=0,"-",+C171/'C1 Mix'!B$207) -> 0 | K171: =IF(ISBLANK('Input 1 -Site'!B$19),"",+C171/'Input 1 -Site'!B$19) -> 0
A172: Scenario use only | F172: =IF(ISBLANK(D172),,+ROUND((D172-'Input 3 -Res Phasing'!$B$7)/30.5,0)) -> 0 | G172: =IF(ISBLANK(E172),,+ROUND((E172-'Input 3 -Res Phasing'!$B$7)/30.5,0)) -> 0 | I172: =IF('C1 Mix'!B$207=0,"-",+C172/'C1 Mix'!B$207) -> 0 | K172: =IF(ISBLANK('Input 1 -Site'!B$19),"",+C172/'Input 1 -Site'!B$19) -> 0
A176: OTHER COSTS
A180: SITE PURCHASE COSTS | C180: % | J180: £
A181: Agents Fees (% of site cost) | C181: 0.0125 | J181: =+'Output - Full'!C196 -> 0
A182: Legal Fees (% of site cost) | C182: 0.005 | J182: =+'Output - Full'!C197 -> 0
A183: Stamp Duty (% of site cost) | C183: 0 | E183: =IF(C183>8%,"Outside expected range","") ->  | J183: =+'Output - Full'!C198 -> 0
B185: Comment on nature of issue | C185: Cost (£) | D185: Payment start date | E185: Payment end date | F185: Month of Payment Start | G185: Month of Payment End
A186: Other Acquisition Costs (£) | F186: =IF(ISBLANK(D186),,+ROUND((D186-'Input 3 -Res Phasing'!$B$7)/30.5,0)) -> 0 | G186: =IF(ISBLANK(E186),,+ROUND((E186-'Input 3 -Res Phasing'!$B$7)/30.5,0)) -> 0
A189: FINANCE COSTS
A191: Arrangement Fee (£) | C191: 0
A192: Interest Rate (%) | C192: 0.06
A193: Misc Fees - Surveyors etc (£) | C193: 0
A194: Credit balance reinvestment % | C194: 0 | D194: =IF(C194=0,"Zero is unrealisitic and will understate scheme viability",IF(C194<0.5*Interest_Rate,"low credit interest understates scheme viability",0)) -> Zero is unrealisitic and will understate scheme viability
A196: MARKETING COSTS
A198: Affordable Housing Marketing Costs
C199: Cost (£) | D199: Payment start date | E199: Payment end date | F199: Month of Payment Start | G199: Month of Payment End
A200: Developer cost of sale to RP (£) | F200: =IF(ISBLANK(D200),,+ROUND((D200-'Input 3 -Res Phasing'!$B$7)/30.5,0)) -> 0 | G200: =IF(ISBLANK(E200),,+ROUND((E200-'Input 3 -Res Phasing'!$B$7)/30.5,0)) -> 0
A201: RP purchase costs (£) | F201: =IF(ISBLANK(D201),,+ROUND((D201-'Input 3 -Res Phasing'!$B$7)/30.5,0)) -> 0 | G201: =IF(ISBLANK(E201),,+ROUND((E201-'Input 3 -Res Phasing'!$B$7)/30.5,0)) -> 0
A202: Intermediate Housing Sales and Marketing (£) | F202: =IF(ISBLANK(D202),,+ROUND((D202-'Input 3 -Res Phasing'!$B$7)/30.5,0)) -> 0 | G202: =IF(ISBLANK(E202),,+ROUND((E202-'Input 3 -Res Phasing'!$B$7)/30.5,0)) -> 0
A205: Open Market Housing Marketing Costs
F206: £ Total
A207: Sales Fees (agents fees & marketing fees) - % | C207: 0.03 | F207: =-'C3 Build Costs'!C233 -> 1802146.5
A208: Legal Fees (per Open Market unit) - £ | C208: 0 | F208: =-'C3 Build Costs'!C234 -> 0
A209: Agents Private Rental Intial Letting fees - % | F209: =-'C3 Build Costs'!H241 -> 0
A212: DEVELOPER'S OVERHEAD AND RETURN FOR RISK (before taxation)
A214: Developer O/head (£) | E214: Return at Scheme end
A218: Open Market Housing (% GDV) | B218: 0.175 | C218: =IF('C2 Value'!H536=0,0,+(('C2 Value'!H536*B218)+C214)/'C2 Value'!H536) -> 0.175 | D218: inc Overheads
C219: ='Output - Full'!D207 -> 61838.36029 | D219: per open market home
A220: Private Rental (% Cost)
A221: Affordable Housing (% Cost) | B221: 0.06

Sheet Input 6 - Non Res
A1: =+'Input 1 -Site'!A1 -> Surplus/Deficit after allowing for present value of deferred land payments | C1: =+'Input 1 -Site'!F1 -> 4,342,139
A3: =+"HCA "&'- Cover -'!$A$2&'- Cover -'!$A$3 -> HCA DevelopmentAppraisal Tool | B3: Dates must be between | C3: =+'Input 3 -Res Phasing'!B7 -> 2020-01-01
A4: INPUT SHEET 6 - NON-RESIDENTIAL | B4: and | C4: =+C3+7300 -> 2039-12-27
A6: ASSUMPTIONS by user defined type
A7: Office
A8: Comments here
A9: ="Area of "&A7&" scheme (gross sq m)" -> Area of Office scheme (gross sq m)
A10: ="Area of "&A7&" scheme (net lettable sq m)" -> Area of Office scheme (net lettable sq m)
A12: Values
A13: Rent (£ psm pa)
A14: Investor's Yield (%)
A15: Costs of Sale (% of value)
A17: Building Costs
A18: =A7&" Building Costs (Gross, £ psm)" -> Office Building Costs (Gross, £ psm)
A19: =A7&" Building Professional Fees (% of building costs)" -> Office Building Professional Fees (% of building costs)
A20: Building Contingencies (% of building costs)
A21: CIL rate applicable (£ per m2 GIA)
A23: Phasing | B23: Date | C23: Month
A24: Start of Building Period | C24: =IF(ISBLANK($B24),,ROUND(($B24-$C$3)/30.5,0)) -> 0
A25: End of Building Period | C25: =IF(ISBLANK($B25),,ROUND(($B25-$C$3)/30.5,0)) -> 0
A26: Timing of Letting / Sale | C26: =IF(ISBLANK($B26),,ROUND(($B26-$C$3)/30.5,0)) -> 0
A27: Timing of CIL payment | C27: =IF(ISBLANK($B27),,ROUND(($B27-$C$3)/30.5,0)) -> 0
A29: Letting, Advertising & Sale fees
A30: Letting fees (% of annual income)
A31: Advertising fees (% of annual income)
A32: Sale fees (% of sale price)
A34: Developer's Return for risk / profit (% of value)
A38: Retail
A39: Comments here
A40: ="Area of "&A38&" scheme (gross sq m)" -> Area of Retail scheme (gross sq m)
A41: ="Area of "&A38&" scheme (net lettable sq m)" -> Area of Retail scheme (net lettable sq m)
A43: Values
A44: Rent (£ psm pa)
A45: Investor's Yield (%) | C45: (Average out where 'Zone A' frontage is higher than remainder)
A46: Costs of Sale (% of value)
A48: Building Costs
A49: =A38&" Building Costs (Gross, £ psm)" -> Retail Building Costs (Gross, £ psm)
A50: =A38&" Building Professional Fees (% of building costs)" -> Retail Building Professional Fees (% of building costs)
A51: Building Contingencies (% of building costs)
A52: CIL rate applicable (£ per m2 GIA)
A54: Phasing | B54: Date | C54: Month
A55: Start of Building Period | C55: =IF(ISBLANK($B55),,ROUND(($B55-$C$3)/30.5,0)) -> 0
A56: End of Building Period | C56: =IF(ISBLANK($B56),,ROUND(($B56-$C$3)/30.5,0)) -> 0
A57: Timing of Letting / Sale | C57: =IF(ISBLANK($B57),,ROUND(($B57-$C$3)/30.5,0)) -> 0
A58: Timing of CIL payment | C58: =IF(ISBLANK($B58),,ROUND(($B58-$C$3)/30.5,0)) -> 0
A60: Letting / sale fees
A61: Letting (% of income)
A62: Advertising (% of annual income)
A63: Sale (% of sale price)
A65: Developer's Return for risk / profit (% of value)
A69: Industrial
A70: Comments here
A71: ="Area of "&A68&" scheme (gross sq m)" -> Area of scheme (gross sq m)
A73: Values
A74: Rent (£ psm pa)
A75: Investor's Yield (%)
A76: Costs of Sale (% of value)
A78: Building Costs
A79: =A69&" Building Costs (Gross, £ psm)" -> Industrial Building Costs (Gross, £ psm)
A80: =A69&" Building Professional Fees (% of building costs)" -> Industrial Building Professional Fees (% of building costs)
A81: Building Contingencies (% of building costs)
A82: CIL rate applicable (£ per m2 GIA)
A84: Phasing | B84: Date | C84: Month
A85: Start of Building Period | C85: =IF(ISBLANK($B85),,ROUND(($B85-$C$3)/30.5,0)) -> 0
A86: End of Building Period | C86: =IF(ISBLANK($B86),,ROUND(($B86-$C$3)/30.5,0)) -> 0
A87: Timing of Letting / Sale | C87: =IF(ISBLANK($B87),,ROUND(($B87-$C$3)/30.5,0)) -> 0
A88: Timing of CIL payment | C88: =IF(ISBLANK($B88),,ROUND(($B88-$C$3)/30.5,0)) -> 0
A90: Letting / sale fees
A91: Letting (% of income)
A92: Advertising (% of annual income)
A93: Sale (% of sale price)
A95: Developer's Return for risk / profit (% of value)
A99: Leisure
A100: Test
A101: ="Area of "&A99&" scheme (gross sq m)" -> Area of Leisure scheme (gross sq m)
A102: ="Area of "&A99&" scheme (net lettable sq m)" -> Area of Leisure scheme (net lettable sq m)
A104: Values
A105: Rent (£ psm pa)
A106: Investor's Yield (%)
A107: Costs of Sale (% of value)
A109: Building Costs
A110: =A99&" Building Costs (Gross, £ psm)" -> Leisure Building Costs (Gross, £ psm)
A111: =A99&" Building Professional Fees (% of building costs)" -> Leisure Building Professional Fees (% of building costs)
A112: Building Contingencies (% of building costs)
A113: CIL rate applicable (£ per m2 GIA)
A115: Phasing | B115: Date | C115: Month
A116: Start of Building Period | C116: =IF(ISBLANK($B116),,ROUND(($B116-$C$3)/30.5,0)) -> 0
A117: End of Building Period | C117: =IF(ISBLANK($B117),,ROUND(($B117-$C$3)/30.5,0)) -> 0
A118: Timing of Letting / Sale | C118: =IF(ISBLANK($B118),,ROUND(($B118-$C$3)/30.5,0)) -> 0
A119: Timing of CIL payment | C119: =IF(ISBLANK($B119),,ROUND(($B119-$C$3)/30.5,0)) -> 0
A121: Letting / sale fees
A122: Letting (% of income)
A123: Advertising (% of annual income)
A124: Sale (% of sale price)
A126: Developer's Return for risk / profit (% of value)
A130: Community Use
A131: Comments here
A132: ="Area of "&A130&" scheme (gross sq m)" -> Area of Community Use scheme (gross sq m)
A133: ="Area of "&A130&" scheme (net lettable sq m)" -> Area of Community Use scheme (net lettable sq m)
A135: Values
A136: Rent (£ psm pa)
A137: Investor's Yield (%)
A138: Costs of Sale (% of value)
A140: Building Costs
A141: =A130&" Building Costs (Gross, £ psm)" -> Community Use Building Costs (Gross, £ psm)
A142: =A130&" Building Professional Fees (% of building costs)" -> Community Use Building Professional Fees (% of building costs)
A143: Building Contingencies (% of building costs)
A144: CIL rate applicable (£ per m2 GIA)
A146: Phasing | B146: Date | C146: Month
A147: Start of Building Period | C147: =IF(ISBLANK($B147),,ROUND(($B147-$C$3)/30.5,0)) -> 0
A148: End of Building Period | C148: =IF(ISBLANK($B148),,ROUND(($B148-$C$3)/30.5,0)) -> 0
A149: Timing of Letting / Sale | C149: =IF(ISBLANK($B149),,ROUND(($B149-$C$3)/30.5,0)) -> 0
A150: Timing of CIL payment | C150: =IF(ISBLANK($B150),,ROUND(($B150-$C$3)/30.5,0)) -> 0
A152: Letting / sale fees
A153: Letting (% of income)
A154: Advertising (% of annual income)
A155: Sale (% of sale price)
A157: Developer's Return for risk / profit (% of value)

Sheet Notes & Memos
A1: Surplus (Deficit) from Input land valuation at 31/7/2014 | C1: Incomplete entry , see warning sheet
A2: HCA DEVELOPMENT APPRAISAL TOOL
C4: Space for pasting any more detailed figures supporting inputs into the DAT model
C5: This data may be used as cell references in formula within DAT entries.

Sheet Warnings
A1: Conclusion: | B1: =IF(ISERROR(SUM(D2:D672)),"Invalid data entered, error check input cells",IF(SUM(D2:D672)=0,"No obviously missing data","Input still required for valid Residual valuation, see below")) -> No obviously missing data
A2: ERRORS LISTING (if any) | C2: Missing Scheme Info (if any)
F3: =IF(OR((ISBLANK(C3)),C3=""),0,1) -> 0
C4: =IF(ISBLANK('Input 3 -Res Phasing'!D11),"Missing Scheme End Month","") ->  | F4: 0
A5: =+'Summary 2 -Res Values'!A$11 -> Social Rented | C5: =IF(AND('Summary 2 -Res Values'!E16>0,'Summary 2 -Res Values'!B16=0),'Summary 2 -Res Values'!A16&" "&"missing rents","Ok") -> Ok | D5: =IF(C5="Ok",0,1) -> 0 | F5: 1
A6: =+'Summary 2 -Res Values'!A$11 -> Social Rented | C6: =IF(AND('Summary 2 -Res Values'!E17>0,'Summary 2 -Res Values'!B17=0),'Summary 2 -Res Values'!A17&" "&"missing rents","Ok") -> Ok | D6: 0 | F6: 1
A7: =+'Summary 2 -Res Values'!A$11 -> Social Rented | C7: =IF(AND('Summary 2 -Res Values'!E18>0,'Summary 2 -Res Values'!B18=0),'Summary 2 -Res Values'!A18&" "&"missing rents","Ok") -> Ok | D7: 0 | F7: 1
A8: =+'Summary 2 -Res Values'!A$11 -> Social Rented | C8: =IF(AND('Summary 2 -Res Values'!E19>0,'Summary 2 -Res Values'!B19=0),'Summary 2 -Res Values'!A19&" "&"missing rents","Ok") -> Ok | D8: 0 | F8: 1
A9: =+'Summary 2 -Res Values'!A$11 -> Social Rented | C9: =IF(AND('Summary 2 -Res Values'!E20>0,'Summary 2 -Res Values'!B20=0),'Summary 2 -Res Values'!A20&" "&"missing rents","Ok") -> Ok | D9: 0 | F9: 1
A10: =+'Summary 2 -Res Values'!A$11 -> Social Rented | C10: =IF(AND('Summary 2 -Res Values'!E21>0,'Summary 2 -Res Values'!B21=0),'Summary 2 -Res Values'!A21&" "&"missing rents","Ok") -> Ok | D10: 0 | F10: 1
A11: =+'Summary 2 -Res Values'!A$11 -> Social Rented | C11: =IF(AND('Summary 2 -Res Values'!E22>0,'Summary 2 -Res Values'!B22=0),'Summary 2 -Res Values'!A22&" "&"missing rents","Ok") -> Ok | D11: 0 | F11: 1
A12: =+'Summary 2 -Res Values'!A$11 -> Social Rented | C12: =IF(AND('Summary 2 -Res Values'!E23>0,'Summary 2 -Res Values'!B23=0),'Summary 2 -Res Values'!A23&" "&"missing rents","Ok") -> Ok | D12: 0
A13: =+'Summary 2 -Res Values'!A$11 -> Social Rented | C13: =IF(AND('Summary 2 -Res Values'!E24>0,'Summary 2 -Res Values'!B24=0),'Summary 2 -Res Values'!A24&" "&"missing rents","Ok") -> Ok | D13: 0
A14: =+'Summary 2 -Res Values'!A$11 -> Social Rented | C14: =IF(AND('Summary 2 -Res Values'!E25>0,'Summary 2 -Res Values'!B25=0),'Summary 2 -Res Values'!A25&" "&"missing rents","Ok") -> Ok | D14: 0
A15: =+'Summary 2 -Res Values'!A$11 -> Social Rented | C15: =IF(AND('Summary 2 -Res Values'!E26>0,'Summary 2 -Res Values'!B26=0),'Summary 2 -Res Values'!A26&" "&"missing rents","Ok") -> Ok | D15: 0
A16: =+'Summary 2 -Res Values'!A$11 -> Social Rented | C16: =IF(AND('Summary 2 -Res Values'!E27>0,'Summary 2 -Res Values'!B27=0),'Summary 2 -Res Values'!A27&" "&"missing rents","Ok") -> Ok | D16: 0
A17: =+'Summary 2 -Res Values'!A$11 -> Social Rented | C17: =IF(AND('Summary 2 -Res Values'!E28>0,'Summary 2 -Res Values'!B28=0),'Summary 2 -Res Values'!A28&" "&"missing rents","Ok") -> Ok | D17: 0
D18: 0 | F18: =IF(OR((ISBLANK(C18)),C18=""),0,1) -> 0
A19: Check Shared Ownership ph1 parameters | C19: =IF('Input 2 -Res BATCH'!$K$5<>"AH & RENTAL VALUATION BASED ON CAPITAL VALUES for RESIDUAL VALUATION",IF(AND('Summary 2 -Res Values'!B57=0,SUM('Summary 2 -Res Values'!I43:I55)>0),"Missing Initial Tranche %","Ok"),"Ok") -> Ok | D19: =IF(C19="Ok",0,1) -> 0 | F19: =IF(OR((ISBLANK(C19)),C19=""),0,1) -> 1
A20: Check Shared Ownership ph1 parameters | C20: =IF('Input 2 -Res BATCH'!$K$5<>"AH & RENTAL VALUATION BASED ON CAPITAL VALUES for RESIDUAL VALUATION",IF(AND('Summary 2 -Res Values'!B59=0,SUM('Summary 2 -Res Values'!I43:I55)>0),"Missing Unsold equity rental %","Ok"),"Ok") -> Ok | D20: 0
A21: Check Shared Ownership ph1 values | C21: =IF('Input 2 -Res BATCH'!K$5<>"AH & RENTAL VALUATION BASED ON CAPITAL VALUES for RESIDUAL VALUATION",IF(AND('Summary 2 -Res Values'!C43=0,'Summary 2 -Res Values'!I43>0),'Summary 2 -Res Values'!A43&" "&'Summary 2 -Res Values'!C43,"Ok"),"Ok") -> Ok | D21: 0 | F21: =IF(OR((ISBLANK(C21)),C21=""),0,1) -> 1
A22: Check Shared Ownership ph1 values | C22: =IF('Input 2 -Res BATCH'!K$5<>"AH & RENTAL VALUATION BASED ON CAPITAL VALUES for RESIDUAL VALUATION",IF(AND('Summary 2 -Res Values'!C44=0,'Summary 2 -Res Values'!I44>0),'Summary 2 -Res Values'!A44&" "&'Summary 2 -Res Values'!C44,"Ok"),"Ok") -> Ok | D22: 0 | F22: 1
A23: Check Shared Ownership ph1 values | C23: =IF('Input 2 -Res BATCH'!K$5<>"AH & RENTAL VALUATION BASED ON CAPITAL VALUES for RESIDUAL VALUATION",IF(AND('Summary 2 -Res Values'!C45=0,'Summary 2 -Res Values'!I45>0),'Summary 2 -Res Values'!A45&" "&'Summary 2 -Res Values'!C45,"Ok"),"Ok") -> Ok | D23: 0 | F23: 1
A24: Check Shared Ownership ph1 values | C24: =IF('Input 2 -Res BATCH'!K$5<>"AH & RENTAL VALUATION BASED ON CAPITAL VALUES for RESIDUAL VALUATION",IF(AND('Summary 2 -Res Values'!C46=0,'Summary 2 -Res Values'!I46>0),'Summary 2 -Res Values'!A46&" "&'Summary 2 -Res Values'!C46,"Ok"),"Ok") -> Ok | D24: 0 | F24: 1
A25: Check Shared Ownership ph1 values | C25: =IF('Input 2 -Res BATCH'!K$5<>"AH & RENTAL VALUATION BASED ON CAPITAL VALUES for RESIDUAL VALUATION",IF(AND('Summary 2 -Res Values'!C47=0,'Summary 2 -Res Values'!I47>0),'Summary 2 -Res Values'!A47&" "&'Summary 2 -Res Values'!C47,"Ok"),"Ok") -> Ok | D25: 0 | F25: 1
A26: Check Shared Ownership ph1 values | C26: =IF('Input 2 -Res BATCH'!K$5<>"AH & RENTAL VALUATION BASED ON CAPITAL VALUES for RESIDUAL VALUATION",IF(AND('Summary 2 -Res Values'!C48=0,'Summary 2 -Res Values'!I48>0),'Summary 2 -Res Values'!A48&" "&'Summary 2 -Res Values'!C48,"Ok"),"Ok") -> Ok | D26: 0 | F26: 1
A27: Check Shared Ownership ph1 values | C27: =IF('Input 2 -Res BATCH'!K$5<>"AH & RENTAL VALUATION BASED ON CAPITAL VALUES for RESIDUAL VALUATION",IF(AND('Summary 2 -Res Values'!C49=0,'Summary 2 -Res Values'!I49>0),'Summary 2 -Res Values'!A49&" "&'Summary 2 -Res Values'!C49,"Ok"),"Ok") -> Ok | D27: 0 | F27: 1
A28: Check Shared Ownership ph1 values | C28: =IF('Input 2 -Res BATCH'!K$5<>"AH & RENTAL VALUATION BASED ON CAPITAL VALUES for RESIDUAL VALUATION",IF(AND('Summary 2 -Res Values'!C50=0,'Summary 2 -Res Values'!I50>0),'Summary 2 -Res Values'!A50&" "&'Summary 2 -Res Values'!C50,"Ok"),"Ok") -> Ok | D28: 0
A29: Check Shared Ownership ph1 values | C29: =IF('Input 2 -Res BATCH'!K$5<>"AH & RENTAL VALUATION BASED ON CAPITAL VALUES for RESIDUAL VALUATION",IF(AND('Summary 2 -Res Values'!C51=0,'Summary 2 -Res Values'!I51>0),'Summary 2 -Res Values'!A51&" "&'Summary 2 -Res Values'!C51,"Ok"),"Ok") -> Ok | D29: 0
A30: Check Shared Ownership ph1 values | C30: =IF('Input 2 -Res BATCH'!K$5<>"AH & RENTAL VALUATION BASED ON CAPITAL VALUES for RESIDUAL VALUATION",IF(AND('Summary 2 -Res Values'!C52=0,'Summary 2 -Res Values'!I52>0),'Summary 2 -Res Values'!A52&" "&'Summary 2 -Res Values'!C52,"Ok"),"Ok") -> Ok | D30: 0
A31: Check Shared Ownership ph1 values | C31: =IF('Input 2 -Res BATCH'!K$5<>"AH & RENTAL VALUATION BASED ON CAPITAL VALUES for RESIDUAL VALUATION",IF(AND('Summary 2 -Res Values'!C53=0,'Summary 2 -Res Values'!I53>0),'Summary 2 -Res Values'!A53&" "&'Summary 2 -Res Values'!C53,"Ok"),"Ok") -> Ok | D31: 0
A32: Check Shared Ownership ph1 values | C32: =IF('Input 2 -Res BATCH'!K$5<>"AH & RENTAL VALUATION BASED ON CAPITAL VALUES for RESIDUAL VALUATION",IF(AND('Summary 2 -Res Values'!C54=0,'Summary 2 -Res Values'!I54>0),'Summary 2 -Res Values'!A54&" "&'Summary 2 -Res Values'!C54,"Ok"),"Ok") -> Ok | D32: 0
A33: Check Shared Ownership ph1 values | C33: =IF('Input 2 -Res BATCH'!K$5<>"AH & RENTAL VALUATION BASED ON CAPITAL VALUES for RESIDUAL VALUATION",IF(AND('Summary 2 -Res Values'!C55=0,'Summary 2 -Res Values'!I55>0),'Summary 2 -Res Values'!A55&" "&'Summary 2 -Res Values'!C55,"Ok"),"Ok") -> Ok | D33: 0
D34: 0 | F34: =IF(OR((ISBLANK(C34)),C34=""),0,1) -> 0
A35: Check Shared Ownership ph2 parameters | C35: =IF('Input 2 -Res BATCH'!$K$5<>"AH & RENTAL VALUATION BASED ON CAPITAL VALUES for RESIDUAL VALUATION",IF(AND('Summary 2 -Res Values'!B91=0,SUM('Summary 2 -Res Values'!I77:I89)>0),"Missing Initial Tranche %","Ok"),"Ok") -> Ok | D35: 0 | F35: =IF(OR((ISBLANK(C35)),C35=""),0,1) -> 1
A36: Check Shared Ownership ph2 parameters | C36: =IF('Input 2 -Res BATCH'!$K$5<>"AH & RENTAL VALUATION BASED ON CAPITAL VALUES for RESIDUAL VALUATION",IF(AND('Summary 2 -Res Values'!B93=0,SUM('Summary 2 -Res Values'!I77:I89)>0),"Missing Unsold equity rental %","Ok"),"Ok") -> Ok | D36: 0
A37: Check Shared Ownership ph2 values | C37: =IF('Input 2 -Res BATCH'!K$5<>"AH & RENTAL VALUATION BASED ON CAPITAL VALUES for RESIDUAL VALUATION",IF(AND('Summary 2 -Res Values'!C77=0,'Summary 2 -Res Values'!I77>0),'Summary 2 -Res Values'!A77&" "&'Summary 2 -Res Values'!C77,"Ok"),"Ok") -> Ok | D37: 0 | F37: =IF(OR((ISBLANK(C37)),C37=""),0,1) -> 1
A38: Check Shared Ownership ph2 values | C38: =IF('Input 2 -Res BATCH'!K$5<>"AH & RENTAL VALUATION BASED ON CAPITAL VALUES for RESIDUAL VALUATION",IF(AND('Summary 2 -Res Values'!C78=0,'Summary 2 -Res Values'!I78>0),'Summary 2 -Res Values'!A78&" "&'Summary 2 -Res Values'!C78,"Ok"),"Ok") -> Ok | D38: 0 | F38: 1
A39: Check Shared Ownership ph2 values | C39: =IF('Input 2 -Res BATCH'!K$5<>"AH & RENTAL VALUATION BASED ON CAPITAL VALUES for RESIDUAL VALUATION",IF(AND('Summary 2 -Res Values'!C79=0,'Summary 2 -Res Values'!I79>0),'Summary 2 -Res Values'!A79&" "&'Summary 2 -Res Values'!C79,"Ok"),"Ok") -> Ok | D39: 0 | F39: 1
A40: Check Shared Ownership ph2 values | C40: =IF('Input 2 -Res BATCH'!K$5<>"AH & RENTAL VALUATION BASED ON CAPITAL VALUES for RESIDUAL VALUATION",IF(AND('Summary 2 -Res Values'!C80=0,'Summary 2 -Res Values'!I80>0),'Summary 2 -Res Values'!A80&" "&'Summary 2 -Res Values'!C80,"Ok"),"Ok") -> Ok | D40: 0 | F40: 1
A41: Check Shared Ownership ph2 values | C41: =IF('Input 2 -Res BATCH'!K$5<>"AH & RENTAL VALUATION BASED ON CAPITAL VALUES for RESIDUAL VALUATION",IF(AND('Summary 2 -Res Values'!C81=0,'Summary 2 -Res Values'!I81>0),'Summary 2 -Res Values'!A81&" "&'Summary 2 -Res Values'!C81,"Ok"),"Ok") -> Ok | D41: 0 | F41: 1
A42: Check Shared Ownership ph2 values | C42: =IF('Input 2 -Res BATCH'!K$5<>"AH & RENTAL VALUATION BASED ON CAPITAL VALUES for RESIDUAL VALUATION",IF(AND('Summary 2 -Res Values'!C82=0,'Summary 2 -Res Values'!I82>0),'Summary 2 -Res Values'!A82&" "&'Summary 2 -Res Values'!C82,"Ok"),"Ok") -> Ok | D42: 0 | F42: 1
A43: Check Shared Ownership ph2 values | C43: =IF('Input 2 -Res BATCH'!K$5<>"AH & RENTAL VALUATION BASED ON CAPITAL VALUES for RESIDUAL VALUATION",IF(AND('Summary 2 -Res Values'!C83=0,'Summary 2 -Res Values'!I83>0),'Summary 2 -Res Values'!A83&" "&'Summary 2 -Res Values'!C83,"Ok"),"Ok") -> Ok | D43: 0 | F43: 1
A44: Check Shared Ownership ph2 values | C44: =IF('Input 2 -Res BATCH'!K$5<>"AH & RENTAL VALUATION BASED ON CAPITAL VALUES for RESIDUAL VALUATION",IF(AND('Summary 2 -Res Values'!C84=0,'Summary 2 -Res Values'!I84>0),'Summary 2 -Res Values'!A84&" "&'Summary 2 -Res Values'!C84,"Ok"),"Ok") -> Ok | D44: 0
A45: Check Shared Ownership ph2 values | C45: =IF('Input 2 -Res BATCH'!K$5<>"AH & RENTAL VALUATION BASED ON CAPITAL VALUES for RESIDUAL VALUATION",IF(AND('Summary 2 -Res Values'!C85=0,'Summary 2 -Res Values'!I85>0),'Summary 2 -Res Values'!A85&" "&'Summary 2 -Res Values'!C85,"Ok"),"Ok") -> Ok | D45: 0
A46: Check Shared Ownership ph2 values | C46: =IF('Input 2 -Res BATCH'!K$5<>"AH & RENTAL VALUATION BASED ON CAPITAL VALUES for RESIDUAL VALUATION",IF(AND('Summary 2 -Res Values'!C86=0,'Summary 2 -Res Values'!I86>0),'Summary 2 -Res Values'!A86&" "&'Summary 2 -Res Values'!C86,"Ok"),"Ok") -> Ok | D46: 0
A47: Check Shared Ownership ph2 values | C47: =IF('Input 2 -Res BATCH'!K$5<>"AH & RENTAL VALUATION BASED ON CAPITAL VALUES for RESIDUAL VALUATION",IF(AND('Summary 2 -Res Values'!C87=0,'Summary 2 -Res Values'!I87>0),'Summary 2 -Res Values'!A87&" "&'Summary 2 -Res Values'!C87,"Ok"),"Ok") -> Ok | D47: 0
A48: Check Shared Ownership ph2 values | C48: =IF('Input 2 -Res BATCH'!K$5<>"AH & RENTAL VALUATION BASED ON CAPITAL VALUES for RESIDUAL VALUATION",IF(AND('Summary 2 -Res Values'!C88=0,'Summary 2 -Res Values'!I88>0),'Summary 2 -Res Values'!A88&" "&'Summary 2 -Res Values'!C88,"Ok"),"Ok") -> Ok | D48: 0
A49: Check Shared Ownership ph2 values | C49: =IF('Input 2 -Res BATCH'!K$5<>"AH & RENTAL VALUATION BASED ON CAPITAL VALUES for RESIDUAL VALUATION",IF(AND('Summary 2 -Res Values'!C89=0,'Summary 2 -Res Values'!I89>0),'Summary 2 -Res Values'!A89&" "&'Summary 2 -Res Values'!C89,"Ok"),"Ok") -> Ok | D49: 0
D50: 0 | F50: =IF(OR((ISBLANK(C50)),C50=""),0,1) -> 0
A51: Check Shared Ownership ph3 parameters | C51: =IF('Input 2 -Res BATCH'!$K$5<>"AH & RENTAL VALUATION BASED ON CAPITAL VALUES for RESIDUAL VALUATION",IF(AND('Summary 2 -Res Values'!B125=0,SUM('Summary 2 -Res Values'!I111:I123)>0),"Missing Initial Tranche %","Ok"),"Ok") -> Ok | D51: =IF(C51="Ok",0,1) -> 0 | F51: =IF(OR((ISBLANK(C51)),C51=""),0,1) -> 1
A52: Check Shared Ownership ph3 parameters | C52: =IF('Input 2 -Res BATCH'!$K$5<>"AH & RENTAL VALUATION BASED ON CAPITAL VALUES for RESIDUAL VALUATION",IF(AND('Summary 2 -Res Values'!B127=0,SUM('Summary 2 -Res Values'!I111:I123)>0),"Missing Unsold equity rental %","Ok"),"Ok") -> Ok | D52: 0
A53: Check Shared Ownership ph3 values | C53: =IF('Input 2 -Res BATCH'!K$5<>"AH & RENTAL VALUATION BASED ON CAPITAL VALUES for RESIDUAL VALUATION",IF(AND('Summary 2 -Res Values'!C111=0,'Summary 2 -Res Values'!I111>0),'Summary 2 -Res Values'!A111&" "&'Summary 2 -Res Values'!C111,"Ok"),"Ok") -> Ok | D53: 0 | F53: =IF(OR((ISBLANK(C53)),C53=""),0,1) -> 1
A54: Check Shared Ownership ph3 values | C54: =IF('Input 2 -Res BATCH'!K$5<>"AH & RENTAL VALUATION BASED ON CAPITAL VALUES for RESIDUAL VALUATION",IF(AND('Summary 2 -Res Values'!C112=0,'Summary 2 -Res Values'!I112>0),'Summary 2 -Res Values'!A112&" "&'Summary 2 -Res Values'!C112,"Ok"),"Ok") -> Ok | D54: 0 | F54: 1
A55: Check Shared Ownership ph3 values | C55: =IF('Input 2 -Res BATCH'!K$5<>"AH & RENTAL VALUATION BASED ON CAPITAL VALUES for RESIDUAL VALUATION",IF(AND('Summary 2 -Res Values'!C113=0,'Summary 2 -Res Values'!I113>0),'Summary 2 -Res Values'!A113&" "&'Summary 2 -Res Values'!C113,"Ok"),"Ok") -> Ok | D55: 0 | F55: 1
A56: Check Shared Ownership ph3 values | C56: =IF('Input 2 -Res BATCH'!K$5<>"AH & RENTAL VALUATION BASED ON CAPITAL VALUES for RESIDUAL VALUATION",IF(AND('Summary 2 -Res Values'!C114=0,'Summary 2 -Res Values'!I114>0),'Summary 2 -Res Values'!A114&" "&'Summary 2 -Res Values'!C114,"Ok"),"Ok") -> Ok | D56: 0 | F56: 1
A57: Check Shared Ownership ph3 values | C57: =IF('Input 2 -Res BATCH'!K$5<>"AH & RENTAL VALUATION BASED ON CAPITAL VALUES for RESIDUAL VALUATION",IF(AND('Summary 2 -Res Values'!C115=0,'Summary 2 -Res Values'!I115>0),'Summary 2 -Res Values'!A115&" "&'Summary 2 -Res Values'!C115,"Ok"),"Ok") -> Ok | D57: 0 | F57: 1
A58: Check Shared Ownership ph3 values | C58: =IF('Input 2 -Res BATCH'!K$5<>"AH & RENTAL VALUATION BASED ON CAPITAL VALUES for RESIDUAL VALUATION",IF(AND('Summary 2 -Res Values'!C116=0,'Summary 2 -Res Values'!I116>0),'Summary 2 -Res Values'!A116&" "&'Summary 2 -Res Values'!C116,"Ok"),"Ok") -> Ok | D58: 0 | F58: 1
A59: Check Shared Ownership ph3 values | C59: =IF('Input 2 -Res BATCH'!K$5<>"AH & RENTAL VALUATION BASED ON CAPITAL VALUES for RESIDUAL VALUATION",IF(AND('Summary 2 -Res Values'!C117=0,'Summary 2 -Res Values'!I117>0),'Summary 2 -Res Values'!A117&" "&'Summary 2 -Res Values'!C117,"Ok"),"Ok") -> Ok | D59: 0 | F59: 1
A60: Check Shared Ownership ph3 values | C60: =IF('Input 2 -Res BATCH'!K$5<>"AH & RENTAL VALUATION BASED ON CAPITAL VALUES for RESIDUAL VALUATION",IF(AND('Summary 2 -Res Values'!C118=0,'Summary 2 -Res Values'!I118>0),'Summary 2 -Res Values'!A118&" "&'Summary 2 -Res Values'!C118,"Ok"),"Ok") -> Ok | D60: 0
A61: Check Shared Ownership ph3 values | C61: =IF('Input 2 -Res BATCH'!K$5<>"AH & RENTAL VALUATION BASED ON CAPITAL VALUES for RESIDUAL VALUATION",IF(AND('Summary 2 -Res Values'!C119=0,'Summary 2 -Res Values'!I119>0),'Summary 2 -Res Values'!A119&" "&'Summary 2 -Res Values'!C119,"Ok"),"Ok") -> Ok | D61: 0
A62: Check Shared Ownership ph3 values | C62: =IF('Input 2 -Res BATCH'!K$5<>"AH & RENTAL VALUATION BASED ON CAPITAL VALUES for RESIDUAL VALUATION",IF(AND('Summary 2 -Res Values'!C120=0,'Summary 2 -Res Values'!I120>0),'Summary 2 -Res Values'!A120&" "&'Summary 2 -Res Values'!C120,"Ok"),"Ok") -> Ok | D62: 0
A63: Check Shared Ownership ph3 values | C63: =IF('Input 2 -Res BATCH'!K$5<>"AH & RENTAL VALUATION BASED ON CAPITAL VALUES for RESIDUAL VALUATION",IF(AND('Summary 2 -Res Values'!C121=0,'Summary 2 -Res Values'!I121>0),'Summary 2 -Res Values'!A121&" "&'Summary 2 -Res Values'!C121,"Ok"),"Ok") -> Ok | D63: 0
A64: Check Shared Ownership ph3 values | C64: =IF('Input 2 -Res BATCH'!K$5<>"AH & RENTAL VALUATION BASED ON CAPITAL VALUES for RESIDUAL VALUATION",IF(AND('Summary 2 -Res Values'!C122=0,'Summary 2 -Res Values'!I122>0),'Summary 2 -Res Values'!A122&" "&'Summary 2 -Res Values'!C122,"Ok"),"Ok") -> Ok | D64: 0
A65: Check Shared Ownership ph3 values | C65: =IF('Input 2 -Res BATCH'!K$5<>"AH & RENTAL VALUATION BASED ON CAPITAL VALUES for RESIDUAL VALUATION",IF(AND('Summary 2 -Res Values'!C123=0,'Summary 2 -Res Values'!I123>0),'Summary 2 -Res Values'!A123&" "&'Summary 2 -Res Values'!C123,"Ok"),"Ok") -> Ok | D65: 0
D66: 0
A67: Check Shared Ownership ph4 parameters | C67: =IF('Input 2 -Res BATCH'!$K$5<>"AH & RENTAL VALUATION BASED ON CAPITAL VALUES for RESIDUAL VALUATION",IF(AND('Summary 2 -Res Values'!B159=0,SUM('Summary 2 -Res Values'!I145:I157)>0),"Missing Initial Tranche %","Ok"),"Ok") -> Ok | D67: =IF(C67="Ok",0,1) -> 0 | F67: =IF(OR((ISBLANK(C67)),C67=""),0,1) -> 1
A68: Check Shared Ownership ph4 parameters | C68: =IF('Input 2 -Res BATCH'!$K$5<>"AH & RENTAL VALUATION BASED ON CAPITAL VALUES for RESIDUAL VALUATION",IF(AND('Summary 2 -Res Values'!B161=0,SUM('Summary 2 -Res Values'!I145:I157)>0),"Missing Unsold equity rental %","Ok"),"Ok") -> Ok | D68: 0
A69: Check Shared Ownership ph4 values | C69: =IF('Input 2 -Res BATCH'!K$5<>"AH & RENTAL VALUATION BASED ON CAPITAL VALUES for RESIDUAL VALUATION",IF(AND('Summary 2 -Res Values'!C145=0,'Summary 2 -Res Values'!I145>0),'Summary 2 -Res Values'!A145&" "&'Summary 2 -Res Values'!C145,"Ok"),"Ok") -> Ok | D69: 0 | F69: =IF(OR((ISBLANK(C69)),C69=""),0,1) -> 1
A70: Check Shared Ownership ph4 values | C70: =IF('Input 2 -Res BATCH'!K$5<>"AH & RENTAL VALUATION BASED ON CAPITAL VALUES for RESIDUAL VALUATION",IF(AND('Summary 2 -Res Values'!C146=0,'Summary 2 -Res Values'!I146>0),'Summary 2 -Res Values'!A146&" "&'Summary 2 -Res Values'!C146,"Ok"),"Ok") -> Ok | D70: 0 | F70: 1
A71: Check Shared Ownership ph4 values | C71: =IF('Input 2 -Res BATCH'!K$5<>"AH & RENTAL VALUATION BASED ON CAPITAL VALUES for RESIDUAL VALUATION",IF(AND('Summary 2 -Res Values'!C147=0,'Summary 2 -Res Values'!I147>0),'Summary 2 -Res Values'!A147&" "&'Summary 2 -Res Values'!C147,"Ok"),"Ok") -> Ok | D71: 0 | F71: 1
A72: Check Shared Ownership ph4 values | C72: =IF('Input 2 -Res BATCH'!K$5<>"AH & RENTAL VALUATION BASED ON CAPITAL VALUES for RESIDUAL VALUATION",IF(AND('Summary 2 -Res Values'!C148=0,'Summary 2 -Res Values'!I148>0),'Summary 2 -Res Values'!A148&" "&'Summary 2 -Res Values'!C148,"Ok"),"Ok") -> Ok | D72: 0 | F72: 1
A73: Check Shared Ownership ph4 values | C73: =IF('Input 2 -Res BATCH'!K$5<>"AH & RENTAL VALUATION BASED ON CAPITAL VALUES for RESIDUAL VALUATION",IF(AND('Summary 2 -Res Values'!C149=0,'Summary 2 -Res Values'!I149>0),'Summary 2 -Res Values'!A149&" "&'Summary 2 -Res Values'!C149,"Ok"),"Ok") -> Ok | D73: 0 | F73: 1
A74: Check Shared Ownership ph4 values | C74: =IF('Input 2 -Res BATCH'!K$5<>"AH & RENTAL VALUATION BASED ON CAPITAL VALUES for RESIDUAL VALUATION",IF(AND('Summary 2 -Res Values'!C150=0,'Summary 2 -Res Values'!I150>0),'Summary 2 -Res Values'!A150&" "&'Summary 2 -Res Values'!C150,"Ok"),"Ok") -> Ok | D74: 0 | F74: 1
A75: Check Shared Ownership ph4 values | C75: =IF('Input 2 -Res BATCH'!K$5<>"AH & RENTAL VALUATION BASED ON CAPITAL VALUES for RESIDUAL VALUATION",IF(AND('Summary 2 -Res Values'!C151=0,'Summary 2 -Res Values'!I151>0),'Summary 2 -Res Values'!A151&" "&'Summary 2 -Res Values'!C151,"Ok"),"Ok") -> Ok | D75: 0 | F75: 1
A76: Check Shared Ownership ph4 values | C76: =IF('Input 2 -Res BATCH'!K$5<>"AH & RENTAL VALUATION BASED ON CAPITAL VALUES for RESIDUAL VALUATION",IF(AND('Summary 2 -Res Values'!C152=0,'Summary 2 -Res Values'!I152>0),'Summary 2 -Res Values'!A152&" "&'Summary 2 -Res Values'!C152,"Ok"),"Ok") -> Ok | D76: 0
A77: Check Shared Ownership ph4 values | C77: =IF('Input 2 -Res BATCH'!K$5<>"AH & RENTAL VALUATION BASED ON CAPITAL VALUES for RESIDUAL VALUATION",IF(AND('Summary 2 -Res Values'!C153=0,'Summary 2 -Res Values'!I153>0),'Summary 2 -Res Values'!A153&" "&'Summary 2 -Res Values'!C153,"Ok"),"Ok") -> Ok | D77: 0
A78: Check Shared Ownership ph4 values | C78: =IF('Input 2 -Res BATCH'!K$5<>"AH & RENTAL VALUATION BASED ON CAPITAL VALUES for RESIDUAL VALUATION",IF(AND('Summary 2 -Res Values'!C154=0,'Summary 2 -Res Values'!I154>0),'Summary 2 -Res Values'!A154&" "&'Summary 2 -Res Values'!C154,"Ok"),"Ok") -> Ok | D78: 0
A79: Check Shared Ownership ph4 values | C79: =IF('Input 2 -Res BATCH'!K$5<>"AH & RENTAL VALUATION BASED ON CAPITAL VALUES for RESIDUAL VALUATION",IF(AND('Summary 2 -Res Values'!C155=0,'Summary 2 -Res Values'!I155>0),'Summary 2 -Res Values'!A155&" "&'Summary 2 -Res Values'!C155,"Ok"),"Ok") -> Ok | D79: 0
A80: Check Shared Ownership ph4 values | C80: =IF('Input 2 -Res BATCH'!K$5<>"AH & RENTAL VALUATION BASED ON CAPITAL VALUES for RESIDUAL VALUATION",IF(AND('Summary 2 -Res Values'!C156=0,'Summary 2 -Res Values'!I156>0),'Summary 2 -Res Values'!A156&" "&'Summary 2 -Res Values'!C156,"Ok"),"Ok") -> Ok | D80: 0
A81: Check Shared Ownership ph4 values | C81: =IF('Input 2 -Res BATCH'!K$5<>"AH & RENTAL VALUATION BASED ON CAPITAL VALUES for RESIDUAL VALUATION",IF(AND('Summary 2 -Res Values'!C157=0,'Summary 2 -Res Values'!I157>0),'Summary 2 -Res Values'!A157&" "&'Summary 2 -Res Values'!C157,"Ok"),"Ok") -> Ok | D81: 0
D82: 0
A83: Check Shared Ownership ph5 parameters | C83: =IF('Input 2 -Res BATCH'!$K$5<>"AH & RENTAL VALUATION BASED ON CAPITAL VALUES for RESIDUAL VALUATION",IF(AND('Summary 2 -Res Values'!B193=0,SUM('Summary 2 -Res Values'!I179:I191)>0),"Missing Initial Tranche %","Ok"),"Ok") -> Ok | D83: =IF(C83="Ok",0,1) -> 0 | F83: =IF(OR((ISBLANK(C83)),C83=""),0,1) -> 1
A84: Check Shared Ownership ph5 parameters | C84: =IF('Input 2 -Res BATCH'!$K$5<>"AH & RENTAL VALUATION BASED ON CAPITAL VALUES for RESIDUAL VALUATION",IF(AND('Summary 2 -Res Values'!B195=0,SUM('Summary 2 -Res Values'!I179:I191)>0),"Missing Unsold equity rental %","Ok"),"Ok") -> Ok | D84: 0
A85: Check Shared Ownership ph5 values | C85: =IF('Input 2 -Res BATCH'!K$5<>"AH & RENTAL VALUATION BASED ON CAPITAL VALUES for RESIDUAL VALUATION",IF(AND('Summary 2 -Res Values'!C179=0,'Summary 2 -Res Values'!I179>0),'Summary 2 -Res Values'!A179&" "&'Summary 2 -Res Values'!C179,"Ok"),"Ok") -> Ok | D85: 0 | F85: =IF(OR((ISBLANK(C85)),C85=""),0,1) -> 1
A86: Check Shared Ownership ph5 values | C86: =IF('Input 2 -Res BATCH'!K$5<>"AH & RENTAL VALUATION BASED ON CAPITAL VALUES for RESIDUAL VALUATION",IF(AND('Summary 2 -Res Values'!C180=0,'Summary 2 -Res Values'!I180>0),'Summary 2 -Res Values'!A180&" "&'Summary 2 -Res Values'!C180,"Ok"),"Ok") -> Ok | D86: 0 | F86: 1
A87: Check Shared Ownership ph5 values | C87: =IF('Input 2 -Res BATCH'!K$5<>"AH & RENTAL VALUATION BASED ON CAPITAL VALUES for RESIDUAL VALUATION",IF(AND('Summary 2 -Res Values'!C181=0,'Summary 2 -Res Values'!I181>0),'Summary 2 -Res Values'!A181&" "&'Summary 2 -Res Values'!C181,"Ok"),"Ok") -> Ok | D87: 0 | F87: 1
A88: Check Shared Ownership ph5 values | C88: =IF('Input 2 -Res BATCH'!K$5<>"AH & RENTAL VALUATION BASED ON CAPITAL VALUES for RESIDUAL VALUATION",IF(AND('Summary 2 -Res Values'!C182=0,'Summary 2 -Res Values'!I182>0),'Summary 2 -Res Values'!A182&" "&'Summary 2 -Res Values'!C182,"Ok"),"Ok") -> Ok | D88: 0 | F88: 1
A89: Check Shared Ownership ph5 values | C89: =IF('Input 2 -Res BATCH'!K$5<>"AH & RENTAL VALUATION BASED ON CAPITAL VALUES for RESIDUAL VALUATION",IF(AND('Summary 2 -Res Values'!C183=0,'Summary 2 -Res Values'!I183>0),'Summary 2 -Res Values'!A183&" "&'Summary 2 -Res Values'!C183,"Ok"),"Ok") -> Ok | D89: 0 | F89: 1
A90: Check Shared Ownership ph5 values | C90: =IF('Input 2 -Res BATCH'!K$5<>"AH & RENTAL VALUATION BASED ON CAPITAL VALUES for RESIDUAL VALUATION",IF(AND('Summary 2 -Res Values'!C184=0,'Summary 2 -Res Values'!I184>0),'Summary 2 -Res Values'!A184&" "&'Summary 2 -Res Values'!C184,"Ok"),"Ok") -> Ok | D90: 0 | F90: 1
A91: Check Shared Ownership ph5 values | C91: =IF('Input 2 -Res BATCH'!K$5<>"AH & RENTAL VALUATION BASED ON CAPITAL VALUES for RESIDUAL VALUATION",IF(AND('Summary 2 -Res Values'!C185=0,'Summary 2 -Res Values'!I185>0),'Summary 2 -Res Values'!A185&" "&'Summary 2 -Res Values'!C185,"Ok"),"Ok") -> Ok | D91: 0 | F91: 1
A92: Check Shared Ownership ph5 values | C92: =IF('Input 2 -Res BATCH'!K$5<>"AH & RENTAL VALUATION BASED ON CAPITAL VALUES for RESIDUAL VALUATION",IF(AND('Summary 2 -Res Values'!C186=0,'Summary 2 -Res Values'!I186>0),'Summary 2 -Res Values'!A186&" "&'Summary 2 -Res Values'!C186,"Ok"),"Ok") -> Ok | D92: 0
A93: Check Shared Ownership ph5 values | C93: =IF('Input 2 -Res BATCH'!K$5<>"AH & RENTAL VALUATION BASED ON CAPITAL VALUES for RESIDUAL VALUATION",IF(AND('Summary 2 -Res Values'!C187=0,'Summary 2 -Res Values'!I187>0),'Summary 2 -Res Values'!A187&" "&'Summary 2 -Res Values'!C187,"Ok"),"Ok") -> Ok | D93: 0
A94: Check Shared Ownership ph5 values | C94: =IF('Input 2 -Res BATCH'!K$5<>"AH & RENTAL VALUATION BASED ON CAPITAL VALUES for RESIDUAL VALUATION",IF(AND('Summary 2 -Res Values'!C188=0,'Summary 2 -Res Values'!I188>0),'Summary 2 -Res Values'!A188&" "&'Summary 2 -Res Values'!C188,"Ok"),"Ok") -> Ok | D94: 0
A95: Check Shared Ownership ph5 values | C95: =IF('Input 2 -Res BATCH'!K$5<>"AH & RENTAL VALUATION BASED ON CAPITAL VALUES for RESIDUAL VALUATION",IF(AND('Summary 2 -Res Values'!C189=0,'Summary 2 -Res Values'!I189>0),'Summary 2 -Res Values'!A189&" "&'Summary 2 -Res Values'!C189,"Ok"),"Ok") -> Ok | D95: 0
A96: Check Shared Ownership ph5 values | C96: =IF('Input 2 -Res BATCH'!K$5<>"AH & RENTAL VALUATION BASED ON CAPITAL VALUES for RESIDUAL VALUATION",IF(AND('Summary 2 -Res Values'!C190=0,'Summary 2 -Res Values'!I190>0),'Summary 2 -Res Values'!A190&" "&'Summary 2 -Res Values'!C190,"Ok"),"Ok") -> Ok | D96: 0
A97: Check Shared Ownership ph5 values | C97: =IF('Input 2 -Res BATCH'!K$5<>"AH & RENTAL VALUATION BASED ON CAPITAL VALUES for RESIDUAL VALUATION",IF(AND('Summary 2 -Res Values'!C191=0,'Summary 2 -Res Values'!I191>0),'Summary 2 -Res Values'!A191&" "&'Summary 2 -Res Values'!C191,"Ok"),"Ok") -> Ok | D97: 0
D98: 0
A99: =+'Summary 2 -Res Values'!A$209 -> Affordable Rent phase 1 | C99: =IF('Input 2 -Res BATCH'!K$5<>"AH & RENTAL VALUATION BASED ON CAPITAL VALUES for RESIDUAL VALUATION",IF(AND('Summary 2 -Res Values'!E212>0,'Summary 2 -Res Values'!C212=0),+'Summary 2 -Res Values'!A212&" missing rents","Ok"),"Ok") -> Ok | D99: 0
A100: =+'Summary 2 -Res Values'!A$209 -> Affordable Rent phase 1 | C100: =IF('Input 2 -Res BATCH'!K$5<>"AH & RENTAL VALUATION BASED ON CAPITAL VALUES for RESIDUAL VALUATION",IF(AND('Summary 2 -Res Values'!E213>0,'Summary 2 -Res Values'!C213=0),+'Summary 2 -Res Values'!A213&" missing rents","Ok"),"Ok") -> Ok | D100: 0
A101: =+'Summary 2 -Res Values'!A$209 -> Affordable Rent phase 1 | C101: =IF('Input 2 -Res BATCH'!K$5<>"AH & RENTAL VALUATION BASED ON CAPITAL VALUES for RESIDUAL VALUATION",IF(AND('Summary 2 -Res Values'!E214>0,'Summary 2 -Res Values'!C214=0),+'Summary 2 -Res Values'!A214&" missing rents","Ok"),"Ok") -> Ok | D101: 0
A102: =+'Summary 2 -Res Values'!A$209 -> Affordable Rent phase 1 | C102: =IF('Input 2 -Res BATCH'!K$5<>"AH & RENTAL VALUATION BASED ON CAPITAL VALUES for RESIDUAL VALUATION",IF(AND('Summary 2 -Res Values'!E215>0,'Summary 2 -Res Values'!C215=0),+'Summary 2 -Res Values'!A215&" missing rents","Ok"),"Ok") -> Ok | D102: 0
A103: =+'Summary 2 -Res Values'!A$209 -> Affordable Rent phase 1 | C103: =IF('Input 2 -Res BATCH'!K$5<>"AH & RENTAL VALUATION BASED ON CAPITAL VALUES for RESIDUAL VALUATION",IF(AND('Summary 2 -Res Values'!E216>0,'Summary 2 -Res Values'!C216=0),+'Summary 2 -Res Values'!A216&" missing rents","Ok"),"Ok") -> Ok | D103: 0
A104: =+'Summary 2 -Res Values'!A$209 -> Affordable Rent phase 1 | C104: =IF('Input 2 -Res BATCH'!K$5<>"AH & RENTAL VALUATION BASED ON CAPITAL VALUES for RESIDUAL VALUATION",IF(AND('Summary 2 -Res Values'!E217>0,'Summary 2 -Res Values'!C217=0),+'Summary 2 -Res Values'!A217&" missing rents","Ok"),"Ok") -> Ok | D104: 0
A105: =+'Summary 2 -Res Values'!A$209 -> Affordable Rent phase 1 | C105: =IF('Input 2 -Res BATCH'!K$5<>"AH & RENTAL VALUATION BASED ON CAPITAL VALUES for RESIDUAL VALUATION",IF(AND('Summary 2 -Res Values'!E218>0,'Summary 2 -Res Values'!C218=0),+'Summary 2 -Res Values'!A218&" missing rents","Ok"),"Ok") -> Ok | D105: 0
A106: =+'Summary 2 -Res Values'!A$209 -> Affordable Rent phase 1 | C106: =IF('Input 2 -Res BATCH'!K$5<>"AH & RENTAL VALUATION BASED ON CAPITAL VALUES for RESIDUAL VALUATION",IF(AND('Summary 2 -Res Values'!E219>0,'Summary 2 -Res Values'!C219=0),+'Summary 2 -Res Values'!A219&" missing rents","Ok"),"Ok") -> Ok | D106: 0
A107: =+'Summary 2 -Res Values'!A$209 -> Affordable Rent phase 1 | C107: =IF('Input 2 -Res BATCH'!K$5<>"AH & RENTAL VALUATION BASED ON CAPITAL VALUES for RESIDUAL VALUATION",IF(AND('Summary 2 -Res Values'!E220>0,'Summary 2 -Res Values'!C220=0),+'Summary 2 -Res Values'!A220&" missing rents","Ok"),"Ok") -> Ok | D107: 0
A108: =+'Summary 2 -Res Values'!A$209 -> Affordable Rent phase 1 | C108: =IF('Input 2 -Res BATCH'!K$5<>"AH & RENTAL VALUATION BASED ON CAPITAL VALUES for RESIDUAL VALUATION",IF(AND('Summary 2 -Res Values'!E221>0,'Summary 2 -Res Values'!C221=0),+'Summary 2 -Res Values'!A221&" missing rents","Ok"),"Ok") -> Ok | D108: 0
A109: =+'Summary 2 -Res Values'!A$209 -> Affordable Rent phase 1 | C109: =IF('Input 2 -Res BATCH'!K$5<>"AH & RENTAL VALUATION BASED ON CAPITAL VALUES for RESIDUAL VALUATION",IF(AND('Summary 2 -Res Values'!E222>0,'Summary 2 -Res Values'!C222=0),+'Summary 2 -Res Values'!A222&" missing rents","Ok"),"Ok") -> Ok | D109: 0
A110: =+'Summary 2 -Res Values'!A$209 -> Affordable Rent phase 1 | C110: =IF('Input 2 -Res BATCH'!K$5<>"AH & RENTAL VALUATION BASED ON CAPITAL VALUES for RESIDUAL VALUATION",IF(AND('Summary 2 -Res Values'!E223>0,'Summary 2 -Res Values'!C223=0),+'Summary 2 -Res Values'!A223&" missing rents","Ok"),"Ok") -> Ok | D110: 0
A111: =+'Summary 2 -Res Values'!A$209 -> Affordable Rent phase 1 | C111: =IF('Input 2 -Res BATCH'!K$5<>"AH & RENTAL VALUATION BASED ON CAPITAL VALUES for RESIDUAL VALUATION",IF(AND('Summary 2 -Res Values'!E224>0,'Summary 2 -Res Values'!C224=0),+'Summary 2 -Res Values'!A224&" missing rents","Ok"),"Ok") -> Ok | D111: 0
D112: 0
A113: =+'Summary 2 -Res Values'!A$235 -> Affordable Rent phase 2 | C113: =IF('Input 2 -Res BATCH'!K$5<>"AH & RENTAL VALUATION BASED ON CAPITAL VALUES for RESIDUAL VALUATION",IF(AND('Summary 2 -Res Values'!E238>0,'Summary 2 -Res Values'!C238=0),+'Summary 2 -Res Values'!A238&" missing rents","Ok"),"Ok") -> Ok | D113: 0
A114: =+'Summary 2 -Res Values'!A$235 -> Affordable Rent phase 2 | C114: =IF('Input 2 -Res BATCH'!K$5<>"AH & RENTAL VALUATION BASED ON CAPITAL VALUES for RESIDUAL VALUATION",IF(AND('Summary 2 -Res Values'!E239>0,'Summary 2 -Res Values'!C239=0),+'Summary 2 -Res Values'!A239&" missing rents","Ok"),"Ok") -> Ok | D114: 0
A115: =+'Summary 2 -Res Values'!A$235 -> Affordable Rent phase 2 | C115: =IF('Input 2 -Res BATCH'!K$5<>"AH & RENTAL VALUATION BASED ON CAPITAL VALUES for RESIDUAL VALUATION",IF(AND('Summary 2 -Res Values'!E240>0,'Summary 2 -Res Values'!C240=0),+'Summary 2 -Res Values'!A240&" missing rents","Ok"),"Ok") -> Ok | D115: 0
A116: =+'Summary 2 -Res Values'!A$235 -> Affordable Rent phase 2 | C116: =IF('Input 2 -Res BATCH'!K$5<>"AH & RENTAL VALUATION BASED ON CAPITAL VALUES for RESIDUAL VALUATION",IF(AND('Summary 2 -Res Values'!E241>0,'Summary 2 -Res Values'!C241=0),+'Summary 2 -Res Values'!A241&" missing rents","Ok"),"Ok") -> Ok | D116: 0
A117: =+'Summary 2 -Res Values'!A$235 -> Affordable Rent phase 2 | C117: =IF('Input 2 -Res BATCH'!K$5<>"AH & RENTAL VALUATION BASED ON CAPITAL VALUES for RESIDUAL VALUATION",IF(AND('Summary 2 -Res Values'!E242>0,'Summary 2 -Res Values'!C242=0),+'Summary 2 -Res Values'!A242&" missing rents","Ok"),"Ok") -> Ok | D117: 0
A118: =+'Summary 2 -Res Values'!A$235 -> Affordable Rent phase 2 | C118: =IF('Input 2 -Res BATCH'!K$5<>"AH & RENTAL VALUATION BASED ON CAPITAL VALUES for RESIDUAL VALUATION",IF(AND('Summary 2 -Res Values'!E243>0,'Summary 2 -Res Values'!C243=0),+'Summary 2 -Res Values'!A243&" missing rents","Ok"),"Ok") -> Ok | D118: 0
A119: =+'Summary 2 -Res Values'!A$235 -> Affordable Rent phase 2 | C119: =IF('Input 2 -Res BATCH'!K$5<>"AH & RENTAL VALUATION BASED ON CAPITAL VALUES for RESIDUAL VALUATION",IF(AND('Summary 2 -Res Values'!E244>0,'Summary 2 -Res Values'!C244=0),+'Summary 2 -Res Values'!A244&" missing rents","Ok"),"Ok") -> Ok | D119: 0
A120: =+'Summary 2 -Res Values'!A$235 -> Affordable Rent phase 2 | C120: =IF('Input 2 -Res BATCH'!K$5<>"AH & RENTAL VALUATION BASED ON CAPITAL VALUES for RESIDUAL VALUATION",IF(AND('Summary 2 -Res Values'!E245>0,'Summary 2 -Res Values'!C245=0),+'Summary 2 -Res Values'!A245&" missing rents","Ok"),"Ok") -> Ok | D120: 0
A121: =+'Summary 2 -Res Values'!A$235 -> Affordable Rent phase 2 | C121: =IF('Input 2 -Res BATCH'!K$5<>"AH & RENTAL VALUATION BASED ON CAPITAL VALUES for RESIDUAL VALUATION",IF(AND('Summary 2 -Res Values'!E246>0,'Summary 2 -Res Values'!C246=0),+'Summary 2 -Res Values'!A246&" missing rents","Ok"),"Ok") -> Ok | D121: 0
A122: =+'Summary 2 -Res Values'!A$235 -> Affordable Rent phase 2 | C122: =IF('Input 2 -Res BATCH'!K$5<>"AH & RENTAL VALUATION BASED ON CAPITAL VALUES for RESIDUAL VALUATION",IF(AND('Summary 2 -Res Values'!E247>0,'Summary 2 -Res Values'!C247=0),+'Summary 2 -Res Values'!A247&" missing rents","Ok"),"Ok") -> Ok | D122: 0
A123: =+'Summary 2 -Res Values'!A$235 -> Affordable Rent phase 2 | C123: =IF('Input 2 -Res BATCH'!K$5<>"AH & RENTAL VALUATION BASED ON CAPITAL VALUES for RESIDUAL VALUATION",IF(AND('Summary 2 -Res Values'!E248>0,'Summary 2 -Res Values'!C248=0),+'Summary 2 -Res Values'!A248&" missing rents","Ok"),"Ok") -> Ok | D123: 0
A124: =+'Summary 2 -Res Values'!A$235 -> Affordable Rent phase 2 | C124: =IF('Input 2 -Res BATCH'!K$5<>"AH & RENTAL VALUATION BASED ON CAPITAL VALUES for RESIDUAL VALUATION",IF(AND('Summary 2 -Res Values'!E249>0,'Summary 2 -Res Values'!C249=0),+'Summary 2 -Res Values'!A249&" missing rents","Ok"),"Ok") -> Ok | D124: 0
A125: =+'Summary 2 -Res Values'!A$235 -> Affordable Rent phase 2 | C125: =IF('Input 2 -Res BATCH'!K$5<>"AH & RENTAL VALUATION BASED ON CAPITAL VALUES for RESIDUAL VALUATION",IF(AND('Summary 2 -Res Values'!E250>0,'Summary 2 -Res Values'!C250=0),+'Summary 2 -Res Values'!A250&" missing rents","Ok"),"Ok") -> Ok | D125: 0
D126: 0 | F126: =IF(OR((ISBLANK(C126)),C126=""),0,1) -> 0
A127: =+'Summary 2 -Res Values'!A$261 -> Affordable Rent phase 3 | C127: =IF('Input 2 -Res BATCH'!K$5<>"AH & RENTAL VALUATION BASED ON CAPITAL VALUES for RESIDUAL VALUATION",IF(AND('Summary 2 -Res Values'!E264>0,'Summary 2 -Res Values'!C264=0),+'Summary 2 -Res Values'!A264&" missing rents","Ok"),"Ok") -> Ok | D127: =IF(C127="Ok",0,1) -> 0
A128: =+'Summary 2 -Res Values'!A$261 -> Affordable Rent phase 3 | C128: =IF('Input 2 -Res BATCH'!K$5<>"AH & RENTAL VALUATION BASED ON CAPITAL VALUES for RESIDUAL VALUATION",IF(AND('Summary 2 -Res Values'!E265>0,'Summary 2 -Res Values'!C265=0),+'Summary 2 -Res Values'!A265&" missing rents","Ok"),"Ok") -> Ok | D128: 0
A129: =+'Summary 2 -Res Values'!A$261 -> Affordable Rent phase 3 | C129: =IF('Input 2 -Res BATCH'!K$5<>"AH & RENTAL VALUATION BASED ON CAPITAL VALUES for RESIDUAL VALUATION",IF(AND('Summary 2 -Res Values'!E266>0,'Summary 2 -Res Values'!C266=0),+'Summary 2 -Res Values'!A266&" missing rents","Ok"),"Ok") -> Ok | D129: 0
A130: =+'Summary 2 -Res Values'!A$261 -> Affordable Rent phase 3 | C130: =IF('Input 2 -Res BATCH'!K$5<>"AH & RENTAL VALUATION BASED ON CAPITAL VALUES for RESIDUAL VALUATION",IF(AND('Summary 2 -Res Values'!E267>0,'Summary 2 -Res Values'!C267=0),+'Summary 2 -Res Values'!A267&" missing rents","Ok"),"Ok") -> Ok | D130: 0
A131: =+'Summary 2 -Res Values'!A$261 -> Affordable Rent phase 3 | C131: =IF('Input 2 -Res BATCH'!K$5<>"AH & RENTAL VALUATION BASED ON CAPITAL VALUES for RESIDUAL VALUATION",IF(AND('Summary 2 -Res Values'!E268>0,'Summary 2 -Res Values'!C268=0),+'Summary 2 -Res Values'!A268&" missing rents","Ok"),"Ok") -> Ok | D131: 0
A132: =+'Summary 2 -Res Values'!A$261 -> Affordable Rent phase 3 | C132: =IF('Input 2 -Res BATCH'!K$5<>"AH & RENTAL VALUATION BASED ON CAPITAL VALUES for RESIDUAL VALUATION",IF(AND('Summary 2 -Res Values'!E269>0,'Summary 2 -Res Values'!C269=0),+'Summary 2 -Res Values'!A269&" missing rents","Ok"),"Ok") -> Ok | D132: 0
A133: =+'Summary 2 -Res Values'!A$261 -> Affordable Rent phase 3 | C133: =IF('Input 2 -Res BATCH'!K$5<>"AH & RENTAL VALUATION BASED ON CAPITAL VALUES for RESIDUAL VALUATION",IF(AND('Summary 2 -Res Values'!E270>0,'Summary 2 -Res Values'!C270=0),+'Summary 2 -Res Values'!A270&" missing rents","Ok"),"Ok") -> Ok | D133: 0
A134: =+'Summary 2 -Res Values'!A$261 -> Affordable Rent phase 3 | C134: =IF('Input 2 -Res BATCH'!K$5<>"AH & RENTAL VALUATION BASED ON CAPITAL VALUES for RESIDUAL VALUATION",IF(AND('Summary 2 -Res Values'!E271>0,'Summary 2 -Res Values'!C271=0),+'Summary 2 -Res Values'!A271&" missing rents","Ok"),"Ok") -> Ok | D134: 0
A135: =+'Summary 2 -Res Values'!A$261 -> Affordable Rent phase 3 | C135: =IF('Input 2 -Res BATCH'!K$5<>"AH & RENTAL VALUATION BASED ON CAPITAL VALUES for RESIDUAL VALUATION",IF(AND('Summary 2 -Res Values'!E272>0,'Summary 2 -Res Values'!C272=0),+'Summary 2 -Res Values'!A272&" missing rents","Ok"),"Ok") -> Ok | D135: 0
A136: =+'Summary 2 -Res Values'!A$261 -> Affordable Rent phase 3 | C136: =IF('Input 2 -Res BATCH'!K$5<>"AH & RENTAL VALUATION BASED ON CAPITAL VALUES for RESIDUAL VALUATION",IF(AND('Summary 2 -Res Values'!E273>0,'Summary 2 -Res Values'!C273=0),+'Summary 2 -Res Values'!A273&" missing rents","Ok"),"Ok") -> Ok | D136: 0
A137: =+'Summary 2 -Res Values'!A$261 -> Affordable Rent phase 3 | C137: =IF('Input 2 -Res BATCH'!K$5<>"AH & RENTAL VALUATION BASED ON CAPITAL VALUES for RESIDUAL VALUATION",IF(AND('Summary 2 -Res Values'!E274>0,'Summary 2 -Res Values'!C274=0),+'Summary 2 -Res Values'!A274&" missing rents","Ok"),"Ok") -> Ok | D137: 0
A138: =+'Summary 2 -Res Values'!A$261 -> Affordable Rent phase 3 | C138: =IF('Input 2 -Res BATCH'!K$5<>"AH & RENTAL VALUATION BASED ON CAPITAL VALUES for RESIDUAL VALUATION",IF(AND('Summary 2 -Res Values'!E275>0,'Summary 2 -Res Values'!C275=0),+'Summary 2 -Res Values'!A275&" missing rents","Ok"),"Ok") -> Ok | D138: 0
A139: =+'Summary 2 -Res Values'!A$261 -> Affordable Rent phase 3 | C139: =IF('Input 2 -Res BATCH'!K$5<>"AH & RENTAL VALUATION BASED ON CAPITAL VALUES for RESIDUAL VALUATION",IF(AND('Summary 2 -Res Values'!E276>0,'Summary 2 -Res Values'!C276=0),+'Summary 2 -Res Values'!A276&" missing rents","Ok"),"Ok") -> Ok | D139: 0
D140: 0 | F140: =IF(OR((ISBLANK(C140)),C140=""),0,1) -> 0
A141: =+'Summary 2 -Res Values'!A$287 -> Affordable Rent phase 4 | C141: =IF('Input 2 -Res BATCH'!K$5<>"AH & RENTAL VALUATION BASED ON CAPITAL VALUES for RESIDUAL VALUATION",IF(AND('Summary 2 -Res Values'!E290>0,'Summary 2 -Res Values'!C290=0),+'Summary 2 -Res Values'!A290&" missing rents","Ok"),"Ok") -> Ok | D141: =IF(C141="Ok",0,1) -> 0
A142: =+'Summary 2 -Res Values'!A$287 -> Affordable Rent phase 4 | C142: =IF('Input 2 -Res BATCH'!K$5<>"AH & RENTAL VALUATION BASED ON CAPITAL VALUES for RESIDUAL VALUATION",IF(AND('Summary 2 -Res Values'!E291>0,'Summary 2 -Res Values'!C291=0),+'Summary 2 -Res Values'!A291&" missing rents","Ok"),"Ok") -> Ok | D142: 0
A143: =+'Summary 2 -Res Values'!A$287 -> Affordable Rent phase 4 | C143: =IF('Input 2 -Res BATCH'!K$5<>"AH & RENTAL VALUATION BASED ON CAPITAL VALUES for RESIDUAL VALUATION",IF(AND('Summary 2 -Res Values'!E292>0,'Summary 2 -Res Values'!C292=0),+'Summary 2 -Res Values'!A292&" missing rents","Ok"),"Ok") -> Ok | D143: 0
A144: =+'Summary 2 -Res Values'!A$287 -> Affordable Rent phase 4 | C144: =IF('Input 2 -Res BATCH'!K$5<>"AH & RENTAL VALUATION BASED ON CAPITAL VALUES for RESIDUAL VALUATION",IF(AND('Summary 2 -Res Values'!E293>0,'Summary 2 -Res Values'!C293=0),+'Summary 2 -Res Values'!A293&" missing rents","Ok"),"Ok") -> Ok | D144: 0
A145: =+'Summary 2 -Res Values'!A$287 -> Affordable Rent phase 4 | C145: =IF('Input 2 -Res BATCH'!K$5<>"AH & RENTAL VALUATION BASED ON CAPITAL VALUES for RESIDUAL VALUATION",IF(AND('Summary 2 -Res Values'!E294>0,'Summary 2 -Res Values'!C294=0),+'Summary 2 -Res Values'!A294&" missing rents","Ok"),"Ok") -> Ok | D145: 0
A146: =+'Summary 2 -Res Values'!A$287 -> Affordable Rent phase 4 | C146: =IF('Input 2 -Res BATCH'!K$5<>"AH & RENTAL VALUATION BASED ON CAPITAL VALUES for RESIDUAL VALUATION",IF(AND('Summary 2 -Res Values'!E295>0,'Summary 2 -Res Values'!C295=0),+'Summary 2 -Res Values'!A295&" missing rents","Ok"),"Ok") -> Ok | D146: 0
A147: =+'Summary 2 -Res Values'!A$287 -> Affordable Rent phase 4 | C147: =IF('Input 2 -Res BATCH'!K$5<>"AH & RENTAL VALUATION BASED ON CAPITAL VALUES for RESIDUAL VALUATION",IF(AND('Summary 2 -Res Values'!E296>0,'Summary 2 -Res Values'!C296=0),+'Summary 2 -Res Values'!A296&" missing rents","Ok"),"Ok") -> Ok | D147: 0
A148: =+'Summary 2 -Res Values'!A$287 -> Affordable Rent phase 4 | C148: =IF('Input 2 -Res BATCH'!K$5<>"AH & RENTAL VALUATION BASED ON CAPITAL VALUES for RESIDUAL VALUATION",IF(AND('Summary 2 -Res Values'!E297>0,'Summary 2 -Res Values'!C297=0),+'Summary 2 -Res Values'!A297&" missing rents","Ok"),"Ok") -> Ok | D148: 0
A149: =+'Summary 2 -Res Values'!A$287 -> Affordable Rent phase 4 | C149: =IF('Input 2 -Res BATCH'!K$5<>"AH & RENTAL VALUATION BASED ON CAPITAL VALUES for RESIDUAL VALUATION",IF(AND('Summary 2 -Res Values'!E298>0,'Summary 2 -Res Values'!C298=0),+'Summary 2 -Res Values'!A298&" missing rents","Ok"),"Ok") -> Ok | D149: 0
A150: =+'Summary 2 -Res Values'!A$287 -> Affordable Rent phase 4 | C150: =IF('Input 2 -Res BATCH'!K$5<>"AH & RENTAL VALUATION BASED ON CAPITAL VALUES for RESIDUAL VALUATION",IF(AND('Summary 2 -Res Values'!E299>0,'Summary 2 -Res Values'!C299=0),+'Summary 2 -Res Values'!A299&" missing rents","Ok"),"Ok") -> Ok | D150: 0
A151: =+'Summary 2 -Res Values'!A$287 -> Affordable Rent phase 4 | C151: =IF('Input 2 -Res BATCH'!K$5<>"AH & RENTAL VALUATION BASED ON CAPITAL VALUES for RESIDUAL VALUATION",IF(AND('Summary 2 -Res Values'!E300>0,'Summary 2 -Res Values'!C300=0),+'Summary 2 -Res Values'!A300&" missing rents","Ok"),"Ok") -> Ok | D151: 0
A152: =+'Summary 2 -Res Values'!A$287 -> Affordable Rent phase 4 | C152: =IF('Input 2 -Res BATCH'!K$5<>"AH & RENTAL VALUATION BASED ON CAPITAL VALUES for RESIDUAL VALUATION",IF(AND('Summary 2 -Res Values'!E301>0,'Summary 2 -Res Values'!C301=0),+'Summary 2 -Res Values'!A301&" missing rents","Ok"),"Ok") -> Ok | D152: 0
A153: =+'Summary 2 -Res Values'!A$287 -> Affordable Rent phase 4 | C153: =IF('Input 2 -Res BATCH'!K$5<>"AH & RENTAL VALUATION BASED ON CAPITAL VALUES for RESIDUAL VALUATION",IF(AND('Summary 2 -Res Values'!E302>0,'Summary 2 -Res Values'!C302=0),+'Summary 2 -Res Values'!A302&" missing rents","Ok"),"Ok") -> Ok | D153: 0
D154: 0 | F154: =IF(OR((ISBLANK(C154)),C154=""),0,1) -> 0
A155: =+'Summary 2 -Res Values'!A$313 -> Affordable Rent phase 5 | C155: =IF('Input 2 -Res BATCH'!K$5<>"AH & RENTAL VALUATION BASED ON CAPITAL VALUES for RESIDUAL VALUATION",IF(AND('Summary 2 -Res Values'!E316>0,'Summary 2 -Res Values'!C316=0),+'Summary 2 -Res Values'!A316&" missing rents","Ok"),"Ok") -> Ok | D155: =IF(C155="Ok",0,1) -> 0
A156: =+'Summary 2 -Res Values'!A$313 -> Affordable Rent phase 5 | C156: =IF('Input 2 -Res BATCH'!K$5<>"AH & RENTAL VALUATION BASED ON CAPITAL VALUES for RESIDUAL VALUATION",IF(AND('Summary 2 -Res Values'!E317>0,'Summary 2 -Res Values'!C317=0),+'Summary 2 -Res Values'!A317&" missing rents","Ok"),"Ok") -> Ok | D156: 0
A157: =+'Summary 2 -Res Values'!A$313 -> Affordable Rent phase 5 | C157: =IF('Input 2 -Res BATCH'!K$5<>"AH & RENTAL VALUATION BASED ON CAPITAL VALUES for RESIDUAL VALUATION",IF(AND('Summary 2 -Res Values'!E318>0,'Summary 2 -Res Values'!C318=0),+'Summary 2 -Res Values'!A318&" missing rents","Ok"),"Ok") -> Ok | D157: 0
A158: =+'Summary 2 -Res Values'!A$313 -> Affordable Rent phase 5 | C158: =IF('Input 2 -Res BATCH'!K$5<>"AH & RENTAL VALUATION BASED ON CAPITAL VALUES for RESIDUAL VALUATION",IF(AND('Summary 2 -Res Values'!E319>0,'Summary 2 -Res Values'!C319=0),+'Summary 2 -Res Values'!A319&" missing rents","Ok"),"Ok") -> Ok | D158: 0
A159: =+'Summary 2 -Res Values'!A$313 -> Affordable Rent phase 5 | C159: =IF('Input 2 -Res BATCH'!K$5<>"AH & RENTAL VALUATION BASED ON CAPITAL VALUES for RESIDUAL VALUATION",IF(AND('Summary 2 -Res Values'!E320>0,'Summary 2 -Res Values'!C320=0),+'Summary 2 -Res Values'!A320&" missing rents","Ok"),"Ok") -> Ok | D159: 0
A160: =+'Summary 2 -Res Values'!A$313 -> Affordable Rent phase 5 | C160: =IF('Input 2 -Res BATCH'!K$5<>"AH & RENTAL VALUATION BASED ON CAPITAL VALUES for RESIDUAL VALUATION",IF(AND('Summary 2 -Res Values'!E321>0,'Summary 2 -Res Values'!C321=0),+'Summary 2 -Res Values'!A321&" missing rents","Ok"),"Ok") -> Ok | D160: 0
A161: =+'Summary 2 -Res Values'!A$313 -> Affordable Rent phase 5 | C161: =IF('Input 2 -Res BATCH'!K$5<>"AH & RENTAL VALUATION BASED ON CAPITAL VALUES for RESIDUAL VALUATION",IF(AND('Summary 2 -Res Values'!E322>0,'Summary 2 -Res Values'!C322=0),+'Summary 2 -Res Values'!A322&" missing rents","Ok"),"Ok") -> Ok | D161: 0
A162: =+'Summary 2 -Res Values'!A$313 -> Affordable Rent phase 5 | C162: =IF('Input 2 -Res BATCH'!K$5<>"AH & RENTAL VALUATION BASED ON CAPITAL VALUES for RESIDUAL VALUATION",IF(AND('Summary 2 -Res Values'!E323>0,'Summary 2 -Res Values'!C323=0),+'Summary 2 -Res Values'!A323&" missing rents","Ok"),"Ok") -> Ok | D162: 0
A163: =+'Summary 2 -Res Values'!A$313 -> Affordable Rent phase 5 | C163: =IF('Input 2 -Res BATCH'!K$5<>"AH & RENTAL VALUATION BASED ON CAPITAL VALUES for RESIDUAL VALUATION",IF(AND('Summary 2 -Res Values'!E324>0,'Summary 2 -Res Values'!C324=0),+'Summary 2 -Res Values'!A324&" missing rents","Ok"),"Ok") -> Ok | D163: 0
A164: =+'Summary 2 -Res Values'!A$313 -> Affordable Rent phase 5 | C164: =IF('Input 2 -Res BATCH'!K$5<>"AH & RENTAL VALUATION BASED ON CAPITAL VALUES for RESIDUAL VALUATION",IF(AND('Summary 2 -Res Values'!E325>0,'Summary 2 -Res Values'!C325=0),+'Summary 2 -Res Values'!A325&" missing rents","Ok"),"Ok") -> Ok | D164: 0
A165: =+'Summary 2 -Res Values'!A$313 -> Affordable Rent phase 5 | C165: =IF('Input 2 -Res BATCH'!K$5<>"AH & RENTAL VALUATION BASED ON CAPITAL VALUES for RESIDUAL VALUATION",IF(AND('Summary 2 -Res Values'!E326>0,'Summary 2 -Res Values'!C326=0),+'Summary 2 -Res Values'!A326&" missing rents","Ok"),"Ok") -> Ok | D165: 0
A166: =+'Summary 2 -Res Values'!A$313 -> Affordable Rent phase 5 | C166: =IF('Input 2 -Res BATCH'!K$5<>"AH & RENTAL VALUATION BASED ON CAPITAL VALUES for RESIDUAL VALUATION",IF(AND('Summary 2 -Res Values'!E327>0,'Summary 2 -Res Values'!C327=0),+'Summary 2 -Res Values'!A327&" missing rents","Ok"),"Ok") -> Ok | D166: 0
A167: =+'Summary 2 -Res Values'!A$313 -> Affordable Rent phase 5 | C167: =IF('Input 2 -Res BATCH'!K$5<>"AH & RENTAL VALUATION BASED ON CAPITAL VALUES for RESIDUAL VALUATION",IF(AND('Summary 2 -Res Values'!E328>0,'Summary 2 -Res Values'!C328=0),+'Summary 2 -Res Values'!A328&" missing rents","Ok"),"Ok") -> Ok | D167: 0
D168: 0 | F168: =IF(OR((ISBLANK(C168)),C168=""),0,1) -> 0
A169: =+'Summary 2 -Res Values'!A$342 -> Open Market Phase 1: | C169: =IF(AND('Summary 2 -Res Values'!B344=0,'Summary 2 -Res Values'!E344>0),"Missing Open market values "&'Summary 2 -Res Values'!A344,"Ok") -> Ok | D169: =IF(C169="Ok",0,1) -> 0
A170: =+'Summary 2 -Res Values'!A$342 -> Open Market Phase 1: | C170: =IF(AND('Summary 2 -Res Values'!B345=0,'Summary 2 -Res Values'!E345>0),"Missing Open market values "&'Summary 2 -Res Values'!A345,"Ok") -> Ok | D170: 0
A171: =+'Summary 2 -Res Values'!A$342 -> Open Market Phase 1: | C171: =IF(AND('Summary 2 -Res Values'!B346=0,'Summary 2 -Res Values'!E346>0),"Missing Open market values "&'Summary 2 -Res Values'!A346,"Ok") -> Ok | D171: 0
A172: =+'Summary 2 -Res Values'!A$342 -> Open Market Phase 1: | C172: =IF(AND('Summary 2 -Res Values'!B347=0,'Summary 2 -Res Values'!E347>0),"Missing Open market values "&'Summary 2 -Res Values'!A347,"Ok") -> Ok | D172: 0
A173: =+'Summary 2 -Res Values'!A$342 -> Open Market Phase 1: | C173: =IF(AND('Summary 2 -Res Values'!B348=0,'Summary 2 -Res Values'!E348>0),"Missing Open market values "&'Summary 2 -Res Values'!A348,"Ok") -> Ok | D173: 0
A174: =+'Summary 2 -Res Values'!A$342 -> Open Market Phase 1: | C174: =IF(AND('Summary 2 -Res Values'!B349=0,'Summary 2 -Res Values'!E349>0),"Missing Open market values "&'Summary 2 -Res Values'!A349,"Ok") -> Ok | D174: 0
A175: =+'Summary 2 -Res Values'!A$342 -> Open Market Phase 1: | C175: =IF(AND('Summary 2 -Res Values'!B350=0,'Summary 2 -Res Values'!E350>0),"Missing Open market values "&'Summary 2 -Res Values'!A350,"Ok") -> Ok | D175: 0
A176: =+'Summary 2 -Res Values'!A$342 -> Open Market Phase 1: | C176: =IF(AND('Summary 2 -Res Values'!B351=0,'Summary 2 -Res Values'!E351>0),"Missing Open market values "&'Summary 2 -Res Values'!A351,"Ok") -> Ok | D176: 0
A177: =+'Summary 2 -Res Values'!A$342 -> Open Market Phase 1: | C177: =IF(AND('Summary 2 -Res Values'!B352=0,'Summary 2 -Res Values'!E352>0),"Missing Open market values "&'Summary 2 -Res Values'!A352,"Ok") -> Ok | D177: 0
A178: =+'Summary 2 -Res Values'!A$342 -> Open Market Phase 1: | C178: =IF(AND('Summary 2 -Res Values'!B353=0,'Summary 2 -Res Values'!E353>0),"Missing Open market values "&'Summary 2 -Res Values'!A353,"Ok") -> Ok | D178: 0
A179: =+'Summary 2 -Res Values'!A$342 -> Open Market Phase 1: | C179: =IF(AND('Summary 2 -Res Values'!B354=0,'Summary 2 -Res Values'!E354>0),"Missing Open market values "&'Summary 2 -Res Values'!A354,"Ok") -> Ok | D179: 0
A180: =+'Summary 2 -Res Values'!A$342 -> Open Market Phase 1: | C180: =IF(AND('Summary 2 -Res Values'!B355=0,'Summary 2 -Res Values'!E355>0),"Missing Open market values "&'Summary 2 -Res Values'!A355,"Ok") -> Ok | D180: 0
A181: =+'Summary 2 -Res Values'!A$342 -> Open Market Phase 1: | C181: =IF(AND('Summary 2 -Res Values'!B356=0,'Summary 2 -Res Values'!E356>0),"Missing Open market values "&'Summary 2 -Res Values'!A356,"Ok") -> Ok | D181: 0
D182: 0
D183: 0
D184: 0
A185: =+'Summary 2 -Res Values'!A$359 -> Open Market Phase 2: | C185: =IF(AND('Summary 2 -Res Values'!B361=0,'Summary 2 -Res Values'!E361>0),"Missing Open market values "&'Summary 2 -Res Values'!A361,"Ok") -> Ok | D185: 0
A186: =+'Summary 2 -Res Values'!A$359 -> Open Market Phase 2: | C186: =IF(AND('Summary 2 -Res Values'!B362=0,'Summary 2 -Res Values'!E362>0),"Missing Open market values "&'Summary 2 -Res Values'!A362,"Ok") -> Ok | D186: 0
A187: =+'Summary 2 -Res Values'!A$359 -> Open Market Phase 2: | C187: =IF(AND('Summary 2 -Res Values'!B363=0,'Summary 2 -Res Values'!E363>0),"Missing Open market values "&'Summary 2 -Res Values'!A363,"Ok") -> Ok | D187: 0
A188: =+'Summary 2 -Res Values'!A$359 -> Open Market Phase 2: | C188: =IF(AND('Summary 2 -Res Values'!B364=0,'Summary 2 -Res Values'!E364>0),"Missing Open market values "&'Summary 2 -Res Values'!A364,"Ok") -> Ok | D188: 0
A189: =+'Summary 2 -Res Values'!A$359 -> Open Market Phase 2: | C189: =IF(AND('Summary 2 -Res Values'!B365=0,'Summary 2 -Res Values'!E365>0),"Missing Open market values "&'Summary 2 -Res Values'!A365,"Ok") -> Ok | D189: 0
A190: =+'Summary 2 -Res Values'!A$359 -> Open Market Phase 2: | C190: =IF(AND('Summary 2 -Res Values'!B366=0,'Summary 2 -Res Values'!E366>0),"Missing Open market values "&'Summary 2 -Res Values'!A366,"Ok") -> Ok | D190: 0
A191: =+'Summary 2 -Res Values'!A$359 -> Open Market Phase 2: | C191: =IF(AND('Summary 2 -Res Values'!B367=0,'Summary 2 -Res Values'!E367>0),"Missing Open market values "&'Summary 2 -Res Values'!A367,"Ok") -> Ok | D191: 0
A192: =+'Summary 2 -Res Values'!A$359 -> Open Market Phase 2: | C192: =IF(AND('Summary 2 -Res Values'!B368=0,'Summary 2 -Res Values'!E368>0),"Missing Open market values "&'Summary 2 -Res Values'!A368,"Ok") -> Ok | D192: 0
A193: =+'Summary 2 -Res Values'!A$359 -> Open Market Phase 2: | C193: =IF(AND('Summary 2 -Res Values'!B369=0,'Summary 2 -Res Values'!E369>0),"Missing Open market values "&'Summary 2 -Res Values'!A369,"Ok") -> Ok | D193: 0
A194: =+'Summary 2 -Res Values'!A$359 -> Open Market Phase 2: | C194: =IF(AND('Summary 2 -Res Values'!B370=0,'Summary 2 -Res Values'!E370>0),"Missing Open market values "&'Summary 2 -Res Values'!A370,"Ok") -> Ok | D194: 0
A195: =+'Summary 2 -Res Values'!A$359 -> Open Market Phase 2: | C195: =IF(AND('Summary 2 -Res Values'!B371=0,'Summary 2 -Res Values'!E371>0),"Missing Open market values "&'Summary 2 -Res Values'!A371,"Ok") -> Ok | D195: 0
A196: =+'Summary 2 -Res Values'!A$359 -> Open Market Phase 2: | C196: =IF(AND('Summary 2 -Res Values'!B372=0,'Summary 2 -Res Values'!E372>0),"Missing Open market values "&'Summary 2 -Res Values'!A372,"Ok") -> Ok | D196: 0
A197: =+'Summary 2 -Res Values'!A$359 -> Open Market Phase 2: | C197: =IF(AND('Summary 2 -Res Values'!B373=0,'Summary 2 -Res Values'!E373>0),"Missing Open market values "&'Summary 2 -Res Values'!A373,"Ok") -> Ok | D197: 0
D198: 0
D199: 0
D200: 0
... 431 more rows

Sheet Output - Full
A1: =+'Input 2 -Res BATCH'!A1 -> Surplus/Deficit after allowing for present value of deferred land payments | F1: =IF(Warnings!B1="No obviously missing data",'Output - Full'!F224,"Incomplete entry , see warning sheet") -> 4342139.046
A2: HCA DEVELOPMENT APPRAISAL TOOL
A4: SCHEME
A5: ='Input 1 -Site'!A11 -> Site Address | B5: =IF('Input 1 -Site'!B11=0,"",'Input 1 -Site'!B11) -> Cranbrook self build scheme 170 plots | D5: ='Input 1 -Site'!A17 -> Date of appraisal | E5: =IF('Input 1 -Site'!B17=0,"",'Input 1 -Site'!B17) -> 2020-01-01
A6: ='Input 1 -Site'!A14 -> Site Reference | B6: =IF('Input 1 -Site'!B14=0,"",'Input 1 -Site'!B14) ->  | D6: ='Input 1 -Site'!A19 -> Net Residential Site Area (hectares) | E6: =IF('Input 1 -Site'!B19=0,"",'Input 1 -Site'!B19) -> 4.857
A7: ='Input 1 -Site'!A15 -> File Source | B7: =IF('Input 1 -Site'!B15=0,"",'Input 1 -Site'!B15) ->  | D7: ='Input 1 -Site'!A20 -> Author & Organisation | E7: =IF('Input 1 -Site'!B20=0,"",'Input 1 -Site'!B20) -> PGD, Three Dragons
A8: ='Input 1 -Site'!A16 -> Scheme Description | B8: =IF('Input 1 -Site'!B16=0,"",'Input 1 -Site'!B16) ->  | D8: =+'Input 1 -Site'!A31 -> Registered Provider (where applicable) | E8: =+'Input 1 -Site'!B31 -> 0
A9: Housing Mix (Affordable + Open Market)
A11: Total Number of Units | B11: ='C1 Mix'!B206 -> 170 | C11: units
A12: Total Number of Open Market Units | B12: ='C1 Mix'!B207 -> 170 | C12: units
A13: Total Number of Affordable Units | B13: ='C1 Mix'!B208 -> 0 | C13: units
A14: Total Net Internal Area (sq m) | B14: ='C1 Mix'!B209 -> 19250 | C14: sq m
A15: % Affordable by Unit | B15: =IF(B11=0,"-",'C1 Mix'!B213) -> 0
A16: % Affordable by Area | B16: =IF(B14=0,"-",'C1 Mix'!B214) -> 0
A17: Density | B17: =IF(B22=0,"No Area input",+B11/B22) -> 35.00102944 | C17: units/ hectare
A18: Total Number of A/H Persons | B18: ='C1 Mix'!B221 -> 0 | C18: Persons
A19: Total Number of Open Market Persons | B19: ='C1 Mix'!B222 -> 0 | C19: Persons
A20: Total Number of Persons | B20: ='C1 Mix'!B223 -> 0 | C20: Persons
A21: Gross site Area | B21: =+'Input 1 -Site'!B18 -> 4.857 | C21: hectares
A22: Net Site Area | B22: =+'Input 1 -Site'!B19 -> 4.857 | C22: hectares
A23: Net Internal Housing Area / Hectare | B23: =IF(B22=0,"-",'C1 Mix'!B218) -> 3963.351863 | C23: sq m / hectare | D23: =IF(ISNUMBER($B$23),"equals","") -> equals | E23: =IF(ISNUMBER($B$23),$B$23/0.2296,"") -> 17261.98547 | F23: =IF(ISNUMBER($B$23),"sqft per acre","") -> sqft per acre
A27: Average value (£ per unit) | B27: Open Market Phase 1: | C27: Open Market Phase 2: | D27: Open Market Phase 3: | E27: Open Market Phase 4: | F27: Open Market Phase 5: | G27: Total
A28: 1 Bed Flat Low rise | B28: =+'Summary 2 -Res Values'!B344 -> 0 | C28: =+'Summary 2 -Res Values'!B361 -> 0 | D28: =+'Summary 2 -Res Values'!B378 -> 0 | E28: =+'Summary 2 -Res Values'!B395 -> 0 | F28: =+'Summary 2 -Res Values'!B412 -> 0
A29: 2 Bed Flat Low rise | B29: =+'Summary 2 -Res Values'!B345 -> 0 | C29: =+'Summary 2 -Res Values'!B362 -> 0 | D29: =+'Summary 2 -Res Values'!B379 -> 0 | E29: =+'Summary 2 -Res Values'!B396 -> 0 | F29: =+'Summary 2 -Res Values'!B413 -> 0
A30: 3 Bed Flat Low rise | B30: =+'Summary 2 -Res Values'!B346 -> 0 | C30: =+'Summary 2 -Res Values'!B363 -> 0 | D30: =+'Summary 2 -Res Values'!B380 -> 0 | E30: =+'Summary 2 -Res Values'!B397 -> 0 | F30: =+'Summary 2 -Res Values'!B414 -> 0
A31: 4 Bed + Flat Low rise | B31: =+'Summary 2 -Res Values'!B347 -> 0 | C31: =+'Summary 2 -Res Values'!B364 -> 0 | D31: =+'Summary 2 -Res Values'!B381 -> 0 | E31: =+'Summary 2 -Res Values'!B398 -> 0 | F31: =+'Summary 2 -Res Values'!B415 -> 0
A32: 1 Bed Flat High rise | B32: =+'Summary 2 -Res Values'!B348 -> 0 | C32: =+'Summary 2 -Res Values'!B365 -> 0 | D32: =+'Summary 2 -Res Values'!B382 -> 0 | E32: =+'Summary 2 -Res Values'!B399 -> 0 | F32: =+'Summary 2 -Res Values'!B416 -> 0
A33: 2 Bed Flat High rise | B33: =+'Summary 2 -Res Values'!B349 -> 0 | C33: =+'Summary 2 -Res Values'!B366 -> 0 | D33: =+'Summary 2 -Res Values'!B383 -> 0 | E33: =+'Summary 2 -Res Values'!B400 -> 0 | F33: =+'Summary 2 -Res Values'!B417 -> 0
A34: 3 Bed Flat High rise | B34: =+'Summary 2 -Res Values'!B350 -> 0 | C34: =+'Summary 2 -Res Values'!B367 -> 0 | D34: =+'Summary 2 -Res Values'!B384 -> 0 | E34: =+'Summary 2 -Res Values'!B401 -> 0 | F34: =+'Summary 2 -Res Values'!B418 -> 0
A35: 4 Bed + Flat High rise | B35: =+'Summary 2 -Res Values'!B351 -> 0 | C35: =+'Summary 2 -Res Values'!B368 -> 0 | D35: =+'Summary 2 -Res Values'!B385 -> 0 | E35: =+'Summary 2 -Res Values'!B402 -> 0 | F35: =+'Summary 2 -Res Values'!B419 -> 0
A36: 2 Bed House | B36: =+'Summary 2 -Res Values'!B352 -> 0 | C36: =+'Summary 2 -Res Values'!B369 -> 0 | D36: =+'Summary 2 -Res Values'!B386 -> 0 | E36: =+'Summary 2 -Res Values'!B403 -> 0 | F36: =+'Summary 2 -Res Values'!B420 -> 0
A37: 3 Bed House | B37: =+'Summary 2 -Res Values'!B353 -> 327663 | C37: =+'Summary 2 -Res Values'!B370 -> 0 | D37: =+'Summary 2 -Res Values'!B387 -> 0 | E37: =+'Summary 2 -Res Values'!B404 -> 0 | F37: =+'Summary 2 -Res Values'!B421 -> 0
A38: 4 Bed + House | B38: =+'Summary 2 -Res Values'!B354 -> 390075 | C38: =+'Summary 2 -Res Values'!B371 -> 0 | D38: =+'Summary 2 -Res Values'!B388 -> 0 | E38: =+'Summary 2 -Res Values'!B405 -> 0 | F38: =+'Summary 2 -Res Values'!B422 -> 0
A39: Total Revenue £ | B39: =+'Summary 2 -Res Values'!F357 -> 60071550 | C39: =+'Summary 2 -Res Values'!F374 -> 0 | D39: =+'Summary 2 -Res Values'!F391 -> 0 | E39: =+'Summary 2 -Res Values'!F408 -> 0 | F39: =+'Summary 2 -Res Values'!F425 -> 0 | G39: =SUM(B39:F39) -> 60071550
A40: Net Area (sq m) | B40: =IF('C2 Value'!C358=0,"-",'C2 Value'!C358) -> 19250 | C40: =IF('C2 Value'!C359=0,"-",'C2 Value'!C359) -> - | D40: =IF('C2 Value'!C360=0,"-",'C2 Value'!C360) -> - | E40: =IF('C2 Value'!C361=0,"-",'C2 Value'!C361) -> - | F40: =IF('C2 Value'!C362=0,"-",'C2 Value'!C362) -> - | G40: =SUM(B40:F40) -> 19250
A41: Revenue (£ / sq m) | B41: =IF('C2 Value'!D358=0,"-",'C2 Value'!D358) -> 3120.6 | C41: =IF('C2 Value'!D359=0,"-",'C2 Value'!D359) -> - | D41: =IF('C2 Value'!D360=0,"-",'C2 Value'!D360) -> - | E41: =IF('C2 Value'!D361=0,"-",'C2 Value'!D361) -> - | F41: =IF('C2 Value'!D362=0,"-",'C2 Value'!D362) -> -
A43: CAPITAL VALUE OF OPEN MARKET SALES | G43: =+G39 -> 60071550
A45: Capital Value of Private Rental
A46: Phase 1 | F46: =+'C2 Value'!H420 -> 0
A47: Phase 2 | F47: =+'C2 Value'!H448 -> 0
A48: Phase 3 | F48: =+'C2 Value'!H476 -> 0
A49: Phase 4 | F49: =+'C2 Value'!H504 -> 0
A50: Phase 5 | F50: =+'C2 Value'!H532 -> 0
A51: Total PR | F51: =SUM(F46:F50) -> 0
A53: CAPITAL VALUE OF OPEN MARKET HOUSING | F53: =+F51+G43 -> 60071550 | G53: ="£ "&TEXT(IF(ISERROR(+'C3 Build Costs'!$G$99),"",+F53/'C3 Build Costs'!$G$99),"#,000")&" psqm" -> £ 3,121 psqm
A54: BUILD COST OF OPEN MARKET HOUSING inc Contingency | D54: =('C3 Build Costs'!H130+'C3 Build Costs'!I130)*-1 -> 31434480 | E54: ="£ "&TEXT(IF(ISERROR(+'C3 Build Costs'!$G$99),"",+D54/'C3 Build Costs'!$G$99),"#,000")&" psqm" -> £ 1,633 psqm
A55: CONTRIBUTION TO SCHEME COSTS FROM OPEN MARKET HOUSING | G55: =+F53-D54 -> 28637070
A57: AH Residential Values
A58: =+'Input 2 -Res BATCH'!K5 -> AH & RENTAL VALUATION BASED ON CAPITAL VALUES for RESIDUAL VALUATION
A59: Type of Unit | B59: =+'Summary 2 -Res Values'!A11 -> Social Rented | C59: Shared Ownership (all phases) | D59: Affordable Rent (all phases) | E59: Total
A60: =+'C2 Value'!A12 -> 1 Bed Flat Low rise | B60: =IF('C2 Value'!$F$6="AH & RENTAL VALUATION BASED ON CAPITAL VALUES for RESIDUAL VALUATION",'C2 Value'!J12,IF('C2 Value'!$F$7="Full term yield based on current rents",'C2 Value'!H12,'C2 Value'!I12)) -> 0 | C60: =IF('C2 Value'!$F$6="AH & RENTAL VALUATION BASED ON CAPITAL VALUES for RESIDUAL VALUATION",'C2 Value'!J43+'C2 Value'!J74+'C2 Value'!J105+'C2 Value'!J136+'C2 Value'!J167,'C2 Value'!H43+'C2 Value'!H74+'C2 Value'!H105+'C2 Value'!H136+'C2 Value'!H167) -> 0 | D60: =IF('C2 Value'!$F$6="AH & RENTAL VALUATION BASED ON CAPITAL VALUES for RESIDUAL VALUATION",'C2 Value'!J198+'C2 Value'!J230+'C2 Value'!J262+'C2 Value'!J294+'C2 Value'!J326,IF('C2 Value'!$F$7="Full term yield based on current rents",'C2 Value'!H198+'C2 Value'!H230+'C2 Value'!H262+'C2 Value'!H294+'C2 Value'!H326,+'C2 Value'!I198+'C2 Value'!I230+'C2 Value'!I262+'C2 Value'!I294+'C2 Value'!I326)) -> 0 | E60: =SUM(B60:D60) -> 0
A61: =+'C2 Value'!A13 -> 2 Bed Flat Low rise | B61: =IF('C2 Value'!$F$6="AH & RENTAL VALUATION BASED ON CAPITAL VALUES for RESIDUAL VALUATION",'C2 Value'!J13,IF('C2 Value'!$F$7="Full term yield based on current rents",'C2 Value'!H13,'C2 Value'!I13)) -> 0 | C61: =IF('C2 Value'!$F$6="AH & RENTAL VALUATION BASED ON CAPITAL VALUES for RESIDUAL VALUATION",'C2 Value'!J44+'C2 Value'!J75+'C2 Value'!J106+'C2 Value'!J137+'C2 Value'!J168,'C2 Value'!H44+'C2 Value'!H75+'C2 Value'!H106+'C2 Value'!H137+'C2 Value'!H168) -> 0 | D61: =IF('C2 Value'!$F$6="AH & RENTAL VALUATION BASED ON CAPITAL VALUES for RESIDUAL VALUATION",'C2 Value'!J199+'C2 Value'!J231+'C2 Value'!J263+'C2 Value'!J295+'C2 Value'!J327,IF('C2 Value'!$F$7="Full term yield based on current rents",'C2 Value'!H199+'C2 Value'!H231+'C2 Value'!H263+'C2 Value'!H295+'C2 Value'!H327,+'C2 Value'!I199+'C2 Value'!I231+'C2 Value'!I263+'C2 Value'!I295+'C2 Value'!I327)) -> 0 | E61: =SUM(B61:D61) -> 0
A62: =+'C2 Value'!A14 -> 3 Bed Flat Low rise | B62: =IF('C2 Value'!$F$6="AH & RENTAL VALUATION BASED ON CAPITAL VALUES for RESIDUAL VALUATION",'C2 Value'!J14,IF('C2 Value'!$F$7="Full term yield based on current rents",'C2 Value'!H14,'C2 Value'!I14)) -> 0 | C62: =IF('C2 Value'!$F$6="AH & RENTAL VALUATION BASED ON CAPITAL VALUES for RESIDUAL VALUATION",'C2 Value'!J45+'C2 Value'!J76+'C2 Value'!J107+'C2 Value'!J138+'C2 Value'!J169,'C2 Value'!H45+'C2 Value'!H76+'C2 Value'!H107+'C2 Value'!H138+'C2 Value'!H169) -> 0 | D62: =IF('C2 Value'!$F$6="AH & RENTAL VALUATION BASED ON CAPITAL VALUES for RESIDUAL VALUATION",'C2 Value'!J200+'C2 Value'!J232+'C2 Value'!J264+'C2 Value'!J296+'C2 Value'!J328,IF('C2 Value'!$F$7="Full term yield based on current rents",'C2 Value'!H200+'C2 Value'!H232+'C2 Value'!H264+'C2 Value'!H296+'C2 Value'!H328,+'C2 Value'!I200+'C2 Value'!I232+'C2 Value'!I264+'C2 Value'!I296+'C2 Value'!I328)) -> 0 | E62: 0
A63: =+'C2 Value'!A15 -> 4 Bed + Flat Low rise | B63: =IF('C2 Value'!$F$6="AH & RENTAL VALUATION BASED ON CAPITAL VALUES for RESIDUAL VALUATION",'C2 Value'!J15,IF('C2 Value'!$F$7="Full term yield based on current rents",'C2 Value'!H15,'C2 Value'!I15)) -> 0 | C63: =IF('C2 Value'!$F$6="AH & RENTAL VALUATION BASED ON CAPITAL VALUES for RESIDUAL VALUATION",'C2 Value'!J46+'C2 Value'!J77+'C2 Value'!J108+'C2 Value'!J139+'C2 Value'!J170,'C2 Value'!H46+'C2 Value'!H77+'C2 Value'!H108+'C2 Value'!H139+'C2 Value'!H170) -> 0 | D63: =IF('C2 Value'!$F$6="AH & RENTAL VALUATION BASED ON CAPITAL VALUES for RESIDUAL VALUATION",'C2 Value'!J201+'C2 Value'!J233+'C2 Value'!J265+'C2 Value'!J297+'C2 Value'!J329,IF('C2 Value'!$F$7="Full term yield based on current rents",'C2 Value'!H201+'C2 Value'!H233+'C2 Value'!H265+'C2 Value'!H297+'C2 Value'!H329,+'C2 Value'!I201+'C2 Value'!I233+'C2 Value'!I265+'C2 Value'!I297+'C2 Value'!I329)) -> 0 | E63: 0
A64: =+'C2 Value'!A16 -> 1 Bed Flat High rise | B64: =IF('C2 Value'!$F$6="AH & RENTAL VALUATION BASED ON CAPITAL VALUES for RESIDUAL VALUATION",'C2 Value'!J16,IF('C2 Value'!$F$7="Full term yield based on current rents",'C2 Value'!H16,'C2 Value'!I16)) -> 0 | C64: =IF('C2 Value'!$F$6="AH & RENTAL VALUATION BASED ON CAPITAL VALUES for RESIDUAL VALUATION",'C2 Value'!J47+'C2 Value'!J78+'C2 Value'!J109+'C2 Value'!J140+'C2 Value'!J171,'C2 Value'!H47+'C2 Value'!H78+'C2 Value'!H109+'C2 Value'!H140+'C2 Value'!H171) -> 0 | D64: =IF('C2 Value'!$F$6="AH & RENTAL VALUATION BASED ON CAPITAL VALUES for RESIDUAL VALUATION",'C2 Value'!J202+'C2 Value'!J234+'C2 Value'!J266+'C2 Value'!J298+'C2 Value'!J330,IF('C2 Value'!$F$7="Full term yield based on current rents",'C2 Value'!H202+'C2 Value'!H234+'C2 Value'!H266+'C2 Value'!H298+'C2 Value'!H330,+'C2 Value'!I202+'C2 Value'!I234+'C2 Value'!I266+'C2 Value'!I298+'C2 Value'!I330)) -> 0 | E64: 0
A65: =+'C2 Value'!A17 -> 2 Bed Flat High rise | B65: =IF('C2 Value'!$F$6="AH & RENTAL VALUATION BASED ON CAPITAL VALUES for RESIDUAL VALUATION",'C2 Value'!J17,IF('C2 Value'!$F$7="Full term yield based on current rents",'C2 Value'!H17,'C2 Value'!I17)) -> 0 | C65: =IF('C2 Value'!$F$6="AH & RENTAL VALUATION BASED ON CAPITAL VALUES for RESIDUAL VALUATION",'C2 Value'!J48+'C2 Value'!J79+'C2 Value'!J110+'C2 Value'!J141+'C2 Value'!J172,'C2 Value'!H48+'C2 Value'!H79+'C2 Value'!H110+'C2 Value'!H141+'C2 Value'!H172) -> 0 | D65: =IF('C2 Value'!$F$6="AH & RENTAL VALUATION BASED ON CAPITAL VALUES for RESIDUAL VALUATION",'C2 Value'!J203+'C2 Value'!J235+'C2 Value'!J267+'C2 Value'!J299+'C2 Value'!J331,IF('C2 Value'!$F$7="Full term yield based on current rents",'C2 Value'!H203+'C2 Value'!H235+'C2 Value'!H267+'C2 Value'!H299+'C2 Value'!H331,+'C2 Value'!I203+'C2 Value'!I235+'C2 Value'!I267+'C2 Value'!I299+'C2 Value'!I331)) -> 0 | E65: 0
A66: =+'C2 Value'!A18 -> 3 Bed Flat High rise | B66: =IF('C2 Value'!$F$6="AH & RENTAL VALUATION BASED ON CAPITAL VALUES for RESIDUAL VALUATION",'C2 Value'!J18,IF('C2 Value'!$F$7="Full term yield based on current rents",'C2 Value'!H18,'C2 Value'!I18)) -> 0 | C66: =IF('C2 Value'!$F$6="AH & RENTAL VALUATION BASED ON CAPITAL VALUES for RESIDUAL VALUATION",'C2 Value'!J49+'C2 Value'!J80+'C2 Value'!J111+'C2 Value'!J142+'C2 Value'!J173,'C2 Value'!H49+'C2 Value'!H80+'C2 Value'!H111+'C2 Value'!H142+'C2 Value'!H173) -> 0 | D66: =IF('C2 Value'!$F$6="AH & RENTAL VALUATION BASED ON CAPITAL VALUES for RESIDUAL VALUATION",'C2 Value'!J204+'C2 Value'!J236+'C2 Value'!J268+'C2 Value'!J300+'C2 Value'!J332,IF('C2 Value'!$F$7="Full term yield based on current rents",'C2 Value'!H204+'C2 Value'!H236+'C2 Value'!H268+'C2 Value'!H300+'C2 Value'!H332,+'C2 Value'!I204+'C2 Value'!I236+'C2 Value'!I268+'C2 Value'!I300+'C2 Value'!I332)) -> 0 | E66: 0
A67: =+'C2 Value'!A19 -> 4 Bed + Flat High rise | B67: =IF('C2 Value'!$F$6="AH & RENTAL VALUATION BASED ON CAPITAL VALUES for RESIDUAL VALUATION",'C2 Value'!J19,IF('C2 Value'!$F$7="Full term yield based on current rents",'C2 Value'!H19,'C2 Value'!I19)) -> 0 | C67: =IF('C2 Value'!$F$6="AH & RENTAL VALUATION BASED ON CAPITAL VALUES for RESIDUAL VALUATION",'C2 Value'!J50+'C2 Value'!J81+'C2 Value'!J112+'C2 Value'!J143+'C2 Value'!J174,'C2 Value'!H50+'C2 Value'!H81+'C2 Value'!H112+'C2 Value'!H143+'C2 Value'!H174) -> 0 | D67: =IF('C2 Value'!$F$6="AH & RENTAL VALUATION BASED ON CAPITAL VALUES for RESIDUAL VALUATION",'C2 Value'!J205+'C2 Value'!J237+'C2 Value'!J269+'C2 Value'!J301+'C2 Value'!J333,IF('C2 Value'!$F$7="Full term yield based on current rents",'C2 Value'!H205+'C2 Value'!H237+'C2 Value'!H269+'C2 Value'!H301+'C2 Value'!H333,+'C2 Value'!I205+'C2 Value'!I237+'C2 Value'!I269+'C2 Value'!I301+'C2 Value'!I333)) -> 0 | E67: 0
A68: =+'C2 Value'!A20 -> 2 Bed House | B68: =IF('C2 Value'!$F$6="AH & RENTAL VALUATION BASED ON CAPITAL VALUES for RESIDUAL VALUATION",'C2 Value'!J20,IF('C2 Value'!$F$7="Full term yield based on current rents",'C2 Value'!H20,'C2 Value'!I20)) -> 0 | C68: =IF('C2 Value'!$F$6="AH & RENTAL VALUATION BASED ON CAPITAL VALUES for RESIDUAL VALUATION",'C2 Value'!J51+'C2 Value'!J82+'C2 Value'!J113+'C2 Value'!J144+'C2 Value'!J175,'C2 Value'!H51+'C2 Value'!H82+'C2 Value'!H113+'C2 Value'!H144+'C2 Value'!H175) -> 0 | D68: =IF('C2 Value'!$F$6="AH & RENTAL VALUATION BASED ON CAPITAL VALUES for RESIDUAL VALUATION",'C2 Value'!J206+'C2 Value'!J238+'C2 Value'!J270+'C2 Value'!J302+'C2 Value'!J334,IF('C2 Value'!$F$7="Full term yield based on current rents",'C2 Value'!H206+'C2 Value'!H238+'C2 Value'!H270+'C2 Value'!H302+'C2 Value'!H334,+'C2 Value'!I206+'C2 Value'!I238+'C2 Value'!I270+'C2 Value'!I302+'C2 Value'!I334)) -> 0 | E68: 0
A69: =+'C2 Value'!A21 -> 3 Bed House | B69: =IF('C2 Value'!$F$6="AH & RENTAL VALUATION BASED ON CAPITAL VALUES for RESIDUAL VALUATION",'C2 Value'!J21,IF('C2 Value'!$F$7="Full term yield based on current rents",'C2 Value'!H21,'C2 Value'!I21)) -> 0 | C69: =IF('C2 Value'!$F$6="AH & RENTAL VALUATION BASED ON CAPITAL VALUES for RESIDUAL VALUATION",'C2 Value'!J52+'C2 Value'!J83+'C2 Value'!J114+'C2 Value'!J145+'C2 Value'!J176,'C2 Value'!H52+'C2 Value'!H83+'C2 Value'!H114+'C2 Value'!H145+'C2 Value'!H176) -> 0 | D69: =IF('C2 Value'!$F$6="AH & RENTAL VALUATION BASED ON CAPITAL VALUES for RESIDUAL VALUATION",'C2 Value'!J207+'C2 Value'!J239+'C2 Value'!J271+'C2 Value'!J303+'C2 Value'!J335,IF('C2 Value'!$F$7="Full term yield based on current rents",'C2 Value'!H207+'C2 Value'!H239+'C2 Value'!H271+'C2 Value'!H303+'C2 Value'!H335,+'C2 Value'!I207+'C2 Value'!I239+'C2 Value'!I271+'C2 Value'!I303+'C2 Value'!I335)) -> 0 | E69: 0
A70: =+'C2 Value'!A22 -> 4 Bed + House | B70: =IF('C2 Value'!$F$6="AH & RENTAL VALUATION BASED ON CAPITAL VALUES for RESIDUAL VALUATION",'C2 Value'!J22,IF('C2 Value'!$F$7="Full term yield based on current rents",'C2 Value'!H22,'C2 Value'!I22)) -> 0 | C70: =IF('C2 Value'!$F$6="AH & RENTAL VALUATION BASED ON CAPITAL VALUES for RESIDUAL VALUATION",'C2 Value'!J53+'C2 Value'!J84+'C2 Value'!J115+'C2 Value'!J146+'C2 Value'!J177,'C2 Value'!H53+'C2 Value'!H84+'C2 Value'!H115+'C2 Value'!H146+'C2 Value'!H177) -> 0 | D70: =IF('C2 Value'!$F$6="AH & RENTAL VALUATION BASED ON CAPITAL VALUES for RESIDUAL VALUATION",'C2 Value'!J208+'C2 Value'!J240+'C2 Value'!J272+'C2 Value'!J304+'C2 Value'!J336,IF('C2 Value'!$F$7="Full term yield based on current rents",'C2 Value'!H208+'C2 Value'!H240+'C2 Value'!H272+'C2 Value'!H304+'C2 Value'!H336,+'C2 Value'!I208+'C2 Value'!I240+'C2 Value'!I272+'C2 Value'!I304+'C2 Value'!I336)) -> 0 | E70: 0
A71: =+'C2 Value'!A23 -> 0 | B71: =IF('C2 Value'!$F$6="AH & RENTAL VALUATION BASED ON CAPITAL VALUES for RESIDUAL VALUATION",'C2 Value'!J23,IF('C2 Value'!$F$7="Full term yield based on current rents",'C2 Value'!H23,'C2 Value'!I23)) -> 0 | C71: =IF('C2 Value'!$F$6="AH & RENTAL VALUATION BASED ON CAPITAL VALUES for RESIDUAL VALUATION",'C2 Value'!J54+'C2 Value'!J85+'C2 Value'!J116+'C2 Value'!J147+'C2 Value'!J178,'C2 Value'!H54+'C2 Value'!H85+'C2 Value'!H116+'C2 Value'!H147+'C2 Value'!H178) -> 0 | D71: =IF('C2 Value'!$F$6="AH & RENTAL VALUATION BASED ON CAPITAL VALUES for RESIDUAL VALUATION",'C2 Value'!J209,IF('C2 Value'!$F$7="Full term yield based on current rents",'C2 Value'!H209+'C2 Value'!H241+'C2 Value'!H273+'C2 Value'!H305+'C2 Value'!H337,+'C2 Value'!I209+'C2 Value'!I241+'C2 Value'!I273+'C2 Value'!I305+'C2 Value'!I337)) -> 0 | E71: 0
A72: =+'C2 Value'!A24 -> 0 | B72: =IF('C2 Value'!$F$6="AH & RENTAL VALUATION BASED ON CAPITAL VALUES for RESIDUAL VALUATION",'C2 Value'!J24,IF('C2 Value'!$F$7="Full term yield based on current rents",'C2 Value'!H24,'C2 Value'!I24)) -> 0 | C72: =IF('C2 Value'!$F$6="AH & RENTAL VALUATION BASED ON CAPITAL VALUES for RESIDUAL VALUATION",'C2 Value'!J55+'C2 Value'!J86+'C2 Value'!J117+'C2 Value'!J148+'C2 Value'!J179,'C2 Value'!H55+'C2 Value'!H86+'C2 Value'!H117+'C2 Value'!H148+'C2 Value'!H179) -> 0 | D72: =IF('C2 Value'!$F$6="AH & RENTAL VALUATION BASED ON CAPITAL VALUES for RESIDUAL VALUATION",'C2 Value'!J210,IF('C2 Value'!$F$7="Full term yield based on current rents",'C2 Value'!H210+'C2 Value'!H242+'C2 Value'!H274+'C2 Value'!H306+'C2 Value'!H338,+'C2 Value'!I210+'C2 Value'!I242+'C2 Value'!I274+'C2 Value'!I306+'C2 Value'!I338)) -> 0 | E72: 0
B73: =SUM(B60:B72) -> 0 | C73: =SUM(C60:C72) -> 0 | D73: 0 | E73: =IF(ABS(SUM(E60:E72)-F76)>1,"Error in total valuation",SUM(E60:E72)) -> 0
A74: £ psqm of CV (phase 1) | B74: =+'C2 Value'!H57 -> 0 | C74: =+'C2 Value'!H68 -> 0 | D74: =+'C2 Value'!H226 -> 0
A76: CAPITAL VALUE OF ALL AFFORDABLE HOUSING (EXCLUDING OTHER FUNDING) | F76: ='C2 Value'!H355 -> 0
A77: ='Input4 -Other Funding'!A14 -> RP Cross Subsidy (use of own assets) | F77: ='Input4 -Other Funding'!B14 -> 0
A78: ='Input4 -Other Funding'!A15 -> LA s106 commuted in lieu | F78: ='Input4 -Other Funding'!B15 -> 0
A79: ='Input4 -Other Funding'!A16 -> RP Re-cycled SHG | F79: ='Input4 -Other Funding'!B16 -> 0
A80: ='Input4 -Other Funding'!A17 -> Use of AR rent conversion income | F80: ='Input4 -Other Funding'!B17 -> 0
A81: ='Input4 -Other Funding'!A18 -> Other source of AH funding | F81: ='Input4 -Other Funding'!B18 -> 0
A83: OTHER SOURCES OF AFFORDABLE HOUSING FUNDING | F83: ='C2 Value'!F383 -> 0
A85: CAPITAL VALUE OF ALL AFFORDABLE HOUSING (INCLUDING OTHER FUNDING) | F85: =+F76+F83 -> 0
A86: BUILD COST OF AFFORDABLE HOUSING inc Contingency | D86: =('C3 Build Costs'!H129+'C3 Build Costs'!I129)*-1 -> 0 | E86: ="£ "&TEXT(IF(ISERROR(+'C3 Build Costs'!$G$66),"",+D86/'C3 Build Costs'!$G$66),"#,000")&" psqm" -> 
A87: CONTRIBUTION TO SCHEME COSTS FROM AFFORDABLE HOUSING | G87: =+F85-D86 -> 0
A89: Car Parking
A91: ='C2 Value'!B387 -> No. of Spaces | B91: ='C2 Value'!C387 -> Price per Space (£) | C91: ='C2 Value'!D387 -> Value
A92: =IF('C2 Value'!B388=0,"-",'C2 Value'!B388) -> - | B92: =IF('C2 Value'!C388=0,"-",'C2 Value'!C388) -> - | C92: =IF('C2 Value'!D388=0,0,'C2 Value'!D388) -> 0
A95: Value of Residential Car Parking | F95: =C92 -> 0
A96: Car Parking Build Costs | D96: ='C3 Build Costs'!H134*-1 -> 0
A99: Ground rent
D100: Capitalised annual ground rent
A101: ='C2 Value'!A367 -> Social Rented | D101: ='C2 Value'!F367 -> 0
A102: ='C2 Value'!A368 -> Shared Ownership | D102: ='C2 Value'!F368 -> 0
A103: ='C2 Value'!A369 -> Affordable Rent | D103: ='C2 Value'!F369 -> 0
A105: ='C2 Value'!A370 -> Open market (all phases) | D105: ='C2 Value'!F370 -> 0
A106: Capitalised Annual Ground Rents | F106: =SUM(D105:D105)+SUM(D101:D103) -> 0
A108: TOTAL CAPITAL VALUE OF RESIDENTIAL SCHEME | F108: =F53+F85+F95+F106 -> 60071550
A109: TOTAL BUILD COST OF RESIDENTIAL SCHEME | D109: =+D96+D86+D54 -> 31434480
A110: TOTAL CONTRIBUTION OF RESIDENTIAL SCHEME | G110: =+F108-D109 -> 28637070
A112: Non-Residential
D113: Cost | F113: Values
A114: =+'Input 6 - Non Res'!A7 -> Office | D114: =('C4 - Commercial'!D24+'C4 - Commercial'!D29+'C4 - Commercial'!D37)*-1 -> 0 | F114: ='C4 - Commercial'!D11 -> 0
A115: =+'Input 6 - Non Res'!A38 -> Retail | D115: =('C4 - Commercial'!I24+'C4 - Commercial'!I29+'C4 - Commercial'!I37)*-1 -> 0 | F115: ='C4 - Commercial'!I11 -> 0
A116: =+'Input 6 - Non Res'!A69 -> Industrial | D116: =('C4 - Commercial'!D76+'C4 - Commercial'!D81+'C4 - Commercial'!D89)*-1 -> 0 | F116: ='C4 - Commercial'!D63 -> 0
A117: =+'Input 6 - Non Res'!A99 -> Leisure | D117: =('C4 - Commercial'!I76+'C4 - Commercial'!I81+'C4 - Commercial'!I89)*-1 -> 0 | F117: ='C4 - Commercial'!I63 -> 0
A118: =+'Input 6 - Non Res'!A130 -> Community Use | D118: =('C4 - Commercial'!D128+'C4 - Commercial'!D133+'C4 - Commercial'!D141)*-1 -> 0 | F118: ='C4 - Commercial'!D115 -> 0
A119: Community Infrastructure Levy | D119: =-'C4 - Commercial'!D$32-'C4 - Commercial'!D$84-'C4 - Commercial'!D$136-'C4 - Commercial'!I$32-'C4 - Commercial'!I$84 -> 0
A121: CAPITAL VALUE OF NON-RESIDENTIAL SCHEME | F121: =SUM(F114:F118) -> 0
A122: COSTS OF NON-RESIDENTIAL SCHEME | D122: =SUM(D114:D119) -> 0
A123: CONTRIBUTION TO SCHEME COSTS FROM NON-RESIDENTIAL | G123: =+F121-D122 -> 0
A125: GROSS DEVELOPMENT VALUE OF SCHEME | F125: =F121+F108 -> 60071550
A126: TOTAL BUILD COSTS | D126: =+D122+D109 -> 31434480
A127: TOTAL CONTRIBUTION TO SCHEME COSTS | G127: =+G123+G110 -> 28637070
A129: ='Input 5 -Res Costs'!A84 -> External Works & Infrastructure Costs (£) | D129: Per unit | F129: % of GDV | G129: per Hectare
A130: ='C3 Build Costs'!$A165 -> Garages - 8,886.60/dwg | C130: ='C0 Cashflow'!C690*-1 -> 1510722 | D130: =IF($B$11=0,0,+C130/$B$11) -> 8886.6 | F130: =IFERROR(+C130/$F$125,0) -> 0.02514871016 | G130: =IFERROR(+C130/'Input 1 -Site'!$B$18,0) -> 311040.1482
A131: ='C3 Build Costs'!$A166 -> Carbon reduction -1588/dwg | C131: ='C0 Cashflow'!C691*-1 -> 269960 | D131: 1588 | F131: =IFERROR(+C131/$F$125,0) -> 0.004493974269 | G131: =IFERROR(+C131/'Input 1 -Site'!$B$18,0) -> 55581.63475
A132: ='C3 Build Costs'!$A167 -> District heat - 5000/dwg | C132: ='C0 Cashflow'!C692*-1 -> 850000 | D132: 5000 | F132: 0.01414979304 | G132: =IFERROR(+C132/'Input 1 -Site'!$B$18,0) -> 175005.1472
A133: ='C3 Build Costs'!$A168 -> 0 | C133: ='C0 Cashflow'!C693*-1 -> 0 | D133: 0 | F133: 0 | G133: =IFERROR(+C133/'Input 1 -Site'!$B$18,0) -> 0
A134: ='C3 Build Costs'!$A169 -> 0 | C134: ='C0 Cashflow'!C694*-1 -> 0 | D134: 0 | F134: 0 | G134: =IFERROR(+C134/'Input 1 -Site'!$B$18,0) -> 0
A135: ='C3 Build Costs'!$A170 -> 0 | C135: ='C0 Cashflow'!C695*-1 -> 0 | D135: 0 | F135: 0 | G135: =IFERROR(+C135/'Input 1 -Site'!$B$18,0) -> 0
A136: ='C3 Build Costs'!$A171 -> 0 | C136: ='C0 Cashflow'!C696*-1 -> 0 | D136: 0 | F136: 0 | G136: =IFERROR(+C136/'Input 1 -Site'!$B$18,0) -> 0
A137: ='C3 Build Costs'!$A172 -> 0 | C137: ='C0 Cashflow'!C697*-1 -> 0 | D137: 0 | F137: 0 | G137: =IFERROR(+C137/'Input 1 -Site'!$B$18,0) -> 0
A138: ='C3 Build Costs'!$A173 -> 0 | C138: ='C0 Cashflow'!C698*-1 -> 0 | D138: 0 | F138: 0 | G138: =IFERROR(+C138/'Input 1 -Site'!$B$18,0) -> 0
A139: ='C3 Build Costs'!$A174 -> 0 | C139: ='C0 Cashflow'!C699*-1 -> 0 | D139: 0 | F139: 0 | G139: =IFERROR(+C139/'Input 1 -Site'!$B$18,0) -> 0
C140: =SUM(C130:C139) -> 2630682 | F140: 0.04379247747 | G140: =IFERROR(+C140/'Input 1 -Site'!$B$18,0) -> 541626.9302
A141: Other site costs
A142: Fees and certification | B142: =+'Input 5 -Res Costs'!C80 -> 0.125 | C142: ='C3 Build Costs'!H140*-1 -> 3929310 | D142: =IF($B$11=0,0,+C142/$B$11) -> 23113.58824 | F142: =IFERROR(+C142/$F$125,0) -> 0.06541049798 | G142: =IFERROR(+C142/'Input 1 -Site'!$B$18,0) -> 808999.3823
A143: Other Acquisition Costs (£) | C143: ='C3 Build Costs'!B250*-1 -> 0 | D143: 0
A145: ='Input 5 -Res Costs'!A141 -> Site Abnormals (£)
A146: ='Input 5 -Res Costs'!A142 -> 0 | C146: ='C3 Build Costs'!B222*-1 -> 0 | D146: =IF($B$11=0,0,+C146/$B$11) -> 0 | F146: =IFERROR(+C146/$F$125,0) -> 0 | G146: =IFERROR(+C146/'Input 1 -Site'!$B$18,0) -> 0
A147: ='Input 5 -Res Costs'!A143 -> 0 | C147: ='C3 Build Costs'!B223*-1 -> 0 | D147: 0 | F147: 0 | G147: =IFERROR(+C147/'Input 1 -Site'!$B$18,0) -> 0
A148: ='Input 5 -Res Costs'!A144 -> Other | C148: ='C3 Build Costs'!B224*-1 -> 0 | D148: 0 | F148: 0 | G148: =IFERROR(+C148/'Input 1 -Site'!$B$18,0) -> 0
A149: ='Input 5 -Res Costs'!A145 -> Other 2 | C149: ='C3 Build Costs'!B225*-1 -> 0 | D149: 0 | F149: 0 | G149: =IFERROR(+C149/'Input 1 -Site'!$B$18,0) -> 0
A150: ='Input 5 -Res Costs'!A146 -> Other 3 | C150: ='C3 Build Costs'!B226*-1 -> 0 | D150: 0 | F150: 0 | G150: =IFERROR(+C150/'Input 1 -Site'!$B$18,0) -> 0
A151: ='Input 5 -Res Costs'!A147 -> Other 4 | C151: ='C3 Build Costs'!B227*-1 -> 0 | D151: 0 | F151: 0 | G151: =IFERROR(+C151/'Input 1 -Site'!$B$18,0) -> 0
A152: ='Input 5 -Res Costs'!A148 -> Other 5 | C152: ='C3 Build Costs'!B228*-1 -> 0 | D152: 0 | F152: 0 | G152: =IFERROR(+C152/'Input 1 -Site'!$B$18,0) -> 0
C153: =SUM(C146:C152) -> 0 | F153: 0 | G153: =IFERROR(+C153/'Input 1 -Site'!$B$18,0) -> 0
A155: Total Site Costs inc Fees | C155: =+C140+C142+C143+C153 -> 6559992 | D155: =IF($B$11=0,0,+C155/$B$11) -> 38588.18824
A158: Statutory 106 Costs (£)
A159: =+'Input 5 -Res Costs'!A156 -> S106 Obligations | C159: =-'C3 Build Costs'!B145 -> 0 | D159: =IF($B$11=0,0,+C159/$B$11) -> 0
A160: =+'Input 5 -Res Costs'!A157 -> Sport & Recreation | C160: =-'C3 Build Costs'!B146 -> 0 | D160: 0
A161: =+'Input 5 -Res Costs'!A158 -> Social Infrastructure | C161: =-'C3 Build Costs'!B147 -> 0 | D161: 0
A162: =+'Input 5 -Res Costs'!A159 -> Public Realm | C162: =-'C3 Build Costs'!B148 -> 0 | D162: 0
A163: =+'Input 5 -Res Costs'!A160 -> Affordable Housing | C163: =-'C3 Build Costs'!B149 -> 0 | D163: 0
A164: =+'Input 5 -Res Costs'!A161 -> Transport | C164: =-'C3 Build Costs'!B150 -> 0 | D164: 0
A165: =+'Input 5 -Res Costs'!A162 -> Highway | C165: =-'C3 Build Costs'!B151 -> 0 | D165: 0
A166: =+'Input 5 -Res Costs'!A163 -> Health | C166: =-'C3 Build Costs'!B152 -> 0 | D166: 0
A167: =+'Input 5 -Res Costs'!A164 -> Public Art | C167: =-'C3 Build Costs'!B153 -> 0 | D167: 0
A168: =+'Input 5 -Res Costs'!A165 -> Flood work | C168: =-'C3 Build Costs'!B154 -> 0 | D168: 0
A169: =+'Input 5 -Res Costs'!A166 -> Community Infrastructure Levy | C169: =-'C3 Build Costs'!B155 -> 0 | D169: 0
A170: =+'Input 5 -Res Costs'!A167 -> Other Tariff | C170: =-'C3 Build Costs'!B156 -> 0 | D170: 0
A171: =+'Input 5 -Res Costs'!A168 -> Other 1 | C171: =-'C3 Build Costs'!B157 -> 0 | D171: =IF($B$11=0,0,+C171/$B$11) -> 0
A172: =+'Input 5 -Res Costs'!A169 -> sale of self build plots | C172: =-'C3 Build Costs'!B158 -> 0 | D172: 0
A173: =+'Input 5 -Res Costs'!A170 -> sale of employment land | C173: =-'C3 Build Costs'!B159 -> 0 | D173: 0
A174: =+'Input 5 -Res Costs'!A171 -> traveller sites | C174: =-'C3 Build Costs'!B160 -> 0 | D174: 0
C175: ='Input 5 -Res Costs'!C172 -> 0
A176: Statutory 106 costs | C176: =SUM(C159:C175) -> 0 | D176: =IF($B$11=0,0,+C176/$B$11) -> 0
A179: Marketing (Open Market Housing ONLY) | D179: per OM unit
A180: Sales/letting Fees | B180: ='C3 Build Costs'!B233 -> 0.03 | C180: =-('C3 Build Costs'!C233+'C3 Build Costs'!H241) -> 1802146.5 | D180: =IF('C1 Mix'!B$207=0,"",C180/'C1 Mix'!B$207) -> 10600.86176
A181: Legal Fees (per Open Market unit): | B181: ='C3 Build Costs'!B234*-1 -> 0 | C181: ='C3 Build Costs'!C234*-1 -> 0 | D181: =IF('C1 Mix'!B$207=0,"",C181/'C1 Mix'!B$207) -> 0
A183: Marketing (Affordable Housing) | D183: per affordable unit
A184: ='Input 5 -Res Costs'!A200 -> Developer cost of sale to RP (£) | C184: ='C3 Build Costs'!B256*-1 -> 0 | D184: =IF('C1 Mix'!B$208=0,"",+C184/'C1 Mix'!B$208) -> 
A185: ='Input 5 -Res Costs'!A201 -> RP purchase costs (£) | C185: ='C3 Build Costs'!B257*-1 -> 0 | D185: =IF('C1 Mix'!B$208=0,"",+C185/'C1 Mix'!B$208) -> 
A186: ='Input 5 -Res Costs'!A202 -> Intermediate Housing Sales and Marketing (£) | C186: ='C3 Build Costs'!B258*-1 -> 0 | D186: =IF('C1 Mix'!B$208=0,"",+C186/'C1 Mix'!B$208) -> 
A188: Total Marketing Costs | C188: =C180+C181+C184+C185+C186 -> 1802146.5
A190: Total Direct Costs | D190: =D126+C155+C176+C188 -> 39796618.5
A192: Finance and acquisition costs
A193: Land Payment | C193: =-'C0 Cashflow'!C677-'C0 Cashflow'!C678 -> 0 | D193: =IF(B12=0,0,+C193/B12) -> 0 | E193: =IF(D193=0,0,"per OM home") -> 0 | F193: =IF(B11=0,0,+C193/'Input 1 -Site'!B18) -> 0 | G193: =IF(F193=0,0,"per hectare") -> 0
A194: Arrangement Fee | C194: ='C0 Cashflow'!C707*-1 -> 0 | D194: =IF(C199=0,"",+C194/C199) -> 0 | E194: =IF(D194="","","of interest") -> of interest
A195: Misc Fees (Surveyors etc) | C195: ='C0 Cashflow'!C708*-1 -> 0 | D195: =IF(F125=0,"",+C195/F125) -> 0 | E195: =IF(D195="","","of scheme value") -> of scheme value
A196: Agents Fees | C196: ='C0 Cashflow'!C679*-1 -> 0
A197: Legal Fees | C197: ='C0 Cashflow'!C680*-1 -> 0
A198: Stamp Duty | C198: ='C0 Cashflow'!C681*-1 -> 0
A199: Total Interest Paid | C199: =('C0 Cashflow'!C730+'C0 Cashflow'!C731)*-1 -> 365037.7664
A201: Total Finance and Acquisition Costs | D201: =SUM(C193:C199) -> 365037.7664
A204: Developer's return for risk and profit
A206: Residential
A207: Market Housing Return (inc OH) on Value | B207: =+'Input 5 -Res Costs'!C218 -> 0.175 | C207: =IF(ISERROR('C0 Cashflow'!G6),0,'C0 Cashflow'!G6) -> 10512521.25 | D207: =IF('C1 Mix'!B$207=0,"",C207/'C1 Mix'!B$207) -> 61838.36029 | E207: per OM unit
A208: Affordable Housing Return on Cost | B208: =+'Input 5 -Res Costs'!B221 -> 0.06 | C208: =IF(ISERROR('C0 Cashflow'!G10),0,'C0 Cashflow'!G10) -> 0 | D208: =IF('C1 Mix'!B$208=0,"",+C208/'C1 Mix'!B$208) ->  | E208: per affordable unit
A209: Return on sale of Private Rent | B209: =+'Input 5 -Res Costs'!B220 -> 0 | C209: =IF(ISERROR('C0 Cashflow'!G8),0,'C0 Cashflow'!G8) -> 0 | D209: =+C209/('C1 Mix'!B207-'C1 Mix'!F207) ->  | E209: per PR unit
A210: Non-residential
A211: Office | B211: ='C4 - Commercial'!D50*-1 -> 0
A212: Retail | B212: ='C4 - Commercial'!I50*-1 -> 0
A213: Industrial | B213: ='C4 - Commercial'!D102*-1 -> 0
A214: Leisure | B214: ='C4 - Commercial'!I102*-1 -> 0
A215: Community-use | B215: ='C4 - Commercial'!D154*-1 -> 0 | C215: =SUM(B211:B215) -> 0
A217: Total Operating Profit | D217: =C207+C208+C209+C215 -> 10512521.25
A218: (i.e. profit after deducting sales and site specific finance costs but before deducting developer overheads and taxation)
A220: TOTAL COST | D220: =+D190+D201+D217 -> 50674177.52
A222: ="Surplus/(Deficit) at completion "&DAY('Input 3 -Res Phasing'!B11)&"/"&MONTH('Input 3 -Res Phasing'!B11)&"/"&YEAR('Input 3 -Res Phasing'!B11) -> Surplus/(Deficit) at completion 31/3/2033 | E222: =IF(ABS('C0 Cashflow'!C734-'Output - Full'!F222)<100,"","Diff to cashflow calculation - check warnings") ->  | F222: =+F125-D220 -> 9397372.484 | J222: =IF(E222="Difference to cashflow calculation - check cashflow sheet",'C0 Cashflow'!C734-'Output - Full'!F222,"") ->  | K222: =+F222-'C0 Cashflow'!C734 -> 0
G223: =IF(ABS(K223)>10,"Direct Cost difference","") ->  | K223: =+'C0 Cashflow'!IV552 -> -9.685754776e-08
A224: ="Present Value of Surplus (Deficit) at "&DAY('Input 3 -Res Phasing'!B7)&"/"&MONTH('Input 3 -Res Phasing'!B7)&"/"&YEAR('Input 3 -Res Phasing'!B7) -> Present Value of Surplus (Deficit) at 1/1/2020 | F224: =IF(ISERROR(+'C0 Cashflow'!C735),"Invalid data entered, should show error in input cell",+'C0 Cashflow'!C735) -> 4342139.046 | K224: =+'C0 Cashflow'!IV589 -> -1.415610313e-07
C225: =IF(AND(ABS('C0 Cashflow'!C734-'C0 Cashflow'!IM723)>1,C1<>"Incomplete entry , see warning sheet"),"Error: There is a post completion cashflow. Please zip file and send to DatEnquires@hca.gsx.gov.uk","") -> 
A226: Scheme Investment MIRR | C226: =+'C0 Cashflow'!D742 -> 0.1845584199 | D226: (before Developer's returns and interest to avoid double counting returns)
A228: Site Value as a Percentage of Total Scheme Value | C228: =IF(F125=0,0,+C193/F125) -> 0 | E228: Peak Cash Requirement | G228: =MIN('C0 Cashflow'!D732:IL732) -> -4127067.535
A230: Site Value (PV) per hectare | C230: =IF(E6="","No area input",F224/E6) -> 893996.0977 | D230: per hectare | E230: =IF(E6="","No area input",F222/(E6*2.471)) -> 783006.9059 | F230: per acre

Sheet GLAstyle Output
B1: Scheme Results
B2: 'GLA toolkit' style Scheme Results
B4: Site Reference Details | G4: Site Details
B5: =+'Input 1 -Site'!A14 -> Site Reference | C5: =+'Input 1 -Site'!B14 -> 0 | G5: =+'Input 1 -Site'!A11 -> Site Address | H5: =+'Input 1 -Site'!B11 -> Cranbrook self build scheme 170 plots
B6: =+'Input 1 -Site'!A21 -> Local Planning Authority | C6: =+'Input 1 -Site'!B21 -> East Devon | G6: =+'Input 1 -Site'!A16 -> Scheme Description | H6: =+'Input 1 -Site'!B16 -> 0 | I6: =+'Input 1 -Site'!C16 -> 0
B7: =+'Input 1 -Site'!A31 -> Registered Provider (where applicable) | C7: =+'Input 1 -Site'!B29 -> 0
B10: TOTAL NUMBER OF UNITS | G10: AFFORDABLE UNITS
B11: Dwellings | C11: =+'Output - Full'!B11 -> 170 | H11: Quantity | I11: % all units
G12: Total | H12: =SUM(H13:H15) -> 0 | I12: =SUM(I13:I15) -> 0
B13: DENSITY (per hectare) | G13: =+'C1 Mix'!$A$12 -> Social Rented | H13: =+'C1 Mix'!O16 -> 0 | I13: =+H13/'C1 Mix'!$B$206 -> 0
B14: Dwellings | C14: =+'Output - Full'!B17 -> 35.00102944 | G14: Affordable Rent | H14: =+'C1 Mix'!O70+'C1 Mix'!O79+'C1 Mix'!O88+'C1 Mix'!O97+'C1 Mix'!O106 -> 0 | I14: =+H14/'C1 Mix'!$B$206 -> 0
G15: Shared Ownership | H15: =+'C1 Mix'!O25+'C1 Mix'!O34+'C1 Mix'!O43+'C1 Mix'!O52+'C1 Mix'!O61 -> 0 | I15: =+H15/'C1 Mix'!$B$206 -> 0
B17: REVENUES AND COSTS | G17: Surplus/(Deficit) Present Value
B18: Total Scheme Revenues | D18: =+'Output - Full'!F125 -> 60071550 | G18: Whole Scheme | H18: =+'Output - Full'!F224 -> 4342139.046
B19: Total Scheme Costs | C19: =+'Output - Full'!D190+'Output - Full'!D201+'Output - Full'!D217 -> 50674177.52 | G19: Per net hectare | H19: =IF(ISERROR(+H18/'Input 1 -Site'!B19),"",+H18/'Input 1 -Site'!B19) -> 893996.0977
G20: Per dwelling | H20: =+H18/C11 -> 25541.99439
G21: Per market dwelling | H21: =IF(ISERROR(+H18/'Output - Full'!B12),0,H18/'Output - Full'!B12) -> 25541.99439
B22: Contribution to Revenue from
B23: Market Housing | D23: =+'Output - Full'!F53 -> 60071550
B24: Affordable Housing | D24: =+'Output - Full'!F76 -> 0 | G24: Alternative Site Value
B25: Social Rent | C25: =+'Output - Full'!B73 -> 0 | G25: =+'Input 1 -Site'!$B$25 -> 0 | H25: =+'Input 1 -Site'!$B$24 -> 0
B26: Shared Ownership | C26: =+'Output - Full'!C73 -> 0
B27: Affordable Rent | C27: =+'Output - Full'!D73 -> 0
B28: Other Contributions | D28: =+'Output - Full'!F83+'Output - Full'!F95+'Output - Full'!F106 -> 0
B29: Non Residential Values | D29: =+'Output - Full'!F121 -> 0
B31: Contribution to Costs from
B32: Market Housing | D32: =+'Output - Full'!D54 -> 31434480
B33: Affordable Housing | D33: =+'Output - Full'!D86 -> 0
B34: Social Rent | C34: =-'C3 Build Costs'!H14 -> 0
B35: Shared Ownership | C35: =-'C3 Build Costs'!H19-'C3 Build Costs'!H24-'C3 Build Costs'!H29-'C3 Build Costs'!H34-'C3 Build Costs'!H39 -> 0
B36: Affordable Rent | C36: =-'C3 Build Costs'!H45-'C3 Build Costs'!H50-'C3 Build Costs'!H55-'C3 Build Costs'!H60-'C3 Build Costs'!H65 -> 0
B37: Other Construction costs | D37: =+'Output - Full'!C155+'Output - Full'!D96 -> 6559992
B38: Planning Obligations | D38: =+'Output - Full'!C176 -> 0
B39: Fees | D39: =+'Output - Full'!C188 -> 1802146.5
B40: Non Residential Costs | D40: =+'Output - Full'!$D$122 -> 0
B41: Finance and Acquisition Costs | D41: =+'Output - Full'!D201 -> 365037.7664
B42: Developer's return for risk and profit | D42: =+'Output - Full'!D217 -> 10512521.25
C44: =IF(ABS(SUM(D23:D29)-D18)>0.5,"Warning Revenue Error: Zip file and send to DATEnquires@hca.gsx.gov.uk",0) -> 0
C45: =IF(ABS(SUM(D32:D42)-C19)>0.5,"Warning Cost Error:Zip file and send to DATEnquires@hca.gsx.gov.uk",0) -> 0
C46: =IF(ABS((D18-C19)-'Output - Full'!F222)>0.5,"Crosscheck Error zip and mail to DATEnquires@hcs.gsx.gov.uk",0) -> 0

Sheet Output Qtrly CF
A1: HCA DEVELOPMENT APPRAISAL TOOL | U1: ='Input 1 -Site'!A17 -> Date of appraisal | W1: ='Input 1 -Site'!B17 -> 2020-01-01
B2: All values to nearest £ | D2: =IF('C0 Cashflow'!D9>'Output Qtrly CF'!AD4,"WARNING, VALUES BEYOND 10 YEARS WILL NOT FIT ON TO THIS SHEET","") ->  | U2: =+'Input 1 -Site'!A15 -> File Source | W2: =+'Input 1 -Site'!B15 -> 0
A3: =+'Input 1 -Site'!B11 -> Cranbrook self build scheme 170 plots | D3: =+'Input 1 -Site'!B16:H16 -> 0 | U3: =+'Input 1 -Site'!A20 -> Author & Organisation | W3: =+'Input 1 -Site'!B20 -> PGD, Three Dragons | Y3: Final Ten Years
A4: QUARTERLY CASH FLOW | C4: Total | D4: =+'Input 3 -Res Phasing'!B7 -> 2020-01-01 | E4: =DATE(YEAR(D4),MONTH(D4)+3,DAY(D4)) -> 2020-04-01 | F4: =DATE(YEAR(E4),MONTH(E4)+3,DAY(E4)) -> 2020-07-01 | G4: 2020-10-01 | H4: 2021-01-01 | I4: 2021-04-01 | J4: 2021-07-01 | K4: 2021-10-01 | L4: 2022-01-01 | M4: 2022-04-01 | N4: 2022-07-01 | O4: 2022-10-01 | P4: 2023-01-01 | Q4: 2023-04-01 | R4: 2023-07-01 | S4: 2023-10-01 | T4: 2024-01-01 | U4: 2024-04-01 | V4: 2024-07-01 | W4: 2024-10-01 | X4: =DATE(YEAR(W4),MONTH(W4)+3,DAY(W4)) -> 2025-01-01 | Y4: =DATE(YEAR(X4)+1,MONTH(X4),DAY(X4)) -> 2026-01-01 | Z4: =DATE(YEAR(Y4)+1,MONTH(Y4),DAY(Y4)) -> 2027-01-01 | AA4: 2028-01-01 | AB4: 2029-01-01 | AC4: 2030-01-01 | AD4: 2031-01-01 | AE4: 2032-01-01 | AF4: 2033-01-01 | AG4: 2034-01-01 | AH4: 2035-01-01 | AI4: 2036-01-01 | AJ4: 2037-01-01 | AK4: 2038-01-01 | AL4: 2039-01-01 | AM4: =DATE(YEAR(AG4)+1,MONTH(AG4),DAY(AG4)) -> 2035-01-01
B5: End of Quarter | D5: Q0 | E5: Q1 | F5: Q2 | G5: Q3 | H5: Q4 | I5: Q5 | J5: Q6 | K5: Q7 | L5: Q8 | M5: Q9 | N5: Q10 | O5: Q11 | P5: Q12 | Q5: Q13 | R5: Q14 | S5: Q15 | T5: Q16 | U5: Q17 | V5: Q18 | W5: Q19 | X5: Q20 | Y5: YEAR 6 | Z5: YEAR 7 | AA5: YEAR 8 | AB5: YEAR 9 | AC5: YEAR 10 | AD5: YEAR 11 | AE5: YEAR 12 | AF5: YEAR 13 | AG5: YEAR 14 | AH5: YEAR 15 | AI5: YEAR 16 | AJ5: YEAR 17 | AK5: YEAR 18 | AL5: YEAR 19 | AM5: YEAR 20
A6: Month | D6: 0 | AN6: =IF(ABS(SUM(D6:AM6)-C6)>10,"Crosscast Error",0) -> 0
A7: =+'C0 Cashflow'!A677 -> Site Acquisition Costs | B7: =+'C0 Cashflow'!B677 -> Land Value | C7: =+'C0 Cashflow'!C677 -> 0 | D7: =SUM('C0 Cashflow'!D677) -> 0 | E7: =IF(ISERROR(SUM('C0 Cashflow'!E677:G677)),"N/A",SUM('C0 Cashflow'!E677:G677)) -> 0 | F7: =IF(ISERROR(SUM('C0 Cashflow'!H677:J677)),"N/A",SUM('C0 Cashflow'!H677:J677)) -> 0 | G7: =IF(ISERROR(SUM('C0 Cashflow'!K677:M677)),"N/A",SUM('C0 Cashflow'!K677:M677)) -> 0 | H7: =IF(ISERROR(SUM('C0 Cashflow'!N677:P677)),"N/A",SUM('C0 Cashflow'!N677:P677)) -> 0 | I7: =IF(ISERROR(SUM('C0 Cashflow'!Q677:S677)),"N/A",SUM('C0 Cashflow'!Q677:S677)) -> 0 | J7: =IF(ISERROR(SUM('C0 Cashflow'!T677:V677)),"N/A",SUM('C0 Cashflow'!T677:V677)) -> 0 | K7: =IF(ISERROR(SUM('C0 Cashflow'!W677:Y677)),"N/A",SUM('C0 Cashflow'!W677:Y677)) -> 0 | L7: =IF(ISERROR(SUM('C0 Cashflow'!Z677:AB677)),"N/A",SUM('C0 Cashflow'!Z677:AB677)) -> 0 | M7: =IF(ISERROR(SUM('C0 Cashflow'!AC677:AE677)),"N/A",SUM('C0 Cashflow'!AC677:AE677)) -> 0 | N7: =IF(ISERROR(SUM('C0 Cashflow'!AF677:AH677)),"N/A",SUM('C0 Cashflow'!AF677:AH677)) -> 0 | O7: =IF(ISERROR(SUM('C0 Cashflow'!AI677:AK677)),"N/A",SUM('C0 Cashflow'!AI677:AK677)) -> 0 | P7: =IF(ISERROR(SUM('C0 Cashflow'!AL677:AN677)),"N/A",SUM('C0 Cashflow'!AL677:AN677)) -> 0 | Q7: =IF(ISERROR(SUM('C0 Cashflow'!AO677:AQ677)),"N/A",SUM('C0 Cashflow'!AO677:AQ677)) -> 0 | R7: =IF(ISERROR(SUM('C0 Cashflow'!AR677:AT677)),"N/A",SUM('C0 Cashflow'!AR677:AT677)) -> 0 | S7: =IF(ISERROR(SUM('C0 Cashflow'!AU677:AW677)),"N/A",SUM('C0 Cashflow'!AU677:AW677)) -> 0 | T7: =IF(ISERROR(SUM('C0 Cashflow'!AX677:AZ677)),"N/A",SUM('C0 Cashflow'!AX677:AZ677)) -> 0 | U7: =IF(ISERROR(SUM('C0 Cashflow'!BA677:BC677)),"N/A",SUM('C0 Cashflow'!BA677:BC677)) -> 0 | V7: =IF(ISERROR(SUM('C0 Cashflow'!BD677:BF677)),"N/A",SUM('C0 Cashflow'!BD677:BF677)) -> 0 | W7: =IF(ISERROR(SUM('C0 Cashflow'!BG677:BI677)),"N/A",SUM('C0 Cashflow'!BG677:BI677)) -> 0 | X7: =IF(ISERROR(SUM('C0 Cashflow'!BJ677:BL677)),"N/A",SUM('C0 Cashflow'!BJ677:BL677)) -> 0 | Y7: =IF(ISERROR(SUM('C0 Cashflow'!BM677:BX677)),"N/A",SUM('C0 Cashflow'!BM677:BX677)) -> 0 | Z7: =IF(ISERROR(SUM('C0 Cashflow'!BY677:CJ677)),"N/A",SUM('C0 Cashflow'!BY677:CJ677)) -> 0 | AA7: =IF(ISERROR(SUM('C0 Cashflow'!CK677:CV677)),"N/A",SUM('C0 Cashflow'!CK677:CV677)) -> 0 | AB7: =IF(ISERROR(SUM('C0 Cashflow'!CW677:DH677)),"N/A",SUM('C0 Cashflow'!CW677:DH677)) -> 0 | AC7: =IF(ISERROR(SUM('C0 Cashflow'!DI677:DT677)),"N/A",SUM('C0 Cashflow'!DI677:DT677)) -> 0 | AD7: =IF(ISERROR(SUM('C0 Cashflow'!DU677:EF677)),"N/A",SUM('C0 Cashflow'!DU677:EF677)) -> 0 | AE7: =IF(ISERROR(SUM('C0 Cashflow'!EG677:ER677)),"N/A",SUM('C0 Cashflow'!EG677:ER677)) -> 0 | AF7: =IF(ISERROR(SUM('C0 Cashflow'!ES677:FD677)),"N/A",SUM('C0 Cashflow'!ES677:FD677)) -> 0 | AG7: =IF(ISERROR(SUM('C0 Cashflow'!FE677:FP677)),"N/A",SUM('C0 Cashflow'!FE677:FP677)) -> 0 | AH7: =IF(ISERROR(SUM('C0 Cashflow'!FQ677:GB677)),"N/A",SUM('C0 Cashflow'!FQ677:GB677)) -> 0 | AI7: =IF(ISERROR(SUM('C0 Cashflow'!GC677:GN677)),"N/A",SUM('C0 Cashflow'!GC677:GN677)) -> 0 | AJ7: =IF(ISERROR(SUM('C0 Cashflow'!GO677:GZ677)),"N/A",SUM('C0 Cashflow'!GO677:GZ677)) -> 0 | AK7: =IF(ISERROR(SUM('C0 Cashflow'!HA677:HL677)),"N/A",SUM('C0 Cashflow'!HA677:HL677)) -> 0 | AL7: =IF(ISERROR(SUM('C0 Cashflow'!HM677:HX677)),"N/A",SUM('C0 Cashflow'!HM677:HX677)) -> 0 | AM7: =IF(ISERROR(SUM('C0 Cashflow'!HY677:IL677)),"N/A",SUM('C0 Cashflow'!HY677:IL677)) -> 0 | AN7: 0
C8: =+'C0 Cashflow'!C678 -> 0 | D8: =SUM('C0 Cashflow'!D678) -> 0 | E8: =IF(ISERROR(SUM('C0 Cashflow'!E678:G678)),"N/A",SUM('C0 Cashflow'!E678:G678)) -> 0 | F8: =IF(ISERROR(SUM('C0 Cashflow'!H678:J678)),"N/A",SUM('C0 Cashflow'!H678:J678)) -> 0 | G8: =IF(ISERROR(SUM('C0 Cashflow'!K678:M678)),"N/A",SUM('C0 Cashflow'!K678:M678)) -> 0 | H8: =IF(ISERROR(SUM('C0 Cashflow'!N678:P678)),"N/A",SUM('C0 Cashflow'!N678:P678)) -> 0 | I8: =IF(ISERROR(SUM('C0 Cashflow'!Q678:S678)),"N/A",SUM('C0 Cashflow'!Q678:S678)) -> 0 | J8: =IF(ISERROR(SUM('C0 Cashflow'!T678:V678)),"N/A",SUM('C0 Cashflow'!T678:V678)) -> 0 | K8: =IF(ISERROR(SUM('C0 Cashflow'!W678:Y678)),"N/A",SUM('C0 Cashflow'!W678:Y678)) -> 0 | L8: =IF(ISERROR(SUM('C0 Cashflow'!Z678:AB678)),"N/A",SUM('C0 Cashflow'!Z678:AB678)) -> 0 | M8: =IF(ISERROR(SUM('C0 Cashflow'!AC678:AE678)),"N/A",SUM('C0 Cashflow'!AC678:AE678)) -> 0 | N8: =IF(ISERROR(SUM('C0 Cashflow'!AF678:AH678)),"N/A",SUM('C0 Cashflow'!AF678:AH678)) -> 0 | O8: =IF(ISERROR(SUM('C0 Cashflow'!AI678:AK678)),"N/A",SUM('C0 Cashflow'!AI678:AK678)) -> 0 | P8: =IF(ISERROR(SUM('C0 Cashflow'!AL678:AN678)),"N/A",SUM('C0 Cashflow'!AL678:AN678)) -> 0 | Q8: =IF(ISERROR(SUM('C0 Cashflow'!AO678:AQ678)),"N/A",SUM('C0 Cashflow'!AO678:AQ678)) -> 0 | R8: =IF(ISERROR(SUM('C0 Cashflow'!AR678:AT678)),"N/A",SUM('C0 Cashflow'!AR678:AT678)) -> 0 | S8: =IF(ISERROR(SUM('C0 Cashflow'!AU678:AW678)),"N/A",SUM('C0 Cashflow'!AU678:AW678)) -> 0 | T8: =IF(ISERROR(SUM('C0 Cashflow'!AX678:AZ678)),"N/A",SUM('C0 Cashflow'!AX678:AZ678)) -> 0 | U8: =IF(ISERROR(SUM('C0 Cashflow'!BA678:BC678)),"N/A",SUM('C0 Cashflow'!BA678:BC678)) -> 0 | V8: =IF(ISERROR(SUM('C0 Cashflow'!BD678:BF678)),"N/A",SUM('C0 Cashflow'!BD678:BF678)) -> 0 | W8: =IF(ISERROR(SUM('C0 Cashflow'!BG678:BI678)),"N/A",SUM('C0 Cashflow'!BG678:BI678)) -> 0 | X8: =IF(ISERROR(SUM('C0 Cashflow'!BJ678:BL678)),"N/A",SUM('C0 Cashflow'!BJ678:BL678)) -> 0 | Y8: =IF(ISERROR(SUM('C0 Cashflow'!BM678:BX678)),"N/A",SUM('C0 Cashflow'!BM678:BX678)) -> 0 | Z8: =IF(ISERROR(SUM('C0 Cashflow'!BY678:CJ678)),"N/A",SUM('C0 Cashflow'!BY678:CJ678)) -> 0 | AA8: =IF(ISERROR(SUM('C0 Cashflow'!CK678:CV678)),"N/A",SUM('C0 Cashflow'!CK678:CV678)) -> 0 | AB8: =IF(ISERROR(SUM('C0 Cashflow'!CW678:DH678)),"N/A",SUM('C0 Cashflow'!CW678:DH678)) -> 0 | AC8: =IF(ISERROR(SUM('C0 Cashflow'!DI678:DT678)),"N/A",SUM('C0 Cashflow'!DI678:DT678)) -> 0 | AD8: =IF(ISERROR(SUM('C0 Cashflow'!DU678:EF678)),"N/A",SUM('C0 Cashflow'!DU678:EF678)) -> 0 | AE8: =IF(ISERROR(SUM('C0 Cashflow'!EG678:ER678)),"N/A",SUM('C0 Cashflow'!EG678:ER678)) -> 0 | AF8: =IF(ISERROR(SUM('C0 Cashflow'!ES678:FD678)),"N/A",SUM('C0 Cashflow'!ES678:FD678)) -> 0 | AG8: =IF(ISERROR(SUM('C0 Cashflow'!FE678:FP678)),"N/A",SUM('C0 Cashflow'!FE678:FP678)) -> 0 | AH8: =IF(ISERROR(SUM('C0 Cashflow'!FQ678:GB678)),"N/A",SUM('C0 Cashflow'!FQ678:GB678)) -> 0 | AI8: =IF(ISERROR(SUM('C0 Cashflow'!GC678:GN678)),"N/A",SUM('C0 Cashflow'!GC678:GN678)) -> 0 | AJ8: =IF(ISERROR(SUM('C0 Cashflow'!GO678:GZ678)),"N/A",SUM('C0 Cashflow'!GO678:GZ678)) -> 0 | AK8: =IF(ISERROR(SUM('C0 Cashflow'!HA678:HL678)),"N/A",SUM('C0 Cashflow'!HA678:HL678)) -> 0 | AL8: =IF(ISERROR(SUM('C0 Cashflow'!HM678:HX678)),"N/A",SUM('C0 Cashflow'!HM678:HX678)) -> 0 | AM8: =IF(ISERROR(SUM('C0 Cashflow'!HY678:IL678)),"N/A",SUM('C0 Cashflow'!HY678:IL678)) -> 0 | AN8: 0
A9: =+'C0 Cashflow'!A679 -> 0 | B9: =+'C0 Cashflow'!B679 -> Agents Fees | C9: =+'C0 Cashflow'!C679 -> 0 | D9: =SUM('C0 Cashflow'!D679) -> 0 | E9: =IF(ISERROR(SUM('C0 Cashflow'!E679:G679)),"N/A",SUM('C0 Cashflow'!E679:G679)) -> 0 | F9: =IF(ISERROR(SUM('C0 Cashflow'!H679:J679)),"N/A",SUM('C0 Cashflow'!H679:J679)) -> 0 | G9: =IF(ISERROR(SUM('C0 Cashflow'!K679:M679)),"N/A",SUM('C0 Cashflow'!K679:M679)) -> 0 | H9: =IF(ISERROR(SUM('C0 Cashflow'!N679:P679)),"N/A",SUM('C0 Cashflow'!N679:P679)) -> 0 | I9: =IF(ISERROR(SUM('C0 Cashflow'!Q679:S679)),"N/A",SUM('C0 Cashflow'!Q679:S679)) -> 0 | J9: =IF(ISERROR(SUM('C0 Cashflow'!T679:V679)),"N/A",SUM('C0 Cashflow'!T679:V679)) -> 0 | K9: =IF(ISERROR(SUM('C0 Cashflow'!W679:Y679)),"N/A",SUM('C0 Cashflow'!W679:Y679)) -> 0 | L9: =IF(ISERROR(SUM('C0 Cashflow'!Z679:AB679)),"N/A",SUM('C0 Cashflow'!Z679:AB679)) -> 0 | M9: =IF(ISERROR(SUM('C0 Cashflow'!AC679:AE679)),"N/A",SUM('C0 Cashflow'!AC679:AE679)) -> 0 | N9: =IF(ISERROR(SUM('C0 Cashflow'!AF679:AH679)),"N/A",SUM('C0 Cashflow'!AF679:AH679)) -> 0 | O9: =IF(ISERROR(SUM('C0 Cashflow'!AI679:AK679)),"N/A",SUM('C0 Cashflow'!AI679:AK679)) -> 0 | P9: =IF(ISERROR(SUM('C0 Cashflow'!AL679:AN679)),"N/A",SUM('C0 Cashflow'!AL679:AN679)) -> 0 | Q9: =IF(ISERROR(SUM('C0 Cashflow'!AO679:AQ679)),"N/A",SUM('C0 Cashflow'!AO679:AQ679)) -> 0 | R9: =IF(ISERROR(SUM('C0 Cashflow'!AR679:AT679)),"N/A",SUM('C0 Cashflow'!AR679:AT679)) -> 0 | S9: =IF(ISERROR(SUM('C0 Cashflow'!AU679:AW679)),"N/A",SUM('C0 Cashflow'!AU679:AW679)) -> 0 | T9: =IF(ISERROR(SUM('C0 Cashflow'!AX679:AZ679)),"N/A",SUM('C0 Cashflow'!AX679:AZ679)) -> 0 | U9: =IF(ISERROR(SUM('C0 Cashflow'!BA679:BC679)),"N/A",SUM('C0 Cashflow'!BA679:BC679)) -> 0 | V9: =IF(ISERROR(SUM('C0 Cashflow'!BD679:BF679)),"N/A",SUM('C0 Cashflow'!BD679:BF679)) -> 0 | W9: =IF(ISERROR(SUM('C0 Cashflow'!BG679:BI679)),"N/A",SUM('C0 Cashflow'!BG679:BI679)) -> 0 | X9: =IF(ISERROR(SUM('C0 Cashflow'!BJ679:BL679)),"N/A",SUM('C0 Cashflow'!BJ679:BL679)) -> 0 | Y9: =IF(ISERROR(SUM('C0 Cashflow'!BM679:BX679)),"N/A",SUM('C0 Cashflow'!BM679:BX679)) -> 0 | Z9: =IF(ISERROR(SUM('C0 Cashflow'!BY679:CJ679)),"N/A",SUM('C0 Cashflow'!BY679:CJ679)) -> 0 | AA9: =IF(ISERROR(SUM('C0 Cashflow'!CK679:CV679)),"N/A",SUM('C0 Cashflow'!CK679:CV679)) -> 0 | AB9: =IF(ISERROR(SUM('C0 Cashflow'!CW679:DH679)),"N/A",SUM('C0 Cashflow'!CW679:DH679)) -> 0 | AC9: =IF(ISERROR(SUM('C0 Cashflow'!DI679:DT679)),"N/A",SUM('C0 Cashflow'!DI679:DT679)) -> 0 | AD9: =IF(ISERROR(SUM('C0 Cashflow'!DU679:EF679)),"N/A",SUM('C0 Cashflow'!DU679:EF679)) -> 0 | AE9: =IF(ISERROR(SUM('C0 Cashflow'!EG679:ER679)),"N/A",SUM('C0 Cashflow'!EG679:ER679)) -> 0 | AF9: =IF(ISERROR(SUM('C0 Cashflow'!ES679:FD679)),"N/A",SUM('C0 Cashflow'!ES679:FD679)) -> 0 | AG9: =IF(ISERROR(SUM('C0 Cashflow'!FE679:FP679)),"N/A",SUM('C0 Cashflow'!FE679:FP679)) -> 0 | AH9: =IF(ISERROR(SUM('C0 Cashflow'!FQ679:GB679)),"N/A",SUM('C0 Cashflow'!FQ679:GB679)) -> 0 | AI9: =IF(ISERROR(SUM('C0 Cashflow'!GC679:GN679)),"N/A",SUM('C0 Cashflow'!GC679:GN679)) -> 0 | AJ9: =IF(ISERROR(SUM('C0 Cashflow'!GO679:GZ679)),"N/A",SUM('C0 Cashflow'!GO679:GZ679)) -> 0 | AK9: =IF(ISERROR(SUM('C0 Cashflow'!HA679:HL679)),"N/A",SUM('C0 Cashflow'!HA679:HL679)) -> 0 | AL9: =IF(ISERROR(SUM('C0 Cashflow'!HM679:HX679)),"N/A",SUM('C0 Cashflow'!HM679:HX679)) -> 0 | AM9: =IF(ISERROR(SUM('C0 Cashflow'!HY679:IL679)),"N/A",SUM('C0 Cashflow'!HY679:IL679)) -> 0 | AN9: 0
A10: =+'C0 Cashflow'!A680 -> 0 | B10: =+'C0 Cashflow'!B680 -> Legal Fees | C10: =+'C0 Cashflow'!C680 -> 0 | D10: =SUM('C0 Cashflow'!D680) -> 0 | E10: =IF(ISERROR(SUM('C0 Cashflow'!E680:G680)),"N/A",SUM('C0 Cashflow'!E680:G680)) -> 0 | F10: =IF(ISERROR(SUM('C0 Cashflow'!H680:J680)),"N/A",SUM('C0 Cashflow'!H680:J680)) -> 0 | G10: =IF(ISERROR(SUM('C0 Cashflow'!K680:M680)),"N/A",SUM('C0 Cashflow'!K680:M680)) -> 0 | H10: =IF(ISERROR(SUM('C0 Cashflow'!N680:P680)),"N/A",SUM('C0 Cashflow'!N680:P680)) -> 0 | I10: =IF(ISERROR(SUM('C0 Cashflow'!Q680:S680)),"N/A",SUM('C0 Cashflow'!Q680:S680)) -> 0 | J10: =IF(ISERROR(SUM('C0 Cashflow'!T680:V680)),"N/A",SUM('C0 Cashflow'!T680:V680)) -> 0 | K10: =IF(ISERROR(SUM('C0 Cashflow'!W680:Y680)),"N/A",SUM('C0 Cashflow'!W680:Y680)) -> 0 | L10: =IF(ISERROR(SUM('C0 Cashflow'!Z680:AB680)),"N/A",SUM('C0 Cashflow'!Z680:AB680)) -> 0 | M10: =IF(ISERROR(SUM('C0 Cashflow'!AC680:AE680)),"N/A",SUM('C0 Cashflow'!AC680:AE680)) -> 0 | N10: =IF(ISERROR(SUM('C0 Cashflow'!AF680:AH680)),"N/A",SUM('C0 Cashflow'!AF680:AH680)) -> 0 | O10: =IF(ISERROR(SUM('C0 Cashflow'!AI680:AK680)),"N/A",SUM('C0 Cashflow'!AI680:AK680)) -> 0 | P10: =IF(ISERROR(SUM('C0 Cashflow'!AL680:AN680)),"N/A",SUM('C0 Cashflow'!AL680:AN680)) -> 0 | Q10: =IF(ISERROR(SUM('C0 Cashflow'!AO680:AQ680)),"N/A",SUM('C0 Cashflow'!AO680:AQ680)) -> 0 | R10: =IF(ISERROR(SUM('C0 Cashflow'!AR680:AT680)),"N/A",SUM('C0 Cashflow'!AR680:AT680)) -> 0 | S10: =IF(ISERROR(SUM('C0 Cashflow'!AU680:AW680)),"N/A",SUM('C0 Cashflow'!AU680:AW680)) -> 0 | T10: =IF(ISERROR(SUM('C0 Cashflow'!AX680:AZ680)),"N/A",SUM('C0 Cashflow'!AX680:AZ680)) -> 0 | U10: =IF(ISERROR(SUM('C0 Cashflow'!BA680:BC680)),"N/A",SUM('C0 Cashflow'!BA680:BC680)) -> 0 | V10: =IF(ISERROR(SUM('C0 Cashflow'!BD680:BF680)),"N/A",SUM('C0 Cashflow'!BD680:BF680)) -> 0 | W10: =IF(ISERROR(SUM('C0 Cashflow'!BG680:BI680)),"N/A",SUM('C0 Cashflow'!BG680:BI680)) -> 0 | X10: =IF(ISERROR(SUM('C0 Cashflow'!BJ680:BL680)),"N/A",SUM('C0 Cashflow'!BJ680:BL680)) -> 0 | Y10: =IF(ISERROR(SUM('C0 Cashflow'!BM680:BX680)),"N/A",SUM('C0 Cashflow'!BM680:BX680)) -> 0 | Z10: =IF(ISERROR(SUM('C0 Cashflow'!BY680:CJ680)),"N/A",SUM('C0 Cashflow'!BY680:CJ680)) -> 0 | AA10: =IF(ISERROR(SUM('C0 Cashflow'!CK680:CV680)),"N/A",SUM('C0 Cashflow'!CK680:CV680)) -> 0 | AB10: =IF(ISERROR(SUM('C0 Cashflow'!CW680:DH680)),"N/A",SUM('C0 Cashflow'!CW680:DH680)) -> 0 | AC10: =IF(ISERROR(SUM('C0 Cashflow'!DI680:DT680)),"N/A",SUM('C0 Cashflow'!DI680:DT680)) -> 0 | AD10: =IF(ISERROR(SUM('C0 Cashflow'!DU680:EF680)),"N/A",SUM('C0 Cashflow'!DU680:EF680)) -> 0 | AE10: =IF(ISERROR(SUM('C0 Cashflow'!EG680:ER680)),"N/A",SUM('C0 Cashflow'!EG680:ER680)) -> 0 | AF10: =IF(ISERROR(SUM('C0 Cashflow'!ES680:FD680)),"N/A",SUM('C0 Cashflow'!ES680:FD680)) -> 0 | AG10: =IF(ISERROR(SUM('C0 Cashflow'!FE680:FP680)),"N/A",SUM('C0 Cashflow'!FE680:FP680)) -> 0 | AH10: =IF(ISERROR(SUM('C0 Cashflow'!FQ680:GB680)),"N/A",SUM('C0 Cashflow'!FQ680:GB680)) -> 0 | AI10: =IF(ISERROR(SUM('C0 Cashflow'!GC680:GN680)),"N/A",SUM('C0 Cashflow'!GC680:GN680)) -> 0 | AJ10: =IF(ISERROR(SUM('C0 Cashflow'!GO680:GZ680)),"N/A",SUM('C0 Cashflow'!GO680:GZ680)) -> 0 | AK10: =IF(ISERROR(SUM('C0 Cashflow'!HA680:HL680)),"N/A",SUM('C0 Cashflow'!HA680:HL680)) -> 0 | AL10: =IF(ISERROR(SUM('C0 Cashflow'!HM680:HX680)),"N/A",SUM('C0 Cashflow'!HM680:HX680)) -> 0 | AM10: =IF(ISERROR(SUM('C0 Cashflow'!HY680:IL680)),"N/A",SUM('C0 Cashflow'!HY680:IL680)) -> 0 | AN10: 0
A11: =+'C0 Cashflow'!A681 -> 0 | B11: =+'C0 Cashflow'!B681 -> Stamp Duty | C11: =+'C0 Cashflow'!C681 -> 0 | D11: =SUM('C0 Cashflow'!D681) -> 0 | E11: =IF(ISERROR(SUM('C0 Cashflow'!E681:G681)),"N/A",SUM('C0 Cashflow'!E681:G681)) -> 0 | F11: =IF(ISERROR(SUM('C0 Cashflow'!H681:J681)),"N/A",SUM('C0 Cashflow'!H681:J681)) -> 0 | G11: =IF(ISERROR(SUM('C0 Cashflow'!K681:M681)),"N/A",SUM('C0 Cashflow'!K681:M681)) -> 0 | H11: =IF(ISERROR(SUM('C0 Cashflow'!N681:P681)),"N/A",SUM('C0 Cashflow'!N681:P681)) -> 0 | I11: =IF(ISERROR(SUM('C0 Cashflow'!Q681:S681)),"N/A",SUM('C0 Cashflow'!Q681:S681)) -> 0 | J11: =IF(ISERROR(SUM('C0 Cashflow'!T681:V681)),"N/A",SUM('C0 Cashflow'!T681:V681)) -> 0 | K11: =IF(ISERROR(SUM('C0 Cashflow'!W681:Y681)),"N/A",SUM('C0 Cashflow'!W681:Y681)) -> 0 | L11: =IF(ISERROR(SUM('C0 Cashflow'!Z681:AB681)),"N/A",SUM('C0 Cashflow'!Z681:AB681)) -> 0 | M11: =IF(ISERROR(SUM('C0 Cashflow'!AC681:AE681)),"N/A",SUM('C0 Cashflow'!AC681:AE681)) -> 0 | N11: =IF(ISERROR(SUM('C0 Cashflow'!AF681:AH681)),"N/A",SUM('C0 Cashflow'!AF681:AH681)) -> 0 | O11: =IF(ISERROR(SUM('C0 Cashflow'!AI681:AK681)),"N/A",SUM('C0 Cashflow'!AI681:AK681)) -> 0 | P11: =IF(ISERROR(SUM('C0 Cashflow'!AL681:AN681)),"N/A",SUM('C0 Cashflow'!AL681:AN681)) -> 0 | Q11: =IF(ISERROR(SUM('C0 Cashflow'!AO681:AQ681)),"N/A",SUM('C0 Cashflow'!AO681:AQ681)) -> 0 | R11: =IF(ISERROR(SUM('C0 Cashflow'!AR681:AT681)),"N/A",SUM('C0 Cashflow'!AR681:AT681)) -> 0 | S11: =IF(ISERROR(SUM('C0 Cashflow'!AU681:AW681)),"N/A",SUM('C0 Cashflow'!AU681:AW681)) -> 0 | T11: =IF(ISERROR(SUM('C0 Cashflow'!AX681:AZ681)),"N/A",SUM('C0 Cashflow'!AX681:AZ681)) -> 0 | U11: =IF(ISERROR(SUM('C0 Cashflow'!BA681:BC681)),"N/A",SUM('C0 Cashflow'!BA681:BC681)) -> 0 | V11: =IF(ISERROR(SUM('C0 Cashflow'!BD681:BF681)),"N/A",SUM('C0 Cashflow'!BD681:BF681)) -> 0 | W11: =IF(ISERROR(SUM('C0 Cashflow'!BG681:BI681)),"N/A",SUM('C0 Cashflow'!BG681:BI681)) -> 0 | X11: =IF(ISERROR(SUM('C0 Cashflow'!BJ681:BL681)),"N/A",SUM('C0 Cashflow'!BJ681:BL681)) -> 0 | Y11: =IF(ISERROR(SUM('C0 Cashflow'!BM681:BX681)),"N/A",SUM('C0 Cashflow'!BM681:BX681)) -> 0 | Z11: =IF(ISERROR(SUM('C0 Cashflow'!BY681:CJ681)),"N/A",SUM('C0 Cashflow'!BY681:CJ681)) -> 0 | AA11: =IF(ISERROR(SUM('C0 Cashflow'!CK681:CV681)),"N/A",SUM('C0 Cashflow'!CK681:CV681)) -> 0 | AB11: =IF(ISERROR(SUM('C0 Cashflow'!CW681:DH681)),"N/A",SUM('C0 Cashflow'!CW681:DH681)) -> 0 | AC11: =IF(ISERROR(SUM('C0 Cashflow'!DI681:DT681)),"N/A",SUM('C0 Cashflow'!DI681:DT681)) -> 0 | AD11: =IF(ISERROR(SUM('C0 Cashflow'!DU681:EF681)),"N/A",SUM('C0 Cashflow'!DU681:EF681)) -> 0 | AE11: =IF(ISERROR(SUM('C0 Cashflow'!EG681:ER681)),"N/A",SUM('C0 Cashflow'!EG681:ER681)) -> 0 | AF11: =IF(ISERROR(SUM('C0 Cashflow'!ES681:FD681)),"N/A",SUM('C0 Cashflow'!ES681:FD681)) -> 0 | AG11: =IF(ISERROR(SUM('C0 Cashflow'!FE681:FP681)),"N/A",SUM('C0 Cashflow'!FE681:FP681)) -> 0 | AH11: =IF(ISERROR(SUM('C0 Cashflow'!FQ681:GB681)),"N/A",SUM('C0 Cashflow'!FQ681:GB681)) -> 0 | AI11: =IF(ISERROR(SUM('C0 Cashflow'!GC681:GN681)),"N/A",SUM('C0 Cashflow'!GC681:GN681)) -> 0 | AJ11: =IF(ISERROR(SUM('C0 Cashflow'!GO681:GZ681)),"N/A",SUM('C0 Cashflow'!GO681:GZ681)) -> 0 | AK11: =IF(ISERROR(SUM('C0 Cashflow'!HA681:HL681)),"N/A",SUM('C0 Cashflow'!HA681:HL681)) -> 0 | AL11: =IF(ISERROR(SUM('C0 Cashflow'!HM681:HX681)),"N/A",SUM('C0 Cashflow'!HM681:HX681)) -> 0 | AM11: =IF(ISERROR(SUM('C0 Cashflow'!HY681:IL681)),"N/A",SUM('C0 Cashflow'!HY681:IL681)) -> 0 | AN11: 0
A12: =+'C0 Cashflow'!A683 -> 0 | B12: =+'C0 Cashflow'!B683 -> Other Acquisition Costs (£) | C12: =+'C0 Cashflow'!C683 -> 0 | D12: =SUM('C0 Cashflow'!D683) -> 0 | E12: =IF(ISERROR(SUM('C0 Cashflow'!E683:G683)),"N/A",SUM('C0 Cashflow'!E683:G683)) -> 0 | F12: =IF(ISERROR(SUM('C0 Cashflow'!H683:J683)),"N/A",SUM('C0 Cashflow'!H683:J683)) -> 0 | G12: =IF(ISERROR(SUM('C0 Cashflow'!K683:M683)),"N/A",SUM('C0 Cashflow'!K683:M683)) -> 0 | H12: =IF(ISERROR(SUM('C0 Cashflow'!N683:P683)),"N/A",SUM('C0 Cashflow'!N683:P683)) -> 0 | I12: =IF(ISERROR(SUM('C0 Cashflow'!Q683:S683)),"N/A",SUM('C0 Cashflow'!Q683:S683)) -> 0 | J12: =IF(ISERROR(SUM('C0 Cashflow'!T683:V683)),"N/A",SUM('C0 Cashflow'!T683:V683)) -> 0 | K12: =IF(ISERROR(SUM('C0 Cashflow'!W683:Y683)),"N/A",SUM('C0 Cashflow'!W683:Y683)) -> 0 | L12: =IF(ISERROR(SUM('C0 Cashflow'!Z683:AB683)),"N/A",SUM('C0 Cashflow'!Z683:AB683)) -> 0 | M12: =IF(ISERROR(SUM('C0 Cashflow'!AC683:AE683)),"N/A",SUM('C0 Cashflow'!AC683:AE683)) -> 0 | N12: =IF(ISERROR(SUM('C0 Cashflow'!AF683:AH683)),"N/A",SUM('C0 Cashflow'!AF683:AH683)) -> 0 | O12: =IF(ISERROR(SUM('C0 Cashflow'!AI683:AK683)),"N/A",SUM('C0 Cashflow'!AI683:AK683)) -> 0 | P12: =IF(ISERROR(SUM('C0 Cashflow'!AL683:AN683)),"N/A",SUM('C0 Cashflow'!AL683:AN683)) -> 0 | Q12: =IF(ISERROR(SUM('C0 Cashflow'!AO683:AQ683)),"N/A",SUM('C0 Cashflow'!AO683:AQ683)) -> 0 | R12: =IF(ISERROR(SUM('C0 Cashflow'!AR683:AT683)),"N/A",SUM('C0 Cashflow'!AR683:AT683)) -> 0 | S12: =IF(ISERROR(SUM('C0 Cashflow'!AU683:AW683)),"N/A",SUM('C0 Cashflow'!AU683:AW683)) -> 0 | T12: =IF(ISERROR(SUM('C0 Cashflow'!AX683:AZ683)),"N/A",SUM('C0 Cashflow'!AX683:AZ683)) -> 0 | U12: =IF(ISERROR(SUM('C0 Cashflow'!BA683:BC683)),"N/A",SUM('C0 Cashflow'!BA683:BC683)) -> 0 | V12: =IF(ISERROR(SUM('C0 Cashflow'!BD683:BF683)),"N/A",SUM('C0 Cashflow'!BD683:BF683)) -> 0 | W12: =IF(ISERROR(SUM('C0 Cashflow'!BG683:BI683)),"N/A",SUM('C0 Cashflow'!BG683:BI683)) -> 0 | X12: =IF(ISERROR(SUM('C0 Cashflow'!BJ683:BL683)),"N/A",SUM('C0 Cashflow'!BJ683:BL683)) -> 0 | Y12: =IF(ISERROR(SUM('C0 Cashflow'!BM683:BX683)),"N/A",SUM('C0 Cashflow'!BM683:BX683)) -> 0 | Z12: =IF(ISERROR(SUM('C0 Cashflow'!BY683:CJ683)),"N/A",SUM('C0 Cashflow'!BY683:CJ683)) -> 0 | AA12: =IF(ISERROR(SUM('C0 Cashflow'!CK683:CV683)),"N/A",SUM('C0 Cashflow'!CK683:CV683)) -> 0 | AB12: =IF(ISERROR(SUM('C0 Cashflow'!CW683:DH683)),"N/A",SUM('C0 Cashflow'!CW683:DH683)) -> 0 | AC12: =IF(ISERROR(SUM('C0 Cashflow'!DI683:DT683)),"N/A",SUM('C0 Cashflow'!DI683:DT683)) -> 0 | AD12: =IF(ISERROR(SUM('C0 Cashflow'!DU683:EF683)),"N/A",SUM('C0 Cashflow'!DU683:EF683)) -> 0 | AE12: =IF(ISERROR(SUM('C0 Cashflow'!EG683:ER683)),"N/A",SUM('C0 Cashflow'!EG683:ER683)) -> 0 | AF12: =IF(ISERROR(SUM('C0 Cashflow'!ES683:FD683)),"N/A",SUM('C0 Cashflow'!ES683:FD683)) -> 0 | AG12: =IF(ISERROR(SUM('C0 Cashflow'!FE683:FP683)),"N/A",SUM('C0 Cashflow'!FE683:FP683)) -> 0 | AH12: =IF(ISERROR(SUM('C0 Cashflow'!FQ683:GB683)),"N/A",SUM('C0 Cashflow'!FQ683:GB683)) -> 0 | AI12: =IF(ISERROR(SUM('C0 Cashflow'!GC683:GN683)),"N/A",SUM('C0 Cashflow'!GC683:GN683)) -> 0 | AJ12: =IF(ISERROR(SUM('C0 Cashflow'!GO683:GZ683)),"N/A",SUM('C0 Cashflow'!GO683:GZ683)) -> 0 | AK12: =IF(ISERROR(SUM('C0 Cashflow'!HA683:HL683)),"N/A",SUM('C0 Cashflow'!HA683:HL683)) -> 0 | AL12: =IF(ISERROR(SUM('C0 Cashflow'!HM683:HX683)),"N/A",SUM('C0 Cashflow'!HM683:HX683)) -> 0 | AM12: =IF(ISERROR(SUM('C0 Cashflow'!HY683:IL683)),"N/A",SUM('C0 Cashflow'!HY683:IL683)) -> 0 | AN12: 0
A13: =+'C0 Cashflow'!A684 -> Building Costs | B13: =+'C0 Cashflow'!B684 -> Building Cost (Total) | C13: =+'C0 Cashflow'!C684 -> -31434480 | D13: =SUM('C0 Cashflow'!D684) -> 0 | E13: =IF(ISERROR(SUM('C0 Cashflow'!E684:G684)),"N/A",SUM('C0 Cashflow'!E684:G684)) -> 0 | F13: =IF(ISERROR(SUM('C0 Cashflow'!H684:J684)),"N/A",SUM('C0 Cashflow'!H684:J684)) -> 0 | G13: =IF(ISERROR(SUM('C0 Cashflow'!K684:M684)),"N/A",SUM('C0 Cashflow'!K684:M684)) -> 0 | H13: =IF(ISERROR(SUM('C0 Cashflow'!N684:P684)),"N/A",SUM('C0 Cashflow'!N684:P684)) -> 0 | I13: =IF(ISERROR(SUM('C0 Cashflow'!Q684:S684)),"N/A",SUM('C0 Cashflow'!Q684:S684)) -> 0 | J13: =IF(ISERROR(SUM('C0 Cashflow'!T684:V684)),"N/A",SUM('C0 Cashflow'!T684:V684)) -> 0 | K13: =IF(ISERROR(SUM('C0 Cashflow'!W684:Y684)),"N/A",SUM('C0 Cashflow'!W684:Y684)) -> -683358.2609 | L13: =IF(ISERROR(SUM('C0 Cashflow'!Z684:AB684)),"N/A",SUM('C0 Cashflow'!Z684:AB684)) -> -683358.2609 | M13: =IF(ISERROR(SUM('C0 Cashflow'!AC684:AE684)),"N/A",SUM('C0 Cashflow'!AC684:AE684)) -> -683358.2609 | N13: =IF(ISERROR(SUM('C0 Cashflow'!AF684:AH684)),"N/A",SUM('C0 Cashflow'!AF684:AH684)) -> -683358.2609 | O13: =IF(ISERROR(SUM('C0 Cashflow'!AI684:AK684)),"N/A",SUM('C0 Cashflow'!AI684:AK684)) -> -683358.2609 | P13: =IF(ISERROR(SUM('C0 Cashflow'!AL684:AN684)),"N/A",SUM('C0 Cashflow'!AL684:AN684)) -> -683358.2609 | Q13: =IF(ISERROR(SUM('C0 Cashflow'!AO684:AQ684)),"N/A",SUM('C0 Cashflow'!AO684:AQ684)) -> -683358.2609 | R13: =IF(ISERROR(SUM('C0 Cashflow'!AR684:AT684)),"N/A",SUM('C0 Cashflow'!AR684:AT684)) -> -683358.2609 | S13: =IF(ISERROR(SUM('C0 Cashflow'!AU684:AW684)),"N/A",SUM('C0 Cashflow'!AU684:AW684)) -> -683358.2609 | T13: =IF(ISERROR(SUM('C0 Cashflow'!AX684:AZ684)),"N/A",SUM('C0 Cashflow'!AX684:AZ684)) -> -683358.2609 | U13: =IF(ISERROR(SUM('C0 Cashflow'!BA684:BC684)),"N/A",SUM('C0 Cashflow'!BA684:BC684)) -> -683358.2609 | V13: =IF(ISERROR(SUM('C0 Cashflow'!BD684:BF684)),"N/A",SUM('C0 Cashflow'!BD684:BF684)) -> -683358.2609 | W13: =IF(ISERROR(SUM('C0 Cashflow'!BG684:BI684)),"N/A",SUM('C0 Cashflow'!BG684:BI684)) -> -683358.2609 | X13: =IF(ISERROR(SUM('C0 Cashflow'!BJ684:BL684)),"N/A",SUM('C0 Cashflow'!BJ684:BL684)) -> -683358.2609 | Y13: =IF(ISERROR(SUM('C0 Cashflow'!BM684:BX684)),"N/A",SUM('C0 Cashflow'!BM684:BX684)) -> -2733433.043 | Z13: =IF(ISERROR(SUM('C0 Cashflow'!BY684:CJ684)),"N/A",SUM('C0 Cashflow'!BY684:CJ684)) -> -2733433.043 | AA13: =IF(ISERROR(SUM('C0 Cashflow'!CK684:CV684)),"N/A",SUM('C0 Cashflow'!CK684:CV684)) -> -2733433.043 | AB13: =IF(ISERROR(SUM('C0 Cashflow'!CW684:DH684)),"N/A",SUM('C0 Cashflow'!CW684:DH684)) -> -2733433.043 | AC13: =IF(ISERROR(SUM('C0 Cashflow'!DI684:DT684)),"N/A",SUM('C0 Cashflow'!DI684:DT684)) -> -2733433.043 | AD13: =IF(ISERROR(SUM('C0 Cashflow'!DU684:EF684)),"N/A",SUM('C0 Cashflow'!DU684:EF684)) -> -2733433.043 | AE13: =IF(ISERROR(SUM('C0 Cashflow'!EG684:ER684)),"N/A",SUM('C0 Cashflow'!EG684:ER684)) -> -2733433.043 | AF13: =IF(ISERROR(SUM('C0 Cashflow'!ES684:FD684)),"N/A",SUM('C0 Cashflow'!ES684:FD684)) -> -2733433.043 | AG13: =IF(ISERROR(SUM('C0 Cashflow'!FE684:FP684)),"N/A",SUM('C0 Cashflow'!FE684:FP684)) -> 0 | AH13: =IF(ISERROR(SUM('C0 Cashflow'!FQ684:GB684)),"N/A",SUM('C0 Cashflow'!FQ684:GB684)) -> 0 | AI13: =IF(ISERROR(SUM('C0 Cashflow'!GC684:GN684)),"N/A",SUM('C0 Cashflow'!GC684:GN684)) -> 0 | AJ13: =IF(ISERROR(SUM('C0 Cashflow'!GO684:GZ684)),"N/A",SUM('C0 Cashflow'!GO684:GZ684)) -> 0 | AK13: =IF(ISERROR(SUM('C0 Cashflow'!HA684:HL684)),"N/A",SUM('C0 Cashflow'!HA684:HL684)) -> 0 | AL13: =IF(ISERROR(SUM('C0 Cashflow'!HM684:HX684)),"N/A",SUM('C0 Cashflow'!HM684:HX684)) -> 0 | AM13: =IF(ISERROR(SUM('C0 Cashflow'!HY684:IL684)),"N/A",SUM('C0 Cashflow'!HY684:IL684)) -> 0 | AN13: 0
A14: =+'C0 Cashflow'!A685 -> 0 | B14: =+'C0 Cashflow'!B685 -> Building Cost Fee (50% lump sum) | C14: =+'C0 Cashflow'!C685 -> -1964655 | D14: =SUM('C0 Cashflow'!D685) -> 0 | E14: =IF(ISERROR(SUM('C0 Cashflow'!E685:G685)),"N/A",SUM('C0 Cashflow'!E685:G685)) -> 0 | F14: =IF(ISERROR(SUM('C0 Cashflow'!H685:J685)),"N/A",SUM('C0 Cashflow'!H685:J685)) -> 0 | G14: =IF(ISERROR(SUM('C0 Cashflow'!K685:M685)),"N/A",SUM('C0 Cashflow'!K685:M685)) -> 0 | H14: =IF(ISERROR(SUM('C0 Cashflow'!N685:P685)),"N/A",SUM('C0 Cashflow'!N685:P685)) -> 0 | I14: =IF(ISERROR(SUM('C0 Cashflow'!Q685:S685)),"N/A",SUM('C0 Cashflow'!Q685:S685)) -> 0 | J14: =IF(ISERROR(SUM('C0 Cashflow'!T685:V685)),"N/A",SUM('C0 Cashflow'!T685:V685)) -> 0 | K14: =IF(ISERROR(SUM('C0 Cashflow'!W685:Y685)),"N/A",SUM('C0 Cashflow'!W685:Y685)) -> -1964655 | L14: =IF(ISERROR(SUM('C0 Cashflow'!Z685:AB685)),"N/A",SUM('C0 Cashflow'!Z685:AB685)) -> 0 | M14: =IF(ISERROR(SUM('C0 Cashflow'!AC685:AE685)),"N/A",SUM('C0 Cashflow'!AC685:AE685)) -> 0 | N14: =IF(ISERROR(SUM('C0 Cashflow'!AF685:AH685)),"N/A",SUM('C0 Cashflow'!AF685:AH685)) -> 0 | O14: =IF(ISERROR(SUM('C0 Cashflow'!AI685:AK685)),"N/A",SUM('C0 Cashflow'!AI685:AK685)) -> 0 | P14: =IF(ISERROR(SUM('C0 Cashflow'!AL685:AN685)),"N/A",SUM('C0 Cashflow'!AL685:AN685)) -> 0 | Q14: =IF(ISERROR(SUM('C0 Cashflow'!AO685:AQ685)),"N/A",SUM('C0 Cashflow'!AO685:AQ685)) -> 0 | R14: =IF(ISERROR(SUM('C0 Cashflow'!AR685:AT685)),"N/A",SUM('C0 Cashflow'!AR685:AT685)) -> 0 | S14: =IF(ISERROR(SUM('C0 Cashflow'!AU685:AW685)),"N/A",SUM('C0 Cashflow'!AU685:AW685)) -> 0 | T14: =IF(ISERROR(SUM('C0 Cashflow'!AX685:AZ685)),"N/A",SUM('C0 Cashflow'!AX685:AZ685)) -> 0 | U14: =IF(ISERROR(SUM('C0 Cashflow'!BA685:BC685)),"N/A",SUM('C0 Cashflow'!BA685:BC685)) -> 0 | V14: =IF(ISERROR(SUM('C0 Cashflow'!BD685:BF685)),"N/A",SUM('C0 Cashflow'!BD685:BF685)) -> 0 | W14: =IF(ISERROR(SUM('C0 Cashflow'!BG685:BI685)),"N/A",SUM('C0 Cashflow'!BG685:BI685)) -> 0 | X14: =IF(ISERROR(SUM('C0 Cashflow'!BJ685:BL685)),"N/A",SUM('C0 Cashflow'!BJ685:BL685)) -> 0 | Y14: =IF(ISERROR(SUM('C0 Cashflow'!BM685:BX685)),"N/A",SUM('C0 Cashflow'!BM685:BX685)) -> 0 | Z14: =IF(ISERROR(SUM('C0 Cashflow'!BY685:CJ685)),"N/A",SUM('C0 Cashflow'!BY685:CJ685)) -> 0 | AA14: =IF(ISERROR(SUM('C0 Cashflow'!CK685:CV685)),"N/A",SUM('C0 Cashflow'!CK685:CV685)) -> 0 | AB14: =IF(ISERROR(SUM('C0 Cashflow'!CW685:DH685)),"N/A",SUM('C0 Cashflow'!CW685:DH685)) -> 0 | AC14: =IF(ISERROR(SUM('C0 Cashflow'!DI685:DT685)),"N/A",SUM('C0 Cashflow'!DI685:DT685)) -> 0 | AD14: =IF(ISERROR(SUM('C0 Cashflow'!DU685:EF685)),"N/A",SUM('C0 Cashflow'!DU685:EF685)) -> 0 | AE14: =IF(ISERROR(SUM('C0 Cashflow'!EG685:ER685)),"N/A",SUM('C0 Cashflow'!EG685:ER685)) -> 0 | AF14: =IF(ISERROR(SUM('C0 Cashflow'!ES685:FD685)),"N/A",SUM('C0 Cashflow'!ES685:FD685)) -> 0 | AG14: =IF(ISERROR(SUM('C0 Cashflow'!FE685:FP685)),"N/A",SUM('C0 Cashflow'!FE685:FP685)) -> 0 | AH14: =IF(ISERROR(SUM('C0 Cashflow'!FQ685:GB685)),"N/A",SUM('C0 Cashflow'!FQ685:GB685)) -> 0 | AI14: =IF(ISERROR(SUM('C0 Cashflow'!GC685:GN685)),"N/A",SUM('C0 Cashflow'!GC685:GN685)) -> 0 | AJ14: =IF(ISERROR(SUM('C0 Cashflow'!GO685:GZ685)),"N/A",SUM('C0 Cashflow'!GO685:GZ685)) -> 0 | AK14: =IF(ISERROR(SUM('C0 Cashflow'!HA685:HL685)),"N/A",SUM('C0 Cashflow'!HA685:HL685)) -> 0 | AL14: =IF(ISERROR(SUM('C0 Cashflow'!HM685:HX685)),"N/A",SUM('C0 Cashflow'!HM685:HX685)) -> 0 | AM14: =IF(ISERROR(SUM('C0 Cashflow'!HY685:IL685)),"N/A",SUM('C0 Cashflow'!HY685:IL685)) -> 0 | AN14: 0
